Workbook

Sheet Planilha Orçamentária
F2: MINISTÉRIO DA INTEGRAÇÃO E DO DESENVOLVIMENTO REGIONAL - MIDR COMPANHIA DE DESENVOLVIMENTO DOS VALES DO SÃO FRANCISCO E DO PARNAÍBA 3ª Superintendência Regional
B3: SERVIÇOS NECESSÁRIOS A CONSTRUÇÃO DE CASA DE MEL, EM DIVERSOS MUNICÍPIOS DO ESTADO DE PERNAMBUCO, INSERIDOS NA ÁREA DE ATUAÇÃO DA 3ª SUPERINTENDÊNCIA REGIONAL DA CODEVASF, ATRAVÉS DE SISTEMA DE REGISTRO DE PREÇOS - SRP
B4: PETROLINA/PE | J4: MAIO DE 2024
D5: PLANILHA ORÇAMENTÁRIA DE SERVIÇOS E MATERIAIS | J5: VALOR: | K5: =K158 -> 521593.48
E6: TABELAS DE REFERÊNCIA (SEM DESONERAÇÃO): | H6: CODEVASF | I6: - | J6: ORSE | K6: FEV/2024
H7: SEINFRA: | I7: 28 | J7: SINAPI: | K7: MAR/2024
G8: BDI: | H8: SERVIÇOS: | I8: ='BDI''s'!G31 -> 0.235 | J8: MATERIAIS: | K8: ='BDI''s'!G63 -> 0.1262
B9: ITEM | C9: TIPO | D9: FONTE | E9: CÓDIGO | F9: DISCRIMINAÇÃO DOS SERVIÇOS | G9: UNID. | H9: QUANT. | I9: PREÇO (R$)
I10: SEM BDI | J10: COM BDI | K10: TOTAL
B11: 1 | C11: IMPLANTAÇÃO E ADMINISTRAÇÃO DA OBRA | K11: =SUM(K12:K16) -> 29506.24
B12: 1.1 | C12: SERVIÇO | D12: SEINFRA | E12: C1937 | F12: =IF(C12 = "SERVIÇO", IF(D12 = "SINAPI", VLOOKUP(E12, 'SERVIÇOS SINAPI'!$A:$D, 2, 0), IF(D12 = "ORSE", VLOOKUP(E12, 'SERVIÇOS ORSE'!$A:$D, 2, 0), IF(D12 = "SEINFRA", VLOOKUP(E12, 'SERVIÇOS SEINFRA'!$A:$D, 2, 0)))), IF(C12="INSUMO", IF(D12 = "SINAPI", VLOOKUP(E12, 'INSUMOS SINAPI'!$A:$D, 2, 0), IF(D12 = "ORSE", VLOOKUP(E12, 'INSUMOS ORSE'!$A:$D, 2, 0), IF(D12 = "SEINFRA", VLOOKUP(E12,'INSUMOS SEINFRA'!$A:$D, 2, 0),))))) -> PLACAS PADRÃO DE OBRA | G12: =IF(C12 = "SERVIÇO", IF(D12 = "SINAPI", VLOOKUP(E12, 'SERVIÇOS SINAPI'!$A:$D, 3, 0), IF(D12 = "ORSE", VLOOKUP(E12, 'SERVIÇOS ORSE'!$A:$D, 3, 0), IF(D12 = "SEINFRA", VLOOKUP(E12, 'SERVIÇOS SEINFRA'!$A:$D, 3, 0)))), IF(C12="INSUMO", IF(D12 = "SINAPI", VLOOKUP(E12, 'INSUMOS SINAPI'!$A:$D, 3, 0), IF(D12 = "ORSE", VLOOKUP(E12, 'INSUMOS ORSE'!$A:$D, 3, 0), IF(D12 = "SEINFRA", VLOOKUP(E12,'INSUMOS SEINFRA'!$A:$D, 3, 0),))))) -> M² | H12: ='Memória de Cálculo'!$L$8 -> 2.88 | I12: =IF(C12 = "SERVIÇO", IF(D12 = "SINAPI", VLOOKUP(E12, 'SERVIÇOS SINAPI'!$A:$D, 4, 0), IF(D12 = "ORSE", VLOOKUP(E12, 'SERVIÇOS ORSE'!$A:$D, 4, 0), IF(D12 = "SEINFRA", VLOOKUP(E12, 'SERVIÇOS SEINFRA'!$A:$D, 4, 0)))), IF(C12="INSUMO", IF(D12 = "SINAPI", VLOOKUP(E12, 'INSUMOS SINAPI'!$A:$D, 4, 0), IF(D12 = "ORSE", VLOOKUP(E12, 'INSUMOS ORSE'!$A:$D, 4, 0), IF(D12 = "SEINFRA", VLOOKUP(E12,'INSUMOS SEINFRA'!$A:$D, 4, 0),))))) -> 187.01 | J12: =IF(C12 = "SERVIÇO", I12 * (1 + $I$8), IF(C12 = "INSUMO", (I12 * (1 + $K$8)))) -> 230.96 | K12: =J12*H12 -> 665.16 | L12: 5 | Q12: =K12/$K$5 -> 0.0013
B13: 1.2 | C13: SERVIÇO | D13: CODEVASF | E13: =CPU!$B$3 -> CPU 01 | F13: MOBILIZAÇÃO DE EQUIPAMENTOS, MATERIAIS E PESSOAL | G13: =CPU!$I$2 -> UN | H13: 1 | I13: =CPU!$I$15 -> 1067.46 | J13: 1318.31 | K13: =J13*H13 -> 1318.31 | L13: 6 | Q13: =K13/$K$5 -> 0.0025
B14: 1.3 | C14: SERVIÇO | D14: CODEVASF | E14: =CPU!$B$18 -> CPU 02 | F14: DESMOBILIZAÇÃO DE EQUIPAMENTOS, MATERIAIS E PESSOAL | G14: =CPU!$I$17 -> UN | H14: 1 | I14: =CPU!$I$30 -> 1067.46 | J14: 1318.31 | K14: 1318.31 | L14: 6 | Q14: 0.0025
B15: 1.4 | C15: SERVIÇO | D15: CODEVASF | E15: =CPU!$B$33 -> CPU 03 | F15: ADMINISTRAÇÃO LOCAL | G15: =CPU!$I$32 -> UN | H15: 1 | I15: =CPU!$I$51 -> 19757.56 | J15: =IF(C15 = "SERVIÇO", I15 * (1 + $I$8), IF(C15 = "INSUMO", (I15 * (1 + $K$8)))) -> 24400.59 | K15: =J15*H15 -> 24400.59 | L15: 2 | Q15: 0.0468
B16: 1.5 | C16: SERVIÇO | D16: CODEVASF | E16: =CPU!$B$54 -> CPU 04 | F16: CANTEIRO DE OBRAS E ALMOXARIFADO | G16: =CPU!$I$53 -> MES | H16: 1 | I16: =CPU!$I$65 -> 1460.62 | J16: =IF(C16 = "SERVIÇO", I16 * (1 + $I$8), IF(C16 = "INSUMO", (I16 * (1 + $K$8)))) -> 1803.87 | K16: 1803.87 | L16: 6 | Q16: 0.0035
B17: 2 | C17: SERVIÇOS PRELIMINARES | K17: =SUM(K18:K22) -> 3426.04
B18: 2.1 | C18: SERVIÇO | D18: CODEVASF | E18: =CPU!$B$68 -> CPU 05 | F18: REVISÃO E ADEQUAÇÃO DO PROJETO ESTRUTURAL | G18: =CPU!$I$67 -> UN | H18: ='Memória de Cálculo'!$L$12 -> 0.11 | I18: =CPU!$I$78 -> 2416 | J18: =IF(C18 = "SERVIÇO", I18 * (1 + $I$8), IF(C18 = "INSUMO", (I18 * (1 + $K$8)))) -> 2983.76 | K18: =J18*H18 -> 328.21 | L18: 6 | Q18: 0.0006
B19: 2.2 | C19: SERVIÇO | D19: CODEVASF | E19: =CPU!$B$81 -> CPU 06 | F19: REVISÃO E ADEQUAÇÃO DO PROJETO ELÉTRICO | G19: =CPU!$I$80 -> UN | H19: ='Memória de Cálculo'!$L$15 -> 0.11 | I19: =CPU!$I$91 -> 1812 | J19: =IF(C19 = "SERVIÇO", I19 * (1 + $I$8), IF(C19 = "INSUMO", (I19 * (1 + $K$8)))) -> 2237.82 | K19: =J19*H19 -> 246.16 | L19: 6 | Q19: 0.0005
B20: 2.3 | C20: SERVIÇO | D20: CODEVASF | E20: =CPU!$B$94 -> CPU 07 | F20: REVISÃO E ADEQUAÇÃO DO PROJETO HIDROSSANITÁRIO | G20: =CPU!$I$93 -> UN | H20: ='Memória de Cálculo'!$L$18 -> 0.11 | I20: =CPU!$I$104 -> 1812 | J20: =IF(C20 = "SERVIÇO", I20 * (1 + $I$8), IF(C20 = "INSUMO", (I20 * (1 + $K$8)))) -> 2237.82 | K20: =J20*H20 -> 246.16 | L20: 6 | Q20: 0.0005
B21: 2.4 | C21: SERVIÇO | D21: SINAPI | E21: 98525 | F21: =IF(C21 = "SERVIÇO", IF(D21 = "SINAPI", VLOOKUP(E21, 'SERVIÇOS SINAPI'!$A:$D, 2, 0), IF(D21 = "ORSE", VLOOKUP(E21, 'SERVIÇOS ORSE'!$A:$D, 2, 0), IF(D21 = "SEINFRA", VLOOKUP(E21, 'SERVIÇOS SEINFRA'!$A:$D, 2, 0)))), IF(C21="INSUMO", IF(D21 = "SINAPI", VLOOKUP(E21, 'INSUMOS SINAPI'!$A:$D, 2, 0), IF(D21 = "ORSE", VLOOKUP(E21, 'INSUMOS ORSE'!$A:$D, 2, 0), IF(D21 = "SEINFRA", VLOOKUP(E21,'INSUMOS SEINFRA'!$A:$D, 2, 0),))))) -> LIMPEZA MECANIZADA DE CAMADA VEGETAL, VEGETAÇÃO E PEQUENAS ÁRVORES (DIÂMETRO DE TRONCO MENOR QUE 0,20 M), COM TRATOR DE ESTEIRAS. AF_03/2024 | G21: =IF(C21 = "SERVIÇO", IF(D21 = "SINAPI", VLOOKUP(E21, 'SERVIÇOS SINAPI'!$A:$D, 3, 0), IF(D21 = "ORSE", VLOOKUP(E21, 'SERVIÇOS ORSE'!$A:$D, 3, 0), IF(D21 = "SEINFRA", VLOOKUP(E21, 'SERVIÇOS SEINFRA'!$A:$D, 3, 0)))), IF(C21="INSUMO", IF(D21 = "SINAPI", VLOOKUP(E21, 'INSUMOS SINAPI'!$A:$D, 3, 0), IF(D21 = "ORSE", VLOOKUP(E21, 'INSUMOS ORSE'!$A:$D, 3, 0), IF(D21 = "SEINFRA", VLOOKUP(E21,'INSUMOS SEINFRA'!$A:$D, 3, 0),))))) -> M² | H21: ='Memória de Cálculo'!$L$21 -> 1200 | I21: =IF(C21 = "SERVIÇO", IF(D21 = "SINAPI", VLOOKUP(E21, 'SERVIÇOS SINAPI'!$A:$D, 4, 0), IF(D21 = "ORSE", VLOOKUP(E21, 'SERVIÇOS ORSE'!$A:$D, 4, 0), IF(D21 = "SEINFRA", VLOOKUP(E21, 'SERVIÇOS SEINFRA'!$A:$D, 4, 0)))), IF(C21="INSUMO", IF(D21 = "SINAPI", VLOOKUP(E21, 'INSUMOS SINAPI'!$A:$D, 4, 0), IF(D21 = "ORSE", VLOOKUP(E21, 'INSUMOS ORSE'!$A:$D, 4, 0), IF(D21 = "SEINFRA", VLOOKUP(E21,'INSUMOS SEINFRA'!$A:$D, 4, 0),))))) -> 0.62 | J21: 0.77 | K21: 924 | L21: 1 | Q21: 0.0018
B22: 2.5 | C22: SERVIÇO | D22: SEINFRA | E22: C1630 | F22: =IF(C22 = "SERVIÇO", IF(D22 = "SINAPI", VLOOKUP(E22, 'SERVIÇOS SINAPI'!$A:$D, 2, 0), IF(D22 = "ORSE", VLOOKUP(E22, 'SERVIÇOS ORSE'!$A:$D, 2, 0), IF(D22 = "SEINFRA", VLOOKUP(E22, 'SERVIÇOS SEINFRA'!$A:$D, 2, 0)))), IF(C22="INSUMO", IF(D22 = "SINAPI", VLOOKUP(E22, 'INSUMOS SINAPI'!$A:$D, 2, 0), IF(D22 = "ORSE", VLOOKUP(E22, 'INSUMOS ORSE'!$A:$D, 2, 0), IF(D22 = "SEINFRA", VLOOKUP(E22,'INSUMOS SEINFRA'!$A:$D, 2, 0),))))) -> LOCAÇÃO DA OBRA - EXECUÇÃO DE GABARITO | G22: =IF(C22 = "SERVIÇO", IF(D22 = "SINAPI", VLOOKUP(E22, 'SERVIÇOS SINAPI'!$A:$D, 3, 0), IF(D22 = "ORSE", VLOOKUP(E22, 'SERVIÇOS ORSE'!$A:$D, 3, 0), IF(D22 = "SEINFRA", VLOOKUP(E22, 'SERVIÇOS SEINFRA'!$A:$D, 3, 0)))), IF(C22="INSUMO", IF(D22 = "SINAPI", VLOOKUP(E22, 'INSUMOS SINAPI'!$A:$D, 3, 0), IF(D22 = "ORSE", VLOOKUP(E22, 'INSUMOS ORSE'!$A:$D, 3, 0), IF(D22 = "SEINFRA", VLOOKUP(E22,'INSUMOS SEINFRA'!$A:$D, 3, 0),))))) -> M² | H22: ='Memória de Cálculo'!$L$25 -> 175.89 | I22: =IF(C22 = "SERVIÇO", IF(D22 = "SINAPI", VLOOKUP(E22, 'SERVIÇOS SINAPI'!$A:$D, 4, 0), IF(D22 = "ORSE", VLOOKUP(E22, 'SERVIÇOS ORSE'!$A:$D, 4, 0), IF(D22 = "SEINFRA", VLOOKUP(E22, 'SERVIÇOS SEINFRA'!$A:$D, 4, 0)))), IF(C22="INSUMO", IF(D22 = "SINAPI", VLOOKUP(E22, 'INSUMOS SINAPI'!$A:$D, 4, 0), IF(D22 = "ORSE", VLOOKUP(E22, 'INSUMOS ORSE'!$A:$D, 4, 0), IF(D22 = "SEINFRA", VLOOKUP(E22,'INSUMOS SEINFRA'!$A:$D, 4, 0),))))) -> 7.74 | J22: 9.56 | K22: 1681.51 | L22: 2 | Q22: 0.0032
B23: 3 | C23: INFRAESTRUTURA E SUPERESTRUTURA | K23: =SUM(K24:K40) -> 147399.96
B24: 3.1 | C24: SERVIÇO | D24: SINAPI | E24: 93358 | F24: =IF(C24 = "SERVIÇO", IF(D24 = "SINAPI", VLOOKUP(E24, 'SERVIÇOS SINAPI'!$A:$D, 2, 0), IF(D24 = "ORSE", VLOOKUP(E24, 'SERVIÇOS ORSE'!$A:$D, 2, 0), IF(D24 = "SEINFRA", VLOOKUP(E24, 'SERVIÇOS SEINFRA'!$A:$D, 2, 0)))), IF(C24="INSUMO", IF(D24 = "SINAPI", VLOOKUP(E24, 'INSUMOS SINAPI'!$A:$D, 2, 0), IF(D24 = "ORSE", VLOOKUP(E24, 'INSUMOS ORSE'!$A:$D, 2, 0), IF(D24 = "SEINFRA", VLOOKUP(E24,'INSUMOS SEINFRA'!$A:$D, 2, 0),))))) -> ESCAVAÇÃO MANUAL DE VALA COM PROFUNDIDADE MENOR OU IGUAL A 1,30 M. AF_02/2021 | G24: =IF(C24 = "SERVIÇO", IF(D24 = "SINAPI", VLOOKUP(E24, 'SERVIÇOS SINAPI'!$A:$D, 3, 0), IF(D24 = "ORSE", VLOOKUP(E24, 'SERVIÇOS ORSE'!$A:$D, 3, 0), IF(D24 = "SEINFRA", VLOOKUP(E24, 'SERVIÇOS SEINFRA'!$A:$D, 3, 0)))), IF(C24="INSUMO", IF(D24 = "SINAPI", VLOOKUP(E24, 'INSUMOS SINAPI'!$A:$D, 3, 0), IF(D24 = "ORSE", VLOOKUP(E24, 'INSUMOS ORSE'!$A:$D, 3, 0), IF(D24 = "SEINFRA", VLOOKUP(E24,'INSUMOS SEINFRA'!$A:$D, 3, 0),))))) -> M³ | H24: ='Memória de Cálculo'!$L$36 -> 37.96 | I24: =IF(C24 = "SERVIÇO", IF(D24 = "SINAPI", VLOOKUP(E24, 'SERVIÇOS SINAPI'!$A:$D, 4, 0), IF(D24 = "ORSE", VLOOKUP(E24, 'SERVIÇOS ORSE'!$A:$D, 4, 0), IF(D24 = "SEINFRA", VLOOKUP(E24, 'SERVIÇOS SEINFRA'!$A:$D, 4, 0)))), IF(C24="INSUMO", IF(D24 = "SINAPI", VLOOKUP(E24, 'INSUMOS SINAPI'!$A:$D, 4, 0), IF(D24 = "ORSE", VLOOKUP(E24, 'INSUMOS ORSE'!$A:$D, 4, 0), IF(D24 = "SEINFRA", VLOOKUP(E24,'INSUMOS SEINFRA'!$A:$D, 4, 0),))))) -> 80.22 | J24: =IF(C24 = "SERVIÇO", I24 * (1 + $I$8), IF(C24 = "INSUMO", (I24 * (1 + $K$8)))) -> 99.07 | K24: =J24*H24 -> 3760.7 | L24: 1 | Q24: 0.0072
B25: 3.2 | C25: SERVIÇO | D25: SINAPI | E25: 104737 | F25: =IF(C25 = "SERVIÇO", IF(D25 = "SINAPI", VLOOKUP(E25, 'SERVIÇOS SINAPI'!$A:$D, 2, 0), IF(D25 = "ORSE", VLOOKUP(E25, 'SERVIÇOS ORSE'!$A:$D, 2, 0), IF(D25 = "SEINFRA", VLOOKUP(E25, 'SERVIÇOS SEINFRA'!$A:$D, 2, 0)))), IF(C25="INSUMO", IF(D25 = "SINAPI", VLOOKUP(E25, 'INSUMOS SINAPI'!$A:$D, 2, 0), IF(D25 = "ORSE", VLOOKUP(E25, 'INSUMOS ORSE'!$A:$D, 2, 0), IF(D25 = "SEINFRA", VLOOKUP(E25,'INSUMOS SEINFRA'!$A:$D, 2, 0),))))) -> REATERRO MANUAL DE VALAS, COM PLACA VIBRATÓRIA. AF_08/2023 | G25: =IF(C25 = "SERVIÇO", IF(D25 = "SINAPI", VLOOKUP(E25, 'SERVIÇOS SINAPI'!$A:$D, 3, 0), IF(D25 = "ORSE", VLOOKUP(E25, 'SERVIÇOS ORSE'!$A:$D, 3, 0), IF(D25 = "SEINFRA", VLOOKUP(E25, 'SERVIÇOS SEINFRA'!$A:$D, 3, 0)))), IF(C25="INSUMO", IF(D25 = "SINAPI", VLOOKUP(E25, 'INSUMOS SINAPI'!$A:$D, 3, 0), IF(D25 = "ORSE", VLOOKUP(E25, 'INSUMOS ORSE'!$A:$D, 3, 0), IF(D25 = "SEINFRA", VLOOKUP(E25,'INSUMOS SEINFRA'!$A:$D, 3, 0),))))) -> M³ | H25: ='Memória de Cálculo'!$L$39 -> 37.96 | I25: =IF(C25 = "SERVIÇO", IF(D25 = "SINAPI", VLOOKUP(E25, 'SERVIÇOS SINAPI'!$A:$D, 4, 0), IF(D25 = "ORSE", VLOOKUP(E25, 'SERVIÇOS ORSE'!$A:$D, 4, 0), IF(D25 = "SEINFRA", VLOOKUP(E25, 'SERVIÇOS SEINFRA'!$A:$D, 4, 0)))), IF(C25="INSUMO", IF(D25 = "SINAPI", VLOOKUP(E25, 'INSUMOS SINAPI'!$A:$D, 4, 0), IF(D25 = "ORSE", VLOOKUP(E25, 'INSUMOS ORSE'!$A:$D, 4, 0), IF(D25 = "SEINFRA", VLOOKUP(E25,'INSUMOS SEINFRA'!$A:$D, 4, 0),))))) -> 20.5 | J25: =IF(C25 = "SERVIÇO", I25 * (1 + $I$8), IF(C25 = "INSUMO", (I25 * (1 + $K$8)))) -> 25.32 | K25: =J25*H25 -> 961.15 | L25: 1 | Q25: 0.0018
B26: 3.3 | C26: SERVIÇO | D26: SINAPI | E26: 94319 | F26: =IF(C26 = "SERVIÇO", IF(D26 = "SINAPI", VLOOKUP(E26, 'SERVIÇOS SINAPI'!$A:$D, 2, 0), IF(D26 = "ORSE", VLOOKUP(E26, 'SERVIÇOS ORSE'!$A:$D, 2, 0), IF(D26 = "SEINFRA", VLOOKUP(E26, 'SERVIÇOS SEINFRA'!$A:$D, 2, 0)))), IF(C26="INSUMO", IF(D26 = "SINAPI", VLOOKUP(E26, 'INSUMOS SINAPI'!$A:$D, 2, 0), IF(D26 = "ORSE", VLOOKUP(E26, 'INSUMOS ORSE'!$A:$D, 2, 0), IF(D26 = "SEINFRA", VLOOKUP(E26,'INSUMOS SEINFRA'!$A:$D, 2, 0),))))) -> ATERRO MANUAL DE VALAS COM SOLO ARGILO-ARENOSO. AF_08/2023 | G26: =IF(C26 = "SERVIÇO", IF(D26 = "SINAPI", VLOOKUP(E26, 'SERVIÇOS SINAPI'!$A:$D, 3, 0), IF(D26 = "ORSE", VLOOKUP(E26, 'SERVIÇOS ORSE'!$A:$D, 3, 0), IF(D26 = "SEINFRA", VLOOKUP(E26, 'SERVIÇOS SEINFRA'!$A:$D, 3, 0)))), IF(C26="INSUMO", IF(D26 = "SINAPI", VLOOKUP(E26, 'INSUMOS SINAPI'!$A:$D, 3, 0), IF(D26 = "ORSE", VLOOKUP(E26, 'INSUMOS ORSE'!$A:$D, 3, 0), IF(D26 = "SEINFRA", VLOOKUP(E26,'INSUMOS SEINFRA'!$A:$D, 3, 0),))))) -> M³ | H26: ='Memória de Cálculo'!$L$54 -> 19.89 | I26: =IF(C26 = "SERVIÇO", IF(D26 = "SINAPI", VLOOKUP(E26, 'SERVIÇOS SINAPI'!$A:$D, 4, 0), IF(D26 = "ORSE", VLOOKUP(E26, 'SERVIÇOS ORSE'!$A:$D, 4, 0), IF(D26 = "SEINFRA", VLOOKUP(E26, 'SERVIÇOS SEINFRA'!$A:$D, 4, 0)))), IF(C26="INSUMO", IF(D26 = "SINAPI", VLOOKUP(E26, 'INSUMOS SINAPI'!$A:$D, 4, 0), IF(D26 = "ORSE", VLOOKUP(E26, 'INSUMOS ORSE'!$A:$D, 4, 0), IF(D26 = "SEINFRA", VLOOKUP(E26,'INSUMOS SEINFRA'!$A:$D, 4, 0),))))) -> 76.27 | J26: =IF(C26 = "SERVIÇO", I26 * (1 + $I$8), IF(C26 = "INSUMO", (I26 * (1 + $K$8)))) -> 94.19 | K26: =J26*H26 -> 1873.44 | L26: 1 | Q26: 0.0036
B27: 3.4 | C27: SERVIÇO | D27: SINAPI | E27: 101166 | F27: =IF(C27 = "SERVIÇO", IF(D27 = "SINAPI", VLOOKUP(E27, 'SERVIÇOS SINAPI'!$A:$D, 2, 0), IF(D27 = "ORSE", VLOOKUP(E27, 'SERVIÇOS ORSE'!$A:$D, 2, 0), IF(D27 = "SEINFRA", VLOOKUP(E27, 'SERVIÇOS SEINFRA'!$A:$D, 2, 0)))), IF(C27="INSUMO", IF(D27 = "SINAPI", VLOOKUP(E27, 'INSUMOS SINAPI'!$A:$D, 2, 0), IF(D27 = "ORSE", VLOOKUP(E27, 'INSUMOS ORSE'!$A:$D, 2, 0), IF(D27 = "SEINFRA", VLOOKUP(E27,'INSUMOS SEINFRA'!$A:$D, 2, 0),))))) -> ALVENARIA DE EMBASAMENTO COM BLOCO ESTRUTURAL DE CERÂMICA, DE 14X19X29CM E ARGAMASSA DE ASSENTAMENTO COM PREPARO EM BETONEIRA. AF_05/2020 | G27: =IF(C27 = "SERVIÇO", IF(D27 = "SINAPI", VLOOKUP(E27, 'SERVIÇOS SINAPI'!$A:$D, 3, 0), IF(D27 = "ORSE", VLOOKUP(E27, 'SERVIÇOS ORSE'!$A:$D, 3, 0), IF(D27 = "SEINFRA", VLOOKUP(E27, 'SERVIÇOS SEINFRA'!$A:$D, 3, 0)))), IF(C27="INSUMO", IF(D27 = "SINAPI", VLOOKUP(E27, 'INSUMOS SINAPI'!$A:$D, 3, 0), IF(D27 = "ORSE", VLOOKUP(E27, 'INSUMOS ORSE'!$A:$D, 3, 0), IF(D27 = "SEINFRA", VLOOKUP(E27,'INSUMOS SEINFRA'!$A:$D, 3, 0),))))) -> M³ | H27: ='Memória de Cálculo'!$L$57 -> 14.12 | I27: =IF(C27 = "SERVIÇO", IF(D27 = "SINAPI", VLOOKUP(E27, 'SERVIÇOS SINAPI'!$A:$D, 4, 0), IF(D27 = "ORSE", VLOOKUP(E27, 'SERVIÇOS ORSE'!$A:$D, 4, 0), IF(D27 = "SEINFRA", VLOOKUP(E27, 'SERVIÇOS SEINFRA'!$A:$D, 4, 0)))), IF(C27="INSUMO", IF(D27 = "SINAPI", VLOOKUP(E27, 'INSUMOS SINAPI'!$A:$D, 4, 0), IF(D27 = "ORSE", VLOOKUP(E27, 'INSUMOS ORSE'!$A:$D, 4, 0), IF(D27 = "SEINFRA", VLOOKUP(E27,'INSUMOS SEINFRA'!$A:$D, 4, 0),))))) -> 554.84 | J27: 685.23 | K27: 9675.45 | L27: 2 | Q27: 0.0185 | R27: =H27+H42 -> 456.8 | S27: =R27*9 -> 4111.2 | T27: =S27*0.25 -> 1027.8
B28: 3.5 | C28: SERVIÇO | D28: ORSE | E28: 7369 | F28: =IF(C28 = "SERVIÇO", IF(D28 = "SINAPI", VLOOKUP(E28, 'SERVIÇOS SINAPI'!$A:$D, 2, 0), IF(D28 = "ORSE", VLOOKUP(E28, 'SERVIÇOS ORSE'!$A:$D, 2, 0), IF(D28 = "SEINFRA", VLOOKUP(E28, 'SERVIÇOS SEINFRA'!$A:$D, 2, 0)))), IF(C28="INSUMO", IF(D28 = "SINAPI", VLOOKUP(E28, 'INSUMOS SINAPI'!$A:$D, 2, 0), IF(D28 = "ORSE", VLOOKUP(E28, 'INSUMOS ORSE'!$A:$D, 2, 0), IF(D28 = "SEINFRA", VLOOKUP(E28,'INSUMOS SEINFRA'!$A:$D, 2, 0),))))) -> CONCRETO ARMADO FCK=30,0MPA, USINADO, BOMBEADO, ADENSADO E LANÇADO, PARA USO GERAL, COM FORMAS PLANAS EM COMPENSADO RESINADO 12MM (05 USOS) | G28: =IF(C28 = "SERVIÇO", IF(D28 = "SINAPI", VLOOKUP(E28, 'SERVIÇOS SINAPI'!$A:$D, 3, 0), IF(D28 = "ORSE", VLOOKUP(E28, 'SERVIÇOS ORSE'!$A:$D, 3, 0), IF(D28 = "SEINFRA", VLOOKUP(E28, 'SERVIÇOS SEINFRA'!$A:$D, 3, 0)))), IF(C28="INSUMO", IF(D28 = "SINAPI", VLOOKUP(E28, 'INSUMOS SINAPI'!$A:$D, 3, 0), IF(D28 = "ORSE", VLOOKUP(E28, 'INSUMOS ORSE'!$A:$D, 3, 0), IF(D28 = "SEINFRA", VLOOKUP(E28,'INSUMOS SEINFRA'!$A:$D, 3, 0),))))) -> M³ | H28: ='Memória de Cálculo'!$L$70 -> 17.63 | I28: =IF(C28 = "SERVIÇO", IF(D28 = "SINAPI", VLOOKUP(E28, 'SERVIÇOS SINAPI'!$A:$D, 4, 0), IF(D28 = "ORSE", VLOOKUP(E28, 'SERVIÇOS ORSE'!$A:$D, 4, 0), IF(D28 = "SEINFRA", VLOOKUP(E28, 'SERVIÇOS SEINFRA'!$A:$D, 4, 0)))), IF(C28="INSUMO", IF(D28 = "SINAPI", VLOOKUP(E28, 'INSUMOS SINAPI'!$A:$D, 4, 0), IF(D28 = "ORSE", VLOOKUP(E28, 'INSUMOS ORSE'!$A:$D, 4, 0), IF(D28 = "SEINFRA", VLOOKUP(E28,'INSUMOS SEINFRA'!$A:$D, 4, 0),))))) -> 2376.88 | J28: =IF(C28 = "SERVIÇO", I28 * (1 + $I$8), IF(C28 = "INSUMO", (I28 * (1 + $K$8)))) -> 2935.45 | K28: =J28*H28 -> 51751.98 | L28: 3 | O28: 116.85 | Q28: 0.0992 | R28: =H28*9+H34*0.1 -> 165.07 | S28: =R28*0.25 -> 41.27
B29: 3.6 | C29: SERVIÇO | D29: ORSE | E29: 4953 | F29: =IF(C29 = "SERVIÇO", IF(D29 = "SINAPI", VLOOKUP(E29, 'SERVIÇOS SINAPI'!$A:$D, 2, 0), IF(D29 = "ORSE", VLOOKUP(E29, 'SERVIÇOS ORSE'!$A:$D, 2, 0), IF(D29 = "SEINFRA", VLOOKUP(E29, 'SERVIÇOS SEINFRA'!$A:$D, 2, 0)))), IF(C29="INSUMO", IF(D29 = "SINAPI", VLOOKUP(E29, 'INSUMOS SINAPI'!$A:$D, 2, 0), IF(D29 = "ORSE", VLOOKUP(E29, 'INSUMOS ORSE'!$A:$D, 2, 0), IF(D29 = "SEINFRA", VLOOKUP(E29,'INSUMOS SEINFRA'!$A:$D, 2, 0),))))) -> IMPERMEABILIZAÇÃO DE ALICERCE E VIGA BALDRAME COM 2 DEMÃOS DE TINTA ASFÁLTICA TIPO NEUTROL DA VEDACIT OU SIMILAR, EXCETO ARGAMASSA IMPERMEABILIZAÇÃO | G29: =IF(C29 = "SERVIÇO", IF(D29 = "SINAPI", VLOOKUP(E29, 'SERVIÇOS SINAPI'!$A:$D, 3, 0), IF(D29 = "ORSE", VLOOKUP(E29, 'SERVIÇOS ORSE'!$A:$D, 3, 0), IF(D29 = "SEINFRA", VLOOKUP(E29, 'SERVIÇOS SEINFRA'!$A:$D, 3, 0)))), IF(C29="INSUMO", IF(D29 = "SINAPI", VLOOKUP(E29, 'INSUMOS SINAPI'!$A:$D, 3, 0), IF(D29 = "ORSE", VLOOKUP(E29, 'INSUMOS ORSE'!$A:$D, 3, 0), IF(D29 = "SEINFRA", VLOOKUP(E29,'INSUMOS SEINFRA'!$A:$D, 3, 0),))))) -> M² | H29: ='Memória de Cálculo'!$L$73 -> 25.22 | I29: =IF(C29 = "SERVIÇO", IF(D29 = "SINAPI", VLOOKUP(E29, 'SERVIÇOS SINAPI'!$A:$D, 4, 0), IF(D29 = "ORSE", VLOOKUP(E29, 'SERVIÇOS ORSE'!$A:$D, 4, 0), IF(D29 = "SEINFRA", VLOOKUP(E29, 'SERVIÇOS SEINFRA'!$A:$D, 4, 0)))), IF(C29="INSUMO", IF(D29 = "SINAPI", VLOOKUP(E29, 'INSUMOS SINAPI'!$A:$D, 4, 0), IF(D29 = "ORSE", VLOOKUP(E29, 'INSUMOS ORSE'!$A:$D, 4, 0), IF(D29 = "SEINFRA", VLOOKUP(E29,'INSUMOS SEINFRA'!$A:$D, 4, 0),))))) -> 26.82 | J29: =IF(C29 = "SERVIÇO", I29 * (1 + $I$8), IF(C29 = "INSUMO", (I29 * (1 + $K$8)))) -> 33.12 | K29: =J29*H29 -> 835.29 | L29: 2 | O29: 116.85 | Q29: 0.0016
B30: 3.7 | C30: SERVIÇO | D30: SINAPI | E30: 95241 | F30: =IF(C30 = "SERVIÇO", IF(D30 = "SINAPI", VLOOKUP(E30, 'SERVIÇOS SINAPI'!$A:$D, 2, 0), IF(D30 = "ORSE", VLOOKUP(E30, 'SERVIÇOS ORSE'!$A:$D, 2, 0), IF(D30 = "SEINFRA", VLOOKUP(E30, 'SERVIÇOS SEINFRA'!$A:$D, 2, 0)))), IF(C30="INSUMO", IF(D30 = "SINAPI", VLOOKUP(E30, 'INSUMOS SINAPI'!$A:$D, 2, 0), IF(D30 = "ORSE", VLOOKUP(E30, 'INSUMOS ORSE'!$A:$D, 2, 0), IF(D30 = "SEINFRA", VLOOKUP(E30,'INSUMOS SEINFRA'!$A:$D, 2, 0),))))) -> LASTRO DE CONCRETO MAGRO, APLICADO EM PISOS, LAJES SOBRE SOLO OU RADIERS, ESPESSURA DE 5 CM. AF_01/2024 | G30: =IF(C30 = "SERVIÇO", IF(D30 = "SINAPI", VLOOKUP(E30, 'SERVIÇOS SINAPI'!$A:$D, 3, 0), IF(D30 = "ORSE", VLOOKUP(E30, 'SERVIÇOS ORSE'!$A:$D, 3, 0), IF(D30 = "SEINFRA", VLOOKUP(E30, 'SERVIÇOS SEINFRA'!$A:$D, 3, 0)))), IF(C30="INSUMO", IF(D30 = "SINAPI", VLOOKUP(E30, 'INSUMOS SINAPI'!$A:$D, 3, 0), IF(D30 = "ORSE", VLOOKUP(E30, 'INSUMOS ORSE'!$A:$D, 3, 0), IF(D30 = "SEINFRA", VLOOKUP(E30,'INSUMOS SEINFRA'!$A:$D, 3, 0),))))) -> M² | H30: ='Memória de Cálculo'!$L$78 -> 177.37 | I30: =IF(C30 = "SERVIÇO", IF(D30 = "SINAPI", VLOOKUP(E30, 'SERVIÇOS SINAPI'!$A:$D, 4, 0), IF(D30 = "ORSE", VLOOKUP(E30, 'SERVIÇOS ORSE'!$A:$D, 4, 0), IF(D30 = "SEINFRA", VLOOKUP(E30, 'SERVIÇOS SEINFRA'!$A:$D, 4, 0)))), IF(C30="INSUMO", IF(D30 = "SINAPI", VLOOKUP(E30, 'INSUMOS SINAPI'!$A:$D, 4, 0), IF(D30 = "ORSE", VLOOKUP(E30, 'INSUMOS ORSE'!$A:$D, 4, 0), IF(D30 = "SEINFRA", VLOOKUP(E30,'INSUMOS SEINFRA'!$A:$D, 4, 0),))))) -> 35.57 | J30: =IF(C30 = "SERVIÇO", I30 * (1 + $I$8), IF(C30 = "INSUMO", (I30 * (1 + $K$8)))) -> 43.93 | K30: =J30*H30 -> 7791.86 | L30: 2 | O30: =0.4*0.15+0.15*0.2 -> 0.09 | Q30: 0.0149
B31: 3.8 | C31: SERVIÇO | D31: SINAPI | E31: 87630 | F31: =IF(C31 = "SERVIÇO", IF(D31 = "SINAPI", VLOOKUP(E31, 'SERVIÇOS SINAPI'!$A:$D, 2, 0), IF(D31 = "ORSE", VLOOKUP(E31, 'SERVIÇOS ORSE'!$A:$D, 2, 0), IF(D31 = "SEINFRA", VLOOKUP(E31, 'SERVIÇOS SEINFRA'!$A:$D, 2, 0)))), IF(C31="INSUMO", IF(D31 = "SINAPI", VLOOKUP(E31, 'INSUMOS SINAPI'!$A:$D, 2, 0), IF(D31 = "ORSE", VLOOKUP(E31, 'INSUMOS ORSE'!$A:$D, 2, 0), IF(D31 = "SEINFRA", VLOOKUP(E31,'INSUMOS SEINFRA'!$A:$D, 2, 0),))))) -> CONTRAPISO EM ARGAMASSA TRAÇO 1:4 (CIMENTO E AREIA), PREPARO MECÂNICO COM BETONEIRA 400 L, APLICADO EM ÁREAS SECAS SOBRE LAJE, ADERIDO, ACABAMENTO NÃO REFORÇADO, ESPESSURA 3CM. AF_07/2021 | G31: =IF(C31 = "SERVIÇO", IF(D31 = "SINAPI", VLOOKUP(E31, 'SERVIÇOS SINAPI'!$A:$D, 3, 0), IF(D31 = "ORSE", VLOOKUP(E31, 'SERVIÇOS ORSE'!$A:$D, 3, 0), IF(D31 = "SEINFRA", VLOOKUP(E31, 'SERVIÇOS SEINFRA'!$A:$D, 3, 0)))), IF(C31="INSUMO", IF(D31 = "SINAPI", VLOOKUP(E31, 'INSUMOS SINAPI'!$A:$D, 3, 0), IF(D31 = "ORSE", VLOOKUP(E31, 'INSUMOS ORSE'!$A:$D, 3, 0), IF(D31 = "SEINFRA", VLOOKUP(E31,'INSUMOS SEINFRA'!$A:$D, 3, 0),))))) -> M² | H31: ='Memória de Cálculo'!$L$82 -> 126.93 | I31: =IF(C31 = "SERVIÇO", IF(D31 = "SINAPI", VLOOKUP(E31, 'SERVIÇOS SINAPI'!$A:$D, 4, 0), IF(D31 = "ORSE", VLOOKUP(E31, 'SERVIÇOS ORSE'!$A:$D, 4, 0), IF(D31 = "SEINFRA", VLOOKUP(E31, 'SERVIÇOS SEINFRA'!$A:$D, 4, 0)))), IF(C31="INSUMO", IF(D31 = "SINAPI", VLOOKUP(E31, 'INSUMOS SINAPI'!$A:$D, 4, 0), IF(D31 = "ORSE", VLOOKUP(E31, 'INSUMOS ORSE'!$A:$D, 4, 0), IF(D31 = "SEINFRA", VLOOKUP(E31,'INSUMOS SEINFRA'!$A:$D, 4, 0),))))) -> 39.33 | J31: 48.57 | K31: 6164.99 | L31: 2 | O31: =O28*O30 -> 10.52 | Q31: 0.0118
B32: 3.9 | C32: SERVIÇO | D32: SINAPI | E32: 104162 | F32: =IF(C32 = "SERVIÇO", IF(D32 = "SINAPI", VLOOKUP(E32, 'SERVIÇOS SINAPI'!$A:$D, 2, 0), IF(D32 = "ORSE", VLOOKUP(E32, 'SERVIÇOS ORSE'!$A:$D, 2, 0), IF(D32 = "SEINFRA", VLOOKUP(E32, 'SERVIÇOS SEINFRA'!$A:$D, 2, 0)))), IF(C32="INSUMO", IF(D32 = "SINAPI", VLOOKUP(E32, 'INSUMOS SINAPI'!$A:$D, 2, 0), IF(D32 = "ORSE", VLOOKUP(E32, 'INSUMOS ORSE'!$A:$D, 2, 0), IF(D32 = "SEINFRA", VLOOKUP(E32,'INSUMOS SEINFRA'!$A:$D, 2, 0),))))) -> PISO EM GRANILITE, MARMORITE OU GRANITINA EM AMBIENTES INTERNOS, COM ESPESSURA DE 8 MM, INCLUSO MISTURA EM BETONEIRA, COLOCAÇÃO DAS JUNTAS, APLICAÇÃO DO PISO, 4 POLIMENTOS COM POLITRIZ, ESTUCAMENTO, SELADOR E CERA. AF_06/2022 | G32: =IF(C32 = "SERVIÇO", IF(D32 = "SINAPI", VLOOKUP(E32, 'SERVIÇOS SINAPI'!$A:$D, 3, 0), IF(D32 = "ORSE", VLOOKUP(E32, 'SERVIÇOS ORSE'!$A:$D, 3, 0), IF(D32 = "SEINFRA", VLOOKUP(E32, 'SERVIÇOS SEINFRA'!$A:$D, 3, 0)))), IF(C32="INSUMO", IF(D32 = "SINAPI", VLOOKUP(E32, 'INSUMOS SINAPI'!$A:$D, 3, 0), IF(D32 = "ORSE", VLOOKUP(E32, 'INSUMOS ORSE'!$A:$D, 3, 0), IF(D32 = "SEINFRA", VLOOKUP(E32,'INSUMOS SEINFRA'!$A:$D, 3, 0),))))) -> M² | H32: =H31 -> 126.93 | I32: =IF(C32 = "SERVIÇO", IF(D32 = "SINAPI", VLOOKUP(E32, 'SERVIÇOS SINAPI'!$A:$D, 4, 0), IF(D32 = "ORSE", VLOOKUP(E32, 'SERVIÇOS ORSE'!$A:$D, 4, 0), IF(D32 = "SEINFRA", VLOOKUP(E32, 'SERVIÇOS SEINFRA'!$A:$D, 4, 0)))), IF(C32="INSUMO", IF(D32 = "SINAPI", VLOOKUP(E32, 'INSUMOS SINAPI'!$A:$D, 4, 0), IF(D32 = "ORSE", VLOOKUP(E32, 'INSUMOS ORSE'!$A:$D, 4, 0), IF(D32 = "SEINFRA", VLOOKUP(E32,'INSUMOS SEINFRA'!$A:$D, 4, 0),))))) -> 91.37 | J32: 112.84 | K32: 14322.78 | L32: 2 | Q32: 0.0275 | R32: =H32*9 -> 1142.37 | S32: =R32*0.25 -> 285.59
B33: 3.10 | C33: SERVIÇO | D33: SINAPI | E33: 101741 | F33: =IF(C33 = "SERVIÇO", IF(D33 = "SINAPI", VLOOKUP(E33, 'SERVIÇOS SINAPI'!$A:$D, 2, 0), IF(D33 = "ORSE", VLOOKUP(E33, 'SERVIÇOS ORSE'!$A:$D, 2, 0), IF(D33 = "SEINFRA", VLOOKUP(E33, 'SERVIÇOS SEINFRA'!$A:$D, 2, 0)))), IF(C33="INSUMO", IF(D33 = "SINAPI", VLOOKUP(E33, 'INSUMOS SINAPI'!$A:$D, 2, 0), IF(D33 = "ORSE", VLOOKUP(E33, 'INSUMOS ORSE'!$A:$D, 2, 0), IF(D33 = "SEINFRA", VLOOKUP(E33,'INSUMOS SEINFRA'!$A:$D, 2, 0),))))) -> RODAPÉ EM MARMORITE, ALTURA 10CM. AF_09/2020 | G33: =IF(C33 = "SERVIÇO", IF(D33 = "SINAPI", VLOOKUP(E33, 'SERVIÇOS SINAPI'!$A:$D, 3, 0), IF(D33 = "ORSE", VLOOKUP(E33, 'SERVIÇOS ORSE'!$A:$D, 3, 0), IF(D33 = "SEINFRA", VLOOKUP(E33, 'SERVIÇOS SEINFRA'!$A:$D, 3, 0)))), IF(C33="INSUMO", IF(D33 = "SINAPI", VLOOKUP(E33, 'INSUMOS SINAPI'!$A:$D, 3, 0), IF(D33 = "ORSE", VLOOKUP(E33, 'INSUMOS ORSE'!$A:$D, 3, 0), IF(D33 = "SEINFRA", VLOOKUP(E33,'INSUMOS SEINFRA'!$A:$D, 3, 0),))))) -> M | H33: ='Memória de Cálculo'!$L$86 -> 176.74 | I33: =IF(C33 = "SERVIÇO", IF(D33 = "SINAPI", VLOOKUP(E33, 'SERVIÇOS SINAPI'!$A:$D, 4, 0), IF(D33 = "ORSE", VLOOKUP(E33, 'SERVIÇOS ORSE'!$A:$D, 4, 0), IF(D33 = "SEINFRA", VLOOKUP(E33, 'SERVIÇOS SEINFRA'!$A:$D, 4, 0)))), IF(C33="INSUMO", IF(D33 = "SINAPI", VLOOKUP(E33, 'INSUMOS SINAPI'!$A:$D, 4, 0), IF(D33 = "ORSE", VLOOKUP(E33, 'INSUMOS ORSE'!$A:$D, 4, 0), IF(D33 = "SEINFRA", VLOOKUP(E33,'INSUMOS SEINFRA'!$A:$D, 4, 0),))))) -> 22.38 | J33: 27.64 | K33: 4885.09 | L33: 2 | Q33: 0.0094
B34: 3.11 | C34: SERVIÇO | D34: SINAPI | E34: 103076 | F34: =IF(C34 = "SERVIÇO", IF(D34 = "SINAPI", VLOOKUP(E34, 'SERVIÇOS SINAPI'!$A:$D, 2, 0), IF(D34 = "ORSE", VLOOKUP(E34, 'SERVIÇOS ORSE'!$A:$D, 2, 0), IF(D34 = "SEINFRA", VLOOKUP(E34, 'SERVIÇOS SEINFRA'!$A:$D, 2, 0)))), IF(C34="INSUMO", IF(D34 = "SINAPI", VLOOKUP(E34, 'INSUMOS SINAPI'!$A:$D, 2, 0), IF(D34 = "ORSE", VLOOKUP(E34, 'INSUMOS ORSE'!$A:$D, 2, 0), IF(D34 = "SEINFRA", VLOOKUP(E34,'INSUMOS SEINFRA'!$A:$D, 2, 0),))))) -> EXECUÇÃO DE LAJE SOBRE SOLO, ESPESSURA DE 10 CM, FCK = 30 MPA, COM USO DE FORMAS EM MADEIRA SERRADA. AF_09/2021 | G34: =IF(C34 = "SERVIÇO", IF(D34 = "SINAPI", VLOOKUP(E34, 'SERVIÇOS SINAPI'!$A:$D, 3, 0), IF(D34 = "ORSE", VLOOKUP(E34, 'SERVIÇOS ORSE'!$A:$D, 3, 0), IF(D34 = "SEINFRA", VLOOKUP(E34, 'SERVIÇOS SEINFRA'!$A:$D, 3, 0)))), IF(C34="INSUMO", IF(D34 = "SINAPI", VLOOKUP(E34, 'INSUMOS SINAPI'!$A:$D, 3, 0), IF(D34 = "ORSE", VLOOKUP(E34, 'INSUMOS ORSE'!$A:$D, 3, 0), IF(D34 = "SEINFRA", VLOOKUP(E34,'INSUMOS SEINFRA'!$A:$D, 3, 0),))))) -> M² | H34: ='Memória de Cálculo'!$L$89 -> 64.01 | I34: =IF(C34 = "SERVIÇO", IF(D34 = "SINAPI", VLOOKUP(E34, 'SERVIÇOS SINAPI'!$A:$D, 4, 0), IF(D34 = "ORSE", VLOOKUP(E34, 'SERVIÇOS ORSE'!$A:$D, 4, 0), IF(D34 = "SEINFRA", VLOOKUP(E34, 'SERVIÇOS SEINFRA'!$A:$D, 4, 0)))), IF(C34="INSUMO", IF(D34 = "SINAPI", VLOOKUP(E34, 'INSUMOS SINAPI'!$A:$D, 4, 0), IF(D34 = "ORSE", VLOOKUP(E34, 'INSUMOS ORSE'!$A:$D, 4, 0), IF(D34 = "SEINFRA", VLOOKUP(E34,'INSUMOS SEINFRA'!$A:$D, 4, 0),))))) -> 141.58 | J34: 174.85 | K34: 11192.15 | L34: 2 | Q34: 0.0215
B35: 3.12 | C35: SERVIÇO | D35: SINAPI | E35: 98680 | F35: =IF(C35 = "SERVIÇO", IF(D35 = "SINAPI", VLOOKUP(E35, 'SERVIÇOS SINAPI'!$A:$D, 2, 0), IF(D35 = "ORSE", VLOOKUP(E35, 'SERVIÇOS ORSE'!$A:$D, 2, 0), IF(D35 = "SEINFRA", VLOOKUP(E35, 'SERVIÇOS SEINFRA'!$A:$D, 2, 0)))), IF(C35="INSUMO", IF(D35 = "SINAPI", VLOOKUP(E35, 'INSUMOS SINAPI'!$A:$D, 2, 0), IF(D35 = "ORSE", VLOOKUP(E35, 'INSUMOS ORSE'!$A:$D, 2, 0), IF(D35 = "SEINFRA", VLOOKUP(E35,'INSUMOS SEINFRA'!$A:$D, 2, 0),))))) -> PISO CIMENTADO, TRAÇO 1:3 (CIMENTO E AREIA), ACABAMENTO LISO, ESPESSURA 3,0 CM, PREPARO MECÂNICO DA ARGAMASSA. AF_09/2020 | G35: =IF(C35 = "SERVIÇO", IF(D35 = "SINAPI", VLOOKUP(E35, 'SERVIÇOS SINAPI'!$A:$D, 3, 0), IF(D35 = "ORSE", VLOOKUP(E35, 'SERVIÇOS ORSE'!$A:$D, 3, 0), IF(D35 = "SEINFRA", VLOOKUP(E35, 'SERVIÇOS SEINFRA'!$A:$D, 3, 0)))), IF(C35="INSUMO", IF(D35 = "SINAPI", VLOOKUP(E35, 'INSUMOS SINAPI'!$A:$D, 3, 0), IF(D35 = "ORSE", VLOOKUP(E35, 'INSUMOS ORSE'!$A:$D, 3, 0), IF(D35 = "SEINFRA", VLOOKUP(E35,'INSUMOS SEINFRA'!$A:$D, 3, 0),))))) -> M² | H35: =H34 -> 64.01 | I35: =IF(C35 = "SERVIÇO", IF(D35 = "SINAPI", VLOOKUP(E35, 'SERVIÇOS SINAPI'!$A:$D, 4, 0), IF(D35 = "ORSE", VLOOKUP(E35, 'SERVIÇOS ORSE'!$A:$D, 4, 0), IF(D35 = "SEINFRA", VLOOKUP(E35, 'SERVIÇOS SEINFRA'!$A:$D, 4, 0)))), IF(C35="INSUMO", IF(D35 = "SINAPI", VLOOKUP(E35, 'INSUMOS SINAPI'!$A:$D, 4, 0), IF(D35 = "ORSE", VLOOKUP(E35, 'INSUMOS ORSE'!$A:$D, 4, 0), IF(D35 = "SEINFRA", VLOOKUP(E35,'INSUMOS SEINFRA'!$A:$D, 4, 0),))))) -> 45.68 | J35: 56.41 | K35: 3610.8 | L35: 2 | Q35: 0.0069
B36: 3.13 | C36: SERVIÇO | D36: SINAPI | E36: 94990 | F36: =IF(C36 = "SERVIÇO", IF(D36 = "SINAPI", VLOOKUP(E36, 'SERVIÇOS SINAPI'!$A:$D, 2, 0), IF(D36 = "ORSE", VLOOKUP(E36, 'SERVIÇOS ORSE'!$A:$D, 2, 0), IF(D36 = "SEINFRA", VLOOKUP(E36, 'SERVIÇOS SEINFRA'!$A:$D, 2, 0)))), IF(C36="INSUMO", IF(D36 = "SINAPI", VLOOKUP(E36, 'INSUMOS SINAPI'!$A:$D, 2, 0), IF(D36 = "ORSE", VLOOKUP(E36, 'INSUMOS ORSE'!$A:$D, 2, 0), IF(D36 = "SEINFRA", VLOOKUP(E36,'INSUMOS SEINFRA'!$A:$D, 2, 0),))))) -> EXECUÇÃO DE PASSEIO (CALÇADA) OU PISO DE CONCRETO COM CONCRETO MOLDADO IN LOCO, FEITO EM OBRA, ACABAMENTO CONVENCIONAL, NÃO ARMADO. AF_08/2022 | G36: =IF(C36 = "SERVIÇO", IF(D36 = "SINAPI", VLOOKUP(E36, 'SERVIÇOS SINAPI'!$A:$D, 3, 0), IF(D36 = "ORSE", VLOOKUP(E36, 'SERVIÇOS ORSE'!$A:$D, 3, 0), IF(D36 = "SEINFRA", VLOOKUP(E36, 'SERVIÇOS SEINFRA'!$A:$D, 3, 0)))), IF(C36="INSUMO", IF(D36 = "SINAPI", VLOOKUP(E36, 'INSUMOS SINAPI'!$A:$D, 3, 0), IF(D36 = "ORSE", VLOOKUP(E36, 'INSUMOS ORSE'!$A:$D, 3, 0), IF(D36 = "SEINFRA", VLOOKUP(E36,'INSUMOS SEINFRA'!$A:$D, 3, 0),))))) -> M³ | H36: ='Memória de Cálculo'!$L$93 -> 3.88 | I36: =IF(C36 = "SERVIÇO", IF(D36 = "SINAPI", VLOOKUP(E36, 'SERVIÇOS SINAPI'!$A:$D, 4, 0), IF(D36 = "ORSE", VLOOKUP(E36, 'SERVIÇOS ORSE'!$A:$D, 4, 0), IF(D36 = "SEINFRA", VLOOKUP(E36, 'SERVIÇOS SEINFRA'!$A:$D, 4, 0)))), IF(C36="INSUMO", IF(D36 = "SINAPI", VLOOKUP(E36, 'INSUMOS SINAPI'!$A:$D, 4, 0), IF(D36 = "ORSE", VLOOKUP(E36, 'INSUMOS ORSE'!$A:$D, 4, 0), IF(D36 = "SEINFRA", VLOOKUP(E36,'INSUMOS SEINFRA'!$A:$D, 4, 0),))))) -> 754.82 | J36: 932.2 | K36: 3616.94 | L36: 2 | Q36: 0.0069
B37: 3.14 | C37: SERVIÇO | D37: ORSE | E37: 145 | F37: =IF(C37 = "SERVIÇO", IF(D37 = "SINAPI", VLOOKUP(E37, 'SERVIÇOS SINAPI'!$A:$D, 2, 0), IF(D37 = "ORSE", VLOOKUP(E37, 'SERVIÇOS ORSE'!$A:$D, 2, 0), IF(D37 = "SEINFRA", VLOOKUP(E37, 'SERVIÇOS SEINFRA'!$A:$D, 2, 0)))), IF(C37="INSUMO", IF(D37 = "SINAPI", VLOOKUP(E37, 'INSUMOS SINAPI'!$A:$D, 2, 0), IF(D37 = "ORSE", VLOOKUP(E37, 'INSUMOS ORSE'!$A:$D, 2, 0), IF(D37 = "SEINFRA", VLOOKUP(E37,'INSUMOS SEINFRA'!$A:$D, 2, 0),))))) -> LAJE PRÉ-FABRICADA COMUM PARA PISO OU COBERTURA, INCLUSIVE ESCORAMENTO EM MAD EIRA E CAPEAMENTO 4CM | G37: =IF(C37 = "SERVIÇO", IF(D37 = "SINAPI", VLOOKUP(E37, 'SERVIÇOS SINAPI'!$A:$D, 3, 0), IF(D37 = "ORSE", VLOOKUP(E37, 'SERVIÇOS ORSE'!$A:$D, 3, 0), IF(D37 = "SEINFRA", VLOOKUP(E37, 'SERVIÇOS SEINFRA'!$A:$D, 3, 0)))), IF(C37="INSUMO", IF(D37 = "SINAPI", VLOOKUP(E37, 'INSUMOS SINAPI'!$A:$D, 3, 0), IF(D37 = "ORSE", VLOOKUP(E37, 'INSUMOS ORSE'!$A:$D, 3, 0), IF(D37 = "SEINFRA", VLOOKUP(E37,'INSUMOS SEINFRA'!$A:$D, 3, 0),))))) -> M² | H37: ='Memória de Cálculo'!$L$97 -> 136.26 | I37: =IF(C37 = "SERVIÇO", IF(D37 = "SINAPI", VLOOKUP(E37, 'SERVIÇOS SINAPI'!$A:$D, 4, 0), IF(D37 = "ORSE", VLOOKUP(E37, 'SERVIÇOS ORSE'!$A:$D, 4, 0), IF(D37 = "SEINFRA", VLOOKUP(E37, 'SERVIÇOS SEINFRA'!$A:$D, 4, 0)))), IF(C37="INSUMO", IF(D37 = "SINAPI", VLOOKUP(E37, 'INSUMOS SINAPI'!$A:$D, 4, 0), IF(D37 = "ORSE", VLOOKUP(E37, 'INSUMOS ORSE'!$A:$D, 4, 0), IF(D37 = "SEINFRA", VLOOKUP(E37,'INSUMOS SEINFRA'!$A:$D, 4, 0),))))) -> 127.85 | J37: 157.89 | K37: 21514.09 | L37: 3 | Q37: 0.0412 | R37: =H37*9 -> 1226.34 | S37: =R37*0.25 -> 306.59
B38: 3.15 | C38: SERVIÇO | D38: SINAPI | E38: 105034 | F38: =IF(C38 = "SERVIÇO", IF(D38 = "SINAPI", VLOOKUP(E38, 'SERVIÇOS SINAPI'!$A:$D, 2, 0), IF(D38 = "ORSE", VLOOKUP(E38, 'SERVIÇOS ORSE'!$A:$D, 2, 0), IF(D38 = "SEINFRA", VLOOKUP(E38, 'SERVIÇOS SEINFRA'!$A:$D, 2, 0)))), IF(C38="INSUMO", IF(D38 = "SINAPI", VLOOKUP(E38, 'INSUMOS SINAPI'!$A:$D, 2, 0), IF(D38 = "ORSE", VLOOKUP(E38, 'INSUMOS ORSE'!$A:$D, 2, 0), IF(D38 = "SEINFRA", VLOOKUP(E38,'INSUMOS SEINFRA'!$A:$D, 2, 0),))))) -> CINTA DE AMARRAÇÃO DE ALVENARIA MOLDADA IN LOCO COM UTILIZAÇÃO DE BLOCOS CANALETA, ESPESSURA DE *10* CM. AF_03/2024 | G38: =IF(C38 = "SERVIÇO", IF(D38 = "SINAPI", VLOOKUP(E38, 'SERVIÇOS SINAPI'!$A:$D, 3, 0), IF(D38 = "ORSE", VLOOKUP(E38, 'SERVIÇOS ORSE'!$A:$D, 3, 0), IF(D38 = "SEINFRA", VLOOKUP(E38, 'SERVIÇOS SEINFRA'!$A:$D, 3, 0)))), IF(C38="INSUMO", IF(D38 = "SINAPI", VLOOKUP(E38, 'INSUMOS SINAPI'!$A:$D, 3, 0), IF(D38 = "ORSE", VLOOKUP(E38, 'INSUMOS ORSE'!$A:$D, 3, 0), IF(D38 = "SEINFRA", VLOOKUP(E38,'INSUMOS SEINFRA'!$A:$D, 3, 0),))))) -> M | H38: ='Memória de Cálculo'!$L$100 -> 54.45 | I38: =IF(C38 = "SERVIÇO", IF(D38 = "SINAPI", VLOOKUP(E38, 'SERVIÇOS SINAPI'!$A:$D, 4, 0), IF(D38 = "ORSE", VLOOKUP(E38, 'SERVIÇOS ORSE'!$A:$D, 4, 0), IF(D38 = "SEINFRA", VLOOKUP(E38, 'SERVIÇOS SEINFRA'!$A:$D, 4, 0)))), IF(C38="INSUMO", IF(D38 = "SINAPI", VLOOKUP(E38, 'INSUMOS SINAPI'!$A:$D, 4, 0), IF(D38 = "ORSE", VLOOKUP(E38, 'INSUMOS ORSE'!$A:$D, 4, 0), IF(D38 = "SEINFRA", VLOOKUP(E38,'INSUMOS SEINFRA'!$A:$D, 4, 0),))))) -> 47.89 | J38: 59.14 | K38: 3220.17 | L38: 3 | Q38: 0.0062
B39: 3.16 | C39: SERVIÇO | D39: SINAPI | E39: 105021 | F39: =IF(C39 = "SERVIÇO", IF(D39 = "SINAPI", VLOOKUP(E39, 'SERVIÇOS SINAPI'!$A:$D, 2, 0), IF(D39 = "ORSE", VLOOKUP(E39, 'SERVIÇOS ORSE'!$A:$D, 2, 0), IF(D39 = "SEINFRA", VLOOKUP(E39, 'SERVIÇOS SEINFRA'!$A:$D, 2, 0)))), IF(C39="INSUMO", IF(D39 = "SINAPI", VLOOKUP(E39, 'INSUMOS SINAPI'!$A:$D, 2, 0), IF(D39 = "ORSE", VLOOKUP(E39, 'INSUMOS ORSE'!$A:$D, 2, 0), IF(D39 = "SEINFRA", VLOOKUP(E39,'INSUMOS SEINFRA'!$A:$D, 2, 0),))))) -> VERGA PRÉ-MOLDADA COM ATÉ 1,5 M DE VÃO, ESPESSURA DE *15* CM. AF_03/2024 | G39: =IF(C39 = "SERVIÇO", IF(D39 = "SINAPI", VLOOKUP(E39, 'SERVIÇOS SINAPI'!$A:$D, 3, 0), IF(D39 = "ORSE", VLOOKUP(E39, 'SERVIÇOS ORSE'!$A:$D, 3, 0), IF(D39 = "SEINFRA", VLOOKUP(E39, 'SERVIÇOS SEINFRA'!$A:$D, 3, 0)))), IF(C39="INSUMO", IF(D39 = "SINAPI", VLOOKUP(E39, 'INSUMOS SINAPI'!$A:$D, 3, 0), IF(D39 = "ORSE", VLOOKUP(E39, 'INSUMOS ORSE'!$A:$D, 3, 0), IF(D39 = "SEINFRA", VLOOKUP(E39,'INSUMOS SEINFRA'!$A:$D, 3, 0),))))) -> M | H39: ='Memória de Cálculo'!$L$109 -> 46.5 | I39: =IF(C39 = "SERVIÇO", IF(D39 = "SINAPI", VLOOKUP(E39, 'SERVIÇOS SINAPI'!$A:$D, 4, 0), IF(D39 = "ORSE", VLOOKUP(E39, 'SERVIÇOS ORSE'!$A:$D, 4, 0), IF(D39 = "SEINFRA", VLOOKUP(E39, 'SERVIÇOS SEINFRA'!$A:$D, 4, 0)))), IF(C39="INSUMO", IF(D39 = "SINAPI", VLOOKUP(E39, 'INSUMOS SINAPI'!$A:$D, 4, 0), IF(D39 = "ORSE", VLOOKUP(E39, 'INSUMOS ORSE'!$A:$D, 4, 0), IF(D39 = "SEINFRA", VLOOKUP(E39,'INSUMOS SEINFRA'!$A:$D, 4, 0),))))) -> 25.19 | J39: 31.11 | K39: 1446.62 | L39: 2 | Q39: 0.0028
B40: 3.17 | C40: SERVIÇO | D40: SINAPI | E40: 105027 | F40: =IF(C40 = "SERVIÇO", IF(D40 = "SINAPI", VLOOKUP(E40, 'SERVIÇOS SINAPI'!$A:$D, 2, 0), IF(D40 = "ORSE", VLOOKUP(E40, 'SERVIÇOS ORSE'!$A:$D, 2, 0), IF(D40 = "SEINFRA", VLOOKUP(E40, 'SERVIÇOS SEINFRA'!$A:$D, 2, 0)))), IF(C40="INSUMO", IF(D40 = "SINAPI", VLOOKUP(E40, 'INSUMOS SINAPI'!$A:$D, 2, 0), IF(D40 = "ORSE", VLOOKUP(E40, 'INSUMOS ORSE'!$A:$D, 2, 0), IF(D40 = "SEINFRA", VLOOKUP(E40,'INSUMOS SEINFRA'!$A:$D, 2, 0),))))) -> CONTRAVERGA PRÉ-MOLDADA, ESPESSURA DE *15* CM. AF_03/2024 | G40: =IF(C40 = "SERVIÇO", IF(D40 = "SINAPI", VLOOKUP(E40, 'SERVIÇOS SINAPI'!$A:$D, 3, 0), IF(D40 = "ORSE", VLOOKUP(E40, 'SERVIÇOS ORSE'!$A:$D, 3, 0), IF(D40 = "SEINFRA", VLOOKUP(E40, 'SERVIÇOS SEINFRA'!$A:$D, 3, 0)))), IF(C40="INSUMO", IF(D40 = "SINAPI", VLOOKUP(E40, 'INSUMOS SINAPI'!$A:$D, 3, 0), IF(D40 = "ORSE", VLOOKUP(E40, 'INSUMOS ORSE'!$A:$D, 3, 0), IF(D40 = "SEINFRA", VLOOKUP(E40,'INSUMOS SEINFRA'!$A:$D, 3, 0),))))) -> M | H40: ='Memória de Cálculo'!$L$114 -> 25.3 | I40: =IF(C40 = "SERVIÇO", IF(D40 = "SINAPI", VLOOKUP(E40, 'SERVIÇOS SINAPI'!$A:$D, 4, 0), IF(D40 = "ORSE", VLOOKUP(E40, 'SERVIÇOS ORSE'!$A:$D, 4, 0), IF(D40 = "SEINFRA", VLOOKUP(E40, 'SERVIÇOS SEINFRA'!$A:$D, 4, 0)))), IF(C40="INSUMO", IF(D40 = "SINAPI", VLOOKUP(E40, 'INSUMOS SINAPI'!$A:$D, 4, 0), IF(D40 = "ORSE", VLOOKUP(E40, 'INSUMOS ORSE'!$A:$D, 4, 0), IF(D40 = "SEINFRA", VLOOKUP(E40,'INSUMOS SEINFRA'!$A:$D, 4, 0),))))) -> 24.85 | J40: 30.69 | K40: 776.46 | L40: 2 | Q40: 0.0015
B41: 4 | C41: ALVENARIAS, REVESTIMENTOS E PINTURAS | K41: =SUM(K42:K54) -> 118545.83
B42: 4.1 | C42: SERVIÇO | D42: SINAPI | E42: 103322 | F42: =IF(C42 = "SERVIÇO", IF(D42 = "SINAPI", VLOOKUP(E42, 'SERVIÇOS SINAPI'!$A:$D, 2, 0), IF(D42 = "ORSE", VLOOKUP(E42, 'SERVIÇOS ORSE'!$A:$D, 2, 0), IF(D42 = "SEINFRA", VLOOKUP(E42, 'SERVIÇOS SEINFRA'!$A:$D, 2, 0)))), IF(C42="INSUMO", IF(D42 = "SINAPI", VLOOKUP(E42, 'INSUMOS SINAPI'!$A:$D, 2, 0), IF(D42 = "ORSE", VLOOKUP(E42, 'INSUMOS ORSE'!$A:$D, 2, 0), IF(D42 = "SEINFRA", VLOOKUP(E42,'INSUMOS SEINFRA'!$A:$D, 2, 0),))))) -> ALVENARIA DE VEDAÇÃO DE BLOCOS CERÂMICOS FURADOS NA VERTICAL DE 9X19X39 CM (ESPESSURA 9 CM) E ARGAMASSA DE ASSENTAMENTO COM PREPARO EM BETONEIRA. AF_12/2021 | G42: =IF(C42 = "SERVIÇO", IF(D42 = "SINAPI", VLOOKUP(E42, 'SERVIÇOS SINAPI'!$A:$D, 3, 0), IF(D42 = "ORSE", VLOOKUP(E42, 'SERVIÇOS ORSE'!$A:$D, 3, 0), IF(D42 = "SEINFRA", VLOOKUP(E42, 'SERVIÇOS SEINFRA'!$A:$D, 3, 0)))), IF(C42="INSUMO", IF(D42 = "SINAPI", VLOOKUP(E42, 'INSUMOS SINAPI'!$A:$D, 3, 0), IF(D42 = "ORSE", VLOOKUP(E42, 'INSUMOS ORSE'!$A:$D, 3, 0), IF(D42 = "SEINFRA", VLOOKUP(E42,'INSUMOS SEINFRA'!$A:$D, 3, 0),))))) -> M² | H42: ='Memória de Cálculo'!$L$124 -> 442.68 | I42: =IF(C42 = "SERVIÇO", IF(D42 = "SINAPI", VLOOKUP(E42, 'SERVIÇOS SINAPI'!$A:$D, 4, 0), IF(D42 = "ORSE", VLOOKUP(E42, 'SERVIÇOS ORSE'!$A:$D, 4, 0), IF(D42 = "SEINFRA", VLOOKUP(E42, 'SERVIÇOS SEINFRA'!$A:$D, 4, 0)))), IF(C42="INSUMO", IF(D42 = "SINAPI", VLOOKUP(E42, 'INSUMOS SINAPI'!$A:$D, 4, 0), IF(D42 = "ORSE", VLOOKUP(E42, 'INSUMOS ORSE'!$A:$D, 4, 0), IF(D42 = "SEINFRA", VLOOKUP(E42,'INSUMOS SEINFRA'!$A:$D, 4, 0),))))) -> 46.64 | J42: =IF(C42 = "SERVIÇO", I42 * (1 + $I$8), IF(C42 = "INSUMO", (I42 * (1 + $K$8)))) -> 57.6 | K42: =J42*H42 -> 25498.37 | L42: 2 | Q42: 0.0489
B43: 4.2 | C43: SERVIÇO | D43: SINAPI | E43: 87879 | F43: =IF(C43 = "SERVIÇO", IF(D43 = "SINAPI", VLOOKUP(E43, 'SERVIÇOS SINAPI'!$A:$D, 2, 0), IF(D43 = "ORSE", VLOOKUP(E43, 'SERVIÇOS ORSE'!$A:$D, 2, 0), IF(D43 = "SEINFRA", VLOOKUP(E43, 'SERVIÇOS SEINFRA'!$A:$D, 2, 0)))), IF(C43="INSUMO", IF(D43 = "SINAPI", VLOOKUP(E43, 'INSUMOS SINAPI'!$A:$D, 2, 0), IF(D43 = "ORSE", VLOOKUP(E43, 'INSUMOS ORSE'!$A:$D, 2, 0), IF(D43 = "SEINFRA", VLOOKUP(E43,'INSUMOS SEINFRA'!$A:$D, 2, 0),))))) -> CHAPISCO APLICADO EM ALVENARIAS E ESTRUTURAS DE CONCRETO INTERNAS, COM COLHER DE PEDREIRO. ARGAMASSA TRAÇO 1:3 COM PREPARO EM BETONEIRA 400L. AF_10/2022 | G43: =IF(C43 = "SERVIÇO", IF(D43 = "SINAPI", VLOOKUP(E43, 'SERVIÇOS SINAPI'!$A:$D, 3, 0), IF(D43 = "ORSE", VLOOKUP(E43, 'SERVIÇOS ORSE'!$A:$D, 3, 0), IF(D43 = "SEINFRA", VLOOKUP(E43, 'SERVIÇOS SEINFRA'!$A:$D, 3, 0)))), IF(C43="INSUMO", IF(D43 = "SINAPI", VLOOKUP(E43, 'INSUMOS SINAPI'!$A:$D, 3, 0), IF(D43 = "ORSE", VLOOKUP(E43, 'INSUMOS ORSE'!$A:$D, 3, 0), IF(D43 = "SEINFRA", VLOOKUP(E43,'INSUMOS SEINFRA'!$A:$D, 3, 0),))))) -> M² | H43: ='Memória de Cálculo'!$L$135 -> 758.07 | I43: =IF(C43 = "SERVIÇO", IF(D43 = "SINAPI", VLOOKUP(E43, 'SERVIÇOS SINAPI'!$A:$D, 4, 0), IF(D43 = "ORSE", VLOOKUP(E43, 'SERVIÇOS ORSE'!$A:$D, 4, 0), IF(D43 = "SEINFRA", VLOOKUP(E43, 'SERVIÇOS SEINFRA'!$A:$D, 4, 0)))), IF(C43="INSUMO", IF(D43 = "SINAPI", VLOOKUP(E43, 'INSUMOS SINAPI'!$A:$D, 4, 0), IF(D43 = "ORSE", VLOOKUP(E43, 'INSUMOS ORSE'!$A:$D, 4, 0), IF(D43 = "SEINFRA", VLOOKUP(E43,'INSUMOS SEINFRA'!$A:$D, 4, 0),))))) -> 4.23 | J43: =IF(C43 = "SERVIÇO", I43 * (1 + $I$8), IF(C43 = "INSUMO", (I43 * (1 + $K$8)))) -> 5.22 | K43: =J43*H43 -> 3957.13 | L43: 2 | Q43: 0.0076
B44: 4.3 | C44: SERVIÇO | D44: SINAPI | E44: 87881 | F44: =IF(C44 = "SERVIÇO", IF(D44 = "SINAPI", VLOOKUP(E44, 'SERVIÇOS SINAPI'!$A:$D, 2, 0), IF(D44 = "ORSE", VLOOKUP(E44, 'SERVIÇOS ORSE'!$A:$D, 2, 0), IF(D44 = "SEINFRA", VLOOKUP(E44, 'SERVIÇOS SEINFRA'!$A:$D, 2, 0)))), IF(C44="INSUMO", IF(D44 = "SINAPI", VLOOKUP(E44, 'INSUMOS SINAPI'!$A:$D, 2, 0), IF(D44 = "ORSE", VLOOKUP(E44, 'INSUMOS ORSE'!$A:$D, 2, 0), IF(D44 = "SEINFRA", VLOOKUP(E44,'INSUMOS SEINFRA'!$A:$D, 2, 0),))))) -> CHAPISCO APLICADO NO TETO OU EM ALVENARIA E ESTRUTURA, COM ROLO PARA TEXTURA ACRÍLICA. ARGAMASSA TRAÇO 1:4 E EMULSÃO POLIMÉRICA (ADESIVO) COM PREPARO MANUAL. AF_10/2022 | G44: =IF(C44 = "SERVIÇO", IF(D44 = "SINAPI", VLOOKUP(E44, 'SERVIÇOS SINAPI'!$A:$D, 3, 0), IF(D44 = "ORSE", VLOOKUP(E44, 'SERVIÇOS ORSE'!$A:$D, 3, 0), IF(D44 = "SEINFRA", VLOOKUP(E44, 'SERVIÇOS SEINFRA'!$A:$D, 3, 0)))), IF(C44="INSUMO", IF(D44 = "SINAPI", VLOOKUP(E44, 'INSUMOS SINAPI'!$A:$D, 3, 0), IF(D44 = "ORSE", VLOOKUP(E44, 'INSUMOS ORSE'!$A:$D, 3, 0), IF(D44 = "SEINFRA", VLOOKUP(E44,'INSUMOS SEINFRA'!$A:$D, 3, 0),))))) -> M² | H44: ='Memória de Cálculo'!$L$139 -> 132.96 | I44: =IF(C44 = "SERVIÇO", IF(D44 = "SINAPI", VLOOKUP(E44, 'SERVIÇOS SINAPI'!$A:$D, 4, 0), IF(D44 = "ORSE", VLOOKUP(E44, 'SERVIÇOS ORSE'!$A:$D, 4, 0), IF(D44 = "SEINFRA", VLOOKUP(E44, 'SERVIÇOS SEINFRA'!$A:$D, 4, 0)))), IF(C44="INSUMO", IF(D44 = "SINAPI", VLOOKUP(E44, 'INSUMOS SINAPI'!$A:$D, 4, 0), IF(D44 = "ORSE", VLOOKUP(E44, 'INSUMOS ORSE'!$A:$D, 4, 0), IF(D44 = "SEINFRA", VLOOKUP(E44,'INSUMOS SEINFRA'!$A:$D, 4, 0),))))) -> 6.57 | J44: =IF(C44 = "SERVIÇO", I44 * (1 + $I$8), IF(C44 = "INSUMO", (I44 * (1 + $K$8)))) -> 8.11 | K44: =J44*H44 -> 1078.31 | L44: 2 | Q44: 0.0021
B45: 4.4 | C45: SERVIÇO | D45: SINAPI | E45: 87529 | F45: =IF(C45 = "SERVIÇO", IF(D45 = "SINAPI", VLOOKUP(E45, 'SERVIÇOS SINAPI'!$A:$D, 2, 0), IF(D45 = "ORSE", VLOOKUP(E45, 'SERVIÇOS ORSE'!$A:$D, 2, 0), IF(D45 = "SEINFRA", VLOOKUP(E45, 'SERVIÇOS SEINFRA'!$A:$D, 2, 0)))), IF(C45="INSUMO", IF(D45 = "SINAPI", VLOOKUP(E45, 'INSUMOS SINAPI'!$A:$D, 2, 0), IF(D45 = "ORSE", VLOOKUP(E45, 'INSUMOS ORSE'!$A:$D, 2, 0), IF(D45 = "SEINFRA", VLOOKUP(E45,'INSUMOS SEINFRA'!$A:$D, 2, 0),))))) -> MASSA ÚNICA, EM ARGAMASSA TRAÇO 1:2:8, PREPARO MECÂNICO, APLICADA MANUALMENTE EM PAREDES INTERNAS DE AMBIENTES COM ÁREA ENTRE 5M² E 10M², E = 17,5MM, COM TALISCAS. AF_03/2024 | G45: =IF(C45 = "SERVIÇO", IF(D45 = "SINAPI", VLOOKUP(E45, 'SERVIÇOS SINAPI'!$A:$D, 3, 0), IF(D45 = "ORSE", VLOOKUP(E45, 'SERVIÇOS ORSE'!$A:$D, 3, 0), IF(D45 = "SEINFRA", VLOOKUP(E45, 'SERVIÇOS SEINFRA'!$A:$D, 3, 0)))), IF(C45="INSUMO", IF(D45 = "SINAPI", VLOOKUP(E45, 'INSUMOS SINAPI'!$A:$D, 3, 0), IF(D45 = "ORSE", VLOOKUP(E45, 'INSUMOS ORSE'!$A:$D, 3, 0), IF(D45 = "SEINFRA", VLOOKUP(E45,'INSUMOS SEINFRA'!$A:$D, 3, 0),))))) -> M² | H45: ='Memória de Cálculo'!$L$149 -> 334.34 | I45: =IF(C45 = "SERVIÇO", IF(D45 = "SINAPI", VLOOKUP(E45, 'SERVIÇOS SINAPI'!$A:$D, 4, 0), IF(D45 = "ORSE", VLOOKUP(E45, 'SERVIÇOS ORSE'!$A:$D, 4, 0), IF(D45 = "SEINFRA", VLOOKUP(E45, 'SERVIÇOS SEINFRA'!$A:$D, 4, 0)))), IF(C45="INSUMO", IF(D45 = "SINAPI", VLOOKUP(E45, 'INSUMOS SINAPI'!$A:$D, 4, 0), IF(D45 = "ORSE", VLOOKUP(E45, 'INSUMOS ORSE'!$A:$D, 4, 0), IF(D45 = "SEINFRA", VLOOKUP(E45,'INSUMOS SEINFRA'!$A:$D, 4, 0),))))) -> 37.07 | J45: 45.78 | K45: 15306.09 | L45: 2 | Q45: 0.0293
B46: 4.5 | C46: SERVIÇO | D46: SINAPI | E46: 90406 | F46: =IF(C46 = "SERVIÇO", IF(D46 = "SINAPI", VLOOKUP(E46, 'SERVIÇOS SINAPI'!$A:$D, 2, 0), IF(D46 = "ORSE", VLOOKUP(E46, 'SERVIÇOS ORSE'!$A:$D, 2, 0), IF(D46 = "SEINFRA", VLOOKUP(E46, 'SERVIÇOS SEINFRA'!$A:$D, 2, 0)))), IF(C46="INSUMO", IF(D46 = "SINAPI", VLOOKUP(E46, 'INSUMOS SINAPI'!$A:$D, 2, 0), IF(D46 = "ORSE", VLOOKUP(E46, 'INSUMOS ORSE'!$A:$D, 2, 0), IF(D46 = "SEINFRA", VLOOKUP(E46,'INSUMOS SEINFRA'!$A:$D, 2, 0),))))) -> MASSA ÚNICA, EM ARGAMASSA TRAÇO 1:2:8, PREPARO MECÂNICO, APLICADA MANUALMENTE EM TETO, E = 17,5MM, COM TALISCAS. AF_03/2024 | G46: =IF(C46 = "SERVIÇO", IF(D46 = "SINAPI", VLOOKUP(E46, 'SERVIÇOS SINAPI'!$A:$D, 3, 0), IF(D46 = "ORSE", VLOOKUP(E46, 'SERVIÇOS ORSE'!$A:$D, 3, 0), IF(D46 = "SEINFRA", VLOOKUP(E46, 'SERVIÇOS SEINFRA'!$A:$D, 3, 0)))), IF(C46="INSUMO", IF(D46 = "SINAPI", VLOOKUP(E46, 'INSUMOS SINAPI'!$A:$D, 3, 0), IF(D46 = "ORSE", VLOOKUP(E46, 'INSUMOS ORSE'!$A:$D, 3, 0), IF(D46 = "SEINFRA", VLOOKUP(E46,'INSUMOS SEINFRA'!$A:$D, 3, 0),))))) -> M² | H46: ='Memória de Cálculo'!$L$153 -> 132.96 | I46: =IF(C46 = "SERVIÇO", IF(D46 = "SINAPI", VLOOKUP(E46, 'SERVIÇOS SINAPI'!$A:$D, 4, 0), IF(D46 = "ORSE", VLOOKUP(E46, 'SERVIÇOS ORSE'!$A:$D, 4, 0), IF(D46 = "SEINFRA", VLOOKUP(E46, 'SERVIÇOS SEINFRA'!$A:$D, 4, 0)))), IF(C46="INSUMO", IF(D46 = "SINAPI", VLOOKUP(E46, 'INSUMOS SINAPI'!$A:$D, 4, 0), IF(D46 = "ORSE", VLOOKUP(E46, 'INSUMOS ORSE'!$A:$D, 4, 0), IF(D46 = "SEINFRA", VLOOKUP(E46,'INSUMOS SEINFRA'!$A:$D, 4, 0),))))) -> 43.3 | J46: =IF(C46 = "SERVIÇO", I46 * (1 + $I$8), IF(C46 = "INSUMO", (I46 * (1 + $K$8)))) -> 53.48 | K46: =J46*H46 -> 7110.7 | L46: 2 | Q46: 0.0136
B47: 4.6 | C47: SERVIÇO | D47: SINAPI | E47: 88495 | F47: =IF(C47 = "SERVIÇO", IF(D47 = "SINAPI", VLOOKUP(E47, 'SERVIÇOS SINAPI'!$A:$D, 2, 0), IF(D47 = "ORSE", VLOOKUP(E47, 'SERVIÇOS ORSE'!$A:$D, 2, 0), IF(D47 = "SEINFRA", VLOOKUP(E47, 'SERVIÇOS SEINFRA'!$A:$D, 2, 0)))), IF(C47="INSUMO", IF(D47 = "SINAPI", VLOOKUP(E47, 'INSUMOS SINAPI'!$A:$D, 2, 0), IF(D47 = "ORSE", VLOOKUP(E47, 'INSUMOS ORSE'!$A:$D, 2, 0), IF(D47 = "SEINFRA", VLOOKUP(E47,'INSUMOS SEINFRA'!$A:$D, 2, 0),))))) -> EMASSAMENTO COM MASSA LÁTEX, APLICAÇÃO EM PAREDE, UMA DEMÃO, LIXAMENTO MANUAL. AF_04/2023 | G47: =IF(C47 = "SERVIÇO", IF(D47 = "SINAPI", VLOOKUP(E47, 'SERVIÇOS SINAPI'!$A:$D, 3, 0), IF(D47 = "ORSE", VLOOKUP(E47, 'SERVIÇOS ORSE'!$A:$D, 3, 0), IF(D47 = "SEINFRA", VLOOKUP(E47, 'SERVIÇOS SEINFRA'!$A:$D, 3, 0)))), IF(C47="INSUMO", IF(D47 = "SINAPI", VLOOKUP(E47, 'INSUMOS SINAPI'!$A:$D, 3, 0), IF(D47 = "ORSE", VLOOKUP(E47, 'INSUMOS ORSE'!$A:$D, 3, 0), IF(D47 = "SEINFRA", VLOOKUP(E47,'INSUMOS SEINFRA'!$A:$D, 3, 0),))))) -> M² | H47: =H45 -> 334.34 | I47: =IF(C47 = "SERVIÇO", IF(D47 = "SINAPI", VLOOKUP(E47, 'SERVIÇOS SINAPI'!$A:$D, 4, 0), IF(D47 = "ORSE", VLOOKUP(E47, 'SERVIÇOS ORSE'!$A:$D, 4, 0), IF(D47 = "SEINFRA", VLOOKUP(E47, 'SERVIÇOS SEINFRA'!$A:$D, 4, 0)))), IF(C47="INSUMO", IF(D47 = "SINAPI", VLOOKUP(E47, 'INSUMOS SINAPI'!$A:$D, 4, 0), IF(D47 = "ORSE", VLOOKUP(E47, 'INSUMOS ORSE'!$A:$D, 4, 0), IF(D47 = "SEINFRA", VLOOKUP(E47,'INSUMOS SEINFRA'!$A:$D, 4, 0),))))) -> 9.97 | J47: =IF(C47 = "SERVIÇO", I47 * (1 + $I$8), IF(C47 = "INSUMO", (I47 * (1 + $K$8)))) -> 12.31 | K47: =J47*H47 -> 4115.73 | L47: 2 | Q47: 0.0079
B48: 4.7 | C48: SERVIÇO | D48: SINAPI | E48: 88494 | F48: =IF(C48 = "SERVIÇO", IF(D48 = "SINAPI", VLOOKUP(E48, 'SERVIÇOS SINAPI'!$A:$D, 2, 0), IF(D48 = "ORSE", VLOOKUP(E48, 'SERVIÇOS ORSE'!$A:$D, 2, 0), IF(D48 = "SEINFRA", VLOOKUP(E48, 'SERVIÇOS SEINFRA'!$A:$D, 2, 0)))), IF(C48="INSUMO", IF(D48 = "SINAPI", VLOOKUP(E48, 'INSUMOS SINAPI'!$A:$D, 2, 0), IF(D48 = "ORSE", VLOOKUP(E48, 'INSUMOS ORSE'!$A:$D, 2, 0), IF(D48 = "SEINFRA", VLOOKUP(E48,'INSUMOS SEINFRA'!$A:$D, 2, 0),))))) -> EMASSAMENTO COM MASSA LÁTEX, APLICAÇÃO EM TETO, UMA DEMÃO, LIXAMENTO MANUAL. AF_04/2023 | G48: =IF(C48 = "SERVIÇO", IF(D48 = "SINAPI", VLOOKUP(E48, 'SERVIÇOS SINAPI'!$A:$D, 3, 0), IF(D48 = "ORSE", VLOOKUP(E48, 'SERVIÇOS ORSE'!$A:$D, 3, 0), IF(D48 = "SEINFRA", VLOOKUP(E48, 'SERVIÇOS SEINFRA'!$A:$D, 3, 0)))), IF(C48="INSUMO", IF(D48 = "SINAPI", VLOOKUP(E48, 'INSUMOS SINAPI'!$A:$D, 3, 0), IF(D48 = "ORSE", VLOOKUP(E48, 'INSUMOS ORSE'!$A:$D, 3, 0), IF(D48 = "SEINFRA", VLOOKUP(E48,'INSUMOS SEINFRA'!$A:$D, 3, 0),))))) -> M² | H48: =H46 -> 132.96 | I48: =IF(C48 = "SERVIÇO", IF(D48 = "SINAPI", VLOOKUP(E48, 'SERVIÇOS SINAPI'!$A:$D, 4, 0), IF(D48 = "ORSE", VLOOKUP(E48, 'SERVIÇOS ORSE'!$A:$D, 4, 0), IF(D48 = "SEINFRA", VLOOKUP(E48, 'SERVIÇOS SEINFRA'!$A:$D, 4, 0)))), IF(C48="INSUMO", IF(D48 = "SINAPI", VLOOKUP(E48, 'INSUMOS SINAPI'!$A:$D, 4, 0), IF(D48 = "ORSE", VLOOKUP(E48, 'INSUMOS ORSE'!$A:$D, 4, 0), IF(D48 = "SEINFRA", VLOOKUP(E48,'INSUMOS SEINFRA'!$A:$D, 4, 0),))))) -> 18.72 | J48: 23.12 | K48: 3074.04 | L48: 2 | Q48: 0.0059
B49: 4.8 | C49: SERVIÇO | D49: SINAPI | E49: 87531 | F49: =IF(C49 = "SERVIÇO", IF(D49 = "SINAPI", VLOOKUP(E49, 'SERVIÇOS SINAPI'!$A:$D, 2, 0), IF(D49 = "ORSE", VLOOKUP(E49, 'SERVIÇOS ORSE'!$A:$D, 2, 0), IF(D49 = "SEINFRA", VLOOKUP(E49, 'SERVIÇOS SEINFRA'!$A:$D, 2, 0)))), IF(C49="INSUMO", IF(D49 = "SINAPI", VLOOKUP(E49, 'INSUMOS SINAPI'!$A:$D, 2, 0), IF(D49 = "ORSE", VLOOKUP(E49, 'INSUMOS ORSE'!$A:$D, 2, 0), IF(D49 = "SEINFRA", VLOOKUP(E49,'INSUMOS SEINFRA'!$A:$D, 2, 0),))))) -> EMBOÇO, EM ARGAMASSA TRAÇO 1:2:8, PREPARO MECÂNICO, APLICADO MANUALMENTE EM PAREDES INTERNAS DE AMBIENTES COM ÁREA ENTRE 5M² E 10M², E = 17,5MM, COM TALISCAS. AF_03/2024 | G49: =IF(C49 = "SERVIÇO", IF(D49 = "SINAPI", VLOOKUP(E49, 'SERVIÇOS SINAPI'!$A:$D, 3, 0), IF(D49 = "ORSE", VLOOKUP(E49, 'SERVIÇOS ORSE'!$A:$D, 3, 0), IF(D49 = "SEINFRA", VLOOKUP(E49, 'SERVIÇOS SEINFRA'!$A:$D, 3, 0)))), IF(C49="INSUMO", IF(D49 = "SINAPI", VLOOKUP(E49, 'INSUMOS SINAPI'!$A:$D, 3, 0), IF(D49 = "ORSE", VLOOKUP(E49, 'INSUMOS ORSE'!$A:$D, 3, 0), IF(D49 = "SEINFRA", VLOOKUP(E49,'INSUMOS SEINFRA'!$A:$D, 3, 0),))))) -> M² | H49: ='Memória de Cálculo'!$L$156 -> 423.74 | I49: =IF(C49 = "SERVIÇO", IF(D49 = "SINAPI", VLOOKUP(E49, 'SERVIÇOS SINAPI'!$A:$D, 4, 0), IF(D49 = "ORSE", VLOOKUP(E49, 'SERVIÇOS ORSE'!$A:$D, 4, 0), IF(D49 = "SEINFRA", VLOOKUP(E49, 'SERVIÇOS SEINFRA'!$A:$D, 4, 0)))), IF(C49="INSUMO", IF(D49 = "SINAPI", VLOOKUP(E49, 'INSUMOS SINAPI'!$A:$D, 4, 0), IF(D49 = "ORSE", VLOOKUP(E49, 'INSUMOS ORSE'!$A:$D, 4, 0), IF(D49 = "SEINFRA", VLOOKUP(E49,'INSUMOS SEINFRA'!$A:$D, 4, 0),))))) -> 35.92 | J49: =IF(C49 = "SERVIÇO", I49 * (1 + $I$8), IF(C49 = "INSUMO", (I49 * (1 + $K$8)))) -> 44.36 | K49: =J49*H49 -> 18797.11 | L49: 2 | Q49: 0.036
B50: 4.9 | C50: SERVIÇO | D50: ORSE | E50: 11165 | F50: =IF(C50 = "SERVIÇO", IF(D50 = "SINAPI", VLOOKUP(E50, 'SERVIÇOS SINAPI'!$A:$D, 2, 0), IF(D50 = "ORSE", VLOOKUP(E50, 'SERVIÇOS ORSE'!$A:$D, 2, 0), IF(D50 = "SEINFRA", VLOOKUP(E50, 'SERVIÇOS SEINFRA'!$A:$D, 2, 0)))), IF(C50="INSUMO", IF(D50 = "SINAPI", VLOOKUP(E50, 'INSUMOS SINAPI'!$A:$D, 2, 0), IF(D50 = "ORSE", VLOOKUP(E50, 'INSUMOS ORSE'!$A:$D, 2, 0), IF(D50 = "SEINFRA", VLOOKUP(E50,'INSUMOS SEINFRA'!$A:$D, 2, 0),))))) -> REVESTIMENTO CERÂMICO PARA PISO OU PAREDE, 37 X 59 CM, ARIELLE, LINHA RIVIERA , COR BRANCA OU SIMILAR, PEI-3, APLICADO COM ARGAMASSA INDUSTRIALIZADA AC-II, REJUNTADO, EXCLUSIVE REGULARIZAÇÃO DE BASE OU EMBOÇO | G50: =IF(C50 = "SERVIÇO", IF(D50 = "SINAPI", VLOOKUP(E50, 'SERVIÇOS SINAPI'!$A:$D, 3, 0), IF(D50 = "ORSE", VLOOKUP(E50, 'SERVIÇOS ORSE'!$A:$D, 3, 0), IF(D50 = "SEINFRA", VLOOKUP(E50, 'SERVIÇOS SEINFRA'!$A:$D, 3, 0)))), IF(C50="INSUMO", IF(D50 = "SINAPI", VLOOKUP(E50, 'INSUMOS SINAPI'!$A:$D, 3, 0), IF(D50 = "ORSE", VLOOKUP(E50, 'INSUMOS ORSE'!$A:$D, 3, 0), IF(D50 = "SEINFRA", VLOOKUP(E50,'INSUMOS SEINFRA'!$A:$D, 3, 0),))))) -> M² | H50: ='Memória de Cálculo'!$L$159 -> 410.07 | I50: =IF(C50 = "SERVIÇO", IF(D50 = "SINAPI", VLOOKUP(E50, 'SERVIÇOS SINAPI'!$A:$D, 4, 0), IF(D50 = "ORSE", VLOOKUP(E50, 'SERVIÇOS ORSE'!$A:$D, 4, 0), IF(D50 = "SEINFRA", VLOOKUP(E50, 'SERVIÇOS SEINFRA'!$A:$D, 4, 0)))), IF(C50="INSUMO", IF(D50 = "SINAPI", VLOOKUP(E50, 'INSUMOS SINAPI'!$A:$D, 4, 0), IF(D50 = "ORSE", VLOOKUP(E50, 'INSUMOS ORSE'!$A:$D, 4, 0), IF(D50 = "SEINFRA", VLOOKUP(E50,'INSUMOS SEINFRA'!$A:$D, 4, 0),))))) -> 57.48 | J50: 70.99 | K50: 29110.87 | L50: 2 | Q50: 0.0558 | R50: =H50*9 -> 3690.63 | S50: =R50*0.25 -> 922.66
B51: 4.10 | C51: SERVIÇO | D51: SINAPI | E51: 88485 | F51: =IF(C51 = "SERVIÇO", IF(D51 = "SINAPI", VLOOKUP(E51, 'SERVIÇOS SINAPI'!$A:$D, 2, 0), IF(D51 = "ORSE", VLOOKUP(E51, 'SERVIÇOS ORSE'!$A:$D, 2, 0), IF(D51 = "SEINFRA", VLOOKUP(E51, 'SERVIÇOS SEINFRA'!$A:$D, 2, 0)))), IF(C51="INSUMO", IF(D51 = "SINAPI", VLOOKUP(E51, 'INSUMOS SINAPI'!$A:$D, 2, 0), IF(D51 = "ORSE", VLOOKUP(E51, 'INSUMOS ORSE'!$A:$D, 2, 0), IF(D51 = "SEINFRA", VLOOKUP(E51,'INSUMOS SEINFRA'!$A:$D, 2, 0),))))) -> FUNDO SELADOR ACRÍLICO, APLICAÇÃO MANUAL EM PAREDE, UMA DEMÃO. AF_04/2023 | G51: =IF(C51 = "SERVIÇO", IF(D51 = "SINAPI", VLOOKUP(E51, 'SERVIÇOS SINAPI'!$A:$D, 3, 0), IF(D51 = "ORSE", VLOOKUP(E51, 'SERVIÇOS ORSE'!$A:$D, 3, 0), IF(D51 = "SEINFRA", VLOOKUP(E51, 'SERVIÇOS SEINFRA'!$A:$D, 3, 0)))), IF(C51="INSUMO", IF(D51 = "SINAPI", VLOOKUP(E51, 'INSUMOS SINAPI'!$A:$D, 3, 0), IF(D51 = "ORSE", VLOOKUP(E51, 'INSUMOS ORSE'!$A:$D, 3, 0), IF(D51 = "SEINFRA", VLOOKUP(E51,'INSUMOS SEINFRA'!$A:$D, 3, 0),))))) -> M² | H51: =H45 -> 334.34 | I51: =IF(C51 = "SERVIÇO", IF(D51 = "SINAPI", VLOOKUP(E51, 'SERVIÇOS SINAPI'!$A:$D, 4, 0), IF(D51 = "ORSE", VLOOKUP(E51, 'SERVIÇOS ORSE'!$A:$D, 4, 0), IF(D51 = "SEINFRA", VLOOKUP(E51, 'SERVIÇOS SEINFRA'!$A:$D, 4, 0)))), IF(C51="INSUMO", IF(D51 = "SINAPI", VLOOKUP(E51, 'INSUMOS SINAPI'!$A:$D, 4, 0), IF(D51 = "ORSE", VLOOKUP(E51, 'INSUMOS ORSE'!$A:$D, 4, 0), IF(D51 = "SEINFRA", VLOOKUP(E51,'INSUMOS SEINFRA'!$A:$D, 4, 0),))))) -> 4.18 | J51: 5.16 | K51: 1725.19 | L51: 2 | Q51: 0.0033
B52: 4.11 | C52: SERVIÇO | D52: SINAPI | E52: 88484 | F52: =IF(C52 = "SERVIÇO", IF(D52 = "SINAPI", VLOOKUP(E52, 'SERVIÇOS SINAPI'!$A:$D, 2, 0), IF(D52 = "ORSE", VLOOKUP(E52, 'SERVIÇOS ORSE'!$A:$D, 2, 0), IF(D52 = "SEINFRA", VLOOKUP(E52, 'SERVIÇOS SEINFRA'!$A:$D, 2, 0)))), IF(C52="INSUMO", IF(D52 = "SINAPI", VLOOKUP(E52, 'INSUMOS SINAPI'!$A:$D, 2, 0), IF(D52 = "ORSE", VLOOKUP(E52, 'INSUMOS ORSE'!$A:$D, 2, 0), IF(D52 = "SEINFRA", VLOOKUP(E52,'INSUMOS SEINFRA'!$A:$D, 2, 0),))))) -> FUNDO SELADOR ACRÍLICO, APLICAÇÃO MANUAL EM TETO, UMA DEMÃO. AF_04/2023 | G52: =IF(C52 = "SERVIÇO", IF(D52 = "SINAPI", VLOOKUP(E52, 'SERVIÇOS SINAPI'!$A:$D, 3, 0), IF(D52 = "ORSE", VLOOKUP(E52, 'SERVIÇOS ORSE'!$A:$D, 3, 0), IF(D52 = "SEINFRA", VLOOKUP(E52, 'SERVIÇOS SEINFRA'!$A:$D, 3, 0)))), IF(C52="INSUMO", IF(D52 = "SINAPI", VLOOKUP(E52, 'INSUMOS SINAPI'!$A:$D, 3, 0), IF(D52 = "ORSE", VLOOKUP(E52, 'INSUMOS ORSE'!$A:$D, 3, 0), IF(D52 = "SEINFRA", VLOOKUP(E52,'INSUMOS SEINFRA'!$A:$D, 3, 0),))))) -> M² | H52: =H46 -> 132.96 | I52: =IF(C52 = "SERVIÇO", IF(D52 = "SINAPI", VLOOKUP(E52, 'SERVIÇOS SINAPI'!$A:$D, 4, 0), IF(D52 = "ORSE", VLOOKUP(E52, 'SERVIÇOS ORSE'!$A:$D, 4, 0), IF(D52 = "SEINFRA", VLOOKUP(E52, 'SERVIÇOS SEINFRA'!$A:$D, 4, 0)))), IF(C52="INSUMO", IF(D52 = "SINAPI", VLOOKUP(E52, 'INSUMOS SINAPI'!$A:$D, 4, 0), IF(D52 = "ORSE", VLOOKUP(E52, 'INSUMOS ORSE'!$A:$D, 4, 0), IF(D52 = "SEINFRA", VLOOKUP(E52,'INSUMOS SEINFRA'!$A:$D, 4, 0),))))) -> 5.05 | J52: =IF(C52 = "SERVIÇO", I52 * (1 + $I$8), IF(C52 = "INSUMO", (I52 * (1 + $K$8)))) -> 6.24 | K52: =J52*H52 -> 829.67 | L52: 2 | Q52: 0.0016
B53: 4.12 | C53: SERVIÇO | D53: SINAPI | E53: 88489 | F53: =IF(C53 = "SERVIÇO", IF(D53 = "SINAPI", VLOOKUP(E53, 'SERVIÇOS SINAPI'!$A:$D, 2, 0), IF(D53 = "ORSE", VLOOKUP(E53, 'SERVIÇOS ORSE'!$A:$D, 2, 0), IF(D53 = "SEINFRA", VLOOKUP(E53, 'SERVIÇOS SEINFRA'!$A:$D, 2, 0)))), IF(C53="INSUMO", IF(D53 = "SINAPI", VLOOKUP(E53, 'INSUMOS SINAPI'!$A:$D, 2, 0), IF(D53 = "ORSE", VLOOKUP(E53, 'INSUMOS ORSE'!$A:$D, 2, 0), IF(D53 = "SEINFRA", VLOOKUP(E53,'INSUMOS SEINFRA'!$A:$D, 2, 0),))))) -> PINTURA LÁTEX ACRÍLICA PREMIUM, APLICAÇÃO MANUAL EM PAREDES, DUAS DEMÃOS. AF_04/2023 | G53: =IF(C53 = "SERVIÇO", IF(D53 = "SINAPI", VLOOKUP(E53, 'SERVIÇOS SINAPI'!$A:$D, 3, 0), IF(D53 = "ORSE", VLOOKUP(E53, 'SERVIÇOS ORSE'!$A:$D, 3, 0), IF(D53 = "SEINFRA", VLOOKUP(E53, 'SERVIÇOS SEINFRA'!$A:$D, 3, 0)))), IF(C53="INSUMO", IF(D53 = "SINAPI", VLOOKUP(E53, 'INSUMOS SINAPI'!$A:$D, 3, 0), IF(D53 = "ORSE", VLOOKUP(E53, 'INSUMOS ORSE'!$A:$D, 3, 0), IF(D53 = "SEINFRA", VLOOKUP(E53,'INSUMOS SEINFRA'!$A:$D, 3, 0),))))) -> M² | H53: =H45 -> 334.34 | I53: =IF(C53 = "SERVIÇO", IF(D53 = "SINAPI", VLOOKUP(E53, 'SERVIÇOS SINAPI'!$A:$D, 4, 0), IF(D53 = "ORSE", VLOOKUP(E53, 'SERVIÇOS ORSE'!$A:$D, 4, 0), IF(D53 = "SEINFRA", VLOOKUP(E53, 'SERVIÇOS SEINFRA'!$A:$D, 4, 0)))), IF(C53="INSUMO", IF(D53 = "SINAPI", VLOOKUP(E53, 'INSUMOS SINAPI'!$A:$D, 4, 0), IF(D53 = "ORSE", VLOOKUP(E53, 'INSUMOS ORSE'!$A:$D, 4, 0), IF(D53 = "SEINFRA", VLOOKUP(E53,'INSUMOS SEINFRA'!$A:$D, 4, 0),))))) -> 13.15 | J53: =IF(C53 = "SERVIÇO", I53 * (1 + $I$8), IF(C53 = "INSUMO", (I53 * (1 + $K$8)))) -> 16.24 | K53: =J53*H53 -> 5429.68 | L53: 2 | Q53: 0.0104
B54: 4.13 | C54: SERVIÇO | D54: SINAPI | E54: 88488 | F54: =IF(C54 = "SERVIÇO", IF(D54 = "SINAPI", VLOOKUP(E54, 'SERVIÇOS SINAPI'!$A:$D, 2, 0), IF(D54 = "ORSE", VLOOKUP(E54, 'SERVIÇOS ORSE'!$A:$D, 2, 0), IF(D54 = "SEINFRA", VLOOKUP(E54, 'SERVIÇOS SEINFRA'!$A:$D, 2, 0)))), IF(C54="INSUMO", IF(D54 = "SINAPI", VLOOKUP(E54, 'INSUMOS SINAPI'!$A:$D, 2, 0), IF(D54 = "ORSE", VLOOKUP(E54, 'INSUMOS ORSE'!$A:$D, 2, 0), IF(D54 = "SEINFRA", VLOOKUP(E54,'INSUMOS SEINFRA'!$A:$D, 2, 0),))))) -> PINTURA LÁTEX ACRÍLICA PREMIUM, APLICAÇÃO MANUAL EM TETO, DUAS DEMÃOS. AF_04/2023 | G54: =IF(C54 = "SERVIÇO", IF(D54 = "SINAPI", VLOOKUP(E54, 'SERVIÇOS SINAPI'!$A:$D, 3, 0), IF(D54 = "ORSE", VLOOKUP(E54, 'SERVIÇOS ORSE'!$A:$D, 3, 0), IF(D54 = "SEINFRA", VLOOKUP(E54, 'SERVIÇOS SEINFRA'!$A:$D, 3, 0)))), IF(C54="INSUMO", IF(D54 = "SINAPI", VLOOKUP(E54, 'INSUMOS SINAPI'!$A:$D, 3, 0), IF(D54 = "ORSE", VLOOKUP(E54, 'INSUMOS ORSE'!$A:$D, 3, 0), IF(D54 = "SEINFRA", VLOOKUP(E54,'INSUMOS SEINFRA'!$A:$D, 3, 0),))))) -> M² | H54: =H44 -> 132.96 | I54: =IF(C54 = "SERVIÇO", IF(D54 = "SINAPI", VLOOKUP(E54, 'SERVIÇOS SINAPI'!$A:$D, 4, 0), IF(D54 = "ORSE", VLOOKUP(E54, 'SERVIÇOS ORSE'!$A:$D, 4, 0), IF(D54 = "SEINFRA", VLOOKUP(E54, 'SERVIÇOS SEINFRA'!$A:$D, 4, 0)))), IF(C54="INSUMO", IF(D54 = "SINAPI", VLOOKUP(E54, 'INSUMOS SINAPI'!$A:$D, 4, 0), IF(D54 = "ORSE", VLOOKUP(E54, 'INSUMOS ORSE'!$A:$D, 4, 0), IF(D54 = "SEINFRA", VLOOKUP(E54,'INSUMOS SEINFRA'!$A:$D, 4, 0),))))) -> 15.3 | J54: 18.9 | K54: 2512.94 | L54: 2 | Q54: 0.0048
B55: 5 | C55: COBERTURA E IMPERMEABILIZAÇÃO | K55: =SUM(K56:K64) -> 29714.27
B56: 5.1 | C56: SERVIÇO | D56: SINAPI | E56: 92544 | F56: =IF(C56 = "SERVIÇO", IF(D56 = "SINAPI", VLOOKUP(E56, 'SERVIÇOS SINAPI'!$A:$D, 2, 0), IF(D56 = "ORSE", VLOOKUP(E56, 'SERVIÇOS ORSE'!$A:$D, 2, 0), IF(D56 = "SEINFRA", VLOOKUP(E56, 'SERVIÇOS SEINFRA'!$A:$D, 2, 0)))), IF(C56="INSUMO", IF(D56 = "SINAPI", VLOOKUP(E56, 'INSUMOS SINAPI'!$A:$D, 2, 0), IF(D56 = "ORSE", VLOOKUP(E56, 'INSUMOS ORSE'!$A:$D, 2, 0), IF(D56 = "SEINFRA", VLOOKUP(E56,'INSUMOS SEINFRA'!$A:$D, 2, 0),))))) -> TRAMA DE MADEIRA COMPOSTA POR TERÇAS PARA TELHADOS DE ATÉ 2 ÁGUAS PARA TELHA ESTRUTURAL DE FIBROCIMENTO, INCLUSO TRANSPORTE VERTICAL. AF_07/2019 | G56: =IF(C56 = "SERVIÇO", IF(D56 = "SINAPI", VLOOKUP(E56, 'SERVIÇOS SINAPI'!$A:$D, 3, 0), IF(D56 = "ORSE", VLOOKUP(E56, 'SERVIÇOS ORSE'!$A:$D, 3, 0), IF(D56 = "SEINFRA", VLOOKUP(E56, 'SERVIÇOS SEINFRA'!$A:$D, 3, 0)))), IF(C56="INSUMO", IF(D56 = "SINAPI", VLOOKUP(E56, 'INSUMOS SINAPI'!$A:$D, 3, 0), IF(D56 = "ORSE", VLOOKUP(E56, 'INSUMOS ORSE'!$A:$D, 3, 0), IF(D56 = "SEINFRA", VLOOKUP(E56,'INSUMOS SEINFRA'!$A:$D, 3, 0),))))) -> M² | H56: ='Memória de Cálculo'!$L$163 -> 116.28 | I56: =IF(C56 = "SERVIÇO", IF(D56 = "SINAPI", VLOOKUP(E56, 'SERVIÇOS SINAPI'!$A:$D, 4, 0), IF(D56 = "ORSE", VLOOKUP(E56, 'SERVIÇOS ORSE'!$A:$D, 4, 0), IF(D56 = "SEINFRA", VLOOKUP(E56, 'SERVIÇOS SEINFRA'!$A:$D, 4, 0)))), IF(C56="INSUMO", IF(D56 = "SINAPI", VLOOKUP(E56, 'INSUMOS SINAPI'!$A:$D, 4, 0), IF(D56 = "ORSE", VLOOKUP(E56, 'INSUMOS ORSE'!$A:$D, 4, 0), IF(D56 = "SEINFRA", VLOOKUP(E56,'INSUMOS SEINFRA'!$A:$D, 4, 0),))))) -> 19.83 | J56: =IF(C56 = "SERVIÇO", I56 * (1 + $I$8), IF(C56 = "INSUMO", (I56 * (1 + $K$8)))) -> 24.49 | K56: =J56*H56 -> 2847.7 | L56: 2 | Q56: 0.0055 | R56: =(H56+H57)*9 -> 1556.01 | S56: =R56*0.25 -> 389
B57: 5.2 | C57: SERVIÇO | D57: SINAPI | E57: 92541 | F57: =IF(C57 = "SERVIÇO", IF(D57 = "SINAPI", VLOOKUP(E57, 'SERVIÇOS SINAPI'!$A:$D, 2, 0), IF(D57 = "ORSE", VLOOKUP(E57, 'SERVIÇOS ORSE'!$A:$D, 2, 0), IF(D57 = "SEINFRA", VLOOKUP(E57, 'SERVIÇOS SEINFRA'!$A:$D, 2, 0)))), IF(C57="INSUMO", IF(D57 = "SINAPI", VLOOKUP(E57, 'INSUMOS SINAPI'!$A:$D, 2, 0), IF(D57 = "ORSE", VLOOKUP(E57, 'INSUMOS ORSE'!$A:$D, 2, 0), IF(D57 = "SEINFRA", VLOOKUP(E57,'INSUMOS SEINFRA'!$A:$D, 2, 0),))))) -> TRAMA DE MADEIRA COMPOSTA POR RIPAS, CAIBROS E TERÇAS PARA TELHADOS DE ATÉ 2 ÁGUAS PARA TELHA CERÂMICA CAPA-CANAL, INCLUSO TRANSPORTE VERTICAL. AF_07/2019 | G57: =IF(C57 = "SERVIÇO", IF(D57 = "SINAPI", VLOOKUP(E57, 'SERVIÇOS SINAPI'!$A:$D, 3, 0), IF(D57 = "ORSE", VLOOKUP(E57, 'SERVIÇOS ORSE'!$A:$D, 3, 0), IF(D57 = "SEINFRA", VLOOKUP(E57, 'SERVIÇOS SEINFRA'!$A:$D, 3, 0)))), IF(C57="INSUMO", IF(D57 = "SINAPI", VLOOKUP(E57, 'INSUMOS SINAPI'!$A:$D, 3, 0), IF(D57 = "ORSE", VLOOKUP(E57, 'INSUMOS ORSE'!$A:$D, 3, 0), IF(D57 = "SEINFRA", VLOOKUP(E57,'INSUMOS SEINFRA'!$A:$D, 3, 0),))))) -> M² | H57: ='Memória de Cálculo'!$L$166 -> 56.61 | I57: =IF(C57 = "SERVIÇO", IF(D57 = "SINAPI", VLOOKUP(E57, 'SERVIÇOS SINAPI'!$A:$D, 4, 0), IF(D57 = "ORSE", VLOOKUP(E57, 'SERVIÇOS ORSE'!$A:$D, 4, 0), IF(D57 = "SEINFRA", VLOOKUP(E57, 'SERVIÇOS SEINFRA'!$A:$D, 4, 0)))), IF(C57="INSUMO", IF(D57 = "SINAPI", VLOOKUP(E57, 'INSUMOS SINAPI'!$A:$D, 4, 0), IF(D57 = "ORSE", VLOOKUP(E57, 'INSUMOS ORSE'!$A:$D, 4, 0), IF(D57 = "SEINFRA", VLOOKUP(E57,'INSUMOS SEINFRA'!$A:$D, 4, 0),))))) -> 88.59 | J57: =IF(C57 = "SERVIÇO", I57 * (1 + $I$8), IF(C57 = "INSUMO", (I57 * (1 + $K$8)))) -> 109.41 | K57: =J57*H57 -> 6193.7 | L57: 2 | Q57: 0.0119
B58: 5.3 | C58: SERVIÇO | D58: SINAPI | E58: 102233 | F58: =IF(C58 = "SERVIÇO", IF(D58 = "SINAPI", VLOOKUP(E58, 'SERVIÇOS SINAPI'!$A:$D, 2, 0), IF(D58 = "ORSE", VLOOKUP(E58, 'SERVIÇOS ORSE'!$A:$D, 2, 0), IF(D58 = "SEINFRA", VLOOKUP(E58, 'SERVIÇOS SEINFRA'!$A:$D, 2, 0)))), IF(C58="INSUMO", IF(D58 = "SINAPI", VLOOKUP(E58, 'INSUMOS SINAPI'!$A:$D, 2, 0), IF(D58 = "ORSE", VLOOKUP(E58, 'INSUMOS ORSE'!$A:$D, 2, 0), IF(D58 = "SEINFRA", VLOOKUP(E58,'INSUMOS SEINFRA'!$A:$D, 2, 0),))))) -> PINTURA IMUNIZANTE PARA MADEIRA, 1 DEMÃO. AF_01/2021 | G58: =IF(C58 = "SERVIÇO", IF(D58 = "SINAPI", VLOOKUP(E58, 'SERVIÇOS SINAPI'!$A:$D, 3, 0), IF(D58 = "ORSE", VLOOKUP(E58, 'SERVIÇOS ORSE'!$A:$D, 3, 0), IF(D58 = "SEINFRA", VLOOKUP(E58, 'SERVIÇOS SEINFRA'!$A:$D, 3, 0)))), IF(C58="INSUMO", IF(D58 = "SINAPI", VLOOKUP(E58, 'INSUMOS SINAPI'!$A:$D, 3, 0), IF(D58 = "ORSE", VLOOKUP(E58, 'INSUMOS ORSE'!$A:$D, 3, 0), IF(D58 = "SEINFRA", VLOOKUP(E58,'INSUMOS SEINFRA'!$A:$D, 3, 0),))))) -> M² | H58: ='Memória de Cálculo'!$L$170 -> 68.24 | I58: =IF(C58 = "SERVIÇO", IF(D58 = "SINAPI", VLOOKUP(E58, 'SERVIÇOS SINAPI'!$A:$D, 4, 0), IF(D58 = "ORSE", VLOOKUP(E58, 'SERVIÇOS ORSE'!$A:$D, 4, 0), IF(D58 = "SEINFRA", VLOOKUP(E58, 'SERVIÇOS SEINFRA'!$A:$D, 4, 0)))), IF(C58="INSUMO", IF(D58 = "SINAPI", VLOOKUP(E58, 'INSUMOS SINAPI'!$A:$D, 4, 0), IF(D58 = "ORSE", VLOOKUP(E58, 'INSUMOS ORSE'!$A:$D, 4, 0), IF(D58 = "SEINFRA", VLOOKUP(E58,'INSUMOS SEINFRA'!$A:$D, 4, 0),))))) -> 10.98 | J58: =IF(C58 = "SERVIÇO", I58 * (1 + $I$8), IF(C58 = "INSUMO", (I58 * (1 + $K$8)))) -> 13.56 | K58: =J58*H58 -> 925.33 | L58: 2 | Q58: 0.0018
B59: 5.4 | C59: SERVIÇO | D59: SINAPI | E59: 94207 | F59: =IF(C59 = "SERVIÇO", IF(D59 = "SINAPI", VLOOKUP(E59, 'SERVIÇOS SINAPI'!$A:$D, 2, 0), IF(D59 = "ORSE", VLOOKUP(E59, 'SERVIÇOS ORSE'!$A:$D, 2, 0), IF(D59 = "SEINFRA", VLOOKUP(E59, 'SERVIÇOS SEINFRA'!$A:$D, 2, 0)))), IF(C59="INSUMO", IF(D59 = "SINAPI", VLOOKUP(E59, 'INSUMOS SINAPI'!$A:$D, 2, 0), IF(D59 = "ORSE", VLOOKUP(E59, 'INSUMOS ORSE'!$A:$D, 2, 0), IF(D59 = "SEINFRA", VLOOKUP(E59,'INSUMOS SEINFRA'!$A:$D, 2, 0),))))) -> TELHAMENTO COM TELHA ONDULADA DE FIBROCIMENTO E = 6 MM, COM RECOBRIMENTO LATERAL DE 1/4 DE ONDA PARA TELHADO COM INCLINAÇÃO MAIOR QUE 10°, COM ATÉ 2 ÁGUAS, INCLUSO IÇAMENTO. AF_07/2019 | G59: =IF(C59 = "SERVIÇO", IF(D59 = "SINAPI", VLOOKUP(E59, 'SERVIÇOS SINAPI'!$A:$D, 3, 0), IF(D59 = "ORSE", VLOOKUP(E59, 'SERVIÇOS ORSE'!$A:$D, 3, 0), IF(D59 = "SEINFRA", VLOOKUP(E59, 'SERVIÇOS SEINFRA'!$A:$D, 3, 0)))), IF(C59="INSUMO", IF(D59 = "SINAPI", VLOOKUP(E59, 'INSUMOS SINAPI'!$A:$D, 3, 0), IF(D59 = "ORSE", VLOOKUP(E59, 'INSUMOS ORSE'!$A:$D, 3, 0), IF(D59 = "SEINFRA", VLOOKUP(E59,'INSUMOS SEINFRA'!$A:$D, 3, 0),))))) -> M² | H59: =H56 -> 116.28 | I59: =IF(C59 = "SERVIÇO", IF(D59 = "SINAPI", VLOOKUP(E59, 'SERVIÇOS SINAPI'!$A:$D, 4, 0), IF(D59 = "ORSE", VLOOKUP(E59, 'SERVIÇOS ORSE'!$A:$D, 4, 0), IF(D59 = "SEINFRA", VLOOKUP(E59, 'SERVIÇOS SEINFRA'!$A:$D, 4, 0)))), IF(C59="INSUMO", IF(D59 = "SINAPI", VLOOKUP(E59, 'INSUMOS SINAPI'!$A:$D, 4, 0), IF(D59 = "ORSE", VLOOKUP(E59, 'INSUMOS ORSE'!$A:$D, 4, 0), IF(D59 = "SEINFRA", VLOOKUP(E59,'INSUMOS SEINFRA'!$A:$D, 4, 0),))))) -> 54.62 | J59: 67.46 | K59: 7844.25 | L59: 2 | Q59: 0.015 | R59: =(H59+H60)*9 -> 1556.01 | S59: =R59*0.25 -> 389
B60: 5.5 | C60: SERVIÇO | D60: SINAPI | E60: 94447 | F60: =IF(C60 = "SERVIÇO", IF(D60 = "SINAPI", VLOOKUP(E60, 'SERVIÇOS SINAPI'!$A:$D, 2, 0), IF(D60 = "ORSE", VLOOKUP(E60, 'SERVIÇOS ORSE'!$A:$D, 2, 0), IF(D60 = "SEINFRA", VLOOKUP(E60, 'SERVIÇOS SEINFRA'!$A:$D, 2, 0)))), IF(C60="INSUMO", IF(D60 = "SINAPI", VLOOKUP(E60, 'INSUMOS SINAPI'!$A:$D, 2, 0), IF(D60 = "ORSE", VLOOKUP(E60, 'INSUMOS ORSE'!$A:$D, 2, 0), IF(D60 = "SEINFRA", VLOOKUP(E60,'INSUMOS SEINFRA'!$A:$D, 2, 0),))))) -> TELHAMENTO COM TELHA CERÂMICA CAPA-CANAL, TIPO PAULISTA, COM ATÉ 2 ÁGUAS, INCLUSO TRANSPORTE VERTICAL. AF_07/2019 | G60: =IF(C60 = "SERVIÇO", IF(D60 = "SINAPI", VLOOKUP(E60, 'SERVIÇOS SINAPI'!$A:$D, 3, 0), IF(D60 = "ORSE", VLOOKUP(E60, 'SERVIÇOS ORSE'!$A:$D, 3, 0), IF(D60 = "SEINFRA", VLOOKUP(E60, 'SERVIÇOS SEINFRA'!$A:$D, 3, 0)))), IF(C60="INSUMO", IF(D60 = "SINAPI", VLOOKUP(E60, 'INSUMOS SINAPI'!$A:$D, 3, 0), IF(D60 = "ORSE", VLOOKUP(E60, 'INSUMOS ORSE'!$A:$D, 3, 0), IF(D60 = "SEINFRA", VLOOKUP(E60,'INSUMOS SEINFRA'!$A:$D, 3, 0),))))) -> M² | H60: =H57 -> 56.61 | I60: =IF(C60 = "SERVIÇO", IF(D60 = "SINAPI", VLOOKUP(E60, 'SERVIÇOS SINAPI'!$A:$D, 4, 0), IF(D60 = "ORSE", VLOOKUP(E60, 'SERVIÇOS ORSE'!$A:$D, 4, 0), IF(D60 = "SEINFRA", VLOOKUP(E60, 'SERVIÇOS SEINFRA'!$A:$D, 4, 0)))), IF(C60="INSUMO", IF(D60 = "SINAPI", VLOOKUP(E60, 'INSUMOS SINAPI'!$A:$D, 4, 0), IF(D60 = "ORSE", VLOOKUP(E60, 'INSUMOS ORSE'!$A:$D, 4, 0), IF(D60 = "SEINFRA", VLOOKUP(E60,'INSUMOS SEINFRA'!$A:$D, 4, 0),))))) -> 50.69 | J60: =IF(C60 = "SERVIÇO", I60 * (1 + $I$8), IF(C60 = "INSUMO", (I60 * (1 + $K$8)))) -> 62.6 | K60: =J60*H60 -> 3543.79 | L60: 2 | Q60: 0.0068 | R60: =H60*9 -> 509.49 | S60: =R60*0.25 -> 127.37
B61: 5.6 | C61: SERVIÇO | D61: SINAPI | E61: 100325 | F61: =IF(C61 = "SERVIÇO", IF(D61 = "SINAPI", VLOOKUP(E61, 'SERVIÇOS SINAPI'!$A:$D, 2, 0), IF(D61 = "ORSE", VLOOKUP(E61, 'SERVIÇOS ORSE'!$A:$D, 2, 0), IF(D61 = "SEINFRA", VLOOKUP(E61, 'SERVIÇOS SEINFRA'!$A:$D, 2, 0)))), IF(C61="INSUMO", IF(D61 = "SINAPI", VLOOKUP(E61, 'INSUMOS SINAPI'!$A:$D, 2, 0), IF(D61 = "ORSE", VLOOKUP(E61, 'INSUMOS ORSE'!$A:$D, 2, 0), IF(D61 = "SEINFRA", VLOOKUP(E61,'INSUMOS SEINFRA'!$A:$D, 2, 0),))))) -> CUMEEIRA SHED PARA TELHA ONDULADA DE FIBROCIMENTO, E = 6 MM, INCLUSO ACESSÓRIOS DE FIXAÇÃO E IÇAMENTO. AF_07/2019 | G61: =IF(C61 = "SERVIÇO", IF(D61 = "SINAPI", VLOOKUP(E61, 'SERVIÇOS SINAPI'!$A:$D, 3, 0), IF(D61 = "ORSE", VLOOKUP(E61, 'SERVIÇOS ORSE'!$A:$D, 3, 0), IF(D61 = "SEINFRA", VLOOKUP(E61, 'SERVIÇOS SEINFRA'!$A:$D, 3, 0)))), IF(C61="INSUMO", IF(D61 = "SINAPI", VLOOKUP(E61, 'INSUMOS SINAPI'!$A:$D, 3, 0), IF(D61 = "ORSE", VLOOKUP(E61, 'INSUMOS ORSE'!$A:$D, 3, 0), IF(D61 = "SEINFRA", VLOOKUP(E61,'INSUMOS SEINFRA'!$A:$D, 3, 0),))))) -> M | H61: 7.65 | I61: =IF(C61 = "SERVIÇO", IF(D61 = "SINAPI", VLOOKUP(E61, 'SERVIÇOS SINAPI'!$A:$D, 4, 0), IF(D61 = "ORSE", VLOOKUP(E61, 'SERVIÇOS ORSE'!$A:$D, 4, 0), IF(D61 = "SEINFRA", VLOOKUP(E61, 'SERVIÇOS SEINFRA'!$A:$D, 4, 0)))), IF(C61="INSUMO", IF(D61 = "SINAPI", VLOOKUP(E61, 'INSUMOS SINAPI'!$A:$D, 4, 0), IF(D61 = "ORSE", VLOOKUP(E61, 'INSUMOS ORSE'!$A:$D, 4, 0), IF(D61 = "SEINFRA", VLOOKUP(E61,'INSUMOS SEINFRA'!$A:$D, 4, 0),))))) -> 101.41 | J61: =IF(C61 = "SERVIÇO", I61 * (1 + $I$8), IF(C61 = "INSUMO", (I61 * (1 + $K$8)))) -> 125.24 | K61: =J61*H61 -> 958.09 | L61: 2 | Q61: 0.0018
B62: 5.7 | C62: SERVIÇO | D62: SINAPI | E62: 100327 | F62: =IF(C62 = "SERVIÇO", IF(D62 = "SINAPI", VLOOKUP(E62, 'SERVIÇOS SINAPI'!$A:$D, 2, 0), IF(D62 = "ORSE", VLOOKUP(E62, 'SERVIÇOS ORSE'!$A:$D, 2, 0), IF(D62 = "SEINFRA", VLOOKUP(E62, 'SERVIÇOS SEINFRA'!$A:$D, 2, 0)))), IF(C62="INSUMO", IF(D62 = "SINAPI", VLOOKUP(E62, 'INSUMOS SINAPI'!$A:$D, 2, 0), IF(D62 = "ORSE", VLOOKUP(E62, 'INSUMOS ORSE'!$A:$D, 2, 0), IF(D62 = "SEINFRA", VLOOKUP(E62,'INSUMOS SEINFRA'!$A:$D, 2, 0),))))) -> RUFO EXTERNO/INTERNO EM CHAPA DE AÇO GALVANIZADO NÚMERO 26, CORTE DE 33 CM, INCLUSO IÇAMENTO. AF_07/2019 | G62: =IF(C62 = "SERVIÇO", IF(D62 = "SINAPI", VLOOKUP(E62, 'SERVIÇOS SINAPI'!$A:$D, 3, 0), IF(D62 = "ORSE", VLOOKUP(E62, 'SERVIÇOS ORSE'!$A:$D, 3, 0), IF(D62 = "SEINFRA", VLOOKUP(E62, 'SERVIÇOS SEINFRA'!$A:$D, 3, 0)))), IF(C62="INSUMO", IF(D62 = "SINAPI", VLOOKUP(E62, 'INSUMOS SINAPI'!$A:$D, 3, 0), IF(D62 = "ORSE", VLOOKUP(E62, 'INSUMOS ORSE'!$A:$D, 3, 0), IF(D62 = "SEINFRA", VLOOKUP(E62,'INSUMOS SEINFRA'!$A:$D, 3, 0),))))) -> M | H62: ='Memória de Cálculo'!$L$174 -> 60.6 | I62: =IF(C62 = "SERVIÇO", IF(D62 = "SINAPI", VLOOKUP(E62, 'SERVIÇOS SINAPI'!$A:$D, 4, 0), IF(D62 = "ORSE", VLOOKUP(E62, 'SERVIÇOS ORSE'!$A:$D, 4, 0), IF(D62 = "SEINFRA", VLOOKUP(E62, 'SERVIÇOS SEINFRA'!$A:$D, 4, 0)))), IF(C62="INSUMO", IF(D62 = "SINAPI", VLOOKUP(E62, 'INSUMOS SINAPI'!$A:$D, 4, 0), IF(D62 = "ORSE", VLOOKUP(E62, 'INSUMOS ORSE'!$A:$D, 4, 0), IF(D62 = "SEINFRA", VLOOKUP(E62,'INSUMOS SEINFRA'!$A:$D, 4, 0),))))) -> 53.27 | J62: =IF(C62 = "SERVIÇO", I62 * (1 + $I$8), IF(C62 = "INSUMO", (I62 * (1 + $K$8)))) -> 65.79 | K62: =J62*H62 -> 3986.87 | L62: 5 | Q62: 0.0076
B63: 5.8 | C63: SERVIÇO | D63: SINAPI | E63: 94229 | F63: =IF(C63 = "SERVIÇO", IF(D63 = "SINAPI", VLOOKUP(E63, 'SERVIÇOS SINAPI'!$A:$D, 2, 0), IF(D63 = "ORSE", VLOOKUP(E63, 'SERVIÇOS ORSE'!$A:$D, 2, 0), IF(D63 = "SEINFRA", VLOOKUP(E63, 'SERVIÇOS SEINFRA'!$A:$D, 2, 0)))), IF(C63="INSUMO", IF(D63 = "SINAPI", VLOOKUP(E63, 'INSUMOS SINAPI'!$A:$D, 2, 0), IF(D63 = "ORSE", VLOOKUP(E63, 'INSUMOS ORSE'!$A:$D, 2, 0), IF(D63 = "SEINFRA", VLOOKUP(E63,'INSUMOS SEINFRA'!$A:$D, 2, 0),))))) -> CALHA EM CHAPA DE AÇO GALVANIZADO NÚMERO 24, DESENVOLVIMENTO DE 100 CM, INCLUSO TRANSPORTE VERTICAL. AF_07/2019 | G63: =IF(C63 = "SERVIÇO", IF(D63 = "SINAPI", VLOOKUP(E63, 'SERVIÇOS SINAPI'!$A:$D, 3, 0), IF(D63 = "ORSE", VLOOKUP(E63, 'SERVIÇOS ORSE'!$A:$D, 3, 0), IF(D63 = "SEINFRA", VLOOKUP(E63, 'SERVIÇOS SEINFRA'!$A:$D, 3, 0)))), IF(C63="INSUMO", IF(D63 = "SINAPI", VLOOKUP(E63, 'INSUMOS SINAPI'!$A:$D, 3, 0), IF(D63 = "ORSE", VLOOKUP(E63, 'INSUMOS ORSE'!$A:$D, 3, 0), IF(D63 = "SEINFRA", VLOOKUP(E63,'INSUMOS SEINFRA'!$A:$D, 3, 0),))))) -> M | H63: ='Memória de Cálculo'!$L$177 -> 15.3 | I63: =IF(C63 = "SERVIÇO", IF(D63 = "SINAPI", VLOOKUP(E63, 'SERVIÇOS SINAPI'!$A:$D, 4, 0), IF(D63 = "ORSE", VLOOKUP(E63, 'SERVIÇOS ORSE'!$A:$D, 4, 0), IF(D63 = "SEINFRA", VLOOKUP(E63, 'SERVIÇOS SEINFRA'!$A:$D, 4, 0)))), IF(C63="INSUMO", IF(D63 = "SINAPI", VLOOKUP(E63, 'INSUMOS SINAPI'!$A:$D, 4, 0), IF(D63 = "ORSE", VLOOKUP(E63, 'INSUMOS ORSE'!$A:$D, 4, 0), IF(D63 = "SEINFRA", VLOOKUP(E63,'INSUMOS SEINFRA'!$A:$D, 4, 0),))))) -> 149.07 | J63: =IF(C63 = "SERVIÇO", I63 * (1 + $I$8), IF(C63 = "INSUMO", (I63 * (1 + $K$8)))) -> 184.1 | K63: =J63*H63 -> 2816.73 | L63: 5 | Q63: 0.0054
B64: 5.9 | C64: SERVIÇO | D64: SINAPI | E64: 98557 | F64: =IF(C64 = "SERVIÇO", IF(D64 = "SINAPI", VLOOKUP(E64, 'SERVIÇOS SINAPI'!$A:$D, 2, 0), IF(D64 = "ORSE", VLOOKUP(E64, 'SERVIÇOS ORSE'!$A:$D, 2, 0), IF(D64 = "SEINFRA", VLOOKUP(E64, 'SERVIÇOS SEINFRA'!$A:$D, 2, 0)))), IF(C64="INSUMO", IF(D64 = "SINAPI", VLOOKUP(E64, 'INSUMOS SINAPI'!$A:$D, 2, 0), IF(D64 = "ORSE", VLOOKUP(E64, 'INSUMOS ORSE'!$A:$D, 2, 0), IF(D64 = "SEINFRA", VLOOKUP(E64,'INSUMOS SEINFRA'!$A:$D, 2, 0),))))) -> IMPERMEABILIZAÇÃO DE SUPERFÍCIE COM EMULSÃO ASFÁLTICA, 2 DEMÃOS. AF_09/2023 | G64: =IF(C64 = "SERVIÇO", IF(D64 = "SINAPI", VLOOKUP(E64, 'SERVIÇOS SINAPI'!$A:$D, 3, 0), IF(D64 = "ORSE", VLOOKUP(E64, 'SERVIÇOS ORSE'!$A:$D, 3, 0), IF(D64 = "SEINFRA", VLOOKUP(E64, 'SERVIÇOS SEINFRA'!$A:$D, 3, 0)))), IF(C64="INSUMO", IF(D64 = "SINAPI", VLOOKUP(E64, 'INSUMOS SINAPI'!$A:$D, 3, 0), IF(D64 = "ORSE", VLOOKUP(E64, 'INSUMOS ORSE'!$A:$D, 3, 0), IF(D64 = "SEINFRA", VLOOKUP(E64,'INSUMOS SEINFRA'!$A:$D, 3, 0),))))) -> M² | H64: ='Memória de Cálculo'!$L$180 -> 11.32 | I64: =IF(C64 = "SERVIÇO", IF(D64 = "SINAPI", VLOOKUP(E64, 'SERVIÇOS SINAPI'!$A:$D, 4, 0), IF(D64 = "ORSE", VLOOKUP(E64, 'SERVIÇOS ORSE'!$A:$D, 4, 0), IF(D64 = "SEINFRA", VLOOKUP(E64, 'SERVIÇOS SEINFRA'!$A:$D, 4, 0)))), IF(C64="INSUMO", IF(D64 = "SINAPI", VLOOKUP(E64, 'INSUMOS SINAPI'!$A:$D, 4, 0), IF(D64 = "ORSE", VLOOKUP(E64, 'INSUMOS ORSE'!$A:$D, 4, 0), IF(D64 = "SEINFRA", VLOOKUP(E64,'INSUMOS SEINFRA'!$A:$D, 4, 0),))))) -> 42.76 | J64: =IF(C64 = "SERVIÇO", I64 * (1 + $I$8), IF(C64 = "INSUMO", (I64 * (1 + $K$8)))) -> 52.81 | K64: =J64*H64 -> 597.81 | L64: 2 | Q64: 0.0011
B65: 6 | C65: ESQUADRIAS | K65: =SUM(K66:K71) -> 23513.89
B66: 6.1 | C66: SERVIÇO | D66: SINAPI | E66: 91341 | F66: =IF(C66 = "SERVIÇO", IF(D66 = "SINAPI", VLOOKUP(E66, 'SERVIÇOS SINAPI'!$A:$D, 2, 0), IF(D66 = "ORSE", VLOOKUP(E66, 'SERVIÇOS ORSE'!$A:$D, 2, 0), IF(D66 = "SEINFRA", VLOOKUP(E66, 'SERVIÇOS SEINFRA'!$A:$D, 2, 0)))), IF(C66="INSUMO", IF(D66 = "SINAPI", VLOOKUP(E66, 'INSUMOS SINAPI'!$A:$D, 2, 0), IF(D66 = "ORSE", VLOOKUP(E66, 'INSUMOS ORSE'!$A:$D, 2, 0), IF(D66 = "SEINFRA", VLOOKUP(E66,'INSUMOS SEINFRA'!$A:$D, 2, 0),))))) -> PORTA EM ALUMÍNIO DE ABRIR TIPO VENEZIANA COM GUARNIÇÃO, FIXAÇÃO COM PARAFUSOS - FORNECIMENTO E INSTALAÇÃO. AF_12/2019 | G66: =IF(C66 = "SERVIÇO", IF(D66 = "SINAPI", VLOOKUP(E66, 'SERVIÇOS SINAPI'!$A:$D, 3, 0), IF(D66 = "ORSE", VLOOKUP(E66, 'SERVIÇOS ORSE'!$A:$D, 3, 0), IF(D66 = "SEINFRA", VLOOKUP(E66, 'SERVIÇOS SEINFRA'!$A:$D, 3, 0)))), IF(C66="INSUMO", IF(D66 = "SINAPI", VLOOKUP(E66, 'INSUMOS SINAPI'!$A:$D, 3, 0), IF(D66 = "ORSE", VLOOKUP(E66, 'INSUMOS ORSE'!$A:$D, 3, 0), IF(D66 = "SEINFRA", VLOOKUP(E66,'INSUMOS SEINFRA'!$A:$D, 3, 0),))))) -> M² | H66: ='Memória de Cálculo'!$L$186 -> 27.3 | I66: =IF(C66 = "SERVIÇO", IF(D66 = "SINAPI", VLOOKUP(E66, 'SERVIÇOS SINAPI'!$A:$D, 4, 0), IF(D66 = "ORSE", VLOOKUP(E66, 'SERVIÇOS ORSE'!$A:$D, 4, 0), IF(D66 = "SEINFRA", VLOOKUP(E66, 'SERVIÇOS SEINFRA'!$A:$D, 4, 0)))), IF(C66="INSUMO", IF(D66 = "SINAPI", VLOOKUP(E66, 'INSUMOS SINAPI'!$A:$D, 4, 0), IF(D66 = "ORSE", VLOOKUP(E66, 'INSUMOS ORSE'!$A:$D, 4, 0), IF(D66 = "SEINFRA", VLOOKUP(E66,'INSUMOS SEINFRA'!$A:$D, 4, 0),))))) -> 441.36 | J66: =IF(C66 = "SERVIÇO", I66 * (1 + $I$8), IF(C66 = "INSUMO", (I66 * (1 + $K$8)))) -> 545.08 | K66: =J66*H66 -> 14880.68 | L66: 5 | Q66: 0.0285
B67: 6.2 | C67: SERVIÇO | D67: SINAPI | E67: 94570 | F67: =IF(C67 = "SERVIÇO", IF(D67 = "SINAPI", VLOOKUP(E67, 'SERVIÇOS SINAPI'!$A:$D, 2, 0), IF(D67 = "ORSE", VLOOKUP(E67, 'SERVIÇOS ORSE'!$A:$D, 2, 0), IF(D67 = "SEINFRA", VLOOKUP(E67, 'SERVIÇOS SEINFRA'!$A:$D, 2, 0)))), IF(C67="INSUMO", IF(D67 = "SINAPI", VLOOKUP(E67, 'INSUMOS SINAPI'!$A:$D, 2, 0), IF(D67 = "ORSE", VLOOKUP(E67, 'INSUMOS ORSE'!$A:$D, 2, 0), IF(D67 = "SEINFRA", VLOOKUP(E67,'INSUMOS SEINFRA'!$A:$D, 2, 0),))))) -> JANELA DE ALUMÍNIO DE CORRER COM 2 FOLHAS PARA VIDROS, COM VIDROS, BATENTE, ACABAMENTO COM ACETATO OU BRILHANTE E FERRAGENS. EXCLUSIVE ALIZAR E CONTRAMARCO. FORNECIMENTO E INSTALAÇÃO. AF_12/2019 | G67: =IF(C67 = "SERVIÇO", IF(D67 = "SINAPI", VLOOKUP(E67, 'SERVIÇOS SINAPI'!$A:$D, 3, 0), IF(D67 = "ORSE", VLOOKUP(E67, 'SERVIÇOS ORSE'!$A:$D, 3, 0), IF(D67 = "SEINFRA", VLOOKUP(E67, 'SERVIÇOS SEINFRA'!$A:$D, 3, 0)))), IF(C67="INSUMO", IF(D67 = "SINAPI", VLOOKUP(E67, 'INSUMOS SINAPI'!$A:$D, 3, 0), IF(D67 = "ORSE", VLOOKUP(E67, 'INSUMOS ORSE'!$A:$D, 3, 0), IF(D67 = "SEINFRA", VLOOKUP(E67,'INSUMOS SEINFRA'!$A:$D, 3, 0),))))) -> M² | H67: ='Memória de Cálculo'!$L$190 -> 12.3 | I67: =IF(C67 = "SERVIÇO", IF(D67 = "SINAPI", VLOOKUP(E67, 'SERVIÇOS SINAPI'!$A:$D, 4, 0), IF(D67 = "ORSE", VLOOKUP(E67, 'SERVIÇOS ORSE'!$A:$D, 4, 0), IF(D67 = "SEINFRA", VLOOKUP(E67, 'SERVIÇOS SEINFRA'!$A:$D, 4, 0)))), IF(C67="INSUMO", IF(D67 = "SINAPI", VLOOKUP(E67, 'INSUMOS SINAPI'!$A:$D, 4, 0), IF(D67 = "ORSE", VLOOKUP(E67, 'INSUMOS ORSE'!$A:$D, 4, 0), IF(D67 = "SEINFRA", VLOOKUP(E67,'INSUMOS SEINFRA'!$A:$D, 4, 0),))))) -> 220.33 | J67: =IF(C67 = "SERVIÇO", I67 * (1 + $I$8), IF(C67 = "INSUMO", (I67 * (1 + $K$8)))) -> 272.11 | K67: =J67*H67 -> 3346.95 | L67: 5 | Q67: 0.0064
B68: 6.3 | C68: SERVIÇO | D68: SINAPI | E68: 100701 | F68: =IF(C68 = "SERVIÇO", IF(D68 = "SINAPI", VLOOKUP(E68, 'SERVIÇOS SINAPI'!$A:$D, 2, 0), IF(D68 = "ORSE", VLOOKUP(E68, 'SERVIÇOS ORSE'!$A:$D, 2, 0), IF(D68 = "SEINFRA", VLOOKUP(E68, 'SERVIÇOS SEINFRA'!$A:$D, 2, 0)))), IF(C68="INSUMO", IF(D68 = "SINAPI", VLOOKUP(E68, 'INSUMOS SINAPI'!$A:$D, 2, 0), IF(D68 = "ORSE", VLOOKUP(E68, 'INSUMOS ORSE'!$A:$D, 2, 0), IF(D68 = "SEINFRA", VLOOKUP(E68,'INSUMOS SEINFRA'!$A:$D, 2, 0),))))) -> PORTA DE FERRO, DE ABRIR, TIPO GRADE COM CHAPA, COM GUARNIÇÕES. AF_12/2019 | G68: =IF(C68 = "SERVIÇO", IF(D68 = "SINAPI", VLOOKUP(E68, 'SERVIÇOS SINAPI'!$A:$D, 3, 0), IF(D68 = "ORSE", VLOOKUP(E68, 'SERVIÇOS ORSE'!$A:$D, 3, 0), IF(D68 = "SEINFRA", VLOOKUP(E68, 'SERVIÇOS SEINFRA'!$A:$D, 3, 0)))), IF(C68="INSUMO", IF(D68 = "SINAPI", VLOOKUP(E68, 'INSUMOS SINAPI'!$A:$D, 3, 0), IF(D68 = "ORSE", VLOOKUP(E68, 'INSUMOS ORSE'!$A:$D, 3, 0), IF(D68 = "SEINFRA", VLOOKUP(E68,'INSUMOS SEINFRA'!$A:$D, 3, 0),))))) -> M² | H68: ='Memória de Cálculo'!$L$194 -> 2.94 | I68: =IF(C68 = "SERVIÇO", IF(D68 = "SINAPI", VLOOKUP(E68, 'SERVIÇOS SINAPI'!$A:$D, 4, 0), IF(D68 = "ORSE", VLOOKUP(E68, 'SERVIÇOS ORSE'!$A:$D, 4, 0), IF(D68 = "SEINFRA", VLOOKUP(E68, 'SERVIÇOS SEINFRA'!$A:$D, 4, 0)))), IF(C68="INSUMO", IF(D68 = "SINAPI", VLOOKUP(E68, 'INSUMOS SINAPI'!$A:$D, 4, 0), IF(D68 = "ORSE", VLOOKUP(E68, 'INSUMOS ORSE'!$A:$D, 4, 0), IF(D68 = "SEINFRA", VLOOKUP(E68,'INSUMOS SEINFRA'!$A:$D, 4, 0),))))) -> 562.25 | J68: =IF(C68 = "SERVIÇO", I68 * (1 + $I$8), IF(C68 = "INSUMO", (I68 * (1 + $K$8)))) -> 694.38 | K68: =J68*H68 -> 2041.48 | L68: 5 | Q68: 0.0039
B69: 6.4 | C69: SERVIÇO | D69: SINAPI | E69: 100721 | F69: =IF(C69 = "SERVIÇO", IF(D69 = "SINAPI", VLOOKUP(E69, 'SERVIÇOS SINAPI'!$A:$D, 2, 0), IF(D69 = "ORSE", VLOOKUP(E69, 'SERVIÇOS ORSE'!$A:$D, 2, 0), IF(D69 = "SEINFRA", VLOOKUP(E69, 'SERVIÇOS SEINFRA'!$A:$D, 2, 0)))), IF(C69="INSUMO", IF(D69 = "SINAPI", VLOOKUP(E69, 'INSUMOS SINAPI'!$A:$D, 2, 0), IF(D69 = "ORSE", VLOOKUP(E69, 'INSUMOS ORSE'!$A:$D, 2, 0), IF(D69 = "SEINFRA", VLOOKUP(E69,'INSUMOS SEINFRA'!$A:$D, 2, 0),))))) -> PINTURA COM TINTA ALQUÍDICA DE FUNDO (TIPO ZARCÃO) PULVERIZADA SOBRE SUPERFÍCIES METÁLICAS (EXCETO PERFIL) EXECUTADO EM OBRA (POR DEMÃO). AF_01/2020_PE | G69: =IF(C69 = "SERVIÇO", IF(D69 = "SINAPI", VLOOKUP(E69, 'SERVIÇOS SINAPI'!$A:$D, 3, 0), IF(D69 = "ORSE", VLOOKUP(E69, 'SERVIÇOS ORSE'!$A:$D, 3, 0), IF(D69 = "SEINFRA", VLOOKUP(E69, 'SERVIÇOS SEINFRA'!$A:$D, 3, 0)))), IF(C69="INSUMO", IF(D69 = "SINAPI", VLOOKUP(E69, 'INSUMOS SINAPI'!$A:$D, 3, 0), IF(D69 = "ORSE", VLOOKUP(E69, 'INSUMOS ORSE'!$A:$D, 3, 0), IF(D69 = "SEINFRA", VLOOKUP(E69,'INSUMOS SEINFRA'!$A:$D, 3, 0),))))) -> M² | H69: ='Memória de Cálculo'!$L$197 -> 5.88 | I69: =IF(C69 = "SERVIÇO", IF(D69 = "SINAPI", VLOOKUP(E69, 'SERVIÇOS SINAPI'!$A:$D, 4, 0), IF(D69 = "ORSE", VLOOKUP(E69, 'SERVIÇOS ORSE'!$A:$D, 4, 0), IF(D69 = "SEINFRA", VLOOKUP(E69, 'SERVIÇOS SEINFRA'!$A:$D, 4, 0)))), IF(C69="INSUMO", IF(D69 = "SINAPI", VLOOKUP(E69, 'INSUMOS SINAPI'!$A:$D, 4, 0), IF(D69 = "ORSE", VLOOKUP(E69, 'INSUMOS ORSE'!$A:$D, 4, 0), IF(D69 = "SEINFRA", VLOOKUP(E69,'INSUMOS SEINFRA'!$A:$D, 4, 0),))))) -> 25.76 | J69: =IF(C69 = "SERVIÇO", I69 * (1 + $I$8), IF(C69 = "INSUMO", (I69 * (1 + $K$8)))) -> 31.81 | K69: =J69*H69 -> 187.04 | L69: 5 | Q69: 0.0004
B70: 6.5 | C70: SERVIÇO | D70: SINAPI | E70: 100741 | F70: =IF(C70 = "SERVIÇO", IF(D70 = "SINAPI", VLOOKUP(E70, 'SERVIÇOS SINAPI'!$A:$D, 2, 0), IF(D70 = "ORSE", VLOOKUP(E70, 'SERVIÇOS ORSE'!$A:$D, 2, 0), IF(D70 = "SEINFRA", VLOOKUP(E70, 'SERVIÇOS SEINFRA'!$A:$D, 2, 0)))), IF(C70="INSUMO", IF(D70 = "SINAPI", VLOOKUP(E70, 'INSUMOS SINAPI'!$A:$D, 2, 0), IF(D70 = "ORSE", VLOOKUP(E70, 'INSUMOS ORSE'!$A:$D, 2, 0), IF(D70 = "SEINFRA", VLOOKUP(E70,'INSUMOS SEINFRA'!$A:$D, 2, 0),))))) -> PINTURA COM TINTA ALQUÍDICA DE ACABAMENTO (ESMALTE SINTÉTICO ACETINADO) PULVERIZADA SOBRE SUPERFÍCIES METÁLICAS (EXCETO PERFIL) EXECUTADO EM OBRA (POR DEMÃO). AF_01/2020_PE | G70: =IF(C70 = "SERVIÇO", IF(D70 = "SINAPI", VLOOKUP(E70, 'SERVIÇOS SINAPI'!$A:$D, 3, 0), IF(D70 = "ORSE", VLOOKUP(E70, 'SERVIÇOS ORSE'!$A:$D, 3, 0), IF(D70 = "SEINFRA", VLOOKUP(E70, 'SERVIÇOS SEINFRA'!$A:$D, 3, 0)))), IF(C70="INSUMO", IF(D70 = "SINAPI", VLOOKUP(E70, 'INSUMOS SINAPI'!$A:$D, 3, 0), IF(D70 = "ORSE", VLOOKUP(E70, 'INSUMOS ORSE'!$A:$D, 3, 0), IF(D70 = "SEINFRA", VLOOKUP(E70,'INSUMOS SEINFRA'!$A:$D, 3, 0),))))) -> M² | H70: =H69 -> 5.88 | I70: =IF(C70 = "SERVIÇO", IF(D70 = "SINAPI", VLOOKUP(E70, 'SERVIÇOS SINAPI'!$A:$D, 4, 0), IF(D70 = "ORSE", VLOOKUP(E70, 'SERVIÇOS ORSE'!$A:$D, 4, 0), IF(D70 = "SEINFRA", VLOOKUP(E70, 'SERVIÇOS SEINFRA'!$A:$D, 4, 0)))), IF(C70="INSUMO", IF(D70 = "SINAPI", VLOOKUP(E70, 'INSUMOS SINAPI'!$A:$D, 4, 0), IF(D70 = "ORSE", VLOOKUP(E70, 'INSUMOS ORSE'!$A:$D, 4, 0), IF(D70 = "SEINFRA", VLOOKUP(E70,'INSUMOS SEINFRA'!$A:$D, 4, 0),))))) -> 25.33 | J70: 31.28 | K70: 183.93 | L70: 5 | Q70: 0.0004
B71: 6.6 | C71: SERVIÇO | D71: ORSE | E71: 11732 | F71: =IF(C71 = "SERVIÇO", IF(D71 = "SINAPI", VLOOKUP(E71, 'SERVIÇOS SINAPI'!$A:$D, 2, 0), IF(D71 = "ORSE", VLOOKUP(E71, 'SERVIÇOS ORSE'!$A:$D, 2, 0), IF(D71 = "SEINFRA", VLOOKUP(E71, 'SERVIÇOS SEINFRA'!$A:$D, 2, 0)))), IF(C71="INSUMO", IF(D71 = "SINAPI", VLOOKUP(E71, 'INSUMOS SINAPI'!$A:$D, 2, 0), IF(D71 = "ORSE", VLOOKUP(E71, 'INSUMOS ORSE'!$A:$D, 2, 0), IF(D71 = "SEINFRA", VLOOKUP(E71,'INSUMOS SEINFRA'!$A:$D, 2, 0),))))) -> TELA GALVANIZADA MOSQUITEIRO EM QUADRO DIM. 1,0X1,0M, FORMADO POR CANTONEIRA ALUMINIO1"X1/8"+ BARRA CHATA ALUMINIO 7/8"X1/8" | G71: =IF(C71 = "SERVIÇO", IF(D71 = "SINAPI", VLOOKUP(E71, 'SERVIÇOS SINAPI'!$A:$D, 3, 0), IF(D71 = "ORSE", VLOOKUP(E71, 'SERVIÇOS ORSE'!$A:$D, 3, 0), IF(D71 = "SEINFRA", VLOOKUP(E71, 'SERVIÇOS SEINFRA'!$A:$D, 3, 0)))), IF(C71="INSUMO", IF(D71 = "SINAPI", VLOOKUP(E71, 'INSUMOS SINAPI'!$A:$D, 3, 0), IF(D71 = "ORSE", VLOOKUP(E71, 'INSUMOS ORSE'!$A:$D, 3, 0), IF(D71 = "SEINFRA", VLOOKUP(E71,'INSUMOS SEINFRA'!$A:$D, 3, 0),))))) -> M² | H71: ='Memória de Cálculo'!$L$200 -> 8.4 | I71: =IF(C71 = "SERVIÇO", IF(D71 = "SINAPI", VLOOKUP(E71, 'SERVIÇOS SINAPI'!$A:$D, 4, 0), IF(D71 = "ORSE", VLOOKUP(E71, 'SERVIÇOS ORSE'!$A:$D, 4, 0), IF(D71 = "SEINFRA", VLOOKUP(E71, 'SERVIÇOS SEINFRA'!$A:$D, 4, 0)))), IF(C71="INSUMO", IF(D71 = "SINAPI", VLOOKUP(E71, 'INSUMOS SINAPI'!$A:$D, 4, 0), IF(D71 = "ORSE", VLOOKUP(E71, 'INSUMOS ORSE'!$A:$D, 4, 0), IF(D71 = "SEINFRA", VLOOKUP(E71,'INSUMOS SEINFRA'!$A:$D, 4, 0),))))) -> 277.02 | J71: =IF(C71 = "SERVIÇO", I71 * (1 + $I$8), IF(C71 = "INSUMO", (I71 * (1 + $K$8)))) -> 342.12 | K71: =J71*H71 -> 2873.81 | L71: 5 | Q71: 0.0055
B72: 7 | C72: INSTALAÇÕES HIDROSSANITÁRIAS | K72: =SUM(K73:K105) -> 55575.81
B73: 7.1 | C73: SERVIÇO | D73: SINAPI | E73: 89707 | F73: =IF(C73 = "SERVIÇO", IF(D73 = "SINAPI", VLOOKUP(E73, 'SERVIÇOS SINAPI'!$A:$D, 2, 0), IF(D73 = "ORSE", VLOOKUP(E73, 'SERVIÇOS ORSE'!$A:$D, 2, 0), IF(D73 = "SEINFRA", VLOOKUP(E73, 'SERVIÇOS SEINFRA'!$A:$D, 2, 0)))), IF(C73="INSUMO", IF(D73 = "SINAPI", VLOOKUP(E73, 'INSUMOS SINAPI'!$A:$D, 2, 0), IF(D73 = "ORSE", VLOOKUP(E73, 'INSUMOS ORSE'!$A:$D, 2, 0), IF(D73 = "SEINFRA", VLOOKUP(E73,'INSUMOS SEINFRA'!$A:$D, 2, 0),))))) -> CAIXA SIFONADA, PVC, DN 100 X 100 X 50 MM, JUNTA ELÁSTICA, FORNECIDA E INSTALADA EM RAMAL DE DESCARGA OU EM RAMAL DE ESGOTO SANITÁRIO. AF_08/2022 | G73: =IF(C73 = "SERVIÇO", IF(D73 = "SINAPI", VLOOKUP(E73, 'SERVIÇOS SINAPI'!$A:$D, 3, 0), IF(D73 = "ORSE", VLOOKUP(E73, 'SERVIÇOS ORSE'!$A:$D, 3, 0), IF(D73 = "SEINFRA", VLOOKUP(E73, 'SERVIÇOS SEINFRA'!$A:$D, 3, 0)))), IF(C73="INSUMO", IF(D73 = "SINAPI", VLOOKUP(E73, 'INSUMOS SINAPI'!$A:$D, 3, 0), IF(D73 = "ORSE", VLOOKUP(E73, 'INSUMOS ORSE'!$A:$D, 3, 0), IF(D73 = "SEINFRA", VLOOKUP(E73,'INSUMOS SEINFRA'!$A:$D, 3, 0),))))) -> UN | H73: 14 | I73: =IF(C73 = "SERVIÇO", IF(D73 = "SINAPI", VLOOKUP(E73, 'SERVIÇOS SINAPI'!$A:$D, 4, 0), IF(D73 = "ORSE", VLOOKUP(E73, 'SERVIÇOS ORSE'!$A:$D, 4, 0), IF(D73 = "SEINFRA", VLOOKUP(E73, 'SERVIÇOS SEINFRA'!$A:$D, 4, 0)))), IF(C73="INSUMO", IF(D73 = "SINAPI", VLOOKUP(E73, 'INSUMOS SINAPI'!$A:$D, 4, 0), IF(D73 = "ORSE", VLOOKUP(E73, 'INSUMOS ORSE'!$A:$D, 4, 0), IF(D73 = "SEINFRA", VLOOKUP(E73,'INSUMOS SEINFRA'!$A:$D, 4, 0),))))) -> 42.11 | J73: =IF(C73 = "SERVIÇO", I73 * (1 + $I$8), IF(C73 = "INSUMO", (I73 * (1 + $K$8)))) -> 52.01 | K73: =J73*H73 -> 728.14 | L73: 4 | Q73: 0.0014
B74: 7.2 | C74: SERVIÇO | D74: SINAPI | E74: 89712 | F74: =IF(C74 = "SERVIÇO", IF(D74 = "SINAPI", VLOOKUP(E74, 'SERVIÇOS SINAPI'!$A:$D, 2, 0), IF(D74 = "ORSE", VLOOKUP(E74, 'SERVIÇOS ORSE'!$A:$D, 2, 0), IF(D74 = "SEINFRA", VLOOKUP(E74, 'SERVIÇOS SEINFRA'!$A:$D, 2, 0)))), IF(C74="INSUMO", IF(D74 = "SINAPI", VLOOKUP(E74, 'INSUMOS SINAPI'!$A:$D, 2, 0), IF(D74 = "ORSE", VLOOKUP(E74, 'INSUMOS ORSE'!$A:$D, 2, 0), IF(D74 = "SEINFRA", VLOOKUP(E74,'INSUMOS SEINFRA'!$A:$D, 2, 0),))))) -> TUBO PVC, SERIE NORMAL, ESGOTO PREDIAL, DN 50 MM, FORNECIDO E INSTALADO EM RAMAL DE DESCARGA OU RAMAL DE ESGOTO SANITÁRIO. AF_08/2022 | G74: =IF(C74 = "SERVIÇO", IF(D74 = "SINAPI", VLOOKUP(E74, 'SERVIÇOS SINAPI'!$A:$D, 3, 0), IF(D74 = "ORSE", VLOOKUP(E74, 'SERVIÇOS ORSE'!$A:$D, 3, 0), IF(D74 = "SEINFRA", VLOOKUP(E74, 'SERVIÇOS SEINFRA'!$A:$D, 3, 0)))), IF(C74="INSUMO", IF(D74 = "SINAPI", VLOOKUP(E74, 'INSUMOS SINAPI'!$A:$D, 3, 0), IF(D74 = "ORSE", VLOOKUP(E74, 'INSUMOS ORSE'!$A:$D, 3, 0), IF(D74 = "SEINFRA", VLOOKUP(E74,'INSUMOS SEINFRA'!$A:$D, 3, 0),))))) -> M | H74: 25 | I74: =IF(C74 = "SERVIÇO", IF(D74 = "SINAPI", VLOOKUP(E74, 'SERVIÇOS SINAPI'!$A:$D, 4, 0), IF(D74 = "ORSE", VLOOKUP(E74, 'SERVIÇOS ORSE'!$A:$D, 4, 0), IF(D74 = "SEINFRA", VLOOKUP(E74, 'SERVIÇOS SEINFRA'!$A:$D, 4, 0)))), IF(C74="INSUMO", IF(D74 = "SINAPI", VLOOKUP(E74, 'INSUMOS SINAPI'!$A:$D, 4, 0), IF(D74 = "ORSE", VLOOKUP(E74, 'INSUMOS ORSE'!$A:$D, 4, 0), IF(D74 = "SEINFRA", VLOOKUP(E74,'INSUMOS SEINFRA'!$A:$D, 4, 0),))))) -> 23.65 | J74: =IF(C74 = "SERVIÇO", I74 * (1 + $I$8), IF(C74 = "INSUMO", (I74 * (1 + $K$8)))) -> 29.21 | K74: =J74*H74 -> 730.25 | L74: 4 | Q74: 0.0014
B75: 7.3 | C75: SERVIÇO | D75: SINAPI | E75: 89713 | F75: =IF(C75 = "SERVIÇO", IF(D75 = "SINAPI", VLOOKUP(E75, 'SERVIÇOS SINAPI'!$A:$D, 2, 0), IF(D75 = "ORSE", VLOOKUP(E75, 'SERVIÇOS ORSE'!$A:$D, 2, 0), IF(D75 = "SEINFRA", VLOOKUP(E75, 'SERVIÇOS SEINFRA'!$A:$D, 2, 0)))), IF(C75="INSUMO", IF(D75 = "SINAPI", VLOOKUP(E75, 'INSUMOS SINAPI'!$A:$D, 2, 0), IF(D75 = "ORSE", VLOOKUP(E75, 'INSUMOS ORSE'!$A:$D, 2, 0), IF(D75 = "SEINFRA", VLOOKUP(E75,'INSUMOS SEINFRA'!$A:$D, 2, 0),))))) -> TUBO PVC, SERIE NORMAL, ESGOTO PREDIAL, DN 75 MM, FORNECIDO E INSTALADO EM RAMAL DE DESCARGA OU RAMAL DE ESGOTO SANITÁRIO. AF_08/2022 | G75: =IF(C75 = "SERVIÇO", IF(D75 = "SINAPI", VLOOKUP(E75, 'SERVIÇOS SINAPI'!$A:$D, 3, 0), IF(D75 = "ORSE", VLOOKUP(E75, 'SERVIÇOS ORSE'!$A:$D, 3, 0), IF(D75 = "SEINFRA", VLOOKUP(E75, 'SERVIÇOS SEINFRA'!$A:$D, 3, 0)))), IF(C75="INSUMO", IF(D75 = "SINAPI", VLOOKUP(E75, 'INSUMOS SINAPI'!$A:$D, 3, 0), IF(D75 = "ORSE", VLOOKUP(E75, 'INSUMOS ORSE'!$A:$D, 3, 0), IF(D75 = "SEINFRA", VLOOKUP(E75,'INSUMOS SEINFRA'!$A:$D, 3, 0),))))) -> M | H75: 10 | I75: =IF(C75 = "SERVIÇO", IF(D75 = "SINAPI", VLOOKUP(E75, 'SERVIÇOS SINAPI'!$A:$D, 4, 0), IF(D75 = "ORSE", VLOOKUP(E75, 'SERVIÇOS ORSE'!$A:$D, 4, 0), IF(D75 = "SEINFRA", VLOOKUP(E75, 'SERVIÇOS SEINFRA'!$A:$D, 4, 0)))), IF(C75="INSUMO", IF(D75 = "SINAPI", VLOOKUP(E75, 'INSUMOS SINAPI'!$A:$D, 4, 0), IF(D75 = "ORSE", VLOOKUP(E75, 'INSUMOS ORSE'!$A:$D, 4, 0), IF(D75 = "SEINFRA", VLOOKUP(E75,'INSUMOS SEINFRA'!$A:$D, 4, 0),))))) -> 29.39 | J75: =IF(C75 = "SERVIÇO", I75 * (1 + $I$8), IF(C75 = "INSUMO", (I75 * (1 + $K$8)))) -> 36.3 | K75: =J75*H75 -> 363 | L75: 4 | Q75: 0.0007
B76: 7.4 | C76: SERVIÇO | D76: SINAPI | E76: 89714 | F76: =IF(C76 = "SERVIÇO", IF(D76 = "SINAPI", VLOOKUP(E76, 'SERVIÇOS SINAPI'!$A:$D, 2, 0), IF(D76 = "ORSE", VLOOKUP(E76, 'SERVIÇOS ORSE'!$A:$D, 2, 0), IF(D76 = "SEINFRA", VLOOKUP(E76, 'SERVIÇOS SEINFRA'!$A:$D, 2, 0)))), IF(C76="INSUMO", IF(D76 = "SINAPI", VLOOKUP(E76, 'INSUMOS SINAPI'!$A:$D, 2, 0), IF(D76 = "ORSE", VLOOKUP(E76, 'INSUMOS ORSE'!$A:$D, 2, 0), IF(D76 = "SEINFRA", VLOOKUP(E76,'INSUMOS SEINFRA'!$A:$D, 2, 0),))))) -> TUBO PVC, SERIE NORMAL, ESGOTO PREDIAL, DN 100 MM, FORNECIDO E INSTALADO EM RAMAL DE DESCARGA OU RAMAL DE ESGOTO SANITÁRIO. AF_08/2022 | G76: =IF(C76 = "SERVIÇO", IF(D76 = "SINAPI", VLOOKUP(E76, 'SERVIÇOS SINAPI'!$A:$D, 3, 0), IF(D76 = "ORSE", VLOOKUP(E76, 'SERVIÇOS ORSE'!$A:$D, 3, 0), IF(D76 = "SEINFRA", VLOOKUP(E76, 'SERVIÇOS SEINFRA'!$A:$D, 3, 0)))), IF(C76="INSUMO", IF(D76 = "SINAPI", VLOOKUP(E76, 'INSUMOS SINAPI'!$A:$D, 3, 0), IF(D76 = "ORSE", VLOOKUP(E76, 'INSUMOS ORSE'!$A:$D, 3, 0), IF(D76 = "SEINFRA", VLOOKUP(E76,'INSUMOS SEINFRA'!$A:$D, 3, 0),))))) -> M | H76: 22 | I76: =IF(C76 = "SERVIÇO", IF(D76 = "SINAPI", VLOOKUP(E76, 'SERVIÇOS SINAPI'!$A:$D, 4, 0), IF(D76 = "ORSE", VLOOKUP(E76, 'SERVIÇOS ORSE'!$A:$D, 4, 0), IF(D76 = "SEINFRA", VLOOKUP(E76, 'SERVIÇOS SEINFRA'!$A:$D, 4, 0)))), IF(C76="INSUMO", IF(D76 = "SINAPI", VLOOKUP(E76, 'INSUMOS SINAPI'!$A:$D, 4, 0), IF(D76 = "ORSE", VLOOKUP(E76, 'INSUMOS ORSE'!$A:$D, 4, 0), IF(D76 = "SEINFRA", VLOOKUP(E76,'INSUMOS SEINFRA'!$A:$D, 4, 0),))))) -> 32.95 | J76: 40.69 | K76: 895.18 | L76: 4 | Q76: 0.0017
B77: 7.5 | C77: SERVIÇO | D77: SINAPI | E77: 104676 | F77: =IF(C77 = "SERVIÇO", IF(D77 = "SINAPI", VLOOKUP(E77, 'SERVIÇOS SINAPI'!$A:$D, 2, 0), IF(D77 = "ORSE", VLOOKUP(E77, 'SERVIÇOS ORSE'!$A:$D, 2, 0), IF(D77 = "SEINFRA", VLOOKUP(E77, 'SERVIÇOS SEINFRA'!$A:$D, 2, 0)))), IF(C77="INSUMO", IF(D77 = "SINAPI", VLOOKUP(E77, 'INSUMOS SINAPI'!$A:$D, 2, 0), IF(D77 = "ORSE", VLOOKUP(E77, 'INSUMOS ORSE'!$A:$D, 2, 0), IF(D77 = "SEINFRA", VLOOKUP(E77,'INSUMOS SEINFRA'!$A:$D, 2, 0),))))) -> CONJUNTO DE PONTOS DE COLETA DE ESGOTO PARA BANHEIRO (RAMAL DE ESGOTO SANITÁRIO), EM PVC SÉRIE NORMAL, COM TUBOS, CONEXÕES, RALOS, CAIXAS SIFONADAS, CORTES E FIXAÇÕES EM PRÉDIO COM PRUMADA DE DESCIDA DE ESGOTO DENTRO DO BANHEIRO. AF_05/2023 | G77: =IF(C77 = "SERVIÇO", IF(D77 = "SINAPI", VLOOKUP(E77, 'SERVIÇOS SINAPI'!$A:$D, 3, 0), IF(D77 = "ORSE", VLOOKUP(E77, 'SERVIÇOS ORSE'!$A:$D, 3, 0), IF(D77 = "SEINFRA", VLOOKUP(E77, 'SERVIÇOS SEINFRA'!$A:$D, 3, 0)))), IF(C77="INSUMO", IF(D77 = "SINAPI", VLOOKUP(E77, 'INSUMOS SINAPI'!$A:$D, 3, 0), IF(D77 = "ORSE", VLOOKUP(E77, 'INSUMOS ORSE'!$A:$D, 3, 0), IF(D77 = "SEINFRA", VLOOKUP(E77,'INSUMOS SEINFRA'!$A:$D, 3, 0),))))) -> UN | H77: 4 | I77: =IF(C77 = "SERVIÇO", IF(D77 = "SINAPI", VLOOKUP(E77, 'SERVIÇOS SINAPI'!$A:$D, 4, 0), IF(D77 = "ORSE", VLOOKUP(E77, 'SERVIÇOS ORSE'!$A:$D, 4, 0), IF(D77 = "SEINFRA", VLOOKUP(E77, 'SERVIÇOS SEINFRA'!$A:$D, 4, 0)))), IF(C77="INSUMO", IF(D77 = "SINAPI", VLOOKUP(E77, 'INSUMOS SINAPI'!$A:$D, 4, 0), IF(D77 = "ORSE", VLOOKUP(E77, 'INSUMOS ORSE'!$A:$D, 4, 0), IF(D77 = "SEINFRA", VLOOKUP(E77,'INSUMOS SEINFRA'!$A:$D, 4, 0),))))) -> 359.85 | J77: =IF(C77 = "SERVIÇO", I77 * (1 + $I$8), IF(C77 = "INSUMO", (I77 * (1 + $K$8)))) -> 444.41 | K77: =J77*H77 -> 1777.64 | L77: 4 | Q77: =K77/$K$5 -> 0.0034
B78: 7.6 | C78: SERVIÇO | D78: SINAPI | E78: 104678 | F78: =IF(C78 = "SERVIÇO", IF(D78 = "SINAPI", VLOOKUP(E78, 'SERVIÇOS SINAPI'!$A:$D, 2, 0), IF(D78 = "ORSE", VLOOKUP(E78, 'SERVIÇOS ORSE'!$A:$D, 2, 0), IF(D78 = "SEINFRA", VLOOKUP(E78, 'SERVIÇOS SEINFRA'!$A:$D, 2, 0)))), IF(C78="INSUMO", IF(D78 = "SINAPI", VLOOKUP(E78, 'INSUMOS SINAPI'!$A:$D, 2, 0), IF(D78 = "ORSE", VLOOKUP(E78, 'INSUMOS ORSE'!$A:$D, 2, 0), IF(D78 = "SEINFRA", VLOOKUP(E78,'INSUMOS SEINFRA'!$A:$D, 2, 0),))))) -> CONJUNTO DE PONTOS DE COLETA DE ESGOTO PARA COZINHA (RAMAL DE ESGOTO SANITÁRIO), EM PVC SÉRIE NORMAL, COM TUBOS, CONEXÕES, CORTES E FIXAÇÕES EM PRÉDIO. AF_05/2023 | G78: =IF(C78 = "SERVIÇO", IF(D78 = "SINAPI", VLOOKUP(E78, 'SERVIÇOS SINAPI'!$A:$D, 3, 0), IF(D78 = "ORSE", VLOOKUP(E78, 'SERVIÇOS ORSE'!$A:$D, 3, 0), IF(D78 = "SEINFRA", VLOOKUP(E78, 'SERVIÇOS SEINFRA'!$A:$D, 3, 0)))), IF(C78="INSUMO", IF(D78 = "SINAPI", VLOOKUP(E78, 'INSUMOS SINAPI'!$A:$D, 3, 0), IF(D78 = "ORSE", VLOOKUP(E78, 'INSUMOS ORSE'!$A:$D, 3, 0), IF(D78 = "SEINFRA", VLOOKUP(E78,'INSUMOS SEINFRA'!$A:$D, 3, 0),))))) -> UN | H78: 1 | I78: =IF(C78 = "SERVIÇO", IF(D78 = "SINAPI", VLOOKUP(E78, 'SERVIÇOS SINAPI'!$A:$D, 4, 0), IF(D78 = "ORSE", VLOOKUP(E78, 'SERVIÇOS ORSE'!$A:$D, 4, 0), IF(D78 = "SEINFRA", VLOOKUP(E78, 'SERVIÇOS SEINFRA'!$A:$D, 4, 0)))), IF(C78="INSUMO", IF(D78 = "SINAPI", VLOOKUP(E78, 'INSUMOS SINAPI'!$A:$D, 4, 0), IF(D78 = "ORSE", VLOOKUP(E78, 'INSUMOS ORSE'!$A:$D, 4, 0), IF(D78 = "SEINFRA", VLOOKUP(E78,'INSUMOS SEINFRA'!$A:$D, 4, 0),))))) -> 142.26 | J78: 175.69 | K78: 175.69 | L78: 4 | Q78: 0.0003
B79: 7.7 | C79: SERVIÇO | D79: SINAPI | E79: 104679 | F79: =IF(C79 = "SERVIÇO", IF(D79 = "SINAPI", VLOOKUP(E79, 'SERVIÇOS SINAPI'!$A:$D, 2, 0), IF(D79 = "ORSE", VLOOKUP(E79, 'SERVIÇOS ORSE'!$A:$D, 2, 0), IF(D79 = "SEINFRA", VLOOKUP(E79, 'SERVIÇOS SEINFRA'!$A:$D, 2, 0)))), IF(C79="INSUMO", IF(D79 = "SINAPI", VLOOKUP(E79, 'INSUMOS SINAPI'!$A:$D, 2, 0), IF(D79 = "ORSE", VLOOKUP(E79, 'INSUMOS ORSE'!$A:$D, 2, 0), IF(D79 = "SEINFRA", VLOOKUP(E79,'INSUMOS SEINFRA'!$A:$D, 2, 0),))))) -> CONJUNTO DE PONTOS DE COLETA DE ESGOTO PARA ÁREA DE SERVIÇO (RAMAL DE ESGOTO SANITÁRIO), EM PVC SÉRIE NORMAL, COM TUBOS, CONEXÕES, RALOS, CAIXAS SIFONADAS, CORTES E FIXAÇÕES EM PRÉDIO. AF_05/2023 | G79: =IF(C79 = "SERVIÇO", IF(D79 = "SINAPI", VLOOKUP(E79, 'SERVIÇOS SINAPI'!$A:$D, 3, 0), IF(D79 = "ORSE", VLOOKUP(E79, 'SERVIÇOS ORSE'!$A:$D, 3, 0), IF(D79 = "SEINFRA", VLOOKUP(E79, 'SERVIÇOS SEINFRA'!$A:$D, 3, 0)))), IF(C79="INSUMO", IF(D79 = "SINAPI", VLOOKUP(E79, 'INSUMOS SINAPI'!$A:$D, 3, 0), IF(D79 = "ORSE", VLOOKUP(E79, 'INSUMOS ORSE'!$A:$D, 3, 0), IF(D79 = "SEINFRA", VLOOKUP(E79,'INSUMOS SEINFRA'!$A:$D, 3, 0),))))) -> UN | H79: 3 | I79: =IF(C79 = "SERVIÇO", IF(D79 = "SINAPI", VLOOKUP(E79, 'SERVIÇOS SINAPI'!$A:$D, 4, 0), IF(D79 = "ORSE", VLOOKUP(E79, 'SERVIÇOS ORSE'!$A:$D, 4, 0), IF(D79 = "SEINFRA", VLOOKUP(E79, 'SERVIÇOS SEINFRA'!$A:$D, 4, 0)))), IF(C79="INSUMO", IF(D79 = "SINAPI", VLOOKUP(E79, 'INSUMOS SINAPI'!$A:$D, 4, 0), IF(D79 = "ORSE", VLOOKUP(E79, 'INSUMOS ORSE'!$A:$D, 4, 0), IF(D79 = "SEINFRA", VLOOKUP(E79,'INSUMOS SEINFRA'!$A:$D, 4, 0),))))) -> 151.09 | J79: 186.6 | K79: 559.8 | L79: 4 | Q79: 0.0011
B80: 7.8 | C80: SERVIÇO | D80: SINAPI | E80: 104663 | F80: =IF(C80 = "SERVIÇO", IF(D80 = "SINAPI", VLOOKUP(E80, 'SERVIÇOS SINAPI'!$A:$D, 2, 0), IF(D80 = "ORSE", VLOOKUP(E80, 'SERVIÇOS ORSE'!$A:$D, 2, 0), IF(D80 = "SEINFRA", VLOOKUP(E80, 'SERVIÇOS SEINFRA'!$A:$D, 2, 0)))), IF(C80="INSUMO", IF(D80 = "SINAPI", VLOOKUP(E80, 'INSUMOS SINAPI'!$A:$D, 2, 0), IF(D80 = "ORSE", VLOOKUP(E80, 'INSUMOS ORSE'!$A:$D, 2, 0), IF(D80 = "SEINFRA", VLOOKUP(E80,'INSUMOS SEINFRA'!$A:$D, 2, 0),))))) -> CONJUNTO DE PONTOS HIDRÁULICOS DE ÁGUA FRIA PARA BANHEIRO (RAMAL/SUB-RAMAL E DISTRIBUIÇÃO) EM PVC, COM TUBOS, CONEXÕES, REGISTROS, CORTES E FIXAÇÕES EM PRÉDIO (PRUMADA INDIVIDUAL), COM TUBULAÇÕES APARENTES OU EMBUTIDAS SEM RASGO. AF_05/2023 | G80: =IF(C80 = "SERVIÇO", IF(D80 = "SINAPI", VLOOKUP(E80, 'SERVIÇOS SINAPI'!$A:$D, 3, 0), IF(D80 = "ORSE", VLOOKUP(E80, 'SERVIÇOS ORSE'!$A:$D, 3, 0), IF(D80 = "SEINFRA", VLOOKUP(E80, 'SERVIÇOS SEINFRA'!$A:$D, 3, 0)))), IF(C80="INSUMO", IF(D80 = "SINAPI", VLOOKUP(E80, 'INSUMOS SINAPI'!$A:$D, 3, 0), IF(D80 = "ORSE", VLOOKUP(E80, 'INSUMOS ORSE'!$A:$D, 3, 0), IF(D80 = "SEINFRA", VLOOKUP(E80,'INSUMOS SEINFRA'!$A:$D, 3, 0),))))) -> UN | H80: 4 | I80: =IF(C80 = "SERVIÇO", IF(D80 = "SINAPI", VLOOKUP(E80, 'SERVIÇOS SINAPI'!$A:$D, 4, 0), IF(D80 = "ORSE", VLOOKUP(E80, 'SERVIÇOS ORSE'!$A:$D, 4, 0), IF(D80 = "SEINFRA", VLOOKUP(E80, 'SERVIÇOS SEINFRA'!$A:$D, 4, 0)))), IF(C80="INSUMO", IF(D80 = "SINAPI", VLOOKUP(E80, 'INSUMOS SINAPI'!$A:$D, 4, 0), IF(D80 = "ORSE", VLOOKUP(E80, 'INSUMOS ORSE'!$A:$D, 4, 0), IF(D80 = "SEINFRA", VLOOKUP(E80,'INSUMOS SEINFRA'!$A:$D, 4, 0),))))) -> 503.59 | J80: 621.93 | K80: 2487.72 | L80: 4 | Q80: 0.0048
B81: 7.9 | C81: SERVIÇO | D81: SINAPI | E81: 104664 | F81: =IF(C81 = "SERVIÇO", IF(D81 = "SINAPI", VLOOKUP(E81, 'SERVIÇOS SINAPI'!$A:$D, 2, 0), IF(D81 = "ORSE", VLOOKUP(E81, 'SERVIÇOS ORSE'!$A:$D, 2, 0), IF(D81 = "SEINFRA", VLOOKUP(E81, 'SERVIÇOS SEINFRA'!$A:$D, 2, 0)))), IF(C81="INSUMO", IF(D81 = "SINAPI", VLOOKUP(E81, 'INSUMOS SINAPI'!$A:$D, 2, 0), IF(D81 = "ORSE", VLOOKUP(E81, 'INSUMOS ORSE'!$A:$D, 2, 0), IF(D81 = "SEINFRA", VLOOKUP(E81,'INSUMOS SEINFRA'!$A:$D, 2, 0),))))) -> CONJUNTO DE PONTOS HIDRÁULICOS DE ÁGUA FRIA PARA COZINHA OU SERVIÇO (RAMAL/SUB-RAMAL E DISTRIBUIÇÃO) EM PVC, COM TUBOS, CONEXÕES, REGISTROS, CORTES E FIXAÇÕES EM PRÉDIO (PRUMADA INDIVIDUAL), COM TUBULAÇÕES APARENTES OU EMBUTIDAS SEM RASGO. AF_05/2023 | G81: =IF(C81 = "SERVIÇO", IF(D81 = "SINAPI", VLOOKUP(E81, 'SERVIÇOS SINAPI'!$A:$D, 3, 0), IF(D81 = "ORSE", VLOOKUP(E81, 'SERVIÇOS ORSE'!$A:$D, 3, 0), IF(D81 = "SEINFRA", VLOOKUP(E81, 'SERVIÇOS SEINFRA'!$A:$D, 3, 0)))), IF(C81="INSUMO", IF(D81 = "SINAPI", VLOOKUP(E81, 'INSUMOS SINAPI'!$A:$D, 3, 0), IF(D81 = "ORSE", VLOOKUP(E81, 'INSUMOS ORSE'!$A:$D, 3, 0), IF(D81 = "SEINFRA", VLOOKUP(E81,'INSUMOS SEINFRA'!$A:$D, 3, 0),))))) -> UN | H81: 4 | I81: =IF(C81 = "SERVIÇO", IF(D81 = "SINAPI", VLOOKUP(E81, 'SERVIÇOS SINAPI'!$A:$D, 4, 0), IF(D81 = "ORSE", VLOOKUP(E81, 'SERVIÇOS ORSE'!$A:$D, 4, 0), IF(D81 = "SEINFRA", VLOOKUP(E81, 'SERVIÇOS SEINFRA'!$A:$D, 4, 0)))), IF(C81="INSUMO", IF(D81 = "SINAPI", VLOOKUP(E81, 'INSUMOS SINAPI'!$A:$D, 4, 0), IF(D81 = "ORSE", VLOOKUP(E81, 'INSUMOS ORSE'!$A:$D, 4, 0), IF(D81 = "SEINFRA", VLOOKUP(E81,'INSUMOS SEINFRA'!$A:$D, 4, 0),))))) -> 155.03 | J81: 191.46 | K81: 765.84 | L81: 4 | Q81: 0.0015
B82: 7.10 | C82: SERVIÇO | D82: SINAPI | E82: 95546 | F82: =IF(C82 = "SERVIÇO", IF(D82 = "SINAPI", VLOOKUP(E82, 'SERVIÇOS SINAPI'!$A:$D, 2, 0), IF(D82 = "ORSE", VLOOKUP(E82, 'SERVIÇOS ORSE'!$A:$D, 2, 0), IF(D82 = "SEINFRA", VLOOKUP(E82, 'SERVIÇOS SEINFRA'!$A:$D, 2, 0)))), IF(C82="INSUMO", IF(D82 = "SINAPI", VLOOKUP(E82, 'INSUMOS SINAPI'!$A:$D, 2, 0), IF(D82 = "ORSE", VLOOKUP(E82, 'INSUMOS ORSE'!$A:$D, 2, 0), IF(D82 = "SEINFRA", VLOOKUP(E82,'INSUMOS SEINFRA'!$A:$D, 2, 0),))))) -> KIT DE ACESSORIOS PARA BANHEIRO EM METAL CROMADO, 5 PECAS, INCLUSO FIXAÇÃO. AF_01/2020 | G82: =IF(C82 = "SERVIÇO", IF(D82 = "SINAPI", VLOOKUP(E82, 'SERVIÇOS SINAPI'!$A:$D, 3, 0), IF(D82 = "ORSE", VLOOKUP(E82, 'SERVIÇOS ORSE'!$A:$D, 3, 0), IF(D82 = "SEINFRA", VLOOKUP(E82, 'SERVIÇOS SEINFRA'!$A:$D, 3, 0)))), IF(C82="INSUMO", IF(D82 = "SINAPI", VLOOKUP(E82, 'INSUMOS SINAPI'!$A:$D, 3, 0), IF(D82 = "ORSE", VLOOKUP(E82, 'INSUMOS ORSE'!$A:$D, 3, 0), IF(D82 = "SEINFRA", VLOOKUP(E82,'INSUMOS SEINFRA'!$A:$D, 3, 0),))))) -> UN | H82: 4 | I82: =IF(C82 = "SERVIÇO", IF(D82 = "SINAPI", VLOOKUP(E82, 'SERVIÇOS SINAPI'!$A:$D, 4, 0), IF(D82 = "ORSE", VLOOKUP(E82, 'SERVIÇOS ORSE'!$A:$D, 4, 0), IF(D82 = "SEINFRA", VLOOKUP(E82, 'SERVIÇOS SEINFRA'!$A:$D, 4, 0)))), IF(C82="INSUMO", IF(D82 = "SINAPI", VLOOKUP(E82, 'INSUMOS SINAPI'!$A:$D, 4, 0), IF(D82 = "ORSE", VLOOKUP(E82, 'INSUMOS ORSE'!$A:$D, 4, 0), IF(D82 = "SEINFRA", VLOOKUP(E82,'INSUMOS SEINFRA'!$A:$D, 4, 0),))))) -> 268.3 | J82: 331.35 | K82: 1325.4 | L82: 5 | Q82: 0.0025
B83: 7.11 | C83: SERVIÇO | D83: SINAPI | E83: 86888 | F83: =IF(C83 = "SERVIÇO", IF(D83 = "SINAPI", VLOOKUP(E83, 'SERVIÇOS SINAPI'!$A:$D, 2, 0), IF(D83 = "ORSE", VLOOKUP(E83, 'SERVIÇOS ORSE'!$A:$D, 2, 0), IF(D83 = "SEINFRA", VLOOKUP(E83, 'SERVIÇOS SEINFRA'!$A:$D, 2, 0)))), IF(C83="INSUMO", IF(D83 = "SINAPI", VLOOKUP(E83, 'INSUMOS SINAPI'!$A:$D, 2, 0), IF(D83 = "ORSE", VLOOKUP(E83, 'INSUMOS ORSE'!$A:$D, 2, 0), IF(D83 = "SEINFRA", VLOOKUP(E83,'INSUMOS SEINFRA'!$A:$D, 2, 0),))))) -> VASO SANITÁRIO SIFONADO COM CAIXA ACOPLADA LOUÇA BRANCA - FORNECIMENTO E INSTALAÇÃO. AF_01/2020 | G83: =IF(C83 = "SERVIÇO", IF(D83 = "SINAPI", VLOOKUP(E83, 'SERVIÇOS SINAPI'!$A:$D, 3, 0), IF(D83 = "ORSE", VLOOKUP(E83, 'SERVIÇOS ORSE'!$A:$D, 3, 0), IF(D83 = "SEINFRA", VLOOKUP(E83, 'SERVIÇOS SEINFRA'!$A:$D, 3, 0)))), IF(C83="INSUMO", IF(D83 = "SINAPI", VLOOKUP(E83, 'INSUMOS SINAPI'!$A:$D, 3, 0), IF(D83 = "ORSE", VLOOKUP(E83, 'INSUMOS ORSE'!$A:$D, 3, 0), IF(D83 = "SEINFRA", VLOOKUP(E83,'INSUMOS SEINFRA'!$A:$D, 3, 0),))))) -> UN | H83: 2 | I83: =IF(C83 = "SERVIÇO", IF(D83 = "SINAPI", VLOOKUP(E83, 'SERVIÇOS SINAPI'!$A:$D, 4, 0), IF(D83 = "ORSE", VLOOKUP(E83, 'SERVIÇOS ORSE'!$A:$D, 4, 0), IF(D83 = "SEINFRA", VLOOKUP(E83, 'SERVIÇOS SEINFRA'!$A:$D, 4, 0)))), IF(C83="INSUMO", IF(D83 = "SINAPI", VLOOKUP(E83, 'INSUMOS SINAPI'!$A:$D, 4, 0), IF(D83 = "ORSE", VLOOKUP(E83, 'INSUMOS ORSE'!$A:$D, 4, 0), IF(D83 = "SEINFRA", VLOOKUP(E83,'INSUMOS SEINFRA'!$A:$D, 4, 0),))))) -> 472.64 | J83: 583.71 | K83: 1167.42 | L83: 7 | Q83: 0.0022
B84: 7.12 | C84: SERVIÇO | D84: ORSE | E84: 4263 | F84: =IF(C84 = "SERVIÇO", IF(D84 = "SINAPI", VLOOKUP(E84, 'SERVIÇOS SINAPI'!$A:$D, 2, 0), IF(D84 = "ORSE", VLOOKUP(E84, 'SERVIÇOS ORSE'!$A:$D, 2, 0), IF(D84 = "SEINFRA", VLOOKUP(E84, 'SERVIÇOS SEINFRA'!$A:$D, 2, 0)))), IF(C84="INSUMO", IF(D84 = "SINAPI", VLOOKUP(E84, 'INSUMOS SINAPI'!$A:$D, 2, 0), IF(D84 = "ORSE", VLOOKUP(E84, 'INSUMOS ORSE'!$A:$D, 2, 0), IF(D84 = "SEINFRA", VLOOKUP(E84,'INSUMOS SEINFRA'!$A:$D, 2, 0),))))) -> VIDRO TEMPERADO 10MM, FUMÊ, TIPO PIVOTANTE, COM FERRAGENS - REV 01_10/2021 | G84: =IF(C84 = "SERVIÇO", IF(D84 = "SINAPI", VLOOKUP(E84, 'SERVIÇOS SINAPI'!$A:$D, 3, 0), IF(D84 = "ORSE", VLOOKUP(E84, 'SERVIÇOS ORSE'!$A:$D, 3, 0), IF(D84 = "SEINFRA", VLOOKUP(E84, 'SERVIÇOS SEINFRA'!$A:$D, 3, 0)))), IF(C84="INSUMO", IF(D84 = "SINAPI", VLOOKUP(E84, 'INSUMOS SINAPI'!$A:$D, 3, 0), IF(D84 = "ORSE", VLOOKUP(E84, 'INSUMOS ORSE'!$A:$D, 3, 0), IF(D84 = "SEINFRA", VLOOKUP(E84,'INSUMOS SEINFRA'!$A:$D, 3, 0),))))) -> M² | H84: ='Memória de Cálculo'!$L$204 -> 5.04 | I84: =IF(C84 = "SERVIÇO", IF(D84 = "SINAPI", VLOOKUP(E84, 'SERVIÇOS SINAPI'!$A:$D, 4, 0), IF(D84 = "ORSE", VLOOKUP(E84, 'SERVIÇOS ORSE'!$A:$D, 4, 0), IF(D84 = "SEINFRA", VLOOKUP(E84, 'SERVIÇOS SEINFRA'!$A:$D, 4, 0)))), IF(C84="INSUMO", IF(D84 = "SINAPI", VLOOKUP(E84, 'INSUMOS SINAPI'!$A:$D, 4, 0), IF(D84 = "ORSE", VLOOKUP(E84, 'INSUMOS ORSE'!$A:$D, 4, 0), IF(D84 = "SEINFRA", VLOOKUP(E84,'INSUMOS SEINFRA'!$A:$D, 4, 0),))))) -> 952.95 | J84: 1176.89 | K84: 5931.53 | L84: 7 | Q84: 0.0114
B85: 7.13 | C85: SERVIÇO | D85: ORSE | E85: 2080 | F85: =IF(C85 = "SERVIÇO", IF(D85 = "SINAPI", VLOOKUP(E85, 'SERVIÇOS SINAPI'!$A:$D, 2, 0), IF(D85 = "ORSE", VLOOKUP(E85, 'SERVIÇOS ORSE'!$A:$D, 2, 0), IF(D85 = "SEINFRA", VLOOKUP(E85, 'SERVIÇOS SEINFRA'!$A:$D, 2, 0)))), IF(C85="INSUMO", IF(D85 = "SINAPI", VLOOKUP(E85, 'INSUMOS SINAPI'!$A:$D, 2, 0), IF(D85 = "ORSE", VLOOKUP(E85, 'INSUMOS ORSE'!$A:$D, 2, 0), IF(D85 = "SEINFRA", VLOOKUP(E85,'INSUMOS SEINFRA'!$A:$D, 2, 0),))))) -> ESPELHO DE CRISTAL COM MOLDURA 60X70CM | G85: =IF(C85 = "SERVIÇO", IF(D85 = "SINAPI", VLOOKUP(E85, 'SERVIÇOS SINAPI'!$A:$D, 3, 0), IF(D85 = "ORSE", VLOOKUP(E85, 'SERVIÇOS ORSE'!$A:$D, 3, 0), IF(D85 = "SEINFRA", VLOOKUP(E85, 'SERVIÇOS SEINFRA'!$A:$D, 3, 0)))), IF(C85="INSUMO", IF(D85 = "SINAPI", VLOOKUP(E85, 'INSUMOS SINAPI'!$A:$D, 3, 0), IF(D85 = "ORSE", VLOOKUP(E85, 'INSUMOS ORSE'!$A:$D, 3, 0), IF(D85 = "SEINFRA", VLOOKUP(E85,'INSUMOS SEINFRA'!$A:$D, 3, 0),))))) -> UN | H85: 2 | I85: =IF(C85 = "SERVIÇO", IF(D85 = "SINAPI", VLOOKUP(E85, 'SERVIÇOS SINAPI'!$A:$D, 4, 0), IF(D85 = "ORSE", VLOOKUP(E85, 'SERVIÇOS ORSE'!$A:$D, 4, 0), IF(D85 = "SEINFRA", VLOOKUP(E85, 'SERVIÇOS SEINFRA'!$A:$D, 4, 0)))), IF(C85="INSUMO", IF(D85 = "SINAPI", VLOOKUP(E85, 'INSUMOS SINAPI'!$A:$D, 4, 0), IF(D85 = "ORSE", VLOOKUP(E85, 'INSUMOS ORSE'!$A:$D, 4, 0), IF(D85 = "SEINFRA", VLOOKUP(E85,'INSUMOS SEINFRA'!$A:$D, 4, 0),))))) -> 242.59 | J85: 299.6 | K85: 599.2 | L85: 7 | Q85: 0.0011
B86: 7.14 | C86: SERVIÇO | D86: ORSE | E86: 12290 | F86: =IF(C86 = "SERVIÇO", IF(D86 = "SINAPI", VLOOKUP(E86, 'SERVIÇOS SINAPI'!$A:$D, 2, 0), IF(D86 = "ORSE", VLOOKUP(E86, 'SERVIÇOS ORSE'!$A:$D, 2, 0), IF(D86 = "SEINFRA", VLOOKUP(E86, 'SERVIÇOS SEINFRA'!$A:$D, 2, 0)))), IF(C86="INSUMO", IF(D86 = "SINAPI", VLOOKUP(E86, 'INSUMOS SINAPI'!$A:$D, 2, 0), IF(D86 = "ORSE", VLOOKUP(E86, 'INSUMOS ORSE'!$A:$D, 2, 0), IF(D86 = "SEINFRA", VLOOKUP(E86,'INSUMOS SEINFRA'!$A:$D, 2, 0),))))) -> LAVATÓRIO COM BANCADA EM GRANITO CINZA ANDORINHA, E = 2CM, DIM 0.80X0.60, COM 01 CUBA DE LOUÇA DE EMBUTIR, SIFÃO CROMADO, VÁLVULA CROMADA, TORNEIRA CROMADA , INCLUSIVE RODOPIA 10 CM, ASSENTADA. | G86: =IF(C86 = "SERVIÇO", IF(D86 = "SINAPI", VLOOKUP(E86, 'SERVIÇOS SINAPI'!$A:$D, 3, 0), IF(D86 = "ORSE", VLOOKUP(E86, 'SERVIÇOS ORSE'!$A:$D, 3, 0), IF(D86 = "SEINFRA", VLOOKUP(E86, 'SERVIÇOS SEINFRA'!$A:$D, 3, 0)))), IF(C86="INSUMO", IF(D86 = "SINAPI", VLOOKUP(E86, 'INSUMOS SINAPI'!$A:$D, 3, 0), IF(D86 = "ORSE", VLOOKUP(E86, 'INSUMOS ORSE'!$A:$D, 3, 0), IF(D86 = "SEINFRA", VLOOKUP(E86,'INSUMOS SEINFRA'!$A:$D, 3, 0),))))) -> UN | H86: 6 | I86: =IF(C86 = "SERVIÇO", IF(D86 = "SINAPI", VLOOKUP(E86, 'SERVIÇOS SINAPI'!$A:$D, 4, 0), IF(D86 = "ORSE", VLOOKUP(E86, 'SERVIÇOS ORSE'!$A:$D, 4, 0), IF(D86 = "SEINFRA", VLOOKUP(E86, 'SERVIÇOS SEINFRA'!$A:$D, 4, 0)))), IF(C86="INSUMO", IF(D86 = "SINAPI", VLOOKUP(E86, 'INSUMOS SINAPI'!$A:$D, 4, 0), IF(D86 = "ORSE", VLOOKUP(E86, 'INSUMOS ORSE'!$A:$D, 4, 0), IF(D86 = "SEINFRA", VLOOKUP(E86,'INSUMOS SEINFRA'!$A:$D, 4, 0),))))) -> 1069.86 | J86: 1321.28 | K86: 7927.68 | L86: 7 | Q86: 0.0152
B87: 7.15 | C87: SERVIÇO | D87: ORSE | E87: 12061 | F87: =IF(C87 = "SERVIÇO", IF(D87 = "SINAPI", VLOOKUP(E87, 'SERVIÇOS SINAPI'!$A:$D, 2, 0), IF(D87 = "ORSE", VLOOKUP(E87, 'SERVIÇOS ORSE'!$A:$D, 2, 0), IF(D87 = "SEINFRA", VLOOKUP(E87, 'SERVIÇOS SEINFRA'!$A:$D, 2, 0)))), IF(C87="INSUMO", IF(D87 = "SINAPI", VLOOKUP(E87, 'INSUMOS SINAPI'!$A:$D, 2, 0), IF(D87 = "ORSE", VLOOKUP(E87, 'INSUMOS ORSE'!$A:$D, 2, 0), IF(D87 = "SEINFRA", VLOOKUP(E87,'INSUMOS SEINFRA'!$A:$D, 2, 0),))))) -> TANQUE SIMPLES EM MÁRMORE SINTÉTICO C/ TORNEIRA CROMADA (DECA LINHA C23 REF 1 153) , C/ VÁLVULA DE PLÁSTICO CONJUNTO DE FIXAÇÃO, SIFÃO DE PLÁSTICO OU SIMIL ARES | G87: =IF(C87 = "SERVIÇO", IF(D87 = "SINAPI", VLOOKUP(E87, 'SERVIÇOS SINAPI'!$A:$D, 3, 0), IF(D87 = "ORSE", VLOOKUP(E87, 'SERVIÇOS ORSE'!$A:$D, 3, 0), IF(D87 = "SEINFRA", VLOOKUP(E87, 'SERVIÇOS SEINFRA'!$A:$D, 3, 0)))), IF(C87="INSUMO", IF(D87 = "SINAPI", VLOOKUP(E87, 'INSUMOS SINAPI'!$A:$D, 3, 0), IF(D87 = "ORSE", VLOOKUP(E87, 'INSUMOS ORSE'!$A:$D, 3, 0), IF(D87 = "SEINFRA", VLOOKUP(E87,'INSUMOS SEINFRA'!$A:$D, 3, 0),))))) -> UN | H87: 1 | I87: =IF(C87 = "SERVIÇO", IF(D87 = "SINAPI", VLOOKUP(E87, 'SERVIÇOS SINAPI'!$A:$D, 4, 0), IF(D87 = "ORSE", VLOOKUP(E87, 'SERVIÇOS ORSE'!$A:$D, 4, 0), IF(D87 = "SEINFRA", VLOOKUP(E87, 'SERVIÇOS SEINFRA'!$A:$D, 4, 0)))), IF(C87="INSUMO", IF(D87 = "SINAPI", VLOOKUP(E87, 'INSUMOS SINAPI'!$A:$D, 4, 0), IF(D87 = "ORSE", VLOOKUP(E87, 'INSUMOS ORSE'!$A:$D, 4, 0), IF(D87 = "SEINFRA", VLOOKUP(E87,'INSUMOS SEINFRA'!$A:$D, 4, 0),))))) -> 571.51 | J87: 705.81 | K87: 705.81 | L87: 7 | Q87: 0.0014
B88: 7.16 | C88: SERVIÇO | D88: SEINFRA | E88: C3997 | F88: =IF(C88 = "SERVIÇO", IF(D88 = "SINAPI", VLOOKUP(E88, 'SERVIÇOS SINAPI'!$A:$D, 2, 0), IF(D88 = "ORSE", VLOOKUP(E88, 'SERVIÇOS ORSE'!$A:$D, 2, 0), IF(D88 = "SEINFRA", VLOOKUP(E88, 'SERVIÇOS SEINFRA'!$A:$D, 2, 0)))), IF(C88="INSUMO", IF(D88 = "SINAPI", VLOOKUP(E88, 'INSUMOS SINAPI'!$A:$D, 2, 0), IF(D88 = "ORSE", VLOOKUP(E88, 'INSUMOS ORSE'!$A:$D, 2, 0), IF(D88 = "SEINFRA", VLOOKUP(E88,'INSUMOS SEINFRA'!$A:$D, 2, 0),))))) -> BANCADA EM GRANITO P/ PIA DE COZINHA, INCL. CUBA DE AÇO INOX E ACESSÓRIOS | G88: =IF(C88 = "SERVIÇO", IF(D88 = "SINAPI", VLOOKUP(E88, 'SERVIÇOS SINAPI'!$A:$D, 3, 0), IF(D88 = "ORSE", VLOOKUP(E88, 'SERVIÇOS ORSE'!$A:$D, 3, 0), IF(D88 = "SEINFRA", VLOOKUP(E88, 'SERVIÇOS SEINFRA'!$A:$D, 3, 0)))), IF(C88="INSUMO", IF(D88 = "SINAPI", VLOOKUP(E88, 'INSUMOS SINAPI'!$A:$D, 3, 0), IF(D88 = "ORSE", VLOOKUP(E88, 'INSUMOS ORSE'!$A:$D, 3, 0), IF(D88 = "SEINFRA", VLOOKUP(E88,'INSUMOS SEINFRA'!$A:$D, 3, 0),))))) -> CJ | H88: 1 | I88: =IF(C88 = "SERVIÇO", IF(D88 = "SINAPI", VLOOKUP(E88, 'SERVIÇOS SINAPI'!$A:$D, 4, 0), IF(D88 = "ORSE", VLOOKUP(E88, 'SERVIÇOS ORSE'!$A:$D, 4, 0), IF(D88 = "SEINFRA", VLOOKUP(E88, 'SERVIÇOS SEINFRA'!$A:$D, 4, 0)))), IF(C88="INSUMO", IF(D88 = "SINAPI", VLOOKUP(E88, 'INSUMOS SINAPI'!$A:$D, 4, 0), IF(D88 = "ORSE", VLOOKUP(E88, 'INSUMOS ORSE'!$A:$D, 4, 0), IF(D88 = "SEINFRA", VLOOKUP(E88,'INSUMOS SEINFRA'!$A:$D, 4, 0),))))) -> 1008.97 | J88: 1246.08 | K88: 1246.08 | L88: 2 | Q88: 0.0024
B89: 7.17 | C89: SERVIÇO | D89: SINAPI | E89: 89985 | F89: =IF(C89 = "SERVIÇO", IF(D89 = "SINAPI", VLOOKUP(E89, 'SERVIÇOS SINAPI'!$A:$D, 2, 0), IF(D89 = "ORSE", VLOOKUP(E89, 'SERVIÇOS ORSE'!$A:$D, 2, 0), IF(D89 = "SEINFRA", VLOOKUP(E89, 'SERVIÇOS SEINFRA'!$A:$D, 2, 0)))), IF(C89="INSUMO", IF(D89 = "SINAPI", VLOOKUP(E89, 'INSUMOS SINAPI'!$A:$D, 2, 0), IF(D89 = "ORSE", VLOOKUP(E89, 'INSUMOS ORSE'!$A:$D, 2, 0), IF(D89 = "SEINFRA", VLOOKUP(E89,'INSUMOS SEINFRA'!$A:$D, 2, 0),))))) -> REGISTRO DE PRESSÃO BRUTO, LATÃO, ROSCÁVEL, 3/4", COM ACABAMENTO E CANOPLA CROMADOS - FORNECIMENTO E INSTALAÇÃO. AF_08/2021 | G89: =IF(C89 = "SERVIÇO", IF(D89 = "SINAPI", VLOOKUP(E89, 'SERVIÇOS SINAPI'!$A:$D, 3, 0), IF(D89 = "ORSE", VLOOKUP(E89, 'SERVIÇOS ORSE'!$A:$D, 3, 0), IF(D89 = "SEINFRA", VLOOKUP(E89, 'SERVIÇOS SEINFRA'!$A:$D, 3, 0)))), IF(C89="INSUMO", IF(D89 = "SINAPI", VLOOKUP(E89, 'INSUMOS SINAPI'!$A:$D, 3, 0), IF(D89 = "ORSE", VLOOKUP(E89, 'INSUMOS ORSE'!$A:$D, 3, 0), IF(D89 = "SEINFRA", VLOOKUP(E89,'INSUMOS SEINFRA'!$A:$D, 3, 0),))))) -> UN | H89: 2 | I89: =IF(C89 = "SERVIÇO", IF(D89 = "SINAPI", VLOOKUP(E89, 'SERVIÇOS SINAPI'!$A:$D, 4, 0), IF(D89 = "ORSE", VLOOKUP(E89, 'SERVIÇOS ORSE'!$A:$D, 4, 0), IF(D89 = "SEINFRA", VLOOKUP(E89, 'SERVIÇOS SEINFRA'!$A:$D, 4, 0)))), IF(C89="INSUMO", IF(D89 = "SINAPI", VLOOKUP(E89, 'INSUMOS SINAPI'!$A:$D, 4, 0), IF(D89 = "ORSE", VLOOKUP(E89, 'INSUMOS ORSE'!$A:$D, 4, 0), IF(D89 = "SEINFRA", VLOOKUP(E89,'INSUMOS SEINFRA'!$A:$D, 4, 0),))))) -> 90.25 | J89: 111.46 | K89: 222.92 | L89: 5 | Q89: 0.0004
B90: 7.18 | C90: SERVIÇO | D90: ORSE | E90: 4883 | F90: =IF(C90 = "SERVIÇO", IF(D90 = "SINAPI", VLOOKUP(E90, 'SERVIÇOS SINAPI'!$A:$D, 2, 0), IF(D90 = "ORSE", VLOOKUP(E90, 'SERVIÇOS ORSE'!$A:$D, 2, 0), IF(D90 = "SEINFRA", VLOOKUP(E90, 'SERVIÇOS SEINFRA'!$A:$D, 2, 0)))), IF(C90="INSUMO", IF(D90 = "SINAPI", VLOOKUP(E90, 'INSUMOS SINAPI'!$A:$D, 2, 0), IF(D90 = "ORSE", VLOOKUP(E90, 'INSUMOS ORSE'!$A:$D, 2, 0), IF(D90 = "SEINFRA", VLOOKUP(E90,'INSUMOS SEINFRA'!$A:$D, 2, 0),))))) -> CAIXA DE INSPEÇÃO 0.60 X 0.60 X 0.60M | G90: =IF(C90 = "SERVIÇO", IF(D90 = "SINAPI", VLOOKUP(E90, 'SERVIÇOS SINAPI'!$A:$D, 3, 0), IF(D90 = "ORSE", VLOOKUP(E90, 'SERVIÇOS ORSE'!$A:$D, 3, 0), IF(D90 = "SEINFRA", VLOOKUP(E90, 'SERVIÇOS SEINFRA'!$A:$D, 3, 0)))), IF(C90="INSUMO", IF(D90 = "SINAPI", VLOOKUP(E90, 'INSUMOS SINAPI'!$A:$D, 3, 0), IF(D90 = "ORSE", VLOOKUP(E90, 'INSUMOS ORSE'!$A:$D, 3, 0), IF(D90 = "SEINFRA", VLOOKUP(E90,'INSUMOS SEINFRA'!$A:$D, 3, 0),))))) -> UN | H90: 4 | I90: =IF(C90 = "SERVIÇO", IF(D90 = "SINAPI", VLOOKUP(E90, 'SERVIÇOS SINAPI'!$A:$D, 4, 0), IF(D90 = "ORSE", VLOOKUP(E90, 'SERVIÇOS ORSE'!$A:$D, 4, 0), IF(D90 = "SEINFRA", VLOOKUP(E90, 'SERVIÇOS SEINFRA'!$A:$D, 4, 0)))), IF(C90="INSUMO", IF(D90 = "SINAPI", VLOOKUP(E90, 'INSUMOS SINAPI'!$A:$D, 4, 0), IF(D90 = "ORSE", VLOOKUP(E90, 'INSUMOS ORSE'!$A:$D, 4, 0), IF(D90 = "SEINFRA", VLOOKUP(E90,'INSUMOS SEINFRA'!$A:$D, 4, 0),))))) -> 635.77 | J90: 785.18 | K90: 3140.72 | L90: 2 | Q90: 0.006
B91: 7.19 | C91: SERVIÇO | D91: SINAPI | E91: 98053 | F91: =IF(C91 = "SERVIÇO", IF(D91 = "SINAPI", VLOOKUP(E91, 'SERVIÇOS SINAPI'!$A:$D, 2, 0), IF(D91 = "ORSE", VLOOKUP(E91, 'SERVIÇOS ORSE'!$A:$D, 2, 0), IF(D91 = "SEINFRA", VLOOKUP(E91, 'SERVIÇOS SEINFRA'!$A:$D, 2, 0)))), IF(C91="INSUMO", IF(D91 = "SINAPI", VLOOKUP(E91, 'INSUMOS SINAPI'!$A:$D, 2, 0), IF(D91 = "ORSE", VLOOKUP(E91, 'INSUMOS ORSE'!$A:$D, 2, 0), IF(D91 = "SEINFRA", VLOOKUP(E91,'INSUMOS SEINFRA'!$A:$D, 2, 0),))))) -> TANQUE SÉPTICO CIRCULAR, EM CONCRETO PRÉ-MOLDADO, DIÂMETRO INTERNO = 1,40 M, ALTURA INTERNA = 2,50 M, VOLUME ÚTIL: 3463,6 L (PARA 13 CONTRIBUINTES). AF_12/2020_PA | G91: =IF(C91 = "SERVIÇO", IF(D91 = "SINAPI", VLOOKUP(E91, 'SERVIÇOS SINAPI'!$A:$D, 3, 0), IF(D91 = "ORSE", VLOOKUP(E91, 'SERVIÇOS ORSE'!$A:$D, 3, 0), IF(D91 = "SEINFRA", VLOOKUP(E91, 'SERVIÇOS SEINFRA'!$A:$D, 3, 0)))), IF(C91="INSUMO", IF(D91 = "SINAPI", VLOOKUP(E91, 'INSUMOS SINAPI'!$A:$D, 3, 0), IF(D91 = "ORSE", VLOOKUP(E91, 'INSUMOS ORSE'!$A:$D, 3, 0), IF(D91 = "SEINFRA", VLOOKUP(E91,'INSUMOS SEINFRA'!$A:$D, 3, 0),))))) -> UN | H91: 2 | I91: =IF(C91 = "SERVIÇO", IF(D91 = "SINAPI", VLOOKUP(E91, 'SERVIÇOS SINAPI'!$A:$D, 4, 0), IF(D91 = "ORSE", VLOOKUP(E91, 'SERVIÇOS ORSE'!$A:$D, 4, 0), IF(D91 = "SEINFRA", VLOOKUP(E91, 'SERVIÇOS SEINFRA'!$A:$D, 4, 0)))), IF(C91="INSUMO", IF(D91 = "SINAPI", VLOOKUP(E91, 'INSUMOS SINAPI'!$A:$D, 4, 0), IF(D91 = "ORSE", VLOOKUP(E91, 'INSUMOS ORSE'!$A:$D, 4, 0), IF(D91 = "SEINFRA", VLOOKUP(E91,'INSUMOS SEINFRA'!$A:$D, 4, 0),))))) -> 2318.3 | J91: 2863.1 | K91: 5726.2 | L91: 2 | Q91: 0.011
B92: 7.20 | C92: SERVIÇO | D92: SINAPI | E92: 98079 | F92: =IF(C92 = "SERVIÇO", IF(D92 = "SINAPI", VLOOKUP(E92, 'SERVIÇOS SINAPI'!$A:$D, 2, 0), IF(D92 = "ORSE", VLOOKUP(E92, 'SERVIÇOS ORSE'!$A:$D, 2, 0), IF(D92 = "SEINFRA", VLOOKUP(E92, 'SERVIÇOS SEINFRA'!$A:$D, 2, 0)))), IF(C92="INSUMO", IF(D92 = "SINAPI", VLOOKUP(E92, 'INSUMOS SINAPI'!$A:$D, 2, 0), IF(D92 = "ORSE", VLOOKUP(E92, 'INSUMOS ORSE'!$A:$D, 2, 0), IF(D92 = "SEINFRA", VLOOKUP(E92,'INSUMOS SEINFRA'!$A:$D, 2, 0),))))) -> SUMIDOURO RETANGULAR, EM ALVENARIA COM TIJOLOS CERÂMICOS MACIÇOS, DIMENSÕES INTERNAS: 1,0 X 3,0 X H=3,0 M, ÁREA DE INFILTRAÇÃO: 25 M² (PARA 10 CONTRIBUINTES). AF_12/2020 | G92: =IF(C92 = "SERVIÇO", IF(D92 = "SINAPI", VLOOKUP(E92, 'SERVIÇOS SINAPI'!$A:$D, 3, 0), IF(D92 = "ORSE", VLOOKUP(E92, 'SERVIÇOS ORSE'!$A:$D, 3, 0), IF(D92 = "SEINFRA", VLOOKUP(E92, 'SERVIÇOS SEINFRA'!$A:$D, 3, 0)))), IF(C92="INSUMO", IF(D92 = "SINAPI", VLOOKUP(E92, 'INSUMOS SINAPI'!$A:$D, 3, 0), IF(D92 = "ORSE", VLOOKUP(E92, 'INSUMOS ORSE'!$A:$D, 3, 0), IF(D92 = "SEINFRA", VLOOKUP(E92,'INSUMOS SEINFRA'!$A:$D, 3, 0),))))) -> UN | H92: 2 | I92: =IF(C92 = "SERVIÇO", IF(D92 = "SINAPI", VLOOKUP(E92, 'SERVIÇOS SINAPI'!$A:$D, 4, 0), IF(D92 = "ORSE", VLOOKUP(E92, 'SERVIÇOS ORSE'!$A:$D, 4, 0), IF(D92 = "SEINFRA", VLOOKUP(E92, 'SERVIÇOS SEINFRA'!$A:$D, 4, 0)))), IF(C92="INSUMO", IF(D92 = "SINAPI", VLOOKUP(E92, 'INSUMOS SINAPI'!$A:$D, 4, 0), IF(D92 = "ORSE", VLOOKUP(E92, 'INSUMOS ORSE'!$A:$D, 4, 0), IF(D92 = "SEINFRA", VLOOKUP(E92,'INSUMOS SEINFRA'!$A:$D, 4, 0),))))) -> 6471.09 | J92: =IF(C92 = "SERVIÇO", I92 * (1 + $I$8), IF(C92 = "INSUMO", (I92 * (1 + $K$8)))) -> 7991.8 | K92: =J92*H92 -> 15983.6 | L92: 2 | Q92: 0.0306
B93: 7.21 | C93: INSUMO | D93: ORSE | E93: 10504 | F93: =IF(C93 = "SERVIÇO", IF(D93 = "SINAPI", VLOOKUP(E93, 'SERVIÇOS SINAPI'!$A:$D, 2, 0), IF(D93 = "ORSE", VLOOKUP(E93, 'SERVIÇOS ORSE'!$A:$D, 2, 0), IF(D93 = "SEINFRA", VLOOKUP(E93, 'SERVIÇOS SEINFRA'!$A:$D, 2, 0)))), IF(C93="INSUMO", IF(D93 = "SINAPI", VLOOKUP(E93, 'INSUMOS SINAPI'!$A:$D, 2, 0), IF(D93 = "ORSE", VLOOKUP(E93, 'INSUMOS ORSE'!$A:$D, 2, 0), IF(D93 = "SEINFRA", VLOOKUP(E93,'INSUMOS SEINFRA'!$A:$D, 2, 0),))))) -> CHUVEIRO E LAVA-OLHOS DE EMERGÊNCIA E BACIA EM AÇO INOX, DA MARCA ADAMO, REF. 01486 OU SIMILAR | G93: =IF(C93 = "SERVIÇO", IF(D93 = "SINAPI", VLOOKUP(E93, 'SERVIÇOS SINAPI'!$A:$D, 3, 0), IF(D93 = "ORSE", VLOOKUP(E93, 'SERVIÇOS ORSE'!$A:$D, 3, 0), IF(D93 = "SEINFRA", VLOOKUP(E93, 'SERVIÇOS SEINFRA'!$A:$D, 3, 0)))), IF(C93="INSUMO", IF(D93 = "SINAPI", VLOOKUP(E93, 'INSUMOS SINAPI'!$A:$D, 3, 0), IF(D93 = "ORSE", VLOOKUP(E93, 'INSUMOS ORSE'!$A:$D, 3, 0), IF(D93 = "SEINFRA", VLOOKUP(E93,'INSUMOS SEINFRA'!$A:$D, 3, 0),))))) -> UN | H93: 1 | I93: =IF(C93 = "SERVIÇO", IF(D93 = "SINAPI", VLOOKUP(E93, 'SERVIÇOS SINAPI'!$A:$D, 4, 0), IF(D93 = "ORSE", VLOOKUP(E93, 'SERVIÇOS ORSE'!$A:$D, 4, 0), IF(D93 = "SEINFRA", VLOOKUP(E93, 'SERVIÇOS SEINFRA'!$A:$D, 4, 0)))), IF(C93="INSUMO", IF(D93 = "SINAPI", VLOOKUP(E93, 'INSUMOS SINAPI'!$A:$D, 4, 0), IF(D93 = "ORSE", VLOOKUP(E93, 'INSUMOS ORSE'!$A:$D, 4, 0), IF(D93 = "SEINFRA", VLOOKUP(E93,'INSUMOS SEINFRA'!$A:$D, 4, 0),))))) -> 1907.53 | J93: =IF(C93 = "SERVIÇO", I93 * (1 + $I$8), IF(C93 = "INSUMO", (I93 * (1 + $K$8)))) -> 2148.26 | K93: =J93*H93 -> 2148.26 | L93: 4 | Q93: 0.0041
B94: 7.22 | C94: INSUMO | D94: SINAPI | E94: 1932 | F94: =IF(C94 = "SERVIÇO", IF(D94 = "SINAPI", VLOOKUP(E94, 'SERVIÇOS SINAPI'!$A:$D, 2, 0), IF(D94 = "ORSE", VLOOKUP(E94, 'SERVIÇOS ORSE'!$A:$D, 2, 0), IF(D94 = "SEINFRA", VLOOKUP(E94, 'SERVIÇOS SEINFRA'!$A:$D, 2, 0)))), IF(C94="INSUMO", IF(D94 = "SINAPI", VLOOKUP(E94, 'INSUMOS SINAPI'!$A:$D, 2, 0), IF(D94 = "ORSE", VLOOKUP(E94, 'INSUMOS ORSE'!$A:$D, 2, 0), IF(D94 = "SEINFRA", VLOOKUP(E94,'INSUMOS SEINFRA'!$A:$D, 2, 0),))))) -> CURVA PVC CURTA 90 GRAUS, DN 50 MM, PARA ESGOTO PREDIAL | G94: =IF(C94 = "SERVIÇO", IF(D94 = "SINAPI", VLOOKUP(E94, 'SERVIÇOS SINAPI'!$A:$D, 3, 0), IF(D94 = "ORSE", VLOOKUP(E94, 'SERVIÇOS ORSE'!$A:$D, 3, 0), IF(D94 = "SEINFRA", VLOOKUP(E94, 'SERVIÇOS SEINFRA'!$A:$D, 3, 0)))), IF(C94="INSUMO", IF(D94 = "SINAPI", VLOOKUP(E94, 'INSUMOS SINAPI'!$A:$D, 3, 0), IF(D94 = "ORSE", VLOOKUP(E94, 'INSUMOS ORSE'!$A:$D, 3, 0), IF(D94 = "SEINFRA", VLOOKUP(E94,'INSUMOS SEINFRA'!$A:$D, 3, 0),))))) -> UN | H94: 4 | I94: =IF(C94 = "SERVIÇO", IF(D94 = "SINAPI", VLOOKUP(E94, 'SERVIÇOS SINAPI'!$A:$D, 4, 0), IF(D94 = "ORSE", VLOOKUP(E94, 'SERVIÇOS ORSE'!$A:$D, 4, 0), IF(D94 = "SEINFRA", VLOOKUP(E94, 'SERVIÇOS SEINFRA'!$A:$D, 4, 0)))), IF(C94="INSUMO", IF(D94 = "SINAPI", VLOOKUP(E94, 'INSUMOS SINAPI'!$A:$D, 4, 0), IF(D94 = "ORSE", VLOOKUP(E94, 'INSUMOS ORSE'!$A:$D, 4, 0), IF(D94 = "SEINFRA", VLOOKUP(E94,'INSUMOS SEINFRA'!$A:$D, 4, 0),))))) -> 9.35 | J94: =IF(C94 = "SERVIÇO", I94 * (1 + $I$8), IF(C94 = "INSUMO", (I94 * (1 + $K$8)))) -> 10.53 | K94: =J94*H94 -> 42.12 | L94: 4 | Q94: 0.0001
B95: 7.23 | C95: INSUMO | D95: SINAPI | E95: 1966 | F95: =IF(C95 = "SERVIÇO", IF(D95 = "SINAPI", VLOOKUP(E95, 'SERVIÇOS SINAPI'!$A:$D, 2, 0), IF(D95 = "ORSE", VLOOKUP(E95, 'SERVIÇOS ORSE'!$A:$D, 2, 0), IF(D95 = "SEINFRA", VLOOKUP(E95, 'SERVIÇOS SEINFRA'!$A:$D, 2, 0)))), IF(C95="INSUMO", IF(D95 = "SINAPI", VLOOKUP(E95, 'INSUMOS SINAPI'!$A:$D, 2, 0), IF(D95 = "ORSE", VLOOKUP(E95, 'INSUMOS ORSE'!$A:$D, 2, 0), IF(D95 = "SEINFRA", VLOOKUP(E95,'INSUMOS SEINFRA'!$A:$D, 2, 0),))))) -> CURVA PVC CURTA 90 GRAUS, DN 100 MM, PARA ESGOTO PREDIAL | G95: =IF(C95 = "SERVIÇO", IF(D95 = "SINAPI", VLOOKUP(E95, 'SERVIÇOS SINAPI'!$A:$D, 3, 0), IF(D95 = "ORSE", VLOOKUP(E95, 'SERVIÇOS ORSE'!$A:$D, 3, 0), IF(D95 = "SEINFRA", VLOOKUP(E95, 'SERVIÇOS SEINFRA'!$A:$D, 3, 0)))), IF(C95="INSUMO", IF(D95 = "SINAPI", VLOOKUP(E95, 'INSUMOS SINAPI'!$A:$D, 3, 0), IF(D95 = "ORSE", VLOOKUP(E95, 'INSUMOS ORSE'!$A:$D, 3, 0), IF(D95 = "SEINFRA", VLOOKUP(E95,'INSUMOS SEINFRA'!$A:$D, 3, 0),))))) -> UN | H95: 5 | I95: =IF(C95 = "SERVIÇO", IF(D95 = "SINAPI", VLOOKUP(E95, 'SERVIÇOS SINAPI'!$A:$D, 4, 0), IF(D95 = "ORSE", VLOOKUP(E95, 'SERVIÇOS ORSE'!$A:$D, 4, 0), IF(D95 = "SEINFRA", VLOOKUP(E95, 'SERVIÇOS SEINFRA'!$A:$D, 4, 0)))), IF(C95="INSUMO", IF(D95 = "SINAPI", VLOOKUP(E95, 'INSUMOS SINAPI'!$A:$D, 4, 0), IF(D95 = "ORSE", VLOOKUP(E95, 'INSUMOS ORSE'!$A:$D, 4, 0), IF(D95 = "SEINFRA", VLOOKUP(E95,'INSUMOS SEINFRA'!$A:$D, 4, 0),))))) -> 18.96 | J95: =IF(C95 = "SERVIÇO", I95 * (1 + $I$8), IF(C95 = "INSUMO", (I95 * (1 + $K$8)))) -> 21.35 | K95: =J95*H95 -> 106.75 | L95: 4 | Q95: 0.0002
B96: 7.24 | C96: INSUMO | D96: SINAPI | E96: 7097 | F96: =IF(C96 = "SERVIÇO", IF(D96 = "SINAPI", VLOOKUP(E96, 'SERVIÇOS SINAPI'!$A:$D, 2, 0), IF(D96 = "ORSE", VLOOKUP(E96, 'SERVIÇOS ORSE'!$A:$D, 2, 0), IF(D96 = "SEINFRA", VLOOKUP(E96, 'SERVIÇOS SEINFRA'!$A:$D, 2, 0)))), IF(C96="INSUMO", IF(D96 = "SINAPI", VLOOKUP(E96, 'INSUMOS SINAPI'!$A:$D, 2, 0), IF(D96 = "ORSE", VLOOKUP(E96, 'INSUMOS ORSE'!$A:$D, 2, 0), IF(D96 = "SEINFRA", VLOOKUP(E96,'INSUMOS SEINFRA'!$A:$D, 2, 0),))))) -> TE SANITARIO, PVC, DN 50 X 50 MM, SERIE NORMAL, PARA ESGOTO PREDIAL | G96: =IF(C96 = "SERVIÇO", IF(D96 = "SINAPI", VLOOKUP(E96, 'SERVIÇOS SINAPI'!$A:$D, 3, 0), IF(D96 = "ORSE", VLOOKUP(E96, 'SERVIÇOS ORSE'!$A:$D, 3, 0), IF(D96 = "SEINFRA", VLOOKUP(E96, 'SERVIÇOS SEINFRA'!$A:$D, 3, 0)))), IF(C96="INSUMO", IF(D96 = "SINAPI", VLOOKUP(E96, 'INSUMOS SINAPI'!$A:$D, 3, 0), IF(D96 = "ORSE", VLOOKUP(E96, 'INSUMOS ORSE'!$A:$D, 3, 0), IF(D96 = "SEINFRA", VLOOKUP(E96,'INSUMOS SEINFRA'!$A:$D, 3, 0),))))) -> UN | H96: 6 | I96: =IF(C96 = "SERVIÇO", IF(D96 = "SINAPI", VLOOKUP(E96, 'SERVIÇOS SINAPI'!$A:$D, 4, 0), IF(D96 = "ORSE", VLOOKUP(E96, 'SERVIÇOS ORSE'!$A:$D, 4, 0), IF(D96 = "SEINFRA", VLOOKUP(E96, 'SERVIÇOS SEINFRA'!$A:$D, 4, 0)))), IF(C96="INSUMO", IF(D96 = "SINAPI", VLOOKUP(E96, 'INSUMOS SINAPI'!$A:$D, 4, 0), IF(D96 = "ORSE", VLOOKUP(E96, 'INSUMOS ORSE'!$A:$D, 4, 0), IF(D96 = "SEINFRA", VLOOKUP(E96,'INSUMOS SEINFRA'!$A:$D, 4, 0),))))) -> 6.11 | J96: =IF(C96 = "SERVIÇO", I96 * (1 + $I$8), IF(C96 = "INSUMO", (I96 * (1 + $K$8)))) -> 6.88 | K96: =J96*H96 -> 41.28 | L96: 4 | Q96: 0.0001
B97: 7.25 | C97: INSUMO | D97: SINAPI | E97: 20149 | F97: =IF(C97 = "SERVIÇO", IF(D97 = "SINAPI", VLOOKUP(E97, 'SERVIÇOS SINAPI'!$A:$D, 2, 0), IF(D97 = "ORSE", VLOOKUP(E97, 'SERVIÇOS ORSE'!$A:$D, 2, 0), IF(D97 = "SEINFRA", VLOOKUP(E97, 'SERVIÇOS SEINFRA'!$A:$D, 2, 0)))), IF(C97="INSUMO", IF(D97 = "SINAPI", VLOOKUP(E97, 'INSUMOS SINAPI'!$A:$D, 2, 0), IF(D97 = "ORSE", VLOOKUP(E97, 'INSUMOS ORSE'!$A:$D, 2, 0), IF(D97 = "SEINFRA", VLOOKUP(E97,'INSUMOS SEINFRA'!$A:$D, 2, 0),))))) -> JOELHO, PVC SERIE R, 45 GRAUS, DN 50 MM, PARA ESGOTO PREDIAL | G97: =IF(C97 = "SERVIÇO", IF(D97 = "SINAPI", VLOOKUP(E97, 'SERVIÇOS SINAPI'!$A:$D, 3, 0), IF(D97 = "ORSE", VLOOKUP(E97, 'SERVIÇOS ORSE'!$A:$D, 3, 0), IF(D97 = "SEINFRA", VLOOKUP(E97, 'SERVIÇOS SEINFRA'!$A:$D, 3, 0)))), IF(C97="INSUMO", IF(D97 = "SINAPI", VLOOKUP(E97, 'INSUMOS SINAPI'!$A:$D, 3, 0), IF(D97 = "ORSE", VLOOKUP(E97, 'INSUMOS ORSE'!$A:$D, 3, 0), IF(D97 = "SEINFRA", VLOOKUP(E97,'INSUMOS SEINFRA'!$A:$D, 3, 0),))))) -> UN | H97: 6 | I97: =IF(C97 = "SERVIÇO", IF(D97 = "SINAPI", VLOOKUP(E97, 'SERVIÇOS SINAPI'!$A:$D, 4, 0), IF(D97 = "ORSE", VLOOKUP(E97, 'SERVIÇOS ORSE'!$A:$D, 4, 0), IF(D97 = "SEINFRA", VLOOKUP(E97, 'SERVIÇOS SEINFRA'!$A:$D, 4, 0)))), IF(C97="INSUMO", IF(D97 = "SINAPI", VLOOKUP(E97, 'INSUMOS SINAPI'!$A:$D, 4, 0), IF(D97 = "ORSE", VLOOKUP(E97, 'INSUMOS ORSE'!$A:$D, 4, 0), IF(D97 = "SEINFRA", VLOOKUP(E97,'INSUMOS SEINFRA'!$A:$D, 4, 0),))))) -> 5.45 | J97: =IF(C97 = "SERVIÇO", I97 * (1 + $I$8), IF(C97 = "INSUMO", (I97 * (1 + $K$8)))) -> 6.14 | K97: =J97*H97 -> 36.84 | L97: 4 | Q97: 0.0001
B98: 7.26 | C98: INSUMO | D98: SINAPI | E98: 20150 | F98: =IF(C98 = "SERVIÇO", IF(D98 = "SINAPI", VLOOKUP(E98, 'SERVIÇOS SINAPI'!$A:$D, 2, 0), IF(D98 = "ORSE", VLOOKUP(E98, 'SERVIÇOS ORSE'!$A:$D, 2, 0), IF(D98 = "SEINFRA", VLOOKUP(E98, 'SERVIÇOS SEINFRA'!$A:$D, 2, 0)))), IF(C98="INSUMO", IF(D98 = "SINAPI", VLOOKUP(E98, 'INSUMOS SINAPI'!$A:$D, 2, 0), IF(D98 = "ORSE", VLOOKUP(E98, 'INSUMOS ORSE'!$A:$D, 2, 0), IF(D98 = "SEINFRA", VLOOKUP(E98,'INSUMOS SEINFRA'!$A:$D, 2, 0),))))) -> JOELHO, PVC SERIE R, 45 GRAUS, DN 75 MM, PARA ESGOTO PREDIAL | G98: =IF(C98 = "SERVIÇO", IF(D98 = "SINAPI", VLOOKUP(E98, 'SERVIÇOS SINAPI'!$A:$D, 3, 0), IF(D98 = "ORSE", VLOOKUP(E98, 'SERVIÇOS ORSE'!$A:$D, 3, 0), IF(D98 = "SEINFRA", VLOOKUP(E98, 'SERVIÇOS SEINFRA'!$A:$D, 3, 0)))), IF(C98="INSUMO", IF(D98 = "SINAPI", VLOOKUP(E98, 'INSUMOS SINAPI'!$A:$D, 3, 0), IF(D98 = "ORSE", VLOOKUP(E98, 'INSUMOS ORSE'!$A:$D, 3, 0), IF(D98 = "SEINFRA", VLOOKUP(E98,'INSUMOS SEINFRA'!$A:$D, 3, 0),))))) -> UN | H98: 4 | I98: =IF(C98 = "SERVIÇO", IF(D98 = "SINAPI", VLOOKUP(E98, 'SERVIÇOS SINAPI'!$A:$D, 4, 0), IF(D98 = "ORSE", VLOOKUP(E98, 'SERVIÇOS ORSE'!$A:$D, 4, 0), IF(D98 = "SEINFRA", VLOOKUP(E98, 'SERVIÇOS SEINFRA'!$A:$D, 4, 0)))), IF(C98="INSUMO", IF(D98 = "SINAPI", VLOOKUP(E98, 'INSUMOS SINAPI'!$A:$D, 4, 0), IF(D98 = "ORSE", VLOOKUP(E98, 'INSUMOS ORSE'!$A:$D, 4, 0), IF(D98 = "SEINFRA", VLOOKUP(E98,'INSUMOS SEINFRA'!$A:$D, 4, 0),))))) -> 14.06 | J98: =IF(C98 = "SERVIÇO", I98 * (1 + $I$8), IF(C98 = "INSUMO", (I98 * (1 + $K$8)))) -> 15.83 | K98: =J98*H98 -> 63.32 | L98: 4 | Q98: 0.0001
B99: 7.27 | C99: INSUMO | D99: SINAPI | E99: 20141 | F99: =IF(C99 = "SERVIÇO", IF(D99 = "SINAPI", VLOOKUP(E99, 'SERVIÇOS SINAPI'!$A:$D, 2, 0), IF(D99 = "ORSE", VLOOKUP(E99, 'SERVIÇOS ORSE'!$A:$D, 2, 0), IF(D99 = "SEINFRA", VLOOKUP(E99, 'SERVIÇOS SEINFRA'!$A:$D, 2, 0)))), IF(C99="INSUMO", IF(D99 = "SINAPI", VLOOKUP(E99, 'INSUMOS SINAPI'!$A:$D, 2, 0), IF(D99 = "ORSE", VLOOKUP(E99, 'INSUMOS ORSE'!$A:$D, 2, 0), IF(D99 = "SEINFRA", VLOOKUP(E99,'INSUMOS SEINFRA'!$A:$D, 2, 0),))))) -> JUNCAO SIMPLES, PVC SERIE R, DN 50 X 50 MM, PARA ESGOTO PREDIAL | G99: =IF(C99 = "SERVIÇO", IF(D99 = "SINAPI", VLOOKUP(E99, 'SERVIÇOS SINAPI'!$A:$D, 3, 0), IF(D99 = "ORSE", VLOOKUP(E99, 'SERVIÇOS ORSE'!$A:$D, 3, 0), IF(D99 = "SEINFRA", VLOOKUP(E99, 'SERVIÇOS SEINFRA'!$A:$D, 3, 0)))), IF(C99="INSUMO", IF(D99 = "SINAPI", VLOOKUP(E99, 'INSUMOS SINAPI'!$A:$D, 3, 0), IF(D99 = "ORSE", VLOOKUP(E99, 'INSUMOS ORSE'!$A:$D, 3, 0), IF(D99 = "SEINFRA", VLOOKUP(E99,'INSUMOS SEINFRA'!$A:$D, 3, 0),))))) -> UN | H99: 3 | I99: =IF(C99 = "SERVIÇO", IF(D99 = "SINAPI", VLOOKUP(E99, 'SERVIÇOS SINAPI'!$A:$D, 4, 0), IF(D99 = "ORSE", VLOOKUP(E99, 'SERVIÇOS ORSE'!$A:$D, 4, 0), IF(D99 = "SEINFRA", VLOOKUP(E99, 'SERVIÇOS SEINFRA'!$A:$D, 4, 0)))), IF(C99="INSUMO", IF(D99 = "SINAPI", VLOOKUP(E99, 'INSUMOS SINAPI'!$A:$D, 4, 0), IF(D99 = "ORSE", VLOOKUP(E99, 'INSUMOS ORSE'!$A:$D, 4, 0), IF(D99 = "SEINFRA", VLOOKUP(E99,'INSUMOS SEINFRA'!$A:$D, 4, 0),))))) -> 17.08 | J99: =IF(C99 = "SERVIÇO", I99 * (1 + $I$8), IF(C99 = "INSUMO", (I99 * (1 + $K$8)))) -> 19.24 | K99: =J99*H99 -> 57.72 | L99: 4 | Q99: 0.0001
B100: 7.28 | C100: INSUMO | D100: SINAPI | E100: 3669 | F100: =IF(C100 = "SERVIÇO", IF(D100 = "SINAPI", VLOOKUP(E100, 'SERVIÇOS SINAPI'!$A:$D, 2, 0), IF(D100 = "ORSE", VLOOKUP(E100, 'SERVIÇOS ORSE'!$A:$D, 2, 0), IF(D100 = "SEINFRA", VLOOKUP(E100, 'SERVIÇOS SEINFRA'!$A:$D, 2, 0)))), IF(C100="INSUMO", IF(D100 = "SINAPI", VLOOKUP(E100, 'INSUMOS SINAPI'!$A:$D, 2, 0), IF(D100 = "ORSE", VLOOKUP(E100, 'INSUMOS ORSE'!$A:$D, 2, 0), IF(D100 = "SEINFRA", VLOOKUP(E100,'INSUMOS SEINFRA'!$A:$D, 2, 0),))))) -> JUNCAO DE REDUCAO INVERTIDA, PVC SOLDAVEL, 75 X 50 MM, SERIE NORMAL PARA ESGOTO PREDIAL | G100: =IF(C100 = "SERVIÇO", IF(D100 = "SINAPI", VLOOKUP(E100, 'SERVIÇOS SINAPI'!$A:$D, 3, 0), IF(D100 = "ORSE", VLOOKUP(E100, 'SERVIÇOS ORSE'!$A:$D, 3, 0), IF(D100 = "SEINFRA", VLOOKUP(E100, 'SERVIÇOS SEINFRA'!$A:$D, 3, 0)))), IF(C100="INSUMO", IF(D100 = "SINAPI", VLOOKUP(E100, 'INSUMOS SINAPI'!$A:$D, 3, 0), IF(D100 = "ORSE", VLOOKUP(E100, 'INSUMOS ORSE'!$A:$D, 3, 0), IF(D100 = "SEINFRA", VLOOKUP(E100,'INSUMOS SEINFRA'!$A:$D, 3, 0),))))) -> UN | H100: 2 | I100: =IF(C100 = "SERVIÇO", IF(D100 = "SINAPI", VLOOKUP(E100, 'SERVIÇOS SINAPI'!$A:$D, 4, 0), IF(D100 = "ORSE", VLOOKUP(E100, 'SERVIÇOS ORSE'!$A:$D, 4, 0), IF(D100 = "SEINFRA", VLOOKUP(E100, 'SERVIÇOS SEINFRA'!$A:$D, 4, 0)))), IF(C100="INSUMO", IF(D100 = "SINAPI", VLOOKUP(E100, 'INSUMOS SINAPI'!$A:$D, 4, 0), IF(D100 = "ORSE", VLOOKUP(E100, 'INSUMOS ORSE'!$A:$D, 4, 0), IF(D100 = "SEINFRA", VLOOKUP(E100,'INSUMOS SEINFRA'!$A:$D, 4, 0),))))) -> 11.09 | J100: =IF(C100 = "SERVIÇO", I100 * (1 + $I$8), IF(C100 = "INSUMO", (I100 * (1 + $K$8)))) -> 12.49 | K100: =J100*H100 -> 24.98 | L100: 4 | Q100: 0
B101: 7.29 | C101: INSUMO | D101: SINAPI | E101: 20142 | F101: =IF(C101 = "SERVIÇO", IF(D101 = "SINAPI", VLOOKUP(E101, 'SERVIÇOS SINAPI'!$A:$D, 2, 0), IF(D101 = "ORSE", VLOOKUP(E101, 'SERVIÇOS ORSE'!$A:$D, 2, 0), IF(D101 = "SEINFRA", VLOOKUP(E101, 'SERVIÇOS SEINFRA'!$A:$D, 2, 0)))), IF(C101="INSUMO", IF(D101 = "SINAPI", VLOOKUP(E101, 'INSUMOS SINAPI'!$A:$D, 2, 0), IF(D101 = "ORSE", VLOOKUP(E101, 'INSUMOS ORSE'!$A:$D, 2, 0), IF(D101 = "SEINFRA", VLOOKUP(E101,'INSUMOS SEINFRA'!$A:$D, 2, 0),))))) -> JUNCAO SIMPLES, PVC SERIE R, DN 75 X 75 MM, PARA ESGOTO PREDIAL | G101: =IF(C101 = "SERVIÇO", IF(D101 = "SINAPI", VLOOKUP(E101, 'SERVIÇOS SINAPI'!$A:$D, 3, 0), IF(D101 = "ORSE", VLOOKUP(E101, 'SERVIÇOS ORSE'!$A:$D, 3, 0), IF(D101 = "SEINFRA", VLOOKUP(E101, 'SERVIÇOS SEINFRA'!$A:$D, 3, 0)))), IF(C101="INSUMO", IF(D101 = "SINAPI", VLOOKUP(E101, 'INSUMOS SINAPI'!$A:$D, 3, 0), IF(D101 = "ORSE", VLOOKUP(E101, 'INSUMOS ORSE'!$A:$D, 3, 0), IF(D101 = "SEINFRA", VLOOKUP(E101,'INSUMOS SEINFRA'!$A:$D, 3, 0),))))) -> UN | H101: 2 | I101: =IF(C101 = "SERVIÇO", IF(D101 = "SINAPI", VLOOKUP(E101, 'SERVIÇOS SINAPI'!$A:$D, 4, 0), IF(D101 = "ORSE", VLOOKUP(E101, 'SERVIÇOS ORSE'!$A:$D, 4, 0), IF(D101 = "SEINFRA", VLOOKUP(E101, 'SERVIÇOS SEINFRA'!$A:$D, 4, 0)))), IF(C101="INSUMO", IF(D101 = "SINAPI", VLOOKUP(E101, 'INSUMOS SINAPI'!$A:$D, 4, 0), IF(D101 = "ORSE", VLOOKUP(E101, 'INSUMOS ORSE'!$A:$D, 4, 0), IF(D101 = "SEINFRA", VLOOKUP(E101,'INSUMOS SEINFRA'!$A:$D, 4, 0),))))) -> 30.04 | J101: =IF(C101 = "SERVIÇO", I101 * (1 + $I$8), IF(C101 = "INSUMO", (I101 * (1 + $K$8)))) -> 33.83 | K101: =J101*H101 -> 67.66 | L101: 4 | Q101: 0.0001
B102: 7.30 | C102: INSUMO | D102: SINAPI | E102: 20042 | F102: =IF(C102 = "SERVIÇO", IF(D102 = "SINAPI", VLOOKUP(E102, 'SERVIÇOS SINAPI'!$A:$D, 2, 0), IF(D102 = "ORSE", VLOOKUP(E102, 'SERVIÇOS ORSE'!$A:$D, 2, 0), IF(D102 = "SEINFRA", VLOOKUP(E102, 'SERVIÇOS SEINFRA'!$A:$D, 2, 0)))), IF(C102="INSUMO", IF(D102 = "SINAPI", VLOOKUP(E102, 'INSUMOS SINAPI'!$A:$D, 2, 0), IF(D102 = "ORSE", VLOOKUP(E102, 'INSUMOS ORSE'!$A:$D, 2, 0), IF(D102 = "SEINFRA", VLOOKUP(E102,'INSUMOS SEINFRA'!$A:$D, 2, 0),))))) -> REDUCAO EXCENTRICA PVC, DN 75 X 50 MM, PARA ESGOTO PREDIAL | G102: =IF(C102 = "SERVIÇO", IF(D102 = "SINAPI", VLOOKUP(E102, 'SERVIÇOS SINAPI'!$A:$D, 3, 0), IF(D102 = "ORSE", VLOOKUP(E102, 'SERVIÇOS ORSE'!$A:$D, 3, 0), IF(D102 = "SEINFRA", VLOOKUP(E102, 'SERVIÇOS SEINFRA'!$A:$D, 3, 0)))), IF(C102="INSUMO", IF(D102 = "SINAPI", VLOOKUP(E102, 'INSUMOS SINAPI'!$A:$D, 3, 0), IF(D102 = "ORSE", VLOOKUP(E102, 'INSUMOS ORSE'!$A:$D, 3, 0), IF(D102 = "SEINFRA", VLOOKUP(E102,'INSUMOS SEINFRA'!$A:$D, 3, 0),))))) -> UN | H102: 4 | I102: =IF(C102 = "SERVIÇO", IF(D102 = "SINAPI", VLOOKUP(E102, 'SERVIÇOS SINAPI'!$A:$D, 4, 0), IF(D102 = "ORSE", VLOOKUP(E102, 'SERVIÇOS ORSE'!$A:$D, 4, 0), IF(D102 = "SEINFRA", VLOOKUP(E102, 'SERVIÇOS SEINFRA'!$A:$D, 4, 0)))), IF(C102="INSUMO", IF(D102 = "SINAPI", VLOOKUP(E102, 'INSUMOS SINAPI'!$A:$D, 4, 0), IF(D102 = "ORSE", VLOOKUP(E102, 'INSUMOS ORSE'!$A:$D, 4, 0), IF(D102 = "SEINFRA", VLOOKUP(E102,'INSUMOS SEINFRA'!$A:$D, 4, 0),))))) -> 6.33 | J102: 7.13 | K102: 28.52 | L102: 4 | Q102: 0.0001
B103: 7.31 | C103: INSUMO | D103: SINAPI | E103: 12909 | F103: =IF(C103 = "SERVIÇO", IF(D103 = "SINAPI", VLOOKUP(E103, 'SERVIÇOS SINAPI'!$A:$D, 2, 0), IF(D103 = "ORSE", VLOOKUP(E103, 'SERVIÇOS ORSE'!$A:$D, 2, 0), IF(D103 = "SEINFRA", VLOOKUP(E103, 'SERVIÇOS SEINFRA'!$A:$D, 2, 0)))), IF(C103="INSUMO", IF(D103 = "SINAPI", VLOOKUP(E103, 'INSUMOS SINAPI'!$A:$D, 2, 0), IF(D103 = "ORSE", VLOOKUP(E103, 'INSUMOS ORSE'!$A:$D, 2, 0), IF(D103 = "SEINFRA", VLOOKUP(E103,'INSUMOS SEINFRA'!$A:$D, 2, 0),))))) -> CAP PVC, SOLDAVEL, DN 50 MM, SERIE NORMAL, PARA ESGOTO PREDIAL | G103: =IF(C103 = "SERVIÇO", IF(D103 = "SINAPI", VLOOKUP(E103, 'SERVIÇOS SINAPI'!$A:$D, 3, 0), IF(D103 = "ORSE", VLOOKUP(E103, 'SERVIÇOS ORSE'!$A:$D, 3, 0), IF(D103 = "SEINFRA", VLOOKUP(E103, 'SERVIÇOS SEINFRA'!$A:$D, 3, 0)))), IF(C103="INSUMO", IF(D103 = "SINAPI", VLOOKUP(E103, 'INSUMOS SINAPI'!$A:$D, 3, 0), IF(D103 = "ORSE", VLOOKUP(E103, 'INSUMOS ORSE'!$A:$D, 3, 0), IF(D103 = "SEINFRA", VLOOKUP(E103,'INSUMOS SEINFRA'!$A:$D, 3, 0),))))) -> UN | H103: 1 | I103: =IF(C103 = "SERVIÇO", IF(D103 = "SINAPI", VLOOKUP(E103, 'SERVIÇOS SINAPI'!$A:$D, 4, 0), IF(D103 = "ORSE", VLOOKUP(E103, 'SERVIÇOS ORSE'!$A:$D, 4, 0), IF(D103 = "SEINFRA", VLOOKUP(E103, 'SERVIÇOS SEINFRA'!$A:$D, 4, 0)))), IF(C103="INSUMO", IF(D103 = "SINAPI", VLOOKUP(E103, 'INSUMOS SINAPI'!$A:$D, 4, 0), IF(D103 = "ORSE", VLOOKUP(E103, 'INSUMOS ORSE'!$A:$D, 4, 0), IF(D103 = "SEINFRA", VLOOKUP(E103,'INSUMOS SEINFRA'!$A:$D, 4, 0),))))) -> 3.64 | J103: =IF(C103 = "SERVIÇO", I103 * (1 + $I$8), IF(C103 = "INSUMO", (I103 * (1 + $K$8)))) -> 4.1 | K103: =J103*H103 -> 4.1 | L103: 4 | Q103: 0
B104: 7.32 | C104: INSUMO | D104: SINAPI | E104: 1370 | F104: =IF(C104 = "SERVIÇO", IF(D104 = "SINAPI", VLOOKUP(E104, 'SERVIÇOS SINAPI'!$A:$D, 2, 0), IF(D104 = "ORSE", VLOOKUP(E104, 'SERVIÇOS ORSE'!$A:$D, 2, 0), IF(D104 = "SEINFRA", VLOOKUP(E104, 'SERVIÇOS SEINFRA'!$A:$D, 2, 0)))), IF(C104="INSUMO", IF(D104 = "SINAPI", VLOOKUP(E104, 'INSUMOS SINAPI'!$A:$D, 2, 0), IF(D104 = "ORSE", VLOOKUP(E104, 'INSUMOS ORSE'!$A:$D, 2, 0), IF(D104 = "SEINFRA", VLOOKUP(E104,'INSUMOS SEINFRA'!$A:$D, 2, 0),))))) -> DUCHA HIGIENICA PLASTICA COM REGISTRO METALICO 1/2 " | G104: =IF(C104 = "SERVIÇO", IF(D104 = "SINAPI", VLOOKUP(E104, 'SERVIÇOS SINAPI'!$A:$D, 3, 0), IF(D104 = "ORSE", VLOOKUP(E104, 'SERVIÇOS ORSE'!$A:$D, 3, 0), IF(D104 = "SEINFRA", VLOOKUP(E104, 'SERVIÇOS SEINFRA'!$A:$D, 3, 0)))), IF(C104="INSUMO", IF(D104 = "SINAPI", VLOOKUP(E104, 'INSUMOS SINAPI'!$A:$D, 3, 0), IF(D104 = "ORSE", VLOOKUP(E104, 'INSUMOS ORSE'!$A:$D, 3, 0), IF(D104 = "SEINFRA", VLOOKUP(E104,'INSUMOS SEINFRA'!$A:$D, 3, 0),))))) -> UN | H104: 2 | I104: =IF(C104 = "SERVIÇO", IF(D104 = "SINAPI", VLOOKUP(E104, 'SERVIÇOS SINAPI'!$A:$D, 4, 0), IF(D104 = "ORSE", VLOOKUP(E104, 'SERVIÇOS ORSE'!$A:$D, 4, 0), IF(D104 = "SEINFRA", VLOOKUP(E104, 'SERVIÇOS SEINFRA'!$A:$D, 4, 0)))), IF(C104="INSUMO", IF(D104 = "SINAPI", VLOOKUP(E104, 'INSUMOS SINAPI'!$A:$D, 4, 0), IF(D104 = "ORSE", VLOOKUP(E104, 'INSUMOS ORSE'!$A:$D, 4, 0), IF(D104 = "SEINFRA", VLOOKUP(E104,'INSUMOS SEINFRA'!$A:$D, 4, 0),))))) -> 126.57 | J104: =IF(C104 = "SERVIÇO", I104 * (1 + $I$8), IF(C104 = "INSUMO", (I104 * (1 + $K$8)))) -> 142.54 | K104: =J104*H104 -> 285.08 | L104: 5 | Q104: 0.0005
B105: 7.33 | C105: INSUMO | D105: SINAPI | E105: 1368 | F105: =IF(C105 = "SERVIÇO", IF(D105 = "SINAPI", VLOOKUP(E105, 'SERVIÇOS SINAPI'!$A:$D, 2, 0), IF(D105 = "ORSE", VLOOKUP(E105, 'SERVIÇOS ORSE'!$A:$D, 2, 0), IF(D105 = "SEINFRA", VLOOKUP(E105, 'SERVIÇOS SEINFRA'!$A:$D, 2, 0)))), IF(C105="INSUMO", IF(D105 = "SINAPI", VLOOKUP(E105, 'INSUMOS SINAPI'!$A:$D, 2, 0), IF(D105 = "ORSE", VLOOKUP(E105, 'INSUMOS ORSE'!$A:$D, 2, 0), IF(D105 = "SEINFRA", VLOOKUP(E105,'INSUMOS SEINFRA'!$A:$D, 2, 0),))))) -> CHUVEIRO COMUM EM PLASTICO BRANCO, COM CANO, 3 TEMPERATURAS, 5500 W (110/220 V) | G105: =IF(C105 = "SERVIÇO", IF(D105 = "SINAPI", VLOOKUP(E105, 'SERVIÇOS SINAPI'!$A:$D, 3, 0), IF(D105 = "ORSE", VLOOKUP(E105, 'SERVIÇOS ORSE'!$A:$D, 3, 0), IF(D105 = "SEINFRA", VLOOKUP(E105, 'SERVIÇOS SEINFRA'!$A:$D, 3, 0)))), IF(C105="INSUMO", IF(D105 = "SINAPI", VLOOKUP(E105, 'INSUMOS SINAPI'!$A:$D, 3, 0), IF(D105 = "ORSE", VLOOKUP(E105, 'INSUMOS ORSE'!$A:$D, 3, 0), IF(D105 = "SEINFRA", VLOOKUP(E105,'INSUMOS SEINFRA'!$A:$D, 3, 0),))))) -> UN | H105: 2 | I105: =IF(C105 = "SERVIÇO", IF(D105 = "SINAPI", VLOOKUP(E105, 'SERVIÇOS SINAPI'!$A:$D, 4, 0), IF(D105 = "ORSE", VLOOKUP(E105, 'SERVIÇOS ORSE'!$A:$D, 4, 0), IF(D105 = "SEINFRA", VLOOKUP(E105, 'SERVIÇOS SEINFRA'!$A:$D, 4, 0)))), IF(C105="INSUMO", IF(D105 = "SINAPI", VLOOKUP(E105, 'INSUMOS SINAPI'!$A:$D, 4, 0), IF(D105 = "ORSE", VLOOKUP(E105, 'INSUMOS ORSE'!$A:$D, 4, 0), IF(D105 = "SEINFRA", VLOOKUP(E105,'INSUMOS SEINFRA'!$A:$D, 4, 0),))))) -> 92.95 | J105: =IF(C105 = "SERVIÇO", I105 * (1 + $I$8), IF(C105 = "INSUMO", (I105 * (1 + $K$8)))) -> 104.68 | K105: =J105*H105 -> 209.36 | L105: 4 | Q105: 0.0004
B106: 8 | C106: INSTALAÇÕES ELÉTRICAS | K106: =SUM(K107:K131) -> 48666.81
B107: 8.1 | C107: SERVIÇO | D107: ORSE | E107: 3278 | F107: =IF(C107 = "SERVIÇO", IF(D107 = "SINAPI", VLOOKUP(E107, 'SERVIÇOS SINAPI'!$A:$D, 2, 0), IF(D107 = "ORSE", VLOOKUP(E107, 'SERVIÇOS ORSE'!$A:$D, 2, 0), IF(D107 = "SEINFRA", VLOOKUP(E107, 'SERVIÇOS SEINFRA'!$A:$D, 2, 0)))), IF(C107="INSUMO", IF(D107 = "SINAPI", VLOOKUP(E107, 'INSUMOS SINAPI'!$A:$D, 2, 0), IF(D107 = "ORSE", VLOOKUP(E107, 'INSUMOS ORSE'!$A:$D, 2, 0), IF(D107 = "SEINFRA", VLOOKUP(E107,'INSUMOS SEINFRA'!$A:$D, 2, 0),))))) -> PONTO DE INTERRUPTOR 01 SEÇÃO (1 S) EMBUTIDO COM ELETRODUTO DE PVC FLEXÍVEL S ANFONADO Ø 3/4" | G107: =IF(C107 = "SERVIÇO", IF(D107 = "SINAPI", VLOOKUP(E107, 'SERVIÇOS SINAPI'!$A:$D, 3, 0), IF(D107 = "ORSE", VLOOKUP(E107, 'SERVIÇOS ORSE'!$A:$D, 3, 0), IF(D107 = "SEINFRA", VLOOKUP(E107, 'SERVIÇOS SEINFRA'!$A:$D, 3, 0)))), IF(C107="INSUMO", IF(D107 = "SINAPI", VLOOKUP(E107, 'INSUMOS SINAPI'!$A:$D, 3, 0), IF(D107 = "ORSE", VLOOKUP(E107, 'INSUMOS ORSE'!$A:$D, 3, 0), IF(D107 = "SEINFRA", VLOOKUP(E107,'INSUMOS SEINFRA'!$A:$D, 3, 0),))))) -> PT | H107: 25 | I107: =IF(C107 = "SERVIÇO", IF(D107 = "SINAPI", VLOOKUP(E107, 'SERVIÇOS SINAPI'!$A:$D, 4, 0), IF(D107 = "ORSE", VLOOKUP(E107, 'SERVIÇOS ORSE'!$A:$D, 4, 0), IF(D107 = "SEINFRA", VLOOKUP(E107, 'SERVIÇOS SEINFRA'!$A:$D, 4, 0)))), IF(C107="INSUMO", IF(D107 = "SINAPI", VLOOKUP(E107, 'INSUMOS SINAPI'!$A:$D, 4, 0), IF(D107 = "ORSE", VLOOKUP(E107, 'INSUMOS ORSE'!$A:$D, 4, 0), IF(D107 = "SEINFRA", VLOOKUP(E107,'INSUMOS SEINFRA'!$A:$D, 4, 0),))))) -> 186.93 | J107: =IF(C107 = "SERVIÇO", I107 * (1 + $I$8), IF(C107 = "INSUMO", (I107 * (1 + $K$8)))) -> 230.86 | K107: =J107*H107 -> 5771.5 | L107: 4 | Q107: =K107/$K$5 -> 0.0111
B108: 8.2 | C108: SERVIÇO | D108: ORSE | E108: 13158 | F108: =IF(C108 = "SERVIÇO", IF(D108 = "SINAPI", VLOOKUP(E108, 'SERVIÇOS SINAPI'!$A:$D, 2, 0), IF(D108 = "ORSE", VLOOKUP(E108, 'SERVIÇOS ORSE'!$A:$D, 2, 0), IF(D108 = "SEINFRA", VLOOKUP(E108, 'SERVIÇOS SEINFRA'!$A:$D, 2, 0)))), IF(C108="INSUMO", IF(D108 = "SINAPI", VLOOKUP(E108, 'INSUMOS SINAPI'!$A:$D, 2, 0), IF(D108 = "ORSE", VLOOKUP(E108, 'INSUMOS ORSE'!$A:$D, 2, 0), IF(D108 = "SEINFRA", VLOOKUP(E108,'INSUMOS SEINFRA'!$A:$D, 2, 0),))))) -> LUMINÁRIA PLAFON (SOBREPOR) 40 X 40 - 36 W - 6000K - G- LIGHT OU SIMILAR | G108: =IF(C108 = "SERVIÇO", IF(D108 = "SINAPI", VLOOKUP(E108, 'SERVIÇOS SINAPI'!$A:$D, 3, 0), IF(D108 = "ORSE", VLOOKUP(E108, 'SERVIÇOS ORSE'!$A:$D, 3, 0), IF(D108 = "SEINFRA", VLOOKUP(E108, 'SERVIÇOS SEINFRA'!$A:$D, 3, 0)))), IF(C108="INSUMO", IF(D108 = "SINAPI", VLOOKUP(E108, 'INSUMOS SINAPI'!$A:$D, 3, 0), IF(D108 = "ORSE", VLOOKUP(E108, 'INSUMOS ORSE'!$A:$D, 3, 0), IF(D108 = "SEINFRA", VLOOKUP(E108,'INSUMOS SEINFRA'!$A:$D, 3, 0),))))) -> UN | H108: 22 | I108: =IF(C108 = "SERVIÇO", IF(D108 = "SINAPI", VLOOKUP(E108, 'SERVIÇOS SINAPI'!$A:$D, 4, 0), IF(D108 = "ORSE", VLOOKUP(E108, 'SERVIÇOS ORSE'!$A:$D, 4, 0), IF(D108 = "SEINFRA", VLOOKUP(E108, 'SERVIÇOS SEINFRA'!$A:$D, 4, 0)))), IF(C108="INSUMO", IF(D108 = "SINAPI", VLOOKUP(E108, 'INSUMOS SINAPI'!$A:$D, 4, 0), IF(D108 = "ORSE", VLOOKUP(E108, 'INSUMOS ORSE'!$A:$D, 4, 0), IF(D108 = "SEINFRA", VLOOKUP(E108,'INSUMOS SEINFRA'!$A:$D, 4, 0),))))) -> 185.68 | J108: =IF(C108 = "SERVIÇO", I108 * (1 + $I$8), IF(C108 = "INSUMO", (I108 * (1 + $K$8)))) -> 229.31 | K108: =J108*H108 -> 5044.82 | L108: 7 | Q108: 0.0097
B109: 8.3 | C109: SERVIÇO | D109: ORSE | E109: 13157 | F109: =IF(C109 = "SERVIÇO", IF(D109 = "SINAPI", VLOOKUP(E109, 'SERVIÇOS SINAPI'!$A:$D, 2, 0), IF(D109 = "ORSE", VLOOKUP(E109, 'SERVIÇOS ORSE'!$A:$D, 2, 0), IF(D109 = "SEINFRA", VLOOKUP(E109, 'SERVIÇOS SEINFRA'!$A:$D, 2, 0)))), IF(C109="INSUMO", IF(D109 = "SINAPI", VLOOKUP(E109, 'INSUMOS SINAPI'!$A:$D, 2, 0), IF(D109 = "ORSE", VLOOKUP(E109, 'INSUMOS ORSE'!$A:$D, 2, 0), IF(D109 = "SEINFRA", VLOOKUP(E109,'INSUMOS SEINFRA'!$A:$D, 2, 0),))))) -> LUMINÁRIA PLAFON (SOBREPOR) 22,5 X 22,5 - 18 W - 6000K - G- LIGHT OU SIMILAR | G109: =IF(C109 = "SERVIÇO", IF(D109 = "SINAPI", VLOOKUP(E109, 'SERVIÇOS SINAPI'!$A:$D, 3, 0), IF(D109 = "ORSE", VLOOKUP(E109, 'SERVIÇOS ORSE'!$A:$D, 3, 0), IF(D109 = "SEINFRA", VLOOKUP(E109, 'SERVIÇOS SEINFRA'!$A:$D, 3, 0)))), IF(C109="INSUMO", IF(D109 = "SINAPI", VLOOKUP(E109, 'INSUMOS SINAPI'!$A:$D, 3, 0), IF(D109 = "ORSE", VLOOKUP(E109, 'INSUMOS ORSE'!$A:$D, 3, 0), IF(D109 = "SEINFRA", VLOOKUP(E109,'INSUMOS SEINFRA'!$A:$D, 3, 0),))))) -> UN | H109: 7 | I109: =IF(C109 = "SERVIÇO", IF(D109 = "SINAPI", VLOOKUP(E109, 'SERVIÇOS SINAPI'!$A:$D, 4, 0), IF(D109 = "ORSE", VLOOKUP(E109, 'SERVIÇOS ORSE'!$A:$D, 4, 0), IF(D109 = "SEINFRA", VLOOKUP(E109, 'SERVIÇOS SEINFRA'!$A:$D, 4, 0)))), IF(C109="INSUMO", IF(D109 = "SINAPI", VLOOKUP(E109, 'INSUMOS SINAPI'!$A:$D, 4, 0), IF(D109 = "ORSE", VLOOKUP(E109, 'INSUMOS ORSE'!$A:$D, 4, 0), IF(D109 = "SEINFRA", VLOOKUP(E109,'INSUMOS SEINFRA'!$A:$D, 4, 0),))))) -> 56.25 | J109: =IF(C109 = "SERVIÇO", I109 * (1 + $I$8), IF(C109 = "INSUMO", (I109 * (1 + $K$8)))) -> 69.47 | K109: =J109*H109 -> 486.29 | L109: 7 | Q109: 0.0009
B110: 8.4 | C110: SERVIÇO | D110: SINAPI | E110: 97608 | F110: =IF(C110 = "SERVIÇO", IF(D110 = "SINAPI", VLOOKUP(E110, 'SERVIÇOS SINAPI'!$A:$D, 2, 0), IF(D110 = "ORSE", VLOOKUP(E110, 'SERVIÇOS ORSE'!$A:$D, 2, 0), IF(D110 = "SEINFRA", VLOOKUP(E110, 'SERVIÇOS SEINFRA'!$A:$D, 2, 0)))), IF(C110="INSUMO", IF(D110 = "SINAPI", VLOOKUP(E110, 'INSUMOS SINAPI'!$A:$D, 2, 0), IF(D110 = "ORSE", VLOOKUP(E110, 'INSUMOS ORSE'!$A:$D, 2, 0), IF(D110 = "SEINFRA", VLOOKUP(E110,'INSUMOS SEINFRA'!$A:$D, 2, 0),))))) -> LUMINÁRIA ARANDELA TIPO TARTARUGA, COM GRADE, DE SOBREPOR, COM 1 LÂMPADA FLUORESCENTE DE 15 W, SEM REATOR - FORNECIMENTO E INSTALAÇÃO. AF_02/2020 | G110: =IF(C110 = "SERVIÇO", IF(D110 = "SINAPI", VLOOKUP(E110, 'SERVIÇOS SINAPI'!$A:$D, 3, 0), IF(D110 = "ORSE", VLOOKUP(E110, 'SERVIÇOS ORSE'!$A:$D, 3, 0), IF(D110 = "SEINFRA", VLOOKUP(E110, 'SERVIÇOS SEINFRA'!$A:$D, 3, 0)))), IF(C110="INSUMO", IF(D110 = "SINAPI", VLOOKUP(E110, 'INSUMOS SINAPI'!$A:$D, 3, 0), IF(D110 = "ORSE", VLOOKUP(E110, 'INSUMOS ORSE'!$A:$D, 3, 0), IF(D110 = "SEINFRA", VLOOKUP(E110,'INSUMOS SEINFRA'!$A:$D, 3, 0),))))) -> UN | H110: 4 | I110: =IF(C110 = "SERVIÇO", IF(D110 = "SINAPI", VLOOKUP(E110, 'SERVIÇOS SINAPI'!$A:$D, 4, 0), IF(D110 = "ORSE", VLOOKUP(E110, 'SERVIÇOS ORSE'!$A:$D, 4, 0), IF(D110 = "SEINFRA", VLOOKUP(E110, 'SERVIÇOS SEINFRA'!$A:$D, 4, 0)))), IF(C110="INSUMO", IF(D110 = "SINAPI", VLOOKUP(E110, 'INSUMOS SINAPI'!$A:$D, 4, 0), IF(D110 = "ORSE", VLOOKUP(E110, 'INSUMOS ORSE'!$A:$D, 4, 0), IF(D110 = "SEINFRA", VLOOKUP(E110,'INSUMOS SEINFRA'!$A:$D, 4, 0),))))) -> 118.91 | J110: 146.85 | K110: 587.4 | L110: 7 | Q110: 0.0011
B111: 8.5 | C111: SERVIÇO | D111: ORSE | E111: 3298 | F111: =IF(C111 = "SERVIÇO", IF(D111 = "SINAPI", VLOOKUP(E111, 'SERVIÇOS SINAPI'!$A:$D, 2, 0), IF(D111 = "ORSE", VLOOKUP(E111, 'SERVIÇOS ORSE'!$A:$D, 2, 0), IF(D111 = "SEINFRA", VLOOKUP(E111, 'SERVIÇOS SEINFRA'!$A:$D, 2, 0)))), IF(C111="INSUMO", IF(D111 = "SINAPI", VLOOKUP(E111, 'INSUMOS SINAPI'!$A:$D, 2, 0), IF(D111 = "ORSE", VLOOKUP(E111, 'INSUMOS ORSE'!$A:$D, 2, 0), IF(D111 = "SEINFRA", VLOOKUP(E111,'INSUMOS SEINFRA'!$A:$D, 2, 0),))))) -> PONTO DE TOMADA 2P+T, ABNT, DE EMBUTIR, 10 A, COM ELETRODUTO DE PVC FLEXÍVEL SANFONADO EMBUTIDO Ø 3/4", FIO RIGIDO 2,5MM² (FIO 12), INCLUSIVE PLACA EM PVC E ATERRAMENTO | G111: =IF(C111 = "SERVIÇO", IF(D111 = "SINAPI", VLOOKUP(E111, 'SERVIÇOS SINAPI'!$A:$D, 3, 0), IF(D111 = "ORSE", VLOOKUP(E111, 'SERVIÇOS ORSE'!$A:$D, 3, 0), IF(D111 = "SEINFRA", VLOOKUP(E111, 'SERVIÇOS SEINFRA'!$A:$D, 3, 0)))), IF(C111="INSUMO", IF(D111 = "SINAPI", VLOOKUP(E111, 'INSUMOS SINAPI'!$A:$D, 3, 0), IF(D111 = "ORSE", VLOOKUP(E111, 'INSUMOS ORSE'!$A:$D, 3, 0), IF(D111 = "SEINFRA", VLOOKUP(E111,'INSUMOS SEINFRA'!$A:$D, 3, 0),))))) -> PT | H111: 29 | I111: =IF(C111 = "SERVIÇO", IF(D111 = "SINAPI", VLOOKUP(E111, 'SERVIÇOS SINAPI'!$A:$D, 4, 0), IF(D111 = "ORSE", VLOOKUP(E111, 'SERVIÇOS ORSE'!$A:$D, 4, 0), IF(D111 = "SEINFRA", VLOOKUP(E111, 'SERVIÇOS SEINFRA'!$A:$D, 4, 0)))), IF(C111="INSUMO", IF(D111 = "SINAPI", VLOOKUP(E111, 'INSUMOS SINAPI'!$A:$D, 4, 0), IF(D111 = "ORSE", VLOOKUP(E111, 'INSUMOS ORSE'!$A:$D, 4, 0), IF(D111 = "SEINFRA", VLOOKUP(E111,'INSUMOS SEINFRA'!$A:$D, 4, 0),))))) -> 205.54 | J111: 253.84 | K111: 7361.36 | L111: 4 | Q111: 0.0141
B112: 8.6 | C112: SERVIÇO | D112: ORSE | E112: 8244 | F112: =IF(C112 = "SERVIÇO", IF(D112 = "SINAPI", VLOOKUP(E112, 'SERVIÇOS SINAPI'!$A:$D, 2, 0), IF(D112 = "ORSE", VLOOKUP(E112, 'SERVIÇOS ORSE'!$A:$D, 2, 0), IF(D112 = "SEINFRA", VLOOKUP(E112, 'SERVIÇOS SEINFRA'!$A:$D, 2, 0)))), IF(C112="INSUMO", IF(D112 = "SINAPI", VLOOKUP(E112, 'INSUMOS SINAPI'!$A:$D, 2, 0), IF(D112 = "ORSE", VLOOKUP(E112, 'INSUMOS ORSE'!$A:$D, 2, 0), IF(D112 = "SEINFRA", VLOOKUP(E112,'INSUMOS SEINFRA'!$A:$D, 2, 0),))))) -> PONTO DE TOMADA 2P+T, ABNT, DE EMBUTIR, 10 A, COM ELETRODUTO DE PVC FLEXÍVEL SANFONADO EMBUTIDO Ø 3/4", FIO RÍGIDO 4,0MM² (FIO 10), INCLUSIVE PLACA EM PVC E ATERRAMENTO | G112: =IF(C112 = "SERVIÇO", IF(D112 = "SINAPI", VLOOKUP(E112, 'SERVIÇOS SINAPI'!$A:$D, 3, 0), IF(D112 = "ORSE", VLOOKUP(E112, 'SERVIÇOS ORSE'!$A:$D, 3, 0), IF(D112 = "SEINFRA", VLOOKUP(E112, 'SERVIÇOS SEINFRA'!$A:$D, 3, 0)))), IF(C112="INSUMO", IF(D112 = "SINAPI", VLOOKUP(E112, 'INSUMOS SINAPI'!$A:$D, 3, 0), IF(D112 = "ORSE", VLOOKUP(E112, 'INSUMOS ORSE'!$A:$D, 3, 0), IF(D112 = "SEINFRA", VLOOKUP(E112,'INSUMOS SEINFRA'!$A:$D, 3, 0),))))) -> PT | H112: 5 | I112: =IF(C112 = "SERVIÇO", IF(D112 = "SINAPI", VLOOKUP(E112, 'SERVIÇOS SINAPI'!$A:$D, 4, 0), IF(D112 = "ORSE", VLOOKUP(E112, 'SERVIÇOS ORSE'!$A:$D, 4, 0), IF(D112 = "SEINFRA", VLOOKUP(E112, 'SERVIÇOS SEINFRA'!$A:$D, 4, 0)))), IF(C112="INSUMO", IF(D112 = "SINAPI", VLOOKUP(E112, 'INSUMOS SINAPI'!$A:$D, 4, 0), IF(D112 = "ORSE", VLOOKUP(E112, 'INSUMOS ORSE'!$A:$D, 4, 0), IF(D112 = "SEINFRA", VLOOKUP(E112,'INSUMOS SEINFRA'!$A:$D, 4, 0),))))) -> 228.4 | J112: 282.07 | K112: 1410.35 | L112: 4 | Q112: 0.0027
B113: 8.7 | C113: SERVIÇO | D113: SINAPI | E113: 91987 | F113: =IF(C113 = "SERVIÇO", IF(D113 = "SINAPI", VLOOKUP(E113, 'SERVIÇOS SINAPI'!$A:$D, 2, 0), IF(D113 = "ORSE", VLOOKUP(E113, 'SERVIÇOS ORSE'!$A:$D, 2, 0), IF(D113 = "SEINFRA", VLOOKUP(E113, 'SERVIÇOS SEINFRA'!$A:$D, 2, 0)))), IF(C113="INSUMO", IF(D113 = "SINAPI", VLOOKUP(E113, 'INSUMOS SINAPI'!$A:$D, 2, 0), IF(D113 = "ORSE", VLOOKUP(E113, 'INSUMOS ORSE'!$A:$D, 2, 0), IF(D113 = "SEINFRA", VLOOKUP(E113,'INSUMOS SEINFRA'!$A:$D, 2, 0),))))) -> CAMPAINHA CIGARRA (1 MÓDULO), 10A/250V, INCLUINDO SUPORTE E PLACA - FORNECIMENTO E INSTALAÇÃO. AF_03/2023 | G113: =IF(C113 = "SERVIÇO", IF(D113 = "SINAPI", VLOOKUP(E113, 'SERVIÇOS SINAPI'!$A:$D, 3, 0), IF(D113 = "ORSE", VLOOKUP(E113, 'SERVIÇOS ORSE'!$A:$D, 3, 0), IF(D113 = "SEINFRA", VLOOKUP(E113, 'SERVIÇOS SEINFRA'!$A:$D, 3, 0)))), IF(C113="INSUMO", IF(D113 = "SINAPI", VLOOKUP(E113, 'INSUMOS SINAPI'!$A:$D, 3, 0), IF(D113 = "ORSE", VLOOKUP(E113, 'INSUMOS ORSE'!$A:$D, 3, 0), IF(D113 = "SEINFRA", VLOOKUP(E113,'INSUMOS SEINFRA'!$A:$D, 3, 0),))))) -> UN | H113: 1 | I113: =IF(C113 = "SERVIÇO", IF(D113 = "SINAPI", VLOOKUP(E113, 'SERVIÇOS SINAPI'!$A:$D, 4, 0), IF(D113 = "ORSE", VLOOKUP(E113, 'SERVIÇOS ORSE'!$A:$D, 4, 0), IF(D113 = "SEINFRA", VLOOKUP(E113, 'SERVIÇOS SEINFRA'!$A:$D, 4, 0)))), IF(C113="INSUMO", IF(D113 = "SINAPI", VLOOKUP(E113, 'INSUMOS SINAPI'!$A:$D, 4, 0), IF(D113 = "ORSE", VLOOKUP(E113, 'INSUMOS ORSE'!$A:$D, 4, 0), IF(D113 = "SEINFRA", VLOOKUP(E113,'INSUMOS SEINFRA'!$A:$D, 4, 0),))))) -> 48 | J113: 59.28 | K113: 59.28 | L113: 4 | Q113: 0.0001
B114: 8.8 | C114: SERVIÇO | D114: SINAPI | E114: 91985 | F114: =IF(C114 = "SERVIÇO", IF(D114 = "SINAPI", VLOOKUP(E114, 'SERVIÇOS SINAPI'!$A:$D, 2, 0), IF(D114 = "ORSE", VLOOKUP(E114, 'SERVIÇOS ORSE'!$A:$D, 2, 0), IF(D114 = "SEINFRA", VLOOKUP(E114, 'SERVIÇOS SEINFRA'!$A:$D, 2, 0)))), IF(C114="INSUMO", IF(D114 = "SINAPI", VLOOKUP(E114, 'INSUMOS SINAPI'!$A:$D, 2, 0), IF(D114 = "ORSE", VLOOKUP(E114, 'INSUMOS ORSE'!$A:$D, 2, 0), IF(D114 = "SEINFRA", VLOOKUP(E114,'INSUMOS SEINFRA'!$A:$D, 2, 0),))))) -> INTERRUPTOR PULSADOR CAMPAINHA (1 MÓDULO), 10A/250V, INCLUINDO SUPORTE E PLACA - FORNECIMENTO E INSTALAÇÃO. AF_03/2023 | G114: =IF(C114 = "SERVIÇO", IF(D114 = "SINAPI", VLOOKUP(E114, 'SERVIÇOS SINAPI'!$A:$D, 3, 0), IF(D114 = "ORSE", VLOOKUP(E114, 'SERVIÇOS ORSE'!$A:$D, 3, 0), IF(D114 = "SEINFRA", VLOOKUP(E114, 'SERVIÇOS SEINFRA'!$A:$D, 3, 0)))), IF(C114="INSUMO", IF(D114 = "SINAPI", VLOOKUP(E114, 'INSUMOS SINAPI'!$A:$D, 3, 0), IF(D114 = "ORSE", VLOOKUP(E114, 'INSUMOS ORSE'!$A:$D, 3, 0), IF(D114 = "SEINFRA", VLOOKUP(E114,'INSUMOS SEINFRA'!$A:$D, 3, 0),))))) -> UN | H114: 1 | I114: =IF(C114 = "SERVIÇO", IF(D114 = "SINAPI", VLOOKUP(E114, 'SERVIÇOS SINAPI'!$A:$D, 4, 0), IF(D114 = "ORSE", VLOOKUP(E114, 'SERVIÇOS ORSE'!$A:$D, 4, 0), IF(D114 = "SEINFRA", VLOOKUP(E114, 'SERVIÇOS SEINFRA'!$A:$D, 4, 0)))), IF(C114="INSUMO", IF(D114 = "SINAPI", VLOOKUP(E114, 'INSUMOS SINAPI'!$A:$D, 4, 0), IF(D114 = "ORSE", VLOOKUP(E114, 'INSUMOS ORSE'!$A:$D, 4, 0), IF(D114 = "SEINFRA", VLOOKUP(E114,'INSUMOS SEINFRA'!$A:$D, 4, 0),))))) -> 28.12 | J114: 34.73 | K114: 34.73 | L114: 4 | Q114: 0.0001
B115: 8.9 | C115: SERVIÇO | D115: ORSE | E115: 9193 | F115: =IF(C115 = "SERVIÇO", IF(D115 = "SINAPI", VLOOKUP(E115, 'SERVIÇOS SINAPI'!$A:$D, 2, 0), IF(D115 = "ORSE", VLOOKUP(E115, 'SERVIÇOS ORSE'!$A:$D, 2, 0), IF(D115 = "SEINFRA", VLOOKUP(E115, 'SERVIÇOS SEINFRA'!$A:$D, 2, 0)))), IF(C115="INSUMO", IF(D115 = "SINAPI", VLOOKUP(E115, 'INSUMOS SINAPI'!$A:$D, 2, 0), IF(D115 = "ORSE", VLOOKUP(E115, 'INSUMOS ORSE'!$A:$D, 2, 0), IF(D115 = "SEINFRA", VLOOKUP(E115,'INSUMOS SEINFRA'!$A:$D, 2, 0),))))) -> ENTRADA DE ENERGIA ELÉTRICA MONOFÁSICA COM PONTALETE DE AÇO GALVANIZADO D=1 1 /2", FIXADO NO TELHADO | G115: =IF(C115 = "SERVIÇO", IF(D115 = "SINAPI", VLOOKUP(E115, 'SERVIÇOS SINAPI'!$A:$D, 3, 0), IF(D115 = "ORSE", VLOOKUP(E115, 'SERVIÇOS ORSE'!$A:$D, 3, 0), IF(D115 = "SEINFRA", VLOOKUP(E115, 'SERVIÇOS SEINFRA'!$A:$D, 3, 0)))), IF(C115="INSUMO", IF(D115 = "SINAPI", VLOOKUP(E115, 'INSUMOS SINAPI'!$A:$D, 3, 0), IF(D115 = "ORSE", VLOOKUP(E115, 'INSUMOS ORSE'!$A:$D, 3, 0), IF(D115 = "SEINFRA", VLOOKUP(E115,'INSUMOS SEINFRA'!$A:$D, 3, 0),))))) -> UN | H115: 1 | I115: =IF(C115 = "SERVIÇO", IF(D115 = "SINAPI", VLOOKUP(E115, 'SERVIÇOS SINAPI'!$A:$D, 4, 0), IF(D115 = "ORSE", VLOOKUP(E115, 'SERVIÇOS ORSE'!$A:$D, 4, 0), IF(D115 = "SEINFRA", VLOOKUP(E115, 'SERVIÇOS SEINFRA'!$A:$D, 4, 0)))), IF(C115="INSUMO", IF(D115 = "SINAPI", VLOOKUP(E115, 'INSUMOS SINAPI'!$A:$D, 4, 0), IF(D115 = "ORSE", VLOOKUP(E115, 'INSUMOS ORSE'!$A:$D, 4, 0), IF(D115 = "SEINFRA", VLOOKUP(E115,'INSUMOS SEINFRA'!$A:$D, 4, 0),))))) -> 253.94 | J115: =IF(C115 = "SERVIÇO", I115 * (1 + $I$8), IF(C115 = "INSUMO", (I115 * (1 + $K$8)))) -> 313.62 | K115: =J115*H115 -> 313.62 | L115: 2 | Q115: 0.0006
B116: 8.10 | C116: SERVIÇO | D116: SINAPI | E116: 96985 | F116: =IF(C116 = "SERVIÇO", IF(D116 = "SINAPI", VLOOKUP(E116, 'SERVIÇOS SINAPI'!$A:$D, 2, 0), IF(D116 = "ORSE", VLOOKUP(E116, 'SERVIÇOS ORSE'!$A:$D, 2, 0), IF(D116 = "SEINFRA", VLOOKUP(E116, 'SERVIÇOS SEINFRA'!$A:$D, 2, 0)))), IF(C116="INSUMO", IF(D116 = "SINAPI", VLOOKUP(E116, 'INSUMOS SINAPI'!$A:$D, 2, 0), IF(D116 = "ORSE", VLOOKUP(E116, 'INSUMOS ORSE'!$A:$D, 2, 0), IF(D116 = "SEINFRA", VLOOKUP(E116,'INSUMOS SEINFRA'!$A:$D, 2, 0),))))) -> HASTE DE ATERRAMENTO, DIÂMETRO 5/8", COM 3 METROS - FORNECIMENTO E INSTALAÇÃO. AF_08/2023 | G116: =IF(C116 = "SERVIÇO", IF(D116 = "SINAPI", VLOOKUP(E116, 'SERVIÇOS SINAPI'!$A:$D, 3, 0), IF(D116 = "ORSE", VLOOKUP(E116, 'SERVIÇOS ORSE'!$A:$D, 3, 0), IF(D116 = "SEINFRA", VLOOKUP(E116, 'SERVIÇOS SEINFRA'!$A:$D, 3, 0)))), IF(C116="INSUMO", IF(D116 = "SINAPI", VLOOKUP(E116, 'INSUMOS SINAPI'!$A:$D, 3, 0), IF(D116 = "ORSE", VLOOKUP(E116, 'INSUMOS ORSE'!$A:$D, 3, 0), IF(D116 = "SEINFRA", VLOOKUP(E116,'INSUMOS SEINFRA'!$A:$D, 3, 0),))))) -> UN | H116: 3 | I116: =IF(C116 = "SERVIÇO", IF(D116 = "SINAPI", VLOOKUP(E116, 'SERVIÇOS SINAPI'!$A:$D, 4, 0), IF(D116 = "ORSE", VLOOKUP(E116, 'SERVIÇOS ORSE'!$A:$D, 4, 0), IF(D116 = "SEINFRA", VLOOKUP(E116, 'SERVIÇOS SEINFRA'!$A:$D, 4, 0)))), IF(C116="INSUMO", IF(D116 = "SINAPI", VLOOKUP(E116, 'INSUMOS SINAPI'!$A:$D, 4, 0), IF(D116 = "ORSE", VLOOKUP(E116, 'INSUMOS ORSE'!$A:$D, 4, 0), IF(D116 = "SEINFRA", VLOOKUP(E116,'INSUMOS SEINFRA'!$A:$D, 4, 0),))))) -> 126.48 | J116: 156.2 | K116: 468.6 | L116: 5 | Q116: 0.0009
B117: 8.11 | C117: SERVIÇO | D117: SINAPI | E117: 98111 | F117: =IF(C117 = "SERVIÇO", IF(D117 = "SINAPI", VLOOKUP(E117, 'SERVIÇOS SINAPI'!$A:$D, 2, 0), IF(D117 = "ORSE", VLOOKUP(E117, 'SERVIÇOS ORSE'!$A:$D, 2, 0), IF(D117 = "SEINFRA", VLOOKUP(E117, 'SERVIÇOS SEINFRA'!$A:$D, 2, 0)))), IF(C117="INSUMO", IF(D117 = "SINAPI", VLOOKUP(E117, 'INSUMOS SINAPI'!$A:$D, 2, 0), IF(D117 = "ORSE", VLOOKUP(E117, 'INSUMOS ORSE'!$A:$D, 2, 0), IF(D117 = "SEINFRA", VLOOKUP(E117,'INSUMOS SEINFRA'!$A:$D, 2, 0),))))) -> CAIXA DE INSPEÇÃO PARA ATERRAMENTO, CIRCULAR, EM POLIETILENO, DIÂMETRO INTERNO = 0,3 M. AF_12/2020 | G117: =IF(C117 = "SERVIÇO", IF(D117 = "SINAPI", VLOOKUP(E117, 'SERVIÇOS SINAPI'!$A:$D, 3, 0), IF(D117 = "ORSE", VLOOKUP(E117, 'SERVIÇOS ORSE'!$A:$D, 3, 0), IF(D117 = "SEINFRA", VLOOKUP(E117, 'SERVIÇOS SEINFRA'!$A:$D, 3, 0)))), IF(C117="INSUMO", IF(D117 = "SINAPI", VLOOKUP(E117, 'INSUMOS SINAPI'!$A:$D, 3, 0), IF(D117 = "ORSE", VLOOKUP(E117, 'INSUMOS ORSE'!$A:$D, 3, 0), IF(D117 = "SEINFRA", VLOOKUP(E117,'INSUMOS SEINFRA'!$A:$D, 3, 0),))))) -> UN | H117: 6 | I117: =IF(C117 = "SERVIÇO", IF(D117 = "SINAPI", VLOOKUP(E117, 'SERVIÇOS SINAPI'!$A:$D, 4, 0), IF(D117 = "ORSE", VLOOKUP(E117, 'SERVIÇOS ORSE'!$A:$D, 4, 0), IF(D117 = "SEINFRA", VLOOKUP(E117, 'SERVIÇOS SEINFRA'!$A:$D, 4, 0)))), IF(C117="INSUMO", IF(D117 = "SINAPI", VLOOKUP(E117, 'INSUMOS SINAPI'!$A:$D, 4, 0), IF(D117 = "ORSE", VLOOKUP(E117, 'INSUMOS ORSE'!$A:$D, 4, 0), IF(D117 = "SEINFRA", VLOOKUP(E117,'INSUMOS SEINFRA'!$A:$D, 4, 0),))))) -> 44.67 | J117: 55.17 | K117: 331.02 | L117: 4 | Q117: 0.0006
B118: 8.12 | C118: SERVIÇO | D118: ORSE | E118: 12226 | F118: =IF(C118 = "SERVIÇO", IF(D118 = "SINAPI", VLOOKUP(E118, 'SERVIÇOS SINAPI'!$A:$D, 2, 0), IF(D118 = "ORSE", VLOOKUP(E118, 'SERVIÇOS ORSE'!$A:$D, 2, 0), IF(D118 = "SEINFRA", VLOOKUP(E118, 'SERVIÇOS SEINFRA'!$A:$D, 2, 0)))), IF(C118="INSUMO", IF(D118 = "SINAPI", VLOOKUP(E118, 'INSUMOS SINAPI'!$A:$D, 2, 0), IF(D118 = "ORSE", VLOOKUP(E118, 'INSUMOS ORSE'!$A:$D, 2, 0), IF(D118 = "SEINFRA", VLOOKUP(E118,'INSUMOS SEINFRA'!$A:$D, 2, 0),))))) -> QUADRO DE DISTRIBUIÇÃO DE EMBUTIR, EM CHAPA DE AÇO, PARA ATÉ 24 DISJUNTORES, COM BARRAMENTO, PADRÃO DIN, EXCLUSIVE DISJUNTORES - REV 01 03/2022 | G118: =IF(C118 = "SERVIÇO", IF(D118 = "SINAPI", VLOOKUP(E118, 'SERVIÇOS SINAPI'!$A:$D, 3, 0), IF(D118 = "ORSE", VLOOKUP(E118, 'SERVIÇOS ORSE'!$A:$D, 3, 0), IF(D118 = "SEINFRA", VLOOKUP(E118, 'SERVIÇOS SEINFRA'!$A:$D, 3, 0)))), IF(C118="INSUMO", IF(D118 = "SINAPI", VLOOKUP(E118, 'INSUMOS SINAPI'!$A:$D, 3, 0), IF(D118 = "ORSE", VLOOKUP(E118, 'INSUMOS ORSE'!$A:$D, 3, 0), IF(D118 = "SEINFRA", VLOOKUP(E118,'INSUMOS SEINFRA'!$A:$D, 3, 0),))))) -> UN | H118: 1 | I118: =IF(C118 = "SERVIÇO", IF(D118 = "SINAPI", VLOOKUP(E118, 'SERVIÇOS SINAPI'!$A:$D, 4, 0), IF(D118 = "ORSE", VLOOKUP(E118, 'SERVIÇOS ORSE'!$A:$D, 4, 0), IF(D118 = "SEINFRA", VLOOKUP(E118, 'SERVIÇOS SEINFRA'!$A:$D, 4, 0)))), IF(C118="INSUMO", IF(D118 = "SINAPI", VLOOKUP(E118, 'INSUMOS SINAPI'!$A:$D, 4, 0), IF(D118 = "ORSE", VLOOKUP(E118, 'INSUMOS ORSE'!$A:$D, 4, 0), IF(D118 = "SEINFRA", VLOOKUP(E118,'INSUMOS SEINFRA'!$A:$D, 4, 0),))))) -> 764.76 | J118: =IF(C118 = "SERVIÇO", I118 * (1 + $I$8), IF(C118 = "INSUMO", (I118 * (1 + $K$8)))) -> 944.48 | K118: =J118*H118 -> 944.48 | L118: 5 | Q118: 0.0018
B119: 8.13 | C119: SERVIÇO | D119: ORSE | E119: 12222 | F119: =IF(C119 = "SERVIÇO", IF(D119 = "SINAPI", VLOOKUP(E119, 'SERVIÇOS SINAPI'!$A:$D, 2, 0), IF(D119 = "ORSE", VLOOKUP(E119, 'SERVIÇOS ORSE'!$A:$D, 2, 0), IF(D119 = "SEINFRA", VLOOKUP(E119, 'SERVIÇOS SEINFRA'!$A:$D, 2, 0)))), IF(C119="INSUMO", IF(D119 = "SINAPI", VLOOKUP(E119, 'INSUMOS SINAPI'!$A:$D, 2, 0), IF(D119 = "ORSE", VLOOKUP(E119, 'INSUMOS ORSE'!$A:$D, 2, 0), IF(D119 = "SEINFRA", VLOOKUP(E119,'INSUMOS SEINFRA'!$A:$D, 2, 0),))))) -> QUADRO DE DISTRIBUIÇÃO DE EMBUTIR, EM CHAPA DE AÇO, PARA ATÉ 08 DISJUNTORES, COM BARRAMENTO, PADRÃO DIN, EXCLUSIVE DISJUNTORES | G119: =IF(C119 = "SERVIÇO", IF(D119 = "SINAPI", VLOOKUP(E119, 'SERVIÇOS SINAPI'!$A:$D, 3, 0), IF(D119 = "ORSE", VLOOKUP(E119, 'SERVIÇOS ORSE'!$A:$D, 3, 0), IF(D119 = "SEINFRA", VLOOKUP(E119, 'SERVIÇOS SEINFRA'!$A:$D, 3, 0)))), IF(C119="INSUMO", IF(D119 = "SINAPI", VLOOKUP(E119, 'INSUMOS SINAPI'!$A:$D, 3, 0), IF(D119 = "ORSE", VLOOKUP(E119, 'INSUMOS ORSE'!$A:$D, 3, 0), IF(D119 = "SEINFRA", VLOOKUP(E119,'INSUMOS SEINFRA'!$A:$D, 3, 0),))))) -> UN | H119: 1 | I119: =IF(C119 = "SERVIÇO", IF(D119 = "SINAPI", VLOOKUP(E119, 'SERVIÇOS SINAPI'!$A:$D, 4, 0), IF(D119 = "ORSE", VLOOKUP(E119, 'SERVIÇOS ORSE'!$A:$D, 4, 0), IF(D119 = "SEINFRA", VLOOKUP(E119, 'SERVIÇOS SEINFRA'!$A:$D, 4, 0)))), IF(C119="INSUMO", IF(D119 = "SINAPI", VLOOKUP(E119, 'INSUMOS SINAPI'!$A:$D, 4, 0), IF(D119 = "ORSE", VLOOKUP(E119, 'INSUMOS ORSE'!$A:$D, 4, 0), IF(D119 = "SEINFRA", VLOOKUP(E119,'INSUMOS SEINFRA'!$A:$D, 4, 0),))))) -> 137.8 | J119: =IF(C119 = "SERVIÇO", I119 * (1 + $I$8), IF(C119 = "INSUMO", (I119 * (1 + $K$8)))) -> 170.18 | K119: =J119*H119 -> 170.18 | L119: 5 | Q119: 0.0003
B120: 8.14 | C120: SERVIÇO | D120: SEINFRA | E120: C2065 | F120: =IF(C120 = "SERVIÇO", IF(D120 = "SINAPI", VLOOKUP(E120, 'SERVIÇOS SINAPI'!$A:$D, 2, 0), IF(D120 = "ORSE", VLOOKUP(E120, 'SERVIÇOS ORSE'!$A:$D, 2, 0), IF(D120 = "SEINFRA", VLOOKUP(E120, 'SERVIÇOS SEINFRA'!$A:$D, 2, 0)))), IF(C120="INSUMO", IF(D120 = "SINAPI", VLOOKUP(E120, 'INSUMOS SINAPI'!$A:$D, 2, 0), IF(D120 = "ORSE", VLOOKUP(E120, 'INSUMOS ORSE'!$A:$D, 2, 0), IF(D120 = "SEINFRA", VLOOKUP(E120,'INSUMOS SEINFRA'!$A:$D, 2, 0),))))) -> QUADRO DE COMANDO DE BOMBAS - COMPLETO | G120: =IF(C120 = "SERVIÇO", IF(D120 = "SINAPI", VLOOKUP(E120, 'SERVIÇOS SINAPI'!$A:$D, 3, 0), IF(D120 = "ORSE", VLOOKUP(E120, 'SERVIÇOS ORSE'!$A:$D, 3, 0), IF(D120 = "SEINFRA", VLOOKUP(E120, 'SERVIÇOS SEINFRA'!$A:$D, 3, 0)))), IF(C120="INSUMO", IF(D120 = "SINAPI", VLOOKUP(E120, 'INSUMOS SINAPI'!$A:$D, 3, 0), IF(D120 = "ORSE", VLOOKUP(E120, 'INSUMOS ORSE'!$A:$D, 3, 0), IF(D120 = "SEINFRA", VLOOKUP(E120,'INSUMOS SEINFRA'!$A:$D, 3, 0),))))) -> UN | H120: 1 | I120: =IF(C120 = "SERVIÇO", IF(D120 = "SINAPI", VLOOKUP(E120, 'SERVIÇOS SINAPI'!$A:$D, 4, 0), IF(D120 = "ORSE", VLOOKUP(E120, 'SERVIÇOS ORSE'!$A:$D, 4, 0), IF(D120 = "SEINFRA", VLOOKUP(E120, 'SERVIÇOS SEINFRA'!$A:$D, 4, 0)))), IF(C120="INSUMO", IF(D120 = "SINAPI", VLOOKUP(E120, 'INSUMOS SINAPI'!$A:$D, 4, 0), IF(D120 = "ORSE", VLOOKUP(E120, 'INSUMOS ORSE'!$A:$D, 4, 0), IF(D120 = "SEINFRA", VLOOKUP(E120,'INSUMOS SEINFRA'!$A:$D, 4, 0),))))) -> 421.88 | J120: =IF(C120 = "SERVIÇO", I120 * (1 + $I$8), IF(C120 = "INSUMO", (I120 * (1 + $K$8)))) -> 521.02 | K120: =J120*H120 -> 521.02 | L120: 5 | Q120: 0.001
B121: 8.15 | C121: SERVIÇO | D121: SINAPI | E121: 93653 | F121: =IF(C121 = "SERVIÇO", IF(D121 = "SINAPI", VLOOKUP(E121, 'SERVIÇOS SINAPI'!$A:$D, 2, 0), IF(D121 = "ORSE", VLOOKUP(E121, 'SERVIÇOS ORSE'!$A:$D, 2, 0), IF(D121 = "SEINFRA", VLOOKUP(E121, 'SERVIÇOS SEINFRA'!$A:$D, 2, 0)))), IF(C121="INSUMO", IF(D121 = "SINAPI", VLOOKUP(E121, 'INSUMOS SINAPI'!$A:$D, 2, 0), IF(D121 = "ORSE", VLOOKUP(E121, 'INSUMOS ORSE'!$A:$D, 2, 0), IF(D121 = "SEINFRA", VLOOKUP(E121,'INSUMOS SEINFRA'!$A:$D, 2, 0),))))) -> DISJUNTOR MONOPOLAR TIPO DIN, CORRENTE NOMINAL DE 10A - FORNECIMENTO E INSTALAÇÃO. AF_10/2020 | G121: =IF(C121 = "SERVIÇO", IF(D121 = "SINAPI", VLOOKUP(E121, 'SERVIÇOS SINAPI'!$A:$D, 3, 0), IF(D121 = "ORSE", VLOOKUP(E121, 'SERVIÇOS ORSE'!$A:$D, 3, 0), IF(D121 = "SEINFRA", VLOOKUP(E121, 'SERVIÇOS SEINFRA'!$A:$D, 3, 0)))), IF(C121="INSUMO", IF(D121 = "SINAPI", VLOOKUP(E121, 'INSUMOS SINAPI'!$A:$D, 3, 0), IF(D121 = "ORSE", VLOOKUP(E121, 'INSUMOS ORSE'!$A:$D, 3, 0), IF(D121 = "SEINFRA", VLOOKUP(E121,'INSUMOS SEINFRA'!$A:$D, 3, 0),))))) -> UN | H121: 9 | I121: =IF(C121 = "SERVIÇO", IF(D121 = "SINAPI", VLOOKUP(E121, 'SERVIÇOS SINAPI'!$A:$D, 4, 0), IF(D121 = "ORSE", VLOOKUP(E121, 'SERVIÇOS ORSE'!$A:$D, 4, 0), IF(D121 = "SEINFRA", VLOOKUP(E121, 'SERVIÇOS SEINFRA'!$A:$D, 4, 0)))), IF(C121="INSUMO", IF(D121 = "SINAPI", VLOOKUP(E121, 'INSUMOS SINAPI'!$A:$D, 4, 0), IF(D121 = "ORSE", VLOOKUP(E121, 'INSUMOS ORSE'!$A:$D, 4, 0), IF(D121 = "SEINFRA", VLOOKUP(E121,'INSUMOS SEINFRA'!$A:$D, 4, 0),))))) -> 14.51 | J121: 17.92 | K121: 161.28 | L121: 4 | Q121: 0.0003
B122: 8.16 | C122: SERVIÇO | D122: SINAPI | E122: 93654 | F122: =IF(C122 = "SERVIÇO", IF(D122 = "SINAPI", VLOOKUP(E122, 'SERVIÇOS SINAPI'!$A:$D, 2, 0), IF(D122 = "ORSE", VLOOKUP(E122, 'SERVIÇOS ORSE'!$A:$D, 2, 0), IF(D122 = "SEINFRA", VLOOKUP(E122, 'SERVIÇOS SEINFRA'!$A:$D, 2, 0)))), IF(C122="INSUMO", IF(D122 = "SINAPI", VLOOKUP(E122, 'INSUMOS SINAPI'!$A:$D, 2, 0), IF(D122 = "ORSE", VLOOKUP(E122, 'INSUMOS ORSE'!$A:$D, 2, 0), IF(D122 = "SEINFRA", VLOOKUP(E122,'INSUMOS SEINFRA'!$A:$D, 2, 0),))))) -> DISJUNTOR MONOPOLAR TIPO DIN, CORRENTE NOMINAL DE 16A - FORNECIMENTO E INSTALAÇÃO. AF_10/2020 | G122: =IF(C122 = "SERVIÇO", IF(D122 = "SINAPI", VLOOKUP(E122, 'SERVIÇOS SINAPI'!$A:$D, 3, 0), IF(D122 = "ORSE", VLOOKUP(E122, 'SERVIÇOS ORSE'!$A:$D, 3, 0), IF(D122 = "SEINFRA", VLOOKUP(E122, 'SERVIÇOS SEINFRA'!$A:$D, 3, 0)))), IF(C122="INSUMO", IF(D122 = "SINAPI", VLOOKUP(E122, 'INSUMOS SINAPI'!$A:$D, 3, 0), IF(D122 = "ORSE", VLOOKUP(E122, 'INSUMOS ORSE'!$A:$D, 3, 0), IF(D122 = "SEINFRA", VLOOKUP(E122,'INSUMOS SEINFRA'!$A:$D, 3, 0),))))) -> UN | H122: 10 | I122: =IF(C122 = "SERVIÇO", IF(D122 = "SINAPI", VLOOKUP(E122, 'SERVIÇOS SINAPI'!$A:$D, 4, 0), IF(D122 = "ORSE", VLOOKUP(E122, 'SERVIÇOS ORSE'!$A:$D, 4, 0), IF(D122 = "SEINFRA", VLOOKUP(E122, 'SERVIÇOS SEINFRA'!$A:$D, 4, 0)))), IF(C122="INSUMO", IF(D122 = "SINAPI", VLOOKUP(E122, 'INSUMOS SINAPI'!$A:$D, 4, 0), IF(D122 = "ORSE", VLOOKUP(E122, 'INSUMOS ORSE'!$A:$D, 4, 0), IF(D122 = "SEINFRA", VLOOKUP(E122,'INSUMOS SEINFRA'!$A:$D, 4, 0),))))) -> 15.09 | J122: 18.64 | K122: 186.4 | L122: 4 | Q122: 0.0004
B123: 8.17 | C123: SERVIÇO | D123: SINAPI | E123: 93655 | F123: =IF(C123 = "SERVIÇO", IF(D123 = "SINAPI", VLOOKUP(E123, 'SERVIÇOS SINAPI'!$A:$D, 2, 0), IF(D123 = "ORSE", VLOOKUP(E123, 'SERVIÇOS ORSE'!$A:$D, 2, 0), IF(D123 = "SEINFRA", VLOOKUP(E123, 'SERVIÇOS SEINFRA'!$A:$D, 2, 0)))), IF(C123="INSUMO", IF(D123 = "SINAPI", VLOOKUP(E123, 'INSUMOS SINAPI'!$A:$D, 2, 0), IF(D123 = "ORSE", VLOOKUP(E123, 'INSUMOS ORSE'!$A:$D, 2, 0), IF(D123 = "SEINFRA", VLOOKUP(E123,'INSUMOS SEINFRA'!$A:$D, 2, 0),))))) -> DISJUNTOR MONOPOLAR TIPO DIN, CORRENTE NOMINAL DE 20A - FORNECIMENTO E INSTALAÇÃO. AF_10/2020 | G123: =IF(C123 = "SERVIÇO", IF(D123 = "SINAPI", VLOOKUP(E123, 'SERVIÇOS SINAPI'!$A:$D, 3, 0), IF(D123 = "ORSE", VLOOKUP(E123, 'SERVIÇOS ORSE'!$A:$D, 3, 0), IF(D123 = "SEINFRA", VLOOKUP(E123, 'SERVIÇOS SEINFRA'!$A:$D, 3, 0)))), IF(C123="INSUMO", IF(D123 = "SINAPI", VLOOKUP(E123, 'INSUMOS SINAPI'!$A:$D, 3, 0), IF(D123 = "ORSE", VLOOKUP(E123, 'INSUMOS ORSE'!$A:$D, 3, 0), IF(D123 = "SEINFRA", VLOOKUP(E123,'INSUMOS SEINFRA'!$A:$D, 3, 0),))))) -> UN | H123: 1 | I123: =IF(C123 = "SERVIÇO", IF(D123 = "SINAPI", VLOOKUP(E123, 'SERVIÇOS SINAPI'!$A:$D, 4, 0), IF(D123 = "ORSE", VLOOKUP(E123, 'SERVIÇOS ORSE'!$A:$D, 4, 0), IF(D123 = "SEINFRA", VLOOKUP(E123, 'SERVIÇOS SEINFRA'!$A:$D, 4, 0)))), IF(C123="INSUMO", IF(D123 = "SINAPI", VLOOKUP(E123, 'INSUMOS SINAPI'!$A:$D, 4, 0), IF(D123 = "ORSE", VLOOKUP(E123, 'INSUMOS ORSE'!$A:$D, 4, 0), IF(D123 = "SEINFRA", VLOOKUP(E123,'INSUMOS SEINFRA'!$A:$D, 4, 0),))))) -> 16.4 | J123: 20.25 | K123: 20.25 | L123: 4 | Q123: 0
B124: 8.18 | C124: SERVIÇO | D124: ORSE | E124: 8941 | F124: =IF(C124 = "SERVIÇO", IF(D124 = "SINAPI", VLOOKUP(E124, 'SERVIÇOS SINAPI'!$A:$D, 2, 0), IF(D124 = "ORSE", VLOOKUP(E124, 'SERVIÇOS ORSE'!$A:$D, 2, 0), IF(D124 = "SEINFRA", VLOOKUP(E124, 'SERVIÇOS SEINFRA'!$A:$D, 2, 0)))), IF(C124="INSUMO", IF(D124 = "SINAPI", VLOOKUP(E124, 'INSUMOS SINAPI'!$A:$D, 2, 0), IF(D124 = "ORSE", VLOOKUP(E124, 'INSUMOS ORSE'!$A:$D, 2, 0), IF(D124 = "SEINFRA", VLOOKUP(E124,'INSUMOS SEINFRA'!$A:$D, 2, 0),))))) -> POSTE DE CONCRETO DUPLO T (DT) 6/150 - FORNECIMENTO E ASSENTAMENTO | G124: =IF(C124 = "SERVIÇO", IF(D124 = "SINAPI", VLOOKUP(E124, 'SERVIÇOS SINAPI'!$A:$D, 3, 0), IF(D124 = "ORSE", VLOOKUP(E124, 'SERVIÇOS ORSE'!$A:$D, 3, 0), IF(D124 = "SEINFRA", VLOOKUP(E124, 'SERVIÇOS SEINFRA'!$A:$D, 3, 0)))), IF(C124="INSUMO", IF(D124 = "SINAPI", VLOOKUP(E124, 'INSUMOS SINAPI'!$A:$D, 3, 0), IF(D124 = "ORSE", VLOOKUP(E124, 'INSUMOS ORSE'!$A:$D, 3, 0), IF(D124 = "SEINFRA", VLOOKUP(E124,'INSUMOS SEINFRA'!$A:$D, 3, 0),))))) -> UN | H124: 4 | I124: =IF(C124 = "SERVIÇO", IF(D124 = "SINAPI", VLOOKUP(E124, 'SERVIÇOS SINAPI'!$A:$D, 4, 0), IF(D124 = "ORSE", VLOOKUP(E124, 'SERVIÇOS ORSE'!$A:$D, 4, 0), IF(D124 = "SEINFRA", VLOOKUP(E124, 'SERVIÇOS SEINFRA'!$A:$D, 4, 0)))), IF(C124="INSUMO", IF(D124 = "SINAPI", VLOOKUP(E124, 'INSUMOS SINAPI'!$A:$D, 4, 0), IF(D124 = "ORSE", VLOOKUP(E124, 'INSUMOS ORSE'!$A:$D, 4, 0), IF(D124 = "SEINFRA", VLOOKUP(E124,'INSUMOS SEINFRA'!$A:$D, 4, 0),))))) -> 843.39 | J124: 1041.59 | K124: 4166.36 | L124: 3 | Q124: 0.008
B125: 8.19 | C125: SERVIÇO | D125: SINAPI | E125: 101659 | F125: =IF(C125 = "SERVIÇO", IF(D125 = "SINAPI", VLOOKUP(E125, 'SERVIÇOS SINAPI'!$A:$D, 2, 0), IF(D125 = "ORSE", VLOOKUP(E125, 'SERVIÇOS ORSE'!$A:$D, 2, 0), IF(D125 = "SEINFRA", VLOOKUP(E125, 'SERVIÇOS SEINFRA'!$A:$D, 2, 0)))), IF(C125="INSUMO", IF(D125 = "SINAPI", VLOOKUP(E125, 'INSUMOS SINAPI'!$A:$D, 2, 0), IF(D125 = "ORSE", VLOOKUP(E125, 'INSUMOS ORSE'!$A:$D, 2, 0), IF(D125 = "SEINFRA", VLOOKUP(E125,'INSUMOS SEINFRA'!$A:$D, 2, 0),))))) -> LUMINÁRIA DE LED PARA ILUMINAÇÃO PÚBLICA, DE 181 W ATÉ 239 W - FORNECIMENTO E INSTALAÇÃO. AF_08/2020 | G125: =IF(C125 = "SERVIÇO", IF(D125 = "SINAPI", VLOOKUP(E125, 'SERVIÇOS SINAPI'!$A:$D, 3, 0), IF(D125 = "ORSE", VLOOKUP(E125, 'SERVIÇOS ORSE'!$A:$D, 3, 0), IF(D125 = "SEINFRA", VLOOKUP(E125, 'SERVIÇOS SEINFRA'!$A:$D, 3, 0)))), IF(C125="INSUMO", IF(D125 = "SINAPI", VLOOKUP(E125, 'INSUMOS SINAPI'!$A:$D, 3, 0), IF(D125 = "ORSE", VLOOKUP(E125, 'INSUMOS ORSE'!$A:$D, 3, 0), IF(D125 = "SEINFRA", VLOOKUP(E125,'INSUMOS SEINFRA'!$A:$D, 3, 0),))))) -> UN | H125: 1 | I125: =IF(C125 = "SERVIÇO", IF(D125 = "SINAPI", VLOOKUP(E125, 'SERVIÇOS SINAPI'!$A:$D, 4, 0), IF(D125 = "ORSE", VLOOKUP(E125, 'SERVIÇOS ORSE'!$A:$D, 4, 0), IF(D125 = "SEINFRA", VLOOKUP(E125, 'SERVIÇOS SEINFRA'!$A:$D, 4, 0)))), IF(C125="INSUMO", IF(D125 = "SINAPI", VLOOKUP(E125, 'INSUMOS SINAPI'!$A:$D, 4, 0), IF(D125 = "ORSE", VLOOKUP(E125, 'INSUMOS ORSE'!$A:$D, 4, 0), IF(D125 = "SEINFRA", VLOOKUP(E125,'INSUMOS SEINFRA'!$A:$D, 4, 0),))))) -> 963.6 | J125: =IF(C125 = "SERVIÇO", I125 * (1 + $I$8), IF(C125 = "INSUMO", (I125 * (1 + $K$8)))) -> 1190.05 | K125: =J125*H125 -> 1190.05 | L125: 7 | Q125: 0.0023
B126: 8.20 | C126: SERVIÇO | D126: CODEVASF | E126: =CPU!$B$107 -> CPU 08 | F126: REDE DE DISTRIBUIÇÃO SECUNDÁRIA,CABO DE ALUMINIO 0,6/1KV MULTIPLEXADOS 3X1X25 +25MM², TENSÃO DE 380V, COM ESTRUTURA DE ALINHAMENTO EM POSTE DE CONCRETO ARMADO DUPLO T 150/9 (CONDUTOR INCLUSO E TRANSFORMADOR NÃO INCLUSOS) | G126: =CPU!$I$106 -> KM | H126: 0.32 | I126: =CPU!$I$123 -> 39486.43 | J126: =IF(C126 = "SERVIÇO", I126 * (1 + $I$8), IF(C126 = "INSUMO", (I126 * (1 + $K$8)))) -> 48765.74 | K126: =J126*H126 -> 15605.04 | L126: 5 | Q126: 0.0299
B127: 8.21 | C127: SERVIÇO | D127: SINAPI | E127: 91928 | F127: =IF(C127 = "SERVIÇO", IF(D127 = "SINAPI", VLOOKUP(E127, 'SERVIÇOS SINAPI'!$A:$D, 2, 0), IF(D127 = "ORSE", VLOOKUP(E127, 'SERVIÇOS ORSE'!$A:$D, 2, 0), IF(D127 = "SEINFRA", VLOOKUP(E127, 'SERVIÇOS SEINFRA'!$A:$D, 2, 0)))), IF(C127="INSUMO", IF(D127 = "SINAPI", VLOOKUP(E127, 'INSUMOS SINAPI'!$A:$D, 2, 0), IF(D127 = "ORSE", VLOOKUP(E127, 'INSUMOS ORSE'!$A:$D, 2, 0), IF(D127 = "SEINFRA", VLOOKUP(E127,'INSUMOS SEINFRA'!$A:$D, 2, 0),))))) -> CABO DE COBRE FLEXÍVEL ISOLADO, 4 MM², ANTI-CHAMA 450/750 V, PARA CIRCUITOS TERMINAIS - FORNECIMENTO E INSTALAÇÃO. AF_03/2023 | G127: =IF(C127 = "SERVIÇO", IF(D127 = "SINAPI", VLOOKUP(E127, 'SERVIÇOS SINAPI'!$A:$D, 3, 0), IF(D127 = "ORSE", VLOOKUP(E127, 'SERVIÇOS ORSE'!$A:$D, 3, 0), IF(D127 = "SEINFRA", VLOOKUP(E127, 'SERVIÇOS SEINFRA'!$A:$D, 3, 0)))), IF(C127="INSUMO", IF(D127 = "SINAPI", VLOOKUP(E127, 'INSUMOS SINAPI'!$A:$D, 3, 0), IF(D127 = "ORSE", VLOOKUP(E127, 'INSUMOS ORSE'!$A:$D, 3, 0), IF(D127 = "SEINFRA", VLOOKUP(E127,'INSUMOS SEINFRA'!$A:$D, 3, 0),))))) -> M | H127: 30 | I127: =IF(C127 = "SERVIÇO", IF(D127 = "SINAPI", VLOOKUP(E127, 'SERVIÇOS SINAPI'!$A:$D, 4, 0), IF(D127 = "ORSE", VLOOKUP(E127, 'SERVIÇOS ORSE'!$A:$D, 4, 0), IF(D127 = "SEINFRA", VLOOKUP(E127, 'SERVIÇOS SEINFRA'!$A:$D, 4, 0)))), IF(C127="INSUMO", IF(D127 = "SINAPI", VLOOKUP(E127, 'INSUMOS SINAPI'!$A:$D, 4, 0), IF(D127 = "ORSE", VLOOKUP(E127, 'INSUMOS ORSE'!$A:$D, 4, 0), IF(D127 = "SEINFRA", VLOOKUP(E127,'INSUMOS SEINFRA'!$A:$D, 4, 0),))))) -> 5.81 | J127: 7.18 | K127: 215.4 | L127: 5 | Q127: 0.0004
B128: 8.22 | C128: SERVIÇO | D128: SINAPI | E128: 91931 | F128: =IF(C128 = "SERVIÇO", IF(D128 = "SINAPI", VLOOKUP(E128, 'SERVIÇOS SINAPI'!$A:$D, 2, 0), IF(D128 = "ORSE", VLOOKUP(E128, 'SERVIÇOS ORSE'!$A:$D, 2, 0), IF(D128 = "SEINFRA", VLOOKUP(E128, 'SERVIÇOS SEINFRA'!$A:$D, 2, 0)))), IF(C128="INSUMO", IF(D128 = "SINAPI", VLOOKUP(E128, 'INSUMOS SINAPI'!$A:$D, 2, 0), IF(D128 = "ORSE", VLOOKUP(E128, 'INSUMOS ORSE'!$A:$D, 2, 0), IF(D128 = "SEINFRA", VLOOKUP(E128,'INSUMOS SEINFRA'!$A:$D, 2, 0),))))) -> CABO DE COBRE FLEXÍVEL ISOLADO, 6 MM², ANTI-CHAMA 0,6/1,0 KV, PARA CIRCUITOS TERMINAIS - FORNECIMENTO E INSTALAÇÃO. AF_03/2023 | G128: =IF(C128 = "SERVIÇO", IF(D128 = "SINAPI", VLOOKUP(E128, 'SERVIÇOS SINAPI'!$A:$D, 3, 0), IF(D128 = "ORSE", VLOOKUP(E128, 'SERVIÇOS ORSE'!$A:$D, 3, 0), IF(D128 = "SEINFRA", VLOOKUP(E128, 'SERVIÇOS SEINFRA'!$A:$D, 3, 0)))), IF(C128="INSUMO", IF(D128 = "SINAPI", VLOOKUP(E128, 'INSUMOS SINAPI'!$A:$D, 3, 0), IF(D128 = "ORSE", VLOOKUP(E128, 'INSUMOS ORSE'!$A:$D, 3, 0), IF(D128 = "SEINFRA", VLOOKUP(E128,'INSUMOS SEINFRA'!$A:$D, 3, 0),))))) -> M | H128: 30 | I128: =IF(C128 = "SERVIÇO", IF(D128 = "SINAPI", VLOOKUP(E128, 'SERVIÇOS SINAPI'!$A:$D, 4, 0), IF(D128 = "ORSE", VLOOKUP(E128, 'SERVIÇOS ORSE'!$A:$D, 4, 0), IF(D128 = "SEINFRA", VLOOKUP(E128, 'SERVIÇOS SEINFRA'!$A:$D, 4, 0)))), IF(C128="INSUMO", IF(D128 = "SINAPI", VLOOKUP(E128, 'INSUMOS SINAPI'!$A:$D, 4, 0), IF(D128 = "ORSE", VLOOKUP(E128, 'INSUMOS ORSE'!$A:$D, 4, 0), IF(D128 = "SEINFRA", VLOOKUP(E128,'INSUMOS SEINFRA'!$A:$D, 4, 0),))))) -> 8.72 | J128: =IF(C128 = "SERVIÇO", I128 * (1 + $I$8), IF(C128 = "INSUMO", (I128 * (1 + $K$8)))) -> 10.77 | K128: =J128*H128 -> 323.1 | L128: 5 | Q128: 0.0006
B129: 8.23 | C129: SERVIÇO | D129: SINAPI | E129: 97881 | F129: =IF(C129 = "SERVIÇO", IF(D129 = "SINAPI", VLOOKUP(E129, 'SERVIÇOS SINAPI'!$A:$D, 2, 0), IF(D129 = "ORSE", VLOOKUP(E129, 'SERVIÇOS ORSE'!$A:$D, 2, 0), IF(D129 = "SEINFRA", VLOOKUP(E129, 'SERVIÇOS SEINFRA'!$A:$D, 2, 0)))), IF(C129="INSUMO", IF(D129 = "SINAPI", VLOOKUP(E129, 'INSUMOS SINAPI'!$A:$D, 2, 0), IF(D129 = "ORSE", VLOOKUP(E129, 'INSUMOS ORSE'!$A:$D, 2, 0), IF(D129 = "SEINFRA", VLOOKUP(E129,'INSUMOS SEINFRA'!$A:$D, 2, 0),))))) -> CAIXA ENTERRADA ELÉTRICA RETANGULAR, EM CONCRETO PRÉ-MOLDADO, FUNDO COM BRITA, DIMENSÕES INTERNAS: 0,3X0,3X0,3 M. AF_12/2020 | G129: =IF(C129 = "SERVIÇO", IF(D129 = "SINAPI", VLOOKUP(E129, 'SERVIÇOS SINAPI'!$A:$D, 3, 0), IF(D129 = "ORSE", VLOOKUP(E129, 'SERVIÇOS ORSE'!$A:$D, 3, 0), IF(D129 = "SEINFRA", VLOOKUP(E129, 'SERVIÇOS SEINFRA'!$A:$D, 3, 0)))), IF(C129="INSUMO", IF(D129 = "SINAPI", VLOOKUP(E129, 'INSUMOS SINAPI'!$A:$D, 3, 0), IF(D129 = "ORSE", VLOOKUP(E129, 'INSUMOS ORSE'!$A:$D, 3, 0), IF(D129 = "SEINFRA", VLOOKUP(E129,'INSUMOS SEINFRA'!$A:$D, 3, 0),))))) -> UN | H129: 4 | I129: =IF(C129 = "SERVIÇO", IF(D129 = "SINAPI", VLOOKUP(E129, 'SERVIÇOS SINAPI'!$A:$D, 4, 0), IF(D129 = "ORSE", VLOOKUP(E129, 'SERVIÇOS ORSE'!$A:$D, 4, 0), IF(D129 = "SEINFRA", VLOOKUP(E129, 'SERVIÇOS SEINFRA'!$A:$D, 4, 0)))), IF(C129="INSUMO", IF(D129 = "SINAPI", VLOOKUP(E129, 'INSUMOS SINAPI'!$A:$D, 4, 0), IF(D129 = "ORSE", VLOOKUP(E129, 'INSUMOS ORSE'!$A:$D, 4, 0), IF(D129 = "SEINFRA", VLOOKUP(E129,'INSUMOS SEINFRA'!$A:$D, 4, 0),))))) -> 112.77 | J129: 139.27 | K129: 557.08 | L129: 2 | Q129: 0.0011
B130: 8.24 | C130: SERVIÇO | D130: SINAPI | E130: 93008 | F130: =IF(C130 = "SERVIÇO", IF(D130 = "SINAPI", VLOOKUP(E130, 'SERVIÇOS SINAPI'!$A:$D, 2, 0), IF(D130 = "ORSE", VLOOKUP(E130, 'SERVIÇOS ORSE'!$A:$D, 2, 0), IF(D130 = "SEINFRA", VLOOKUP(E130, 'SERVIÇOS SEINFRA'!$A:$D, 2, 0)))), IF(C130="INSUMO", IF(D130 = "SINAPI", VLOOKUP(E130, 'INSUMOS SINAPI'!$A:$D, 2, 0), IF(D130 = "ORSE", VLOOKUP(E130, 'INSUMOS ORSE'!$A:$D, 2, 0), IF(D130 = "SEINFRA", VLOOKUP(E130,'INSUMOS SEINFRA'!$A:$D, 2, 0),))))) -> ELETRODUTO RÍGIDO ROSCÁVEL, PVC, DN 50 MM (1 1/2"), PARA REDE ENTERRADA DE DISTRIBUIÇÃO DE ENERGIA ELÉTRICA - FORNECIMENTO E INSTALAÇÃO. AF_12/2021 | G130: =IF(C130 = "SERVIÇO", IF(D130 = "SINAPI", VLOOKUP(E130, 'SERVIÇOS SINAPI'!$A:$D, 3, 0), IF(D130 = "ORSE", VLOOKUP(E130, 'SERVIÇOS ORSE'!$A:$D, 3, 0), IF(D130 = "SEINFRA", VLOOKUP(E130, 'SERVIÇOS SEINFRA'!$A:$D, 3, 0)))), IF(C130="INSUMO", IF(D130 = "SINAPI", VLOOKUP(E130, 'INSUMOS SINAPI'!$A:$D, 3, 0), IF(D130 = "ORSE", VLOOKUP(E130, 'INSUMOS ORSE'!$A:$D, 3, 0), IF(D130 = "SEINFRA", VLOOKUP(E130,'INSUMOS SEINFRA'!$A:$D, 3, 0),))))) -> M | H130: 20 | I130: =IF(C130 = "SERVIÇO", IF(D130 = "SINAPI", VLOOKUP(E130, 'SERVIÇOS SINAPI'!$A:$D, 4, 0), IF(D130 = "ORSE", VLOOKUP(E130, 'SERVIÇOS ORSE'!$A:$D, 4, 0), IF(D130 = "SEINFRA", VLOOKUP(E130, 'SERVIÇOS SEINFRA'!$A:$D, 4, 0)))), IF(C130="INSUMO", IF(D130 = "SINAPI", VLOOKUP(E130, 'INSUMOS SINAPI'!$A:$D, 4, 0), IF(D130 = "ORSE", VLOOKUP(E130, 'INSUMOS ORSE'!$A:$D, 4, 0), IF(D130 = "SEINFRA", VLOOKUP(E130,'INSUMOS SEINFRA'!$A:$D, 4, 0),))))) -> 18.77 | J130: =IF(C130 = "SERVIÇO", I130 * (1 + $I$8), IF(C130 = "INSUMO", (I130 * (1 + $K$8)))) -> 23.18 | K130: =J130*H130 -> 463.6 | L130: 4 | Q130: 0.0009
B131: 8.25 | C131: INSUMO | D131: SINAPI | E131: 39258 | F131: =IF(C131 = "SERVIÇO", IF(D131 = "SINAPI", VLOOKUP(E131, 'SERVIÇOS SINAPI'!$A:$D, 2, 0), IF(D131 = "ORSE", VLOOKUP(E131, 'SERVIÇOS ORSE'!$A:$D, 2, 0), IF(D131 = "SEINFRA", VLOOKUP(E131, 'SERVIÇOS SEINFRA'!$A:$D, 2, 0)))), IF(C131="INSUMO", IF(D131 = "SINAPI", VLOOKUP(E131, 'INSUMOS SINAPI'!$A:$D, 2, 0), IF(D131 = "ORSE", VLOOKUP(E131, 'INSUMOS ORSE'!$A:$D, 2, 0), IF(D131 = "SEINFRA", VLOOKUP(E131,'INSUMOS SEINFRA'!$A:$D, 2, 0),))))) -> CABO MULTIPOLAR DE COBRE, FLEXIVEL, CLASSE 4 OU 5, ISOLACAO EM HEPR, COBERTURA EM PVC-ST2, ANTICHAMA BWF-B, 0,6/1 KV, 3 CONDUTORES DE 2,5 MM2 | G131: =IF(C131 = "SERVIÇO", IF(D131 = "SINAPI", VLOOKUP(E131, 'SERVIÇOS SINAPI'!$A:$D, 3, 0), IF(D131 = "ORSE", VLOOKUP(E131, 'SERVIÇOS ORSE'!$A:$D, 3, 0), IF(D131 = "SEINFRA", VLOOKUP(E131, 'SERVIÇOS SEINFRA'!$A:$D, 3, 0)))), IF(C131="INSUMO", IF(D131 = "SINAPI", VLOOKUP(E131, 'INSUMOS SINAPI'!$A:$D, 3, 0), IF(D131 = "ORSE", VLOOKUP(E131, 'INSUMOS ORSE'!$A:$D, 3, 0), IF(D131 = "SEINFRA", VLOOKUP(E131,'INSUMOS SEINFRA'!$A:$D, 3, 0),))))) -> M | H131: 280 | I131: =IF(C131 = "SERVIÇO", IF(D131 = "SINAPI", VLOOKUP(E131, 'SERVIÇOS SINAPI'!$A:$D, 4, 0), IF(D131 = "ORSE", VLOOKUP(E131, 'SERVIÇOS ORSE'!$A:$D, 4, 0), IF(D131 = "SEINFRA", VLOOKUP(E131, 'SERVIÇOS SEINFRA'!$A:$D, 4, 0)))), IF(C131="INSUMO", IF(D131 = "SINAPI", VLOOKUP(E131, 'INSUMOS SINAPI'!$A:$D, 4, 0), IF(D131 = "ORSE", VLOOKUP(E131, 'INSUMOS ORSE'!$A:$D, 4, 0), IF(D131 = "SEINFRA", VLOOKUP(E131,'INSUMOS SEINFRA'!$A:$D, 4, 0),))))) -> 7.21 | J131: =IF(C131 = "SERVIÇO", I131 * (1 + $I$8), IF(C131 = "INSUMO", (I131 * (1 + $K$8)))) -> 8.12 | K131: =J131*H131 -> 2273.6 | L131: 5 | Q131: 0.0044
B132: 9 | C132: URBANIZAÇÃO | K132: =SUM(K133:K139) -> 26532.35
B133: 9.1 | C133: SERVIÇO | D133: SEINFRA | E133: C0736 | F133: =IF(C133 = "SERVIÇO", IF(D133 = "SINAPI", VLOOKUP(E133, 'SERVIÇOS SINAPI'!$A:$D, 2, 0), IF(D133 = "ORSE", VLOOKUP(E133, 'SERVIÇOS ORSE'!$A:$D, 2, 0), IF(D133 = "SEINFRA", VLOOKUP(E133, 'SERVIÇOS SEINFRA'!$A:$D, 2, 0)))), IF(C133="INSUMO", IF(D133 = "SINAPI", VLOOKUP(E133, 'INSUMOS SINAPI'!$A:$D, 2, 0), IF(D133 = "ORSE", VLOOKUP(E133, 'INSUMOS ORSE'!$A:$D, 2, 0), IF(D133 = "SEINFRA", VLOOKUP(E133,'INSUMOS SEINFRA'!$A:$D, 2, 0),))))) -> CERCA C/ ESTACAS DE CONCRETO ARMADO (2,20 X 0,10 X 0,10M) E MOURÃO DE CONCRETO ARMADO (2,20 X 0,15 X 0,15M) - 8 FIOS DE ARAME FARPADO | G133: =IF(C133 = "SERVIÇO", IF(D133 = "SINAPI", VLOOKUP(E133, 'SERVIÇOS SINAPI'!$A:$D, 3, 0), IF(D133 = "ORSE", VLOOKUP(E133, 'SERVIÇOS ORSE'!$A:$D, 3, 0), IF(D133 = "SEINFRA", VLOOKUP(E133, 'SERVIÇOS SEINFRA'!$A:$D, 3, 0)))), IF(C133="INSUMO", IF(D133 = "SINAPI", VLOOKUP(E133, 'INSUMOS SINAPI'!$A:$D, 3, 0), IF(D133 = "ORSE", VLOOKUP(E133, 'INSUMOS ORSE'!$A:$D, 3, 0), IF(D133 = "SEINFRA", VLOOKUP(E133,'INSUMOS SEINFRA'!$A:$D, 3, 0),))))) -> M | H133: ='Memória de Cálculo'!$L$210 -> 122 | I133: =IF(C133 = "SERVIÇO", IF(D133 = "SINAPI", VLOOKUP(E133, 'SERVIÇOS SINAPI'!$A:$D, 4, 0), IF(D133 = "ORSE", VLOOKUP(E133, 'SERVIÇOS ORSE'!$A:$D, 4, 0), IF(D133 = "SEINFRA", VLOOKUP(E133, 'SERVIÇOS SEINFRA'!$A:$D, 4, 0)))), IF(C133="INSUMO", IF(D133 = "SINAPI", VLOOKUP(E133, 'INSUMOS SINAPI'!$A:$D, 4, 0), IF(D133 = "ORSE", VLOOKUP(E133, 'INSUMOS ORSE'!$A:$D, 4, 0), IF(D133 = "SEINFRA", VLOOKUP(E133,'INSUMOS SEINFRA'!$A:$D, 4, 0),))))) -> 69 | J133: =IF(C133 = "SERVIÇO", I133 * (1 + $I$8), IF(C133 = "INSUMO", (I133 * (1 + $K$8)))) -> 85.22 | K133: =J133*H133 -> 10396.84 | L133: 5 | Q133: =K133/$K$5 -> 0.0199
B134: 9.2 | C134: SERVIÇO | D134: SINAPI | E134: 92394 | F134: =IF(C134 = "SERVIÇO", IF(D134 = "SINAPI", VLOOKUP(E134, 'SERVIÇOS SINAPI'!$A:$D, 2, 0), IF(D134 = "ORSE", VLOOKUP(E134, 'SERVIÇOS ORSE'!$A:$D, 2, 0), IF(D134 = "SEINFRA", VLOOKUP(E134, 'SERVIÇOS SEINFRA'!$A:$D, 2, 0)))), IF(C134="INSUMO", IF(D134 = "SINAPI", VLOOKUP(E134, 'INSUMOS SINAPI'!$A:$D, 2, 0), IF(D134 = "ORSE", VLOOKUP(E134, 'INSUMOS ORSE'!$A:$D, 2, 0), IF(D134 = "SEINFRA", VLOOKUP(E134,'INSUMOS SEINFRA'!$A:$D, 2, 0),))))) -> EXECUÇÃO DE PAVIMENTO EM PISO INTERTRAVADO, COM BLOCO SEXTAVADO DE 25 X 25 CM, ESPESSURA 8 CM. AF_10/2022 | G134: =IF(C134 = "SERVIÇO", IF(D134 = "SINAPI", VLOOKUP(E134, 'SERVIÇOS SINAPI'!$A:$D, 3, 0), IF(D134 = "ORSE", VLOOKUP(E134, 'SERVIÇOS ORSE'!$A:$D, 3, 0), IF(D134 = "SEINFRA", VLOOKUP(E134, 'SERVIÇOS SEINFRA'!$A:$D, 3, 0)))), IF(C134="INSUMO", IF(D134 = "SINAPI", VLOOKUP(E134, 'INSUMOS SINAPI'!$A:$D, 3, 0), IF(D134 = "ORSE", VLOOKUP(E134, 'INSUMOS ORSE'!$A:$D, 3, 0), IF(D134 = "SEINFRA", VLOOKUP(E134,'INSUMOS SEINFRA'!$A:$D, 3, 0),))))) -> M² | H134: ='Memória de Cálculo'!$L$214 -> 28.97 | I134: =IF(C134 = "SERVIÇO", IF(D134 = "SINAPI", VLOOKUP(E134, 'SERVIÇOS SINAPI'!$A:$D, 4, 0), IF(D134 = "ORSE", VLOOKUP(E134, 'SERVIÇOS ORSE'!$A:$D, 4, 0), IF(D134 = "SEINFRA", VLOOKUP(E134, 'SERVIÇOS SEINFRA'!$A:$D, 4, 0)))), IF(C134="INSUMO", IF(D134 = "SINAPI", VLOOKUP(E134, 'INSUMOS SINAPI'!$A:$D, 4, 0), IF(D134 = "ORSE", VLOOKUP(E134, 'INSUMOS ORSE'!$A:$D, 4, 0), IF(D134 = "SEINFRA", VLOOKUP(E134,'INSUMOS SEINFRA'!$A:$D, 4, 0),))))) -> 73.74 | J134: =IF(C134 = "SERVIÇO", I134 * (1 + $I$8), IF(C134 = "INSUMO", (I134 * (1 + $K$8)))) -> 91.07 | K134: =J134*H134 -> 2638.3 | L134: 2 | Q134: 0.0051
B135: 9.3 | C135: SERVIÇO | D135: SINAPI | E135: 94263 | F135: =IF(C135 = "SERVIÇO", IF(D135 = "SINAPI", VLOOKUP(E135, 'SERVIÇOS SINAPI'!$A:$D, 2, 0), IF(D135 = "ORSE", VLOOKUP(E135, 'SERVIÇOS ORSE'!$A:$D, 2, 0), IF(D135 = "SEINFRA", VLOOKUP(E135, 'SERVIÇOS SEINFRA'!$A:$D, 2, 0)))), IF(C135="INSUMO", IF(D135 = "SINAPI", VLOOKUP(E135, 'INSUMOS SINAPI'!$A:$D, 2, 0), IF(D135 = "ORSE", VLOOKUP(E135, 'INSUMOS ORSE'!$A:$D, 2, 0), IF(D135 = "SEINFRA", VLOOKUP(E135,'INSUMOS SEINFRA'!$A:$D, 2, 0),))))) -> GUIA (MEIO-FIO) CONCRETO, MOLDADA IN LOCO EM TRECHO RETO COM EXTRUSORA, 13 CM BASE X 22 CM ALTURA. AF_01/2024 | G135: =IF(C135 = "SERVIÇO", IF(D135 = "SINAPI", VLOOKUP(E135, 'SERVIÇOS SINAPI'!$A:$D, 3, 0), IF(D135 = "ORSE", VLOOKUP(E135, 'SERVIÇOS ORSE'!$A:$D, 3, 0), IF(D135 = "SEINFRA", VLOOKUP(E135, 'SERVIÇOS SEINFRA'!$A:$D, 3, 0)))), IF(C135="INSUMO", IF(D135 = "SINAPI", VLOOKUP(E135, 'INSUMOS SINAPI'!$A:$D, 3, 0), IF(D135 = "ORSE", VLOOKUP(E135, 'INSUMOS ORSE'!$A:$D, 3, 0), IF(D135 = "SEINFRA", VLOOKUP(E135,'INSUMOS SEINFRA'!$A:$D, 3, 0),))))) -> M | H135: ='Memória de Cálculo'!$L$218 -> 19.45 | I135: =IF(C135 = "SERVIÇO", IF(D135 = "SINAPI", VLOOKUP(E135, 'SERVIÇOS SINAPI'!$A:$D, 4, 0), IF(D135 = "ORSE", VLOOKUP(E135, 'SERVIÇOS ORSE'!$A:$D, 4, 0), IF(D135 = "SEINFRA", VLOOKUP(E135, 'SERVIÇOS SEINFRA'!$A:$D, 4, 0)))), IF(C135="INSUMO", IF(D135 = "SINAPI", VLOOKUP(E135, 'INSUMOS SINAPI'!$A:$D, 4, 0), IF(D135 = "ORSE", VLOOKUP(E135, 'INSUMOS ORSE'!$A:$D, 4, 0), IF(D135 = "SEINFRA", VLOOKUP(E135,'INSUMOS SEINFRA'!$A:$D, 4, 0),))))) -> 31.77 | J135: =IF(C135 = "SERVIÇO", I135 * (1 + $I$8), IF(C135 = "INSUMO", (I135 * (1 + $K$8)))) -> 39.24 | K135: =J135*H135 -> 763.22 | L135: 2 | Q135: 0.0015
B136: 9.4 | C136: SERVIÇO | D136: ORSE | E136: 11146 | F136: =IF(C136 = "SERVIÇO", IF(D136 = "SINAPI", VLOOKUP(E136, 'SERVIÇOS SINAPI'!$A:$D, 2, 0), IF(D136 = "ORSE", VLOOKUP(E136, 'SERVIÇOS ORSE'!$A:$D, 2, 0), IF(D136 = "SEINFRA", VLOOKUP(E136, 'SERVIÇOS SEINFRA'!$A:$D, 2, 0)))), IF(C136="INSUMO", IF(D136 = "SINAPI", VLOOKUP(E136, 'INSUMOS SINAPI'!$A:$D, 2, 0), IF(D136 = "ORSE", VLOOKUP(E136, 'INSUMOS ORSE'!$A:$D, 2, 0), IF(D136 = "SEINFRA", VLOOKUP(E136,'INSUMOS SEINFRA'!$A:$D, 2, 0),))))) -> MURO EM ALVENARIA BLOCO CERÂMICO, E= 0,09M, C/ ALV DE PEDRA GRANÍTICA, 0,35 X 0,60M, COLUNAS (9X20CM) E CINTAMENTO (9X15CM) SUPERIOR E INFERIOR CONCRETO AR MADO FCK = 15,0 MPA CADA 3,00M, CHAPISCO E REBOCO | G136: =IF(C136 = "SERVIÇO", IF(D136 = "SINAPI", VLOOKUP(E136, 'SERVIÇOS SINAPI'!$A:$D, 3, 0), IF(D136 = "ORSE", VLOOKUP(E136, 'SERVIÇOS ORSE'!$A:$D, 3, 0), IF(D136 = "SEINFRA", VLOOKUP(E136, 'SERVIÇOS SEINFRA'!$A:$D, 3, 0)))), IF(C136="INSUMO", IF(D136 = "SINAPI", VLOOKUP(E136, 'INSUMOS SINAPI'!$A:$D, 3, 0), IF(D136 = "ORSE", VLOOKUP(E136, 'INSUMOS ORSE'!$A:$D, 3, 0), IF(D136 = "SEINFRA", VLOOKUP(E136,'INSUMOS SEINFRA'!$A:$D, 3, 0),))))) -> M² | H136: ='Memória de Cálculo'!$L$223 -> 26.3 | I136: =IF(C136 = "SERVIÇO", IF(D136 = "SINAPI", VLOOKUP(E136, 'SERVIÇOS SINAPI'!$A:$D, 4, 0), IF(D136 = "ORSE", VLOOKUP(E136, 'SERVIÇOS ORSE'!$A:$D, 4, 0), IF(D136 = "SEINFRA", VLOOKUP(E136, 'SERVIÇOS SEINFRA'!$A:$D, 4, 0)))), IF(C136="INSUMO", IF(D136 = "SINAPI", VLOOKUP(E136, 'INSUMOS SINAPI'!$A:$D, 4, 0), IF(D136 = "ORSE", VLOOKUP(E136, 'INSUMOS ORSE'!$A:$D, 4, 0), IF(D136 = "SEINFRA", VLOOKUP(E136,'INSUMOS SEINFRA'!$A:$D, 4, 0),))))) -> 209.03 | J136: =IF(C136 = "SERVIÇO", I136 * (1 + $I$8), IF(C136 = "INSUMO", (I136 * (1 + $K$8)))) -> 258.15 | K136: =J136*H136 -> 6789.35 | L136: 2 | Q136: 0.013
B137: 9.5 | C137: SERVIÇO | D137: SINAPI | E137: 88484 | F137: =IF(C137 = "SERVIÇO", IF(D137 = "SINAPI", VLOOKUP(E137, 'SERVIÇOS SINAPI'!$A:$D, 2, 0), IF(D137 = "ORSE", VLOOKUP(E137, 'SERVIÇOS ORSE'!$A:$D, 2, 0), IF(D137 = "SEINFRA", VLOOKUP(E137, 'SERVIÇOS SEINFRA'!$A:$D, 2, 0)))), IF(C137="INSUMO", IF(D137 = "SINAPI", VLOOKUP(E137, 'INSUMOS SINAPI'!$A:$D, 2, 0), IF(D137 = "ORSE", VLOOKUP(E137, 'INSUMOS ORSE'!$A:$D, 2, 0), IF(D137 = "SEINFRA", VLOOKUP(E137,'INSUMOS SEINFRA'!$A:$D, 2, 0),))))) -> FUNDO SELADOR ACRÍLICO, APLICAÇÃO MANUAL EM TETO, UMA DEMÃO. AF_04/2023 | G137: =IF(C137 = "SERVIÇO", IF(D137 = "SINAPI", VLOOKUP(E137, 'SERVIÇOS SINAPI'!$A:$D, 3, 0), IF(D137 = "ORSE", VLOOKUP(E137, 'SERVIÇOS ORSE'!$A:$D, 3, 0), IF(D137 = "SEINFRA", VLOOKUP(E137, 'SERVIÇOS SEINFRA'!$A:$D, 3, 0)))), IF(C137="INSUMO", IF(D137 = "SINAPI", VLOOKUP(E137, 'INSUMOS SINAPI'!$A:$D, 3, 0), IF(D137 = "ORSE", VLOOKUP(E137, 'INSUMOS ORSE'!$A:$D, 3, 0), IF(D137 = "SEINFRA", VLOOKUP(E137,'INSUMOS SEINFRA'!$A:$D, 3, 0),))))) -> M² | H137: ='Memória de Cálculo'!$L$226 -> 52.6 | I137: =IF(C137 = "SERVIÇO", IF(D137 = "SINAPI", VLOOKUP(E137, 'SERVIÇOS SINAPI'!$A:$D, 4, 0), IF(D137 = "ORSE", VLOOKUP(E137, 'SERVIÇOS ORSE'!$A:$D, 4, 0), IF(D137 = "SEINFRA", VLOOKUP(E137, 'SERVIÇOS SEINFRA'!$A:$D, 4, 0)))), IF(C137="INSUMO", IF(D137 = "SINAPI", VLOOKUP(E137, 'INSUMOS SINAPI'!$A:$D, 4, 0), IF(D137 = "ORSE", VLOOKUP(E137, 'INSUMOS ORSE'!$A:$D, 4, 0), IF(D137 = "SEINFRA", VLOOKUP(E137,'INSUMOS SEINFRA'!$A:$D, 4, 0),))))) -> 5.05 | J137: 6.24 | K137: 328.22 | L137: 2 | Q137: 0.0006
B138: 9.6 | C138: SERVIÇO | D138: SINAPI | E138: 88489 | F138: =IF(C138 = "SERVIÇO", IF(D138 = "SINAPI", VLOOKUP(E138, 'SERVIÇOS SINAPI'!$A:$D, 2, 0), IF(D138 = "ORSE", VLOOKUP(E138, 'SERVIÇOS ORSE'!$A:$D, 2, 0), IF(D138 = "SEINFRA", VLOOKUP(E138, 'SERVIÇOS SEINFRA'!$A:$D, 2, 0)))), IF(C138="INSUMO", IF(D138 = "SINAPI", VLOOKUP(E138, 'INSUMOS SINAPI'!$A:$D, 2, 0), IF(D138 = "ORSE", VLOOKUP(E138, 'INSUMOS ORSE'!$A:$D, 2, 0), IF(D138 = "SEINFRA", VLOOKUP(E138,'INSUMOS SEINFRA'!$A:$D, 2, 0),))))) -> PINTURA LÁTEX ACRÍLICA PREMIUM, APLICAÇÃO MANUAL EM PAREDES, DUAS DEMÃOS. AF_04/2023 | G138: =IF(C138 = "SERVIÇO", IF(D138 = "SINAPI", VLOOKUP(E138, 'SERVIÇOS SINAPI'!$A:$D, 3, 0), IF(D138 = "ORSE", VLOOKUP(E138, 'SERVIÇOS ORSE'!$A:$D, 3, 0), IF(D138 = "SEINFRA", VLOOKUP(E138, 'SERVIÇOS SEINFRA'!$A:$D, 3, 0)))), IF(C138="INSUMO", IF(D138 = "SINAPI", VLOOKUP(E138, 'INSUMOS SINAPI'!$A:$D, 3, 0), IF(D138 = "ORSE", VLOOKUP(E138, 'INSUMOS ORSE'!$A:$D, 3, 0), IF(D138 = "SEINFRA", VLOOKUP(E138,'INSUMOS SEINFRA'!$A:$D, 3, 0),))))) -> M² | H138: =H137 -> 52.6 | I138: =IF(C138 = "SERVIÇO", IF(D138 = "SINAPI", VLOOKUP(E138, 'SERVIÇOS SINAPI'!$A:$D, 4, 0), IF(D138 = "ORSE", VLOOKUP(E138, 'SERVIÇOS ORSE'!$A:$D, 4, 0), IF(D138 = "SEINFRA", VLOOKUP(E138, 'SERVIÇOS SEINFRA'!$A:$D, 4, 0)))), IF(C138="INSUMO", IF(D138 = "SINAPI", VLOOKUP(E138, 'INSUMOS SINAPI'!$A:$D, 4, 0), IF(D138 = "ORSE", VLOOKUP(E138, 'INSUMOS ORSE'!$A:$D, 4, 0), IF(D138 = "SEINFRA", VLOOKUP(E138,'INSUMOS SEINFRA'!$A:$D, 4, 0),))))) -> 13.15 | J138: 16.24 | K138: 854.22 | L138: 2 | Q138: 0.0016
B139: 9.7 | C139: SERVIÇO | D139: ORSE | E139: 10000 | F139: =IF(C139 = "SERVIÇO", IF(D139 = "SINAPI", VLOOKUP(E139, 'SERVIÇOS SINAPI'!$A:$D, 2, 0), IF(D139 = "ORSE", VLOOKUP(E139, 'SERVIÇOS ORSE'!$A:$D, 2, 0), IF(D139 = "SEINFRA", VLOOKUP(E139, 'SERVIÇOS SEINFRA'!$A:$D, 2, 0)))), IF(C139="INSUMO", IF(D139 = "SINAPI", VLOOKUP(E139, 'INSUMOS SINAPI'!$A:$D, 2, 0), IF(D139 = "ORSE", VLOOKUP(E139, 'INSUMOS ORSE'!$A:$D, 2, 0), IF(D139 = "SEINFRA", VLOOKUP(E139,'INSUMOS SEINFRA'!$A:$D, 2, 0),))))) -> PORTÃO EM TUBO FERRO GALVANIZADO, COM QUADRO Ø= 2", CANTONEIRA 1"X1" E TELA D E ARAME GALVANIZADO, FIO 12 BWG, MALHA QUADRADA D=1" | G139: =IF(C139 = "SERVIÇO", IF(D139 = "SINAPI", VLOOKUP(E139, 'SERVIÇOS SINAPI'!$A:$D, 3, 0), IF(D139 = "ORSE", VLOOKUP(E139, 'SERVIÇOS ORSE'!$A:$D, 3, 0), IF(D139 = "SEINFRA", VLOOKUP(E139, 'SERVIÇOS SEINFRA'!$A:$D, 3, 0)))), IF(C139="INSUMO", IF(D139 = "SINAPI", VLOOKUP(E139, 'INSUMOS SINAPI'!$A:$D, 3, 0), IF(D139 = "ORSE", VLOOKUP(E139, 'INSUMOS ORSE'!$A:$D, 3, 0), IF(D139 = "SEINFRA", VLOOKUP(E139,'INSUMOS SEINFRA'!$A:$D, 3, 0),))))) -> M² | H139: ='Memória de Cálculo'!$L$230 -> 10 | I139: =IF(C139 = "SERVIÇO", IF(D139 = "SINAPI", VLOOKUP(E139, 'SERVIÇOS SINAPI'!$A:$D, 4, 0), IF(D139 = "ORSE", VLOOKUP(E139, 'SERVIÇOS ORSE'!$A:$D, 4, 0), IF(D139 = "SEINFRA", VLOOKUP(E139, 'SERVIÇOS SEINFRA'!$A:$D, 4, 0)))), IF(C139="INSUMO", IF(D139 = "SINAPI", VLOOKUP(E139, 'INSUMOS SINAPI'!$A:$D, 4, 0), IF(D139 = "ORSE", VLOOKUP(E139, 'INSUMOS ORSE'!$A:$D, 4, 0), IF(D139 = "SEINFRA", VLOOKUP(E139,'INSUMOS SEINFRA'!$A:$D, 4, 0),))))) -> 385.6 | J139: =IF(C139 = "SERVIÇO", I139 * (1 + $I$8), IF(C139 = "INSUMO", (I139 * (1 + $K$8)))) -> 476.22 | K139: =J139*H139 -> 4762.2 | L139: 5 | Q139: 0.0091
B140: 10 | C140: ADUÇÃO, TRATAMENTO E RESERVAÇÃO | K140: =SUM(K141:K155) -> 38089.98
B141: 10.1 | C141: SERVIÇO | D141: SINAPI | E141: 90105 | F141: =IF(C141 = "SERVIÇO", IF(D141 = "SINAPI", VLOOKUP(E141, 'SERVIÇOS SINAPI'!$A:$D, 2, 0), IF(D141 = "ORSE", VLOOKUP(E141, 'SERVIÇOS ORSE'!$A:$D, 2, 0), IF(D141 = "SEINFRA", VLOOKUP(E141, 'SERVIÇOS SEINFRA'!$A:$D, 2, 0)))), IF(C141="INSUMO", IF(D141 = "SINAPI", VLOOKUP(E141, 'INSUMOS SINAPI'!$A:$D, 2, 0), IF(D141 = "ORSE", VLOOKUP(E141, 'INSUMOS ORSE'!$A:$D, 2, 0), IF(D141 = "SEINFRA", VLOOKUP(E141,'INSUMOS SEINFRA'!$A:$D, 2, 0),))))) -> ESCAVAÇÃO MECANIZADA DE VALA COM PROFUNDIDADE ATÉ 1,5 M (MÉDIA MONTANTE E JUSANTE/UMA COMPOSIÇÃO POR TRECHO), RETROESCAV. (0,26 M3), LARGURA MENOR QUE 0,8 M, EM SOLO DE 1A CATEGORIA, LOCAIS COM BAIXO NÍVEL DE INTERFERÊNCIA. AF_02/2021 | G141: =IF(C141 = "SERVIÇO", IF(D141 = "SINAPI", VLOOKUP(E141, 'SERVIÇOS SINAPI'!$A:$D, 3, 0), IF(D141 = "ORSE", VLOOKUP(E141, 'SERVIÇOS ORSE'!$A:$D, 3, 0), IF(D141 = "SEINFRA", VLOOKUP(E141, 'SERVIÇOS SEINFRA'!$A:$D, 3, 0)))), IF(C141="INSUMO", IF(D141 = "SINAPI", VLOOKUP(E141, 'INSUMOS SINAPI'!$A:$D, 3, 0), IF(D141 = "ORSE", VLOOKUP(E141, 'INSUMOS ORSE'!$A:$D, 3, 0), IF(D141 = "SEINFRA", VLOOKUP(E141,'INSUMOS SEINFRA'!$A:$D, 3, 0),))))) -> M³ | H141: ='Memória de Cálculo'!$L$234 -> 204 | I141: =IF(C141 = "SERVIÇO", IF(D141 = "SINAPI", VLOOKUP(E141, 'SERVIÇOS SINAPI'!$A:$D, 4, 0), IF(D141 = "ORSE", VLOOKUP(E141, 'SERVIÇOS ORSE'!$A:$D, 4, 0), IF(D141 = "SEINFRA", VLOOKUP(E141, 'SERVIÇOS SEINFRA'!$A:$D, 4, 0)))), IF(C141="INSUMO", IF(D141 = "SINAPI", VLOOKUP(E141, 'INSUMOS SINAPI'!$A:$D, 4, 0), IF(D141 = "ORSE", VLOOKUP(E141, 'INSUMOS ORSE'!$A:$D, 4, 0), IF(D141 = "SEINFRA", VLOOKUP(E141,'INSUMOS SEINFRA'!$A:$D, 4, 0),))))) -> 9.41 | J141: =IF(C141 = "SERVIÇO", I141 * (1 + $I$8), IF(C141 = "INSUMO", (I141 * (1 + $K$8)))) -> 11.62 | K141: =J141*H141 -> 2370.48 | L141: 1 | Q141: =K141/$K$5 -> 0.0045
B142: 10.2 | C142: SERVIÇO | D142: ORSE | E142: 12519 | F142: =IF(C142 = "SERVIÇO", IF(D142 = "SINAPI", VLOOKUP(E142, 'SERVIÇOS SINAPI'!$A:$D, 2, 0), IF(D142 = "ORSE", VLOOKUP(E142, 'SERVIÇOS ORSE'!$A:$D, 2, 0), IF(D142 = "SEINFRA", VLOOKUP(E142, 'SERVIÇOS SEINFRA'!$A:$D, 2, 0)))), IF(C142="INSUMO", IF(D142 = "SINAPI", VLOOKUP(E142, 'INSUMOS SINAPI'!$A:$D, 2, 0), IF(D142 = "ORSE", VLOOKUP(E142, 'INSUMOS ORSE'!$A:$D, 2, 0), IF(D142 = "SEINFRA", VLOOKUP(E142,'INSUMOS SEINFRA'!$A:$D, 2, 0),))))) -> ESCAVAÇÃO EM 3ª CATEGORIA COM ESCAVADEIRA HIDRÁULICA COM ROMPEDOR HIDRAÚLICO | G142: =IF(C142 = "SERVIÇO", IF(D142 = "SINAPI", VLOOKUP(E142, 'SERVIÇOS SINAPI'!$A:$D, 3, 0), IF(D142 = "ORSE", VLOOKUP(E142, 'SERVIÇOS ORSE'!$A:$D, 3, 0), IF(D142 = "SEINFRA", VLOOKUP(E142, 'SERVIÇOS SEINFRA'!$A:$D, 3, 0)))), IF(C142="INSUMO", IF(D142 = "SINAPI", VLOOKUP(E142, 'INSUMOS SINAPI'!$A:$D, 3, 0), IF(D142 = "ORSE", VLOOKUP(E142, 'INSUMOS ORSE'!$A:$D, 3, 0), IF(D142 = "SEINFRA", VLOOKUP(E142,'INSUMOS SEINFRA'!$A:$D, 3, 0),))))) -> M³ | H142: ='Memória de Cálculo'!$L$237 -> 36 | I142: =IF(C142 = "SERVIÇO", IF(D142 = "SINAPI", VLOOKUP(E142, 'SERVIÇOS SINAPI'!$A:$D, 4, 0), IF(D142 = "ORSE", VLOOKUP(E142, 'SERVIÇOS ORSE'!$A:$D, 4, 0), IF(D142 = "SEINFRA", VLOOKUP(E142, 'SERVIÇOS SEINFRA'!$A:$D, 4, 0)))), IF(C142="INSUMO", IF(D142 = "SINAPI", VLOOKUP(E142, 'INSUMOS SINAPI'!$A:$D, 4, 0), IF(D142 = "ORSE", VLOOKUP(E142, 'INSUMOS ORSE'!$A:$D, 4, 0), IF(D142 = "SEINFRA", VLOOKUP(E142,'INSUMOS SEINFRA'!$A:$D, 4, 0),))))) -> 59.6 | J142: =IF(C142 = "SERVIÇO", I142 * (1 + $I$8), IF(C142 = "INSUMO", (I142 * (1 + $K$8)))) -> 73.61 | K142: =J142*H142 -> 2649.96 | L142: 1 | Q142: 0.0051
B143: 10.3 | C143: SERVIÇO | D143: SINAPI | E143: 94342 | F143: =IF(C143 = "SERVIÇO", IF(D143 = "SINAPI", VLOOKUP(E143, 'SERVIÇOS SINAPI'!$A:$D, 2, 0), IF(D143 = "ORSE", VLOOKUP(E143, 'SERVIÇOS ORSE'!$A:$D, 2, 0), IF(D143 = "SEINFRA", VLOOKUP(E143, 'SERVIÇOS SEINFRA'!$A:$D, 2, 0)))), IF(C143="INSUMO", IF(D143 = "SINAPI", VLOOKUP(E143, 'INSUMOS SINAPI'!$A:$D, 2, 0), IF(D143 = "ORSE", VLOOKUP(E143, 'INSUMOS ORSE'!$A:$D, 2, 0), IF(D143 = "SEINFRA", VLOOKUP(E143,'INSUMOS SEINFRA'!$A:$D, 2, 0),))))) -> ATERRO MANUAL DE VALAS COM AREIA PARA ATERRO. AF_08/2023 | G143: =IF(C143 = "SERVIÇO", IF(D143 = "SINAPI", VLOOKUP(E143, 'SERVIÇOS SINAPI'!$A:$D, 3, 0), IF(D143 = "ORSE", VLOOKUP(E143, 'SERVIÇOS ORSE'!$A:$D, 3, 0), IF(D143 = "SEINFRA", VLOOKUP(E143, 'SERVIÇOS SEINFRA'!$A:$D, 3, 0)))), IF(C143="INSUMO", IF(D143 = "SINAPI", VLOOKUP(E143, 'INSUMOS SINAPI'!$A:$D, 3, 0), IF(D143 = "ORSE", VLOOKUP(E143, 'INSUMOS ORSE'!$A:$D, 3, 0), IF(D143 = "SEINFRA", VLOOKUP(E143,'INSUMOS SEINFRA'!$A:$D, 3, 0),))))) -> M³ | H143: ='Memória de Cálculo'!$L$240 -> 30 | I143: =IF(C143 = "SERVIÇO", IF(D143 = "SINAPI", VLOOKUP(E143, 'SERVIÇOS SINAPI'!$A:$D, 4, 0), IF(D143 = "ORSE", VLOOKUP(E143, 'SERVIÇOS ORSE'!$A:$D, 4, 0), IF(D143 = "SEINFRA", VLOOKUP(E143, 'SERVIÇOS SEINFRA'!$A:$D, 4, 0)))), IF(C143="INSUMO", IF(D143 = "SINAPI", VLOOKUP(E143, 'INSUMOS SINAPI'!$A:$D, 4, 0), IF(D143 = "ORSE", VLOOKUP(E143, 'INSUMOS ORSE'!$A:$D, 4, 0), IF(D143 = "SEINFRA", VLOOKUP(E143,'INSUMOS SEINFRA'!$A:$D, 4, 0),))))) -> 108.55 | J143: =IF(C143 = "SERVIÇO", I143 * (1 + $I$8), IF(C143 = "INSUMO", (I143 * (1 + $K$8)))) -> 134.06 | K143: =J143*H143 -> 4021.8 | L143: 1 | Q143: 0.0077
B144: 10.4 | C144: SERVIÇO | D144: SINAPI | E144: 104733 | F144: =IF(C144 = "SERVIÇO", IF(D144 = "SINAPI", VLOOKUP(E144, 'SERVIÇOS SINAPI'!$A:$D, 2, 0), IF(D144 = "ORSE", VLOOKUP(E144, 'SERVIÇOS ORSE'!$A:$D, 2, 0), IF(D144 = "SEINFRA", VLOOKUP(E144, 'SERVIÇOS SEINFRA'!$A:$D, 2, 0)))), IF(C144="INSUMO", IF(D144 = "SINAPI", VLOOKUP(E144, 'INSUMOS SINAPI'!$A:$D, 2, 0), IF(D144 = "ORSE", VLOOKUP(E144, 'INSUMOS ORSE'!$A:$D, 2, 0), IF(D144 = "SEINFRA", VLOOKUP(E144,'INSUMOS SEINFRA'!$A:$D, 2, 0),))))) -> REATERRO MECANIZADO DE VALA COM RETROESCAVADEIRA (CAPACIDADE DA CAÇAMBA DA RETRO: 0,26 M³/POTÊNCIA: 88 HP), LARGURA ATÉ 0,8 M, PROFUNDIDADE ATÉ 1,5 M, COM SOLO (SEM SUBSTITUIÇÃO) DE 1ª CATEGORIA, COM PLACA VIBRATÓRIA. AF_08/2023 | G144: =IF(C144 = "SERVIÇO", IF(D144 = "SINAPI", VLOOKUP(E144, 'SERVIÇOS SINAPI'!$A:$D, 3, 0), IF(D144 = "ORSE", VLOOKUP(E144, 'SERVIÇOS ORSE'!$A:$D, 3, 0), IF(D144 = "SEINFRA", VLOOKUP(E144, 'SERVIÇOS SEINFRA'!$A:$D, 3, 0)))), IF(C144="INSUMO", IF(D144 = "SINAPI", VLOOKUP(E144, 'INSUMOS SINAPI'!$A:$D, 3, 0), IF(D144 = "ORSE", VLOOKUP(E144, 'INSUMOS ORSE'!$A:$D, 3, 0), IF(D144 = "SEINFRA", VLOOKUP(E144,'INSUMOS SEINFRA'!$A:$D, 3, 0),))))) -> M³ | H144: ='Memória de Cálculo'!$L$243 -> 210 | I144: =IF(C144 = "SERVIÇO", IF(D144 = "SINAPI", VLOOKUP(E144, 'SERVIÇOS SINAPI'!$A:$D, 4, 0), IF(D144 = "ORSE", VLOOKUP(E144, 'SERVIÇOS ORSE'!$A:$D, 4, 0), IF(D144 = "SEINFRA", VLOOKUP(E144, 'SERVIÇOS SEINFRA'!$A:$D, 4, 0)))), IF(C144="INSUMO", IF(D144 = "SINAPI", VLOOKUP(E144, 'INSUMOS SINAPI'!$A:$D, 4, 0), IF(D144 = "ORSE", VLOOKUP(E144, 'INSUMOS ORSE'!$A:$D, 4, 0), IF(D144 = "SEINFRA", VLOOKUP(E144,'INSUMOS SEINFRA'!$A:$D, 4, 0),))))) -> 20.17 | J144: =IF(C144 = "SERVIÇO", I144 * (1 + $I$8), IF(C144 = "INSUMO", (I144 * (1 + $K$8)))) -> 24.91 | K144: =J144*H144 -> 5231.1 | L144: 1 | Q144: 0.01
B145: 10.5 | C145: SERVIÇO | D145: SINAPI | E145: 97124 | F145: =IF(C145 = "SERVIÇO", IF(D145 = "SINAPI", VLOOKUP(E145, 'SERVIÇOS SINAPI'!$A:$D, 2, 0), IF(D145 = "ORSE", VLOOKUP(E145, 'SERVIÇOS ORSE'!$A:$D, 2, 0), IF(D145 = "SEINFRA", VLOOKUP(E145, 'SERVIÇOS SEINFRA'!$A:$D, 2, 0)))), IF(C145="INSUMO", IF(D145 = "SINAPI", VLOOKUP(E145, 'INSUMOS SINAPI'!$A:$D, 2, 0), IF(D145 = "ORSE", VLOOKUP(E145, 'INSUMOS ORSE'!$A:$D, 2, 0), IF(D145 = "SEINFRA", VLOOKUP(E145,'INSUMOS SEINFRA'!$A:$D, 2, 0),))))) -> ASSENTAMENTO DE TUBO DE PVC PBA PARA REDE DE ÁGUA, DN 50 MM, JUNTA ELÁSTICA INTEGRADA, INSTALADO EM LOCAL COM NÍVEL BAIXO DE INTERFERÊNCIAS (NÃO INCLUI FORNECIMENTO). AF_11/2017 | G145: =IF(C145 = "SERVIÇO", IF(D145 = "SINAPI", VLOOKUP(E145, 'SERVIÇOS SINAPI'!$A:$D, 3, 0), IF(D145 = "ORSE", VLOOKUP(E145, 'SERVIÇOS ORSE'!$A:$D, 3, 0), IF(D145 = "SEINFRA", VLOOKUP(E145, 'SERVIÇOS SEINFRA'!$A:$D, 3, 0)))), IF(C145="INSUMO", IF(D145 = "SINAPI", VLOOKUP(E145, 'INSUMOS SINAPI'!$A:$D, 3, 0), IF(D145 = "ORSE", VLOOKUP(E145, 'INSUMOS ORSE'!$A:$D, 3, 0), IF(D145 = "SEINFRA", VLOOKUP(E145,'INSUMOS SEINFRA'!$A:$D, 3, 0),))))) -> M | H145: 500 | I145: =IF(C145 = "SERVIÇO", IF(D145 = "SINAPI", VLOOKUP(E145, 'SERVIÇOS SINAPI'!$A:$D, 4, 0), IF(D145 = "ORSE", VLOOKUP(E145, 'SERVIÇOS ORSE'!$A:$D, 4, 0), IF(D145 = "SEINFRA", VLOOKUP(E145, 'SERVIÇOS SEINFRA'!$A:$D, 4, 0)))), IF(C145="INSUMO", IF(D145 = "SINAPI", VLOOKUP(E145, 'INSUMOS SINAPI'!$A:$D, 4, 0), IF(D145 = "ORSE", VLOOKUP(E145, 'INSUMOS ORSE'!$A:$D, 4, 0), IF(D145 = "SEINFRA", VLOOKUP(E145,'INSUMOS SEINFRA'!$A:$D, 4, 0),))))) -> 0.84 | J145: =IF(C145 = "SERVIÇO", I145 * (1 + $I$8), IF(C145 = "INSUMO", (I145 * (1 + $K$8)))) -> 1.04 | K145: =J145*H145 -> 520 | L145: 6 | Q145: 0.001
B146: 10.6 | C146: SERVIÇO | D146: ORSE | E146: 10203 | F146: =IF(C146 = "SERVIÇO", IF(D146 = "SINAPI", VLOOKUP(E146, 'SERVIÇOS SINAPI'!$A:$D, 2, 0), IF(D146 = "ORSE", VLOOKUP(E146, 'SERVIÇOS ORSE'!$A:$D, 2, 0), IF(D146 = "SEINFRA", VLOOKUP(E146, 'SERVIÇOS SEINFRA'!$A:$D, 2, 0)))), IF(C146="INSUMO", IF(D146 = "SINAPI", VLOOKUP(E146, 'INSUMOS SINAPI'!$A:$D, 2, 0), IF(D146 = "ORSE", VLOOKUP(E146, 'INSUMOS ORSE'!$A:$D, 2, 0), IF(D146 = "SEINFRA", VLOOKUP(E146,'INSUMOS SEINFRA'!$A:$D, 2, 0),))))) -> RESERVATORIO ELEVADO C/ CAIXA D'AGUA EM FIBRA DE VIDRO DE 5.000 LITROS APOIAD O EM ESTRUTURA PRE-MOLDADA CONCRETO, COMPOSTA DE CAPITEL P/APOIO DA CAIXA E P ILAR CILINDRICO C/ALTURA UTIL = 6,00M, INCLUSO FRETE E MONTAGEM NO LOCAL, EXC ETO INST.HIDRAULICA | G146: =IF(C146 = "SERVIÇO", IF(D146 = "SINAPI", VLOOKUP(E146, 'SERVIÇOS SINAPI'!$A:$D, 3, 0), IF(D146 = "ORSE", VLOOKUP(E146, 'SERVIÇOS ORSE'!$A:$D, 3, 0), IF(D146 = "SEINFRA", VLOOKUP(E146, 'SERVIÇOS SEINFRA'!$A:$D, 3, 0)))), IF(C146="INSUMO", IF(D146 = "SINAPI", VLOOKUP(E146, 'INSUMOS SINAPI'!$A:$D, 3, 0), IF(D146 = "ORSE", VLOOKUP(E146, 'INSUMOS ORSE'!$A:$D, 3, 0), IF(D146 = "SEINFRA", VLOOKUP(E146,'INSUMOS SEINFRA'!$A:$D, 3, 0),))))) -> UN | H146: 1 | I146: =IF(C146 = "SERVIÇO", IF(D146 = "SINAPI", VLOOKUP(E146, 'SERVIÇOS SINAPI'!$A:$D, 4, 0), IF(D146 = "ORSE", VLOOKUP(E146, 'SERVIÇOS ORSE'!$A:$D, 4, 0), IF(D146 = "SEINFRA", VLOOKUP(E146, 'SERVIÇOS SEINFRA'!$A:$D, 4, 0)))), IF(C146="INSUMO", IF(D146 = "SINAPI", VLOOKUP(E146, 'INSUMOS SINAPI'!$A:$D, 4, 0), IF(D146 = "ORSE", VLOOKUP(E146, 'INSUMOS ORSE'!$A:$D, 4, 0), IF(D146 = "SEINFRA", VLOOKUP(E146,'INSUMOS SEINFRA'!$A:$D, 4, 0),))))) -> 9238.1 | J146: 11409.05 | K146: 11409.05 | L146: 4 | Q146: 0.0219
B147: 10.7 | C147: SERVIÇO | D147: ORSE | E147: 8722 | F147: =IF(C147 = "SERVIÇO", IF(D147 = "SINAPI", VLOOKUP(E147, 'SERVIÇOS SINAPI'!$A:$D, 2, 0), IF(D147 = "ORSE", VLOOKUP(E147, 'SERVIÇOS ORSE'!$A:$D, 2, 0), IF(D147 = "SEINFRA", VLOOKUP(E147, 'SERVIÇOS SEINFRA'!$A:$D, 2, 0)))), IF(C147="INSUMO", IF(D147 = "SINAPI", VLOOKUP(E147, 'INSUMOS SINAPI'!$A:$D, 2, 0), IF(D147 = "ORSE", VLOOKUP(E147, 'INSUMOS ORSE'!$A:$D, 2, 0), IF(D147 = "SEINFRA", VLOOKUP(E147,'INSUMOS SEINFRA'!$A:$D, 2, 0),))))) -> HIPOCLORADOR / BOMBA DOSADORA ANALÓGICA DE SOLUÇÕES, VAZÃO DE 0,5 À 15 L/H E PRESÃO DE 0 À 15 BAR | G147: =IF(C147 = "SERVIÇO", IF(D147 = "SINAPI", VLOOKUP(E147, 'SERVIÇOS SINAPI'!$A:$D, 3, 0), IF(D147 = "ORSE", VLOOKUP(E147, 'SERVIÇOS ORSE'!$A:$D, 3, 0), IF(D147 = "SEINFRA", VLOOKUP(E147, 'SERVIÇOS SEINFRA'!$A:$D, 3, 0)))), IF(C147="INSUMO", IF(D147 = "SINAPI", VLOOKUP(E147, 'INSUMOS SINAPI'!$A:$D, 3, 0), IF(D147 = "ORSE", VLOOKUP(E147, 'INSUMOS ORSE'!$A:$D, 3, 0), IF(D147 = "SEINFRA", VLOOKUP(E147,'INSUMOS SEINFRA'!$A:$D, 3, 0),))))) -> UN | H147: 1 | I147: =IF(C147 = "SERVIÇO", IF(D147 = "SINAPI", VLOOKUP(E147, 'SERVIÇOS SINAPI'!$A:$D, 4, 0), IF(D147 = "ORSE", VLOOKUP(E147, 'SERVIÇOS ORSE'!$A:$D, 4, 0), IF(D147 = "SEINFRA", VLOOKUP(E147, 'SERVIÇOS SEINFRA'!$A:$D, 4, 0)))), IF(C147="INSUMO", IF(D147 = "SINAPI", VLOOKUP(E147, 'INSUMOS SINAPI'!$A:$D, 4, 0), IF(D147 = "ORSE", VLOOKUP(E147, 'INSUMOS ORSE'!$A:$D, 4, 0), IF(D147 = "SEINFRA", VLOOKUP(E147,'INSUMOS SEINFRA'!$A:$D, 4, 0),))))) -> 729.53 | J147: =IF(C147 = "SERVIÇO", I147 * (1 + $I$8), IF(C147 = "INSUMO", (I147 * (1 + $K$8)))) -> 900.97 | K147: =J147*H147 -> 900.97 | L147: 7 | Q147: 0.0017
B148: 10.8 | C148: INSUMO | D148: SINAPI | E148: 36084 | F148: =IF(C148 = "SERVIÇO", IF(D148 = "SINAPI", VLOOKUP(E148, 'SERVIÇOS SINAPI'!$A:$D, 2, 0), IF(D148 = "ORSE", VLOOKUP(E148, 'SERVIÇOS ORSE'!$A:$D, 2, 0), IF(D148 = "SEINFRA", VLOOKUP(E148, 'SERVIÇOS SEINFRA'!$A:$D, 2, 0)))), IF(C148="INSUMO", IF(D148 = "SINAPI", VLOOKUP(E148, 'INSUMOS SINAPI'!$A:$D, 2, 0), IF(D148 = "ORSE", VLOOKUP(E148, 'INSUMOS ORSE'!$A:$D, 2, 0), IF(D148 = "SEINFRA", VLOOKUP(E148,'INSUMOS SEINFRA'!$A:$D, 2, 0),))))) -> TUBO PVC PBA JEI, CLASSE 12, DN 50 MM, PARA REDE DE AGUA (NBR 5647) | G148: =IF(C148 = "SERVIÇO", IF(D148 = "SINAPI", VLOOKUP(E148, 'SERVIÇOS SINAPI'!$A:$D, 3, 0), IF(D148 = "ORSE", VLOOKUP(E148, 'SERVIÇOS ORSE'!$A:$D, 3, 0), IF(D148 = "SEINFRA", VLOOKUP(E148, 'SERVIÇOS SEINFRA'!$A:$D, 3, 0)))), IF(C148="INSUMO", IF(D148 = "SINAPI", VLOOKUP(E148, 'INSUMOS SINAPI'!$A:$D, 3, 0), IF(D148 = "ORSE", VLOOKUP(E148, 'INSUMOS ORSE'!$A:$D, 3, 0), IF(D148 = "SEINFRA", VLOOKUP(E148,'INSUMOS SEINFRA'!$A:$D, 3, 0),))))) -> M | H148: 500 | I148: =IF(C148 = "SERVIÇO", IF(D148 = "SINAPI", VLOOKUP(E148, 'SERVIÇOS SINAPI'!$A:$D, 4, 0), IF(D148 = "ORSE", VLOOKUP(E148, 'SERVIÇOS ORSE'!$A:$D, 4, 0), IF(D148 = "SEINFRA", VLOOKUP(E148, 'SERVIÇOS SEINFRA'!$A:$D, 4, 0)))), IF(C148="INSUMO", IF(D148 = "SINAPI", VLOOKUP(E148, 'INSUMOS SINAPI'!$A:$D, 4, 0), IF(D148 = "ORSE", VLOOKUP(E148, 'INSUMOS ORSE'!$A:$D, 4, 0), IF(D148 = "SEINFRA", VLOOKUP(E148,'INSUMOS SEINFRA'!$A:$D, 4, 0),))))) -> 15.07 | J148: =IF(C148 = "SERVIÇO", I148 * (1 + $I$8), IF(C148 = "INSUMO", (I148 * (1 + $K$8)))) -> 16.97 | K148: =J148*H148 -> 8485 | L148: 4 | Q148: 0.0163
B149: 10.9 | C149: INSUMO | D149: SINAPI | E149: 1845 | F149: =IF(C149 = "SERVIÇO", IF(D149 = "SINAPI", VLOOKUP(E149, 'SERVIÇOS SINAPI'!$A:$D, 2, 0), IF(D149 = "ORSE", VLOOKUP(E149, 'SERVIÇOS ORSE'!$A:$D, 2, 0), IF(D149 = "SEINFRA", VLOOKUP(E149, 'SERVIÇOS SEINFRA'!$A:$D, 2, 0)))), IF(C149="INSUMO", IF(D149 = "SINAPI", VLOOKUP(E149, 'INSUMOS SINAPI'!$A:$D, 2, 0), IF(D149 = "ORSE", VLOOKUP(E149, 'INSUMOS ORSE'!$A:$D, 2, 0), IF(D149 = "SEINFRA", VLOOKUP(E149,'INSUMOS SEINFRA'!$A:$D, 2, 0),))))) -> CURVA PVC PBA, JE, PB, 90 GRAUS, DN 50 / DE 60 MM, PARA REDE DE AGUA | G149: =IF(C149 = "SERVIÇO", IF(D149 = "SINAPI", VLOOKUP(E149, 'SERVIÇOS SINAPI'!$A:$D, 3, 0), IF(D149 = "ORSE", VLOOKUP(E149, 'SERVIÇOS ORSE'!$A:$D, 3, 0), IF(D149 = "SEINFRA", VLOOKUP(E149, 'SERVIÇOS SEINFRA'!$A:$D, 3, 0)))), IF(C149="INSUMO", IF(D149 = "SINAPI", VLOOKUP(E149, 'INSUMOS SINAPI'!$A:$D, 3, 0), IF(D149 = "ORSE", VLOOKUP(E149, 'INSUMOS ORSE'!$A:$D, 3, 0), IF(D149 = "SEINFRA", VLOOKUP(E149,'INSUMOS SEINFRA'!$A:$D, 3, 0),))))) -> UN | H149: 8 | I149: =IF(C149 = "SERVIÇO", IF(D149 = "SINAPI", VLOOKUP(E149, 'SERVIÇOS SINAPI'!$A:$D, 4, 0), IF(D149 = "ORSE", VLOOKUP(E149, 'SERVIÇOS ORSE'!$A:$D, 4, 0), IF(D149 = "SEINFRA", VLOOKUP(E149, 'SERVIÇOS SEINFRA'!$A:$D, 4, 0)))), IF(C149="INSUMO", IF(D149 = "SINAPI", VLOOKUP(E149, 'INSUMOS SINAPI'!$A:$D, 4, 0), IF(D149 = "ORSE", VLOOKUP(E149, 'INSUMOS ORSE'!$A:$D, 4, 0), IF(D149 = "SEINFRA", VLOOKUP(E149,'INSUMOS SEINFRA'!$A:$D, 4, 0),))))) -> 33.62 | J149: =IF(C149 = "SERVIÇO", I149 * (1 + $I$8), IF(C149 = "INSUMO", (I149 * (1 + $K$8)))) -> 37.86 | K149: =J149*H149 -> 302.88 | L149: 4 | Q149: 0.0006
B150: 10.10 | C150: INSUMO | D150: SINAPI | E150: 1831 | F150: =IF(C150 = "SERVIÇO", IF(D150 = "SINAPI", VLOOKUP(E150, 'SERVIÇOS SINAPI'!$A:$D, 2, 0), IF(D150 = "ORSE", VLOOKUP(E150, 'SERVIÇOS ORSE'!$A:$D, 2, 0), IF(D150 = "SEINFRA", VLOOKUP(E150, 'SERVIÇOS SEINFRA'!$A:$D, 2, 0)))), IF(C150="INSUMO", IF(D150 = "SINAPI", VLOOKUP(E150, 'INSUMOS SINAPI'!$A:$D, 2, 0), IF(D150 = "ORSE", VLOOKUP(E150, 'INSUMOS ORSE'!$A:$D, 2, 0), IF(D150 = "SEINFRA", VLOOKUP(E150,'INSUMOS SEINFRA'!$A:$D, 2, 0),))))) -> CURVA PVC PBA, JE, PB, 45 GRAUS, DN 50 / DE 60 MM, PARA REDE DE AGUA | G150: =IF(C150 = "SERVIÇO", IF(D150 = "SINAPI", VLOOKUP(E150, 'SERVIÇOS SINAPI'!$A:$D, 3, 0), IF(D150 = "ORSE", VLOOKUP(E150, 'SERVIÇOS ORSE'!$A:$D, 3, 0), IF(D150 = "SEINFRA", VLOOKUP(E150, 'SERVIÇOS SEINFRA'!$A:$D, 3, 0)))), IF(C150="INSUMO", IF(D150 = "SINAPI", VLOOKUP(E150, 'INSUMOS SINAPI'!$A:$D, 3, 0), IF(D150 = "ORSE", VLOOKUP(E150, 'INSUMOS ORSE'!$A:$D, 3, 0), IF(D150 = "SEINFRA", VLOOKUP(E150,'INSUMOS SEINFRA'!$A:$D, 3, 0),))))) -> UN | H150: 8 | I150: =IF(C150 = "SERVIÇO", IF(D150 = "SINAPI", VLOOKUP(E150, 'SERVIÇOS SINAPI'!$A:$D, 4, 0), IF(D150 = "ORSE", VLOOKUP(E150, 'SERVIÇOS ORSE'!$A:$D, 4, 0), IF(D150 = "SEINFRA", VLOOKUP(E150, 'SERVIÇOS SEINFRA'!$A:$D, 4, 0)))), IF(C150="INSUMO", IF(D150 = "SINAPI", VLOOKUP(E150, 'INSUMOS SINAPI'!$A:$D, 4, 0), IF(D150 = "ORSE", VLOOKUP(E150, 'INSUMOS ORSE'!$A:$D, 4, 0), IF(D150 = "SEINFRA", VLOOKUP(E150,'INSUMOS SEINFRA'!$A:$D, 4, 0),))))) -> 26.83 | J150: =IF(C150 = "SERVIÇO", I150 * (1 + $I$8), IF(C150 = "INSUMO", (I150 * (1 + $K$8)))) -> 30.22 | K150: =J150*H150 -> 241.76 | L150: 4 | Q150: 0.0005
B151: 10.11 | C151: INSUMO | D151: SINAPI | E151: 7048 | F151: =IF(C151 = "SERVIÇO", IF(D151 = "SINAPI", VLOOKUP(E151, 'SERVIÇOS SINAPI'!$A:$D, 2, 0), IF(D151 = "ORSE", VLOOKUP(E151, 'SERVIÇOS ORSE'!$A:$D, 2, 0), IF(D151 = "SEINFRA", VLOOKUP(E151, 'SERVIÇOS SEINFRA'!$A:$D, 2, 0)))), IF(C151="INSUMO", IF(D151 = "SINAPI", VLOOKUP(E151, 'INSUMOS SINAPI'!$A:$D, 2, 0), IF(D151 = "ORSE", VLOOKUP(E151, 'INSUMOS ORSE'!$A:$D, 2, 0), IF(D151 = "SEINFRA", VLOOKUP(E151,'INSUMOS SEINFRA'!$A:$D, 2, 0),))))) -> TE, PVC PBA, BBB, 90 GRAUS, DN 50 / DE 60 MM, PARA REDE DE AGUA | G151: =IF(C151 = "SERVIÇO", IF(D151 = "SINAPI", VLOOKUP(E151, 'SERVIÇOS SINAPI'!$A:$D, 3, 0), IF(D151 = "ORSE", VLOOKUP(E151, 'SERVIÇOS ORSE'!$A:$D, 3, 0), IF(D151 = "SEINFRA", VLOOKUP(E151, 'SERVIÇOS SEINFRA'!$A:$D, 3, 0)))), IF(C151="INSUMO", IF(D151 = "SINAPI", VLOOKUP(E151, 'INSUMOS SINAPI'!$A:$D, 3, 0), IF(D151 = "ORSE", VLOOKUP(E151, 'INSUMOS ORSE'!$A:$D, 3, 0), IF(D151 = "SEINFRA", VLOOKUP(E151,'INSUMOS SEINFRA'!$A:$D, 3, 0),))))) -> UN | H151: 4 | I151: =IF(C151 = "SERVIÇO", IF(D151 = "SINAPI", VLOOKUP(E151, 'SERVIÇOS SINAPI'!$A:$D, 4, 0), IF(D151 = "ORSE", VLOOKUP(E151, 'SERVIÇOS ORSE'!$A:$D, 4, 0), IF(D151 = "SEINFRA", VLOOKUP(E151, 'SERVIÇOS SEINFRA'!$A:$D, 4, 0)))), IF(C151="INSUMO", IF(D151 = "SINAPI", VLOOKUP(E151, 'INSUMOS SINAPI'!$A:$D, 4, 0), IF(D151 = "ORSE", VLOOKUP(E151, 'INSUMOS ORSE'!$A:$D, 4, 0), IF(D151 = "SEINFRA", VLOOKUP(E151,'INSUMOS SEINFRA'!$A:$D, 4, 0),))))) -> 22.6 | J151: =IF(C151 = "SERVIÇO", I151 * (1 + $I$8), IF(C151 = "INSUMO", (I151 * (1 + $K$8)))) -> 25.45 | K151: =J151*H151 -> 101.8 | L151: 4 | Q151: 0.0002
B152: 10.12 | C152: INSUMO | D152: SINAPI | E152: 6028 | F152: =IF(C152 = "SERVIÇO", IF(D152 = "SINAPI", VLOOKUP(E152, 'SERVIÇOS SINAPI'!$A:$D, 2, 0), IF(D152 = "ORSE", VLOOKUP(E152, 'SERVIÇOS ORSE'!$A:$D, 2, 0), IF(D152 = "SEINFRA", VLOOKUP(E152, 'SERVIÇOS SEINFRA'!$A:$D, 2, 0)))), IF(C152="INSUMO", IF(D152 = "SINAPI", VLOOKUP(E152, 'INSUMOS SINAPI'!$A:$D, 2, 0), IF(D152 = "ORSE", VLOOKUP(E152, 'INSUMOS ORSE'!$A:$D, 2, 0), IF(D152 = "SEINFRA", VLOOKUP(E152,'INSUMOS SEINFRA'!$A:$D, 2, 0),))))) -> REGISTRO GAVETA BRUTO EM LATAO FORJADO, BITOLA 2 " (REF 1509) | G152: =IF(C152 = "SERVIÇO", IF(D152 = "SINAPI", VLOOKUP(E152, 'SERVIÇOS SINAPI'!$A:$D, 3, 0), IF(D152 = "ORSE", VLOOKUP(E152, 'SERVIÇOS ORSE'!$A:$D, 3, 0), IF(D152 = "SEINFRA", VLOOKUP(E152, 'SERVIÇOS SEINFRA'!$A:$D, 3, 0)))), IF(C152="INSUMO", IF(D152 = "SINAPI", VLOOKUP(E152, 'INSUMOS SINAPI'!$A:$D, 3, 0), IF(D152 = "ORSE", VLOOKUP(E152, 'INSUMOS ORSE'!$A:$D, 3, 0), IF(D152 = "SEINFRA", VLOOKUP(E152,'INSUMOS SEINFRA'!$A:$D, 3, 0),))))) -> UN | H152: 4 | I152: =IF(C152 = "SERVIÇO", IF(D152 = "SINAPI", VLOOKUP(E152, 'SERVIÇOS SINAPI'!$A:$D, 4, 0), IF(D152 = "ORSE", VLOOKUP(E152, 'SERVIÇOS ORSE'!$A:$D, 4, 0), IF(D152 = "SEINFRA", VLOOKUP(E152, 'SERVIÇOS SEINFRA'!$A:$D, 4, 0)))), IF(C152="INSUMO", IF(D152 = "SINAPI", VLOOKUP(E152, 'INSUMOS SINAPI'!$A:$D, 4, 0), IF(D152 = "ORSE", VLOOKUP(E152, 'INSUMOS ORSE'!$A:$D, 4, 0), IF(D152 = "SEINFRA", VLOOKUP(E152,'INSUMOS SEINFRA'!$A:$D, 4, 0),))))) -> 131.72 | J152: =IF(C152 = "SERVIÇO", I152 * (1 + $I$8), IF(C152 = "INSUMO", (I152 * (1 + $K$8)))) -> 148.34 | K152: =J152*H152 -> 593.36 | L152: 5 | Q152: 0.0011
B153: 10.13 | C153: INSUMO | D153: SINAPI | E153: 52 | F153: =IF(C153 = "SERVIÇO", IF(D153 = "SINAPI", VLOOKUP(E153, 'SERVIÇOS SINAPI'!$A:$D, 2, 0), IF(D153 = "ORSE", VLOOKUP(E153, 'SERVIÇOS ORSE'!$A:$D, 2, 0), IF(D153 = "SEINFRA", VLOOKUP(E153, 'SERVIÇOS SEINFRA'!$A:$D, 2, 0)))), IF(C153="INSUMO", IF(D153 = "SINAPI", VLOOKUP(E153, 'INSUMOS SINAPI'!$A:$D, 2, 0), IF(D153 = "ORSE", VLOOKUP(E153, 'INSUMOS ORSE'!$A:$D, 2, 0), IF(D153 = "SEINFRA", VLOOKUP(E153,'INSUMOS SEINFRA'!$A:$D, 2, 0),))))) -> ADAPTADOR PVC PBA, PONTA/ROSCA, JE, DN 50 / DE 60 MM | G153: =IF(C153 = "SERVIÇO", IF(D153 = "SINAPI", VLOOKUP(E153, 'SERVIÇOS SINAPI'!$A:$D, 3, 0), IF(D153 = "ORSE", VLOOKUP(E153, 'SERVIÇOS ORSE'!$A:$D, 3, 0), IF(D153 = "SEINFRA", VLOOKUP(E153, 'SERVIÇOS SEINFRA'!$A:$D, 3, 0)))), IF(C153="INSUMO", IF(D153 = "SINAPI", VLOOKUP(E153, 'INSUMOS SINAPI'!$A:$D, 3, 0), IF(D153 = "ORSE", VLOOKUP(E153, 'INSUMOS ORSE'!$A:$D, 3, 0), IF(D153 = "SEINFRA", VLOOKUP(E153,'INSUMOS SEINFRA'!$A:$D, 3, 0),))))) -> UN | H153: =H152*2 -> 8 | I153: =IF(C153 = "SERVIÇO", IF(D153 = "SINAPI", VLOOKUP(E153, 'SERVIÇOS SINAPI'!$A:$D, 4, 0), IF(D153 = "ORSE", VLOOKUP(E153, 'SERVIÇOS ORSE'!$A:$D, 4, 0), IF(D153 = "SEINFRA", VLOOKUP(E153, 'SERVIÇOS SEINFRA'!$A:$D, 4, 0)))), IF(C153="INSUMO", IF(D153 = "SINAPI", VLOOKUP(E153, 'INSUMOS SINAPI'!$A:$D, 4, 0), IF(D153 = "ORSE", VLOOKUP(E153, 'INSUMOS ORSE'!$A:$D, 4, 0), IF(D153 = "SEINFRA", VLOOKUP(E153,'INSUMOS SEINFRA'!$A:$D, 4, 0),))))) -> 14.25 | J153: =IF(C153 = "SERVIÇO", I153 * (1 + $I$8), IF(C153 = "INSUMO", (I153 * (1 + $K$8)))) -> 16.05 | K153: =J153*H153 -> 128.4 | L153: 4 | Q153: 0.0002
B154: 10.14 | C154: INSUMO | D154: ORSE | E154: 12464 | F154: =IF(C154 = "SERVIÇO", IF(D154 = "SINAPI", VLOOKUP(E154, 'SERVIÇOS SINAPI'!$A:$D, 2, 0), IF(D154 = "ORSE", VLOOKUP(E154, 'SERVIÇOS ORSE'!$A:$D, 2, 0), IF(D154 = "SEINFRA", VLOOKUP(E154, 'SERVIÇOS SEINFRA'!$A:$D, 2, 0)))), IF(C154="INSUMO", IF(D154 = "SINAPI", VLOOKUP(E154, 'INSUMOS SINAPI'!$A:$D, 2, 0), IF(D154 = "ORSE", VLOOKUP(E154, 'INSUMOS ORSE'!$A:$D, 2, 0), IF(D154 = "SEINFRA", VLOOKUP(E154,'INSUMOS SEINFRA'!$A:$D, 2, 0),))))) -> CLORADOR DOSADOR DE CLORO DE PASTILHAS AUTOMÁTICO | G154: =IF(C154 = "SERVIÇO", IF(D154 = "SINAPI", VLOOKUP(E154, 'SERVIÇOS SINAPI'!$A:$D, 3, 0), IF(D154 = "ORSE", VLOOKUP(E154, 'SERVIÇOS ORSE'!$A:$D, 3, 0), IF(D154 = "SEINFRA", VLOOKUP(E154, 'SERVIÇOS SEINFRA'!$A:$D, 3, 0)))), IF(C154="INSUMO", IF(D154 = "SINAPI", VLOOKUP(E154, 'INSUMOS SINAPI'!$A:$D, 3, 0), IF(D154 = "ORSE", VLOOKUP(E154, 'INSUMOS ORSE'!$A:$D, 3, 0), IF(D154 = "SEINFRA", VLOOKUP(E154,'INSUMOS SEINFRA'!$A:$D, 3, 0),))))) -> UN | H154: 1 | I154: =IF(C154 = "SERVIÇO", IF(D154 = "SINAPI", VLOOKUP(E154, 'SERVIÇOS SINAPI'!$A:$D, 4, 0), IF(D154 = "ORSE", VLOOKUP(E154, 'SERVIÇOS ORSE'!$A:$D, 4, 0), IF(D154 = "SEINFRA", VLOOKUP(E154, 'SERVIÇOS SEINFRA'!$A:$D, 4, 0)))), IF(C154="INSUMO", IF(D154 = "SINAPI", VLOOKUP(E154, 'INSUMOS SINAPI'!$A:$D, 4, 0), IF(D154 = "ORSE", VLOOKUP(E154, 'INSUMOS ORSE'!$A:$D, 4, 0), IF(D154 = "SEINFRA", VLOOKUP(E154,'INSUMOS SEINFRA'!$A:$D, 4, 0),))))) -> 250.97 | J154: =IF(C154 = "SERVIÇO", I154 * (1 + $I$8), IF(C154 = "INSUMO", (I154 * (1 + $K$8)))) -> 282.64 | K154: =J154*H154 -> 282.64 | L154: 7 | Q154: 0.0005
B155: 10.15 | C155: INSUMO | D155: ORSE | E155: 7829 | F155: =IF(C155 = "SERVIÇO", IF(D155 = "SINAPI", VLOOKUP(E155, 'SERVIÇOS SINAPI'!$A:$D, 2, 0), IF(D155 = "ORSE", VLOOKUP(E155, 'SERVIÇOS ORSE'!$A:$D, 2, 0), IF(D155 = "SEINFRA", VLOOKUP(E155, 'SERVIÇOS SEINFRA'!$A:$D, 2, 0)))), IF(C155="INSUMO", IF(D155 = "SINAPI", VLOOKUP(E155, 'INSUMOS SINAPI'!$A:$D, 2, 0), IF(D155 = "ORSE", VLOOKUP(E155, 'INSUMOS ORSE'!$A:$D, 2, 0), IF(D155 = "SEINFRA", VLOOKUP(E155,'INSUMOS SEINFRA'!$A:$D, 2, 0),))))) -> FILTRO DE ÁGUA TIPO "Y" Ø 1 1/4" | G155: =IF(C155 = "SERVIÇO", IF(D155 = "SINAPI", VLOOKUP(E155, 'SERVIÇOS SINAPI'!$A:$D, 3, 0), IF(D155 = "ORSE", VLOOKUP(E155, 'SERVIÇOS ORSE'!$A:$D, 3, 0), IF(D155 = "SEINFRA", VLOOKUP(E155, 'SERVIÇOS SEINFRA'!$A:$D, 3, 0)))), IF(C155="INSUMO", IF(D155 = "SINAPI", VLOOKUP(E155, 'INSUMOS SINAPI'!$A:$D, 3, 0), IF(D155 = "ORSE", VLOOKUP(E155, 'INSUMOS ORSE'!$A:$D, 3, 0), IF(D155 = "SEINFRA", VLOOKUP(E155,'INSUMOS SEINFRA'!$A:$D, 3, 0),))))) -> UN | H155: 2 | I155: =IF(C155 = "SERVIÇO", IF(D155 = "SINAPI", VLOOKUP(E155, 'SERVIÇOS SINAPI'!$A:$D, 4, 0), IF(D155 = "ORSE", VLOOKUP(E155, 'SERVIÇOS ORSE'!$A:$D, 4, 0), IF(D155 = "SEINFRA", VLOOKUP(E155, 'SERVIÇOS SEINFRA'!$A:$D, 4, 0)))), IF(C155="INSUMO", IF(D155 = "SINAPI", VLOOKUP(E155, 'INSUMOS SINAPI'!$A:$D, 4, 0), IF(D155 = "ORSE", VLOOKUP(E155, 'INSUMOS ORSE'!$A:$D, 4, 0), IF(D155 = "SEINFRA", VLOOKUP(E155,'INSUMOS SEINFRA'!$A:$D, 4, 0),))))) -> 377.72 | J155: =IF(C155 = "SERVIÇO", I155 * (1 + $I$8), IF(C155 = "INSUMO", (I155 * (1 + $K$8)))) -> 425.39 | K155: =J155*H155 -> 850.78 | L155: 7 | Q155: 0.0016
B156: 11 | C156: LIMPEZA E ENTREGA | K156: =SUM(K157:K157) -> 622.3
B157: 11.1 | C157: SERVIÇO | D157: ORSE | E157: 2450 | F157: =IF(C157 = "SERVIÇO", IF(D157 = "SINAPI", VLOOKUP(E157, 'SERVIÇOS SINAPI'!$A:$D, 2, 0), IF(D157 = "ORSE", VLOOKUP(E157, 'SERVIÇOS ORSE'!$A:$D, 2, 0), IF(D157 = "SEINFRA", VLOOKUP(E157, 'SERVIÇOS SEINFRA'!$A:$D, 2, 0)))), IF(C157="INSUMO", IF(D157 = "SINAPI", VLOOKUP(E157, 'INSUMOS SINAPI'!$A:$D, 2, 0), IF(D157 = "ORSE", VLOOKUP(E157, 'INSUMOS ORSE'!$A:$D, 2, 0), IF(D157 = "SEINFRA", VLOOKUP(E157,'INSUMOS SEINFRA'!$A:$D, 2, 0),))))) -> LIMPEZA GERAL | G157: =IF(C157 = "SERVIÇO", IF(D157 = "SINAPI", VLOOKUP(E157, 'SERVIÇOS SINAPI'!$A:$D, 3, 0), IF(D157 = "ORSE", VLOOKUP(E157, 'SERVIÇOS ORSE'!$A:$D, 3, 0), IF(D157 = "SEINFRA", VLOOKUP(E157, 'SERVIÇOS SEINFRA'!$A:$D, 3, 0)))), IF(C157="INSUMO", IF(D157 = "SINAPI", VLOOKUP(E157, 'INSUMOS SINAPI'!$A:$D, 3, 0), IF(D157 = "ORSE", VLOOKUP(E157, 'INSUMOS ORSE'!$A:$D, 3, 0), IF(D157 = "SEINFRA", VLOOKUP(E157,'INSUMOS SEINFRA'!$A:$D, 3, 0),))))) -> M² | H157: ='Memória de Cálculo'!$L$249 -> 212.39 | I157: =IF(C157 = "SERVIÇO", IF(D157 = "SINAPI", VLOOKUP(E157, 'SERVIÇOS SINAPI'!$A:$D, 4, 0), IF(D157 = "ORSE", VLOOKUP(E157, 'SERVIÇOS ORSE'!$A:$D, 4, 0), IF(D157 = "SEINFRA", VLOOKUP(E157, 'SERVIÇOS SEINFRA'!$A:$D, 4, 0)))), IF(C157="INSUMO", IF(D157 = "SINAPI", VLOOKUP(E157, 'INSUMOS SINAPI'!$A:$D, 4, 0), IF(D157 = "ORSE", VLOOKUP(E157, 'INSUMOS ORSE'!$A:$D, 4, 0), IF(D157 = "SEINFRA", VLOOKUP(E157,'INSUMOS SEINFRA'!$A:$D, 4, 0),))))) -> 2.37 | J157: =IF(C157 = "SERVIÇO", I157 * (1 + $I$8), IF(C157 = "INSUMO", (I157 * (1 + $K$8)))) -> 2.93 | K157: =J157*H157 -> 622.3 | L157: 2 | Q157: =K157/$K$5 -> 0.0012
B158: TOTAL GERAL DA OBRA COM BDI (R$): | K158: =K11+K17+K23+K41+K55+K65+K72+K106+K132+K140+K156 -> 521593.48
B159: TOTAL GERAL PARA 9 CASAS DE MEL (R$): | K159: =K158*9 -> 4694341.32
Q160: =SUBTOTAL(9,Q12:Q159) -> 0.9995
K161: 4694341.32 | N161: PARÂMETROS PARA REAJUSTAMENTO DE PREÇOS
N162: N1 | O162: N2 | P162: N3 | Q162: N4 | R162: N5 | S162: N6 | T162: N7 | U162: TOTAL
E163: 94447
N164: =SUMIF($L$12:$L$157,1,$K$12:$K$157) -> 21792.63 | O164: =SUMIF($L$12:$L$157,2,$K$12:$K$157) -> 270819.94 | P164: =SUMIF($L$12:$L$157,3,$K$12:$K$157) -> 80652.6 | Q164: =SUMIF($L$12:$L$157,4,$K$12:$K$157) -> 47782.83 | R164: =SUMIF($L$12:$L$157,5,$K$12:$K$157) -> 69089.87 | S164: =SUMIF($L$12:$L$157,6,$K$12:$K$157) -> 5781.02 | T164: =SUMIF($L$12:$L$157,7,$K$12:$K$157) -> 25674.59 | U164: =SUM(N164:T164) -> 521593.48
N167: =N164/$K$158 -> 0.0418 | O167: =O164/$K$158 -> 0.5192 | P167: 0.1546 | Q167: 0.0916 | R167: 0.1325 | S167: 0.0111 | T167: 0.0492 | U167: =SUM(N167:T167) -> 1
B168: OBRA DA ADMINISTRAÇÃO LOCAL | F168: =J15 -> 24400.59
B169: OBRA SEM ADL | F169: =K158-F168 -> 497192.89
E170: REFLEXO | F170: =F168/F169 -> 0.0491
C174: TCU | E174: VALOR DA ADM com BDI
C175: 1 QUARTIL | D175: 0.0413 | E175: =D175*$F$169 -> 20534.07 | F175: =E175/(1+$J$3) -> 20534.07
C176: 2 QUARTIL | D176: 0.0774 | E176: =D176*$F$169 -> 38482.73 | F176: =E176/(1+$J$3) -> 38482.73
C177: 3 QUARTIL | D177: 0.1089 | E177: =D177*$F$169 -> 54144.31 | F177: =E177/(1+$J$3) -> 54144.31

Sheet CPU
E1: COMPOSIÇÕES DE PREÇOS UNITÁRIOS
B2: CODEVASF | C2: ITEM | D2: TIPO | E2: COMPOSIÇÃO DE PREÇO UNITÁRIO | F2: ='Planilha Orçamentária'!$J$4 -> MAIO DE 2024 | H2: UNIDADE: | I2: UN
B3: CPU 01 | C3: ='Planilha Orçamentária'!B13 -> 1.2 | D3: SERVIÇO / MATERIAL: | E3: ='Planilha Orçamentária'!F13 -> MOBILIZAÇÃO DE EQUIPAMENTOS, MATERIAIS E PESSOAL | F3: COMP. DE REFERÊNCIA: | H3: CÓDIGO: | J3: =IF(B3="INSUMO","INSUMO","") -> 
E4: MATERIAIS / MÃO DE OBRA
B5: TIPO | C5: REFER. | D5: CÓDIGO | E5: DISCRIMINAÇÃO | F5: UNID. | G5: QUANT. | H5: P.UNIT. | I5: P.TOTAL
B6: INSUMO | C6: SINAPI | D6: 4093 | E6: =IF(B6 = "SERVIÇO", IF(C6 = "SINAPI", VLOOKUP(D6, 'SERVIÇOS SINAPI'!$A:$D, 2, 0), IF(C6 = "ORSE", VLOOKUP(D6, 'SERVIÇOS ORSE'!$A:$D, 2, 0), IF(C6 = "SEINFRA", VLOOKUP(D6, 'SERVIÇOS SEINFRA'!$A:$D, 2, 0)))), IF(B6="INSUMO", IF(C6 = "SINAPI", VLOOKUP(D6, 'INSUMOS SINAPI'!$A:$D, 2, 0), IF(C6 = "ORSE", VLOOKUP(D6, 'INSUMOS ORSE'!$A:$D, 2, 0), IF(C6 = "SEINFRA", VLOOKUP(D6,'INSUMOS SEINFRA'!$A:$D, 2, 0),))))) -> MOTORISTA DE CAMINHAO (HORISTA) | F6: =IF(B6 = "SERVIÇO", IF(C6 = "SINAPI", VLOOKUP(D6, 'SERVIÇOS SINAPI'!$A:$D, 3, 0), IF(C6 = "ORSE", VLOOKUP(D6, 'SERVIÇOS ORSE'!$A:$D, 3, 0), IF(C6 = "SEINFRA", VLOOKUP(D6, 'SERVIÇOS SEINFRA'!$A:$D, 3, 0)))), IF(B6="INSUMO", IF(C6 = "SINAPI", VLOOKUP(D6, 'INSUMOS SINAPI'!$A:$D, 3, 0), IF(C6 = "ORSE", VLOOKUP(D6, 'INSUMOS ORSE'!$A:$D, 3, 0), IF(C6 = "SEINFRA", VLOOKUP(D6,'INSUMOS SEINFRA'!$A:$D, 3, 0),))))) -> H | G6: 4 | H6: =IF(B6 = "SERVIÇO", IF(C6 = "SINAPI", VLOOKUP(D6, 'SERVIÇOS SINAPI'!$A:$D, 4, 0), IF(C6 = "ORSE", VLOOKUP(D6, 'SERVIÇOS ORSE'!$A:$D, 4, 0), IF(C6 = "SEINFRA", VLOOKUP(D6, 'SERVIÇOS SEINFRA'!$A:$D, 4, 0)))), IF(B6="INSUMO", IF(C6 = "SINAPI", VLOOKUP(D6, 'INSUMOS SINAPI'!$A:$D, 4, 0), IF(C6 = "ORSE", VLOOKUP(D6, 'INSUMOS ORSE'!$A:$D, 4, 0), IF(C6 = "SEINFRA", VLOOKUP(D6,'INSUMOS SEINFRA'!$A:$D, 4, 0),))))) -> 19.98 | I6: =H6*G6 -> 79.92 | J6: INSUMO
B7: SERVIÇO | C7: SINAPI | D7: 88316 | E7: =IF(B7 = "SERVIÇO", IF(C7 = "SINAPI", VLOOKUP(D7, 'SERVIÇOS SINAPI'!$A:$D, 2, 0), IF(C7 = "ORSE", VLOOKUP(D7, 'SERVIÇOS ORSE'!$A:$D, 2, 0), IF(C7 = "SEINFRA", VLOOKUP(D7, 'SERVIÇOS SEINFRA'!$A:$D, 2, 0)))), IF(B7="INSUMO", IF(C7 = "SINAPI", VLOOKUP(D7, 'INSUMOS SINAPI'!$A:$D, 2, 0), IF(C7 = "ORSE", VLOOKUP(D7, 'INSUMOS ORSE'!$A:$D, 2, 0), IF(C7 = "SEINFRA", VLOOKUP(D7,'INSUMOS SEINFRA'!$A:$D, 2, 0),))))) -> SERVENTE COM ENCARGOS COMPLEMENTARES | F7: =IF(B7 = "SERVIÇO", IF(C7 = "SINAPI", VLOOKUP(D7, 'SERVIÇOS SINAPI'!$A:$D, 3, 0), IF(C7 = "ORSE", VLOOKUP(D7, 'SERVIÇOS ORSE'!$A:$D, 3, 0), IF(C7 = "SEINFRA", VLOOKUP(D7, 'SERVIÇOS SEINFRA'!$A:$D, 3, 0)))), IF(B7="INSUMO", IF(C7 = "SINAPI", VLOOKUP(D7, 'INSUMOS SINAPI'!$A:$D, 3, 0), IF(C7 = "ORSE", VLOOKUP(D7, 'INSUMOS ORSE'!$A:$D, 3, 0), IF(C7 = "SEINFRA", VLOOKUP(D7,'INSUMOS SEINFRA'!$A:$D, 3, 0),))))) -> H | G7: 6 | H7: =IF(B7 = "SERVIÇO", IF(C7 = "SINAPI", VLOOKUP(D7, 'SERVIÇOS SINAPI'!$A:$D, 4, 0), IF(C7 = "ORSE", VLOOKUP(D7, 'SERVIÇOS ORSE'!$A:$D, 4, 0), IF(C7 = "SEINFRA", VLOOKUP(D7, 'SERVIÇOS SEINFRA'!$A:$D, 4, 0)))), IF(B7="INSUMO", IF(C7 = "SINAPI", VLOOKUP(D7, 'INSUMOS SINAPI'!$A:$D, 4, 0), IF(C7 = "ORSE", VLOOKUP(D7, 'INSUMOS ORSE'!$A:$D, 4, 0), IF(C7 = "SEINFRA", VLOOKUP(D7,'INSUMOS SEINFRA'!$A:$D, 4, 0),))))) -> 20.28 | I7: =H7*G7 -> 121.68 | J7: =IF(B7="INSUMO","INSUMO","") -> 
H8: SUB-TOTAL | I8: =SUM(I6:I7) -> 201.6
E9: SERVIÇOS / EQUIPAMENTOS
B10: TIPO | C10: REFER. | D10: CÓDIGO | E10: DISCRIMINAÇÃO | F10: UNID. | G10: QUANT. | H10: P.UNIT. | I10: P.TOTAL
B11: SERVIÇO | C11: SINAPI | D11: 67826 | E11: =IF(B11 = "SERVIÇO", IF(C11 = "SINAPI", VLOOKUP(D11, 'SERVIÇOS SINAPI'!$A:$D, 2, 0), IF(C11 = "ORSE", VLOOKUP(D11, 'SERVIÇOS ORSE'!$A:$D, 2, 0), IF(C11 = "SEINFRA", VLOOKUP(D11, 'SERVIÇOS SEINFRA'!$A:$D, 2, 0)))), IF(B11="INSUMO", IF(C11 = "SINAPI", VLOOKUP(D11, 'INSUMOS SINAPI'!$A:$D, 2, 0), IF(C11 = "ORSE", VLOOKUP(D11, 'INSUMOS ORSE'!$A:$D, 2, 0), IF(C11 = "SEINFRA", VLOOKUP(D11,'INSUMOS SEINFRA'!$A:$D, 2, 0),))))) -> CAMINHÃO BASCULANTE 6 M3 TOCO, PESO BRUTO TOTAL 16.000 KG, CARGA ÚTIL MÁXIMA 11.130 KG, DISTÂNCIA ENTRE EIXOS 5,36 M, POTÊNCIA 185 CV, INCLUSIVE CAÇAMBA METÁLICA - CHP DIURNO. AF_06/2014 | F11: =IF(B11 = "SERVIÇO", IF(C11 = "SINAPI", VLOOKUP(D11, 'SERVIÇOS SINAPI'!$A:$D, 3, 0), IF(C11 = "ORSE", VLOOKUP(D11, 'SERVIÇOS ORSE'!$A:$D, 3, 0), IF(C11 = "SEINFRA", VLOOKUP(D11, 'SERVIÇOS SEINFRA'!$A:$D, 3, 0)))), IF(B11="INSUMO", IF(C11 = "SINAPI", VLOOKUP(D11, 'INSUMOS SINAPI'!$A:$D, 3, 0), IF(C11 = "ORSE", VLOOKUP(D11, 'INSUMOS ORSE'!$A:$D, 3, 0), IF(C11 = "SEINFRA", VLOOKUP(D11,'INSUMOS SEINFRA'!$A:$D, 3, 0),))))) -> CHP | G11: 2 | H11: =IF(B11 = "SERVIÇO", IF(C11 = "SINAPI", VLOOKUP(D11, 'SERVIÇOS SINAPI'!$A:$D, 4, 0), IF(C11 = "ORSE", VLOOKUP(D11, 'SERVIÇOS ORSE'!$A:$D, 4, 0), IF(C11 = "SEINFRA", VLOOKUP(D11, 'SERVIÇOS SEINFRA'!$A:$D, 4, 0)))), IF(B11="INSUMO", IF(C11 = "SINAPI", VLOOKUP(D11, 'INSUMOS SINAPI'!$A:$D, 4, 0), IF(C11 = "ORSE", VLOOKUP(D11, 'INSUMOS ORSE'!$A:$D, 4, 0), IF(C11 = "SEINFRA", VLOOKUP(D11,'INSUMOS SEINFRA'!$A:$D, 4, 0),))))) -> 186.29 | I11: =H11*G11 -> 372.58 | J11: =IF(B11="INSUMO","INSUMO","") -> 
B12: SERVIÇO | C12: SINAPI | D12: 73467 | E12: =IF(B12 = "SERVIÇO", IF(C12 = "SINAPI", VLOOKUP(D12, 'SERVIÇOS SINAPI'!$A:$D, 2, 0), IF(C12 = "ORSE", VLOOKUP(D12, 'SERVIÇOS ORSE'!$A:$D, 2, 0), IF(C12 = "SEINFRA", VLOOKUP(D12, 'SERVIÇOS SEINFRA'!$A:$D, 2, 0)))), IF(B12="INSUMO", IF(C12 = "SINAPI", VLOOKUP(D12, 'INSUMOS SINAPI'!$A:$D, 2, 0), IF(C12 = "ORSE", VLOOKUP(D12, 'INSUMOS ORSE'!$A:$D, 2, 0), IF(C12 = "SEINFRA", VLOOKUP(D12,'INSUMOS SEINFRA'!$A:$D, 2, 0),))))) -> CAMINHÃO TOCO, PBT 14.300 KG, CARGA ÚTIL MÁX. 9.710 KG, DIST. ENTRE EIXOS 3,56 M, POTÊNCIA 185 CV, INCLUSIVE CARROCERIA FIXA ABERTA DE MADEIRA P/ TRANSPORTE GERAL DE CARGA SECA, DIMEN. APROX. 2,50 X 6,50 X 0,50 M - CHP DIURNO. AF_06/2014 | F12: =IF(B12 = "SERVIÇO", IF(C12 = "SINAPI", VLOOKUP(D12, 'SERVIÇOS SINAPI'!$A:$D, 3, 0), IF(C12 = "ORSE", VLOOKUP(D12, 'SERVIÇOS ORSE'!$A:$D, 3, 0), IF(C12 = "SEINFRA", VLOOKUP(D12, 'SERVIÇOS SEINFRA'!$A:$D, 3, 0)))), IF(B12="INSUMO", IF(C12 = "SINAPI", VLOOKUP(D12, 'INSUMOS SINAPI'!$A:$D, 3, 0), IF(C12 = "ORSE", VLOOKUP(D12, 'INSUMOS ORSE'!$A:$D, 3, 0), IF(C12 = "SEINFRA", VLOOKUP(D12,'INSUMOS SEINFRA'!$A:$D, 3, 0),))))) -> CHP | G12: 2 | H12: =IF(B12 = "SERVIÇO", IF(C12 = "SINAPI", VLOOKUP(D12, 'SERVIÇOS SINAPI'!$A:$D, 4, 0), IF(C12 = "ORSE", VLOOKUP(D12, 'SERVIÇOS ORSE'!$A:$D, 4, 0), IF(C12 = "SEINFRA", VLOOKUP(D12, 'SERVIÇOS SEINFRA'!$A:$D, 4, 0)))), IF(B12="INSUMO", IF(C12 = "SINAPI", VLOOKUP(D12, 'INSUMOS SINAPI'!$A:$D, 4, 0), IF(C12 = "ORSE", VLOOKUP(D12, 'INSUMOS ORSE'!$A:$D, 4, 0), IF(C12 = "SEINFRA", VLOOKUP(D12,'INSUMOS SEINFRA'!$A:$D, 4, 0),))))) -> 246.64 | I12: =H12*G12 -> 493.28
H14: SUB-TOTAL | I14: =SUM(I11:I13) -> 865.86
F15: TOTAL DO SERVIÇO - R$ | I15: =I14 + I8 -> 1067.46
B17: CODEVASF | C17: ITEM | D17: TIPO | E17: COMPOSIÇÃO DE PREÇO UNITÁRIO | F17: ='Planilha Orçamentária'!$J$4 -> MAIO DE 2024 | H17: UNIDADE: | I17: UN
B18: CPU 02 | C18: ='Planilha Orçamentária'!B14 -> 1.3 | D18: SERVIÇO / MATERIAL: | E18: ='Planilha Orçamentária'!F14 -> DESMOBILIZAÇÃO DE EQUIPAMENTOS, MATERIAIS E PESSOAL | F18: COMP. DE REFERÊNCIA: | H18: CÓDIGO: | J18: =IF(B18="INSUMO","INSUMO","") -> 
E19: MATERIAIS / MÃO DE OBRA
B20: TIPO | C20: REFER. | D20: CÓDIGO | E20: DISCRIMINAÇÃO | F20: UNID. | G20: QUANT. | H20: P.UNIT. | I20: P.TOTAL
B21: INSUMO | C21: SINAPI | D21: 4093 | E21: =IF(B21 = "SERVIÇO", IF(C21 = "SINAPI", VLOOKUP(D21, 'SERVIÇOS SINAPI'!$A:$D, 2, 0), IF(C21 = "ORSE", VLOOKUP(D21, 'SERVIÇOS ORSE'!$A:$D, 2, 0), IF(C21 = "SEINFRA", VLOOKUP(D21, 'SERVIÇOS SEINFRA'!$A:$D, 2, 0)))), IF(B21="INSUMO", IF(C21 = "SINAPI", VLOOKUP(D21, 'INSUMOS SINAPI'!$A:$D, 2, 0), IF(C21 = "ORSE", VLOOKUP(D21, 'INSUMOS ORSE'!$A:$D, 2, 0), IF(C21 = "SEINFRA", VLOOKUP(D21,'INSUMOS SEINFRA'!$A:$D, 2, 0),))))) -> MOTORISTA DE CAMINHAO (HORISTA) | F21: =IF(B21 = "SERVIÇO", IF(C21 = "SINAPI", VLOOKUP(D21, 'SERVIÇOS SINAPI'!$A:$D, 3, 0), IF(C21 = "ORSE", VLOOKUP(D21, 'SERVIÇOS ORSE'!$A:$D, 3, 0), IF(C21 = "SEINFRA", VLOOKUP(D21, 'SERVIÇOS SEINFRA'!$A:$D, 3, 0)))), IF(B21="INSUMO", IF(C21 = "SINAPI", VLOOKUP(D21, 'INSUMOS SINAPI'!$A:$D, 3, 0), IF(C21 = "ORSE", VLOOKUP(D21, 'INSUMOS ORSE'!$A:$D, 3, 0), IF(C21 = "SEINFRA", VLOOKUP(D21,'INSUMOS SEINFRA'!$A:$D, 3, 0),))))) -> H | G21: 4 | H21: =IF(B21 = "SERVIÇO", IF(C21 = "SINAPI", VLOOKUP(D21, 'SERVIÇOS SINAPI'!$A:$D, 4, 0), IF(C21 = "ORSE", VLOOKUP(D21, 'SERVIÇOS ORSE'!$A:$D, 4, 0), IF(C21 = "SEINFRA", VLOOKUP(D21, 'SERVIÇOS SEINFRA'!$A:$D, 4, 0)))), IF(B21="INSUMO", IF(C21 = "SINAPI", VLOOKUP(D21, 'INSUMOS SINAPI'!$A:$D, 4, 0), IF(C21 = "ORSE", VLOOKUP(D21, 'INSUMOS ORSE'!$A:$D, 4, 0), IF(C21 = "SEINFRA", VLOOKUP(D21,'INSUMOS SEINFRA'!$A:$D, 4, 0),))))) -> 19.98 | I21: =H21*G21 -> 79.92 | J21: INSUMO
B22: SERVIÇO | C22: SINAPI | D22: 88316 | E22: =IF(B22 = "SERVIÇO", IF(C22 = "SINAPI", VLOOKUP(D22, 'SERVIÇOS SINAPI'!$A:$D, 2, 0), IF(C22 = "ORSE", VLOOKUP(D22, 'SERVIÇOS ORSE'!$A:$D, 2, 0), IF(C22 = "SEINFRA", VLOOKUP(D22, 'SERVIÇOS SEINFRA'!$A:$D, 2, 0)))), IF(B22="INSUMO", IF(C22 = "SINAPI", VLOOKUP(D22, 'INSUMOS SINAPI'!$A:$D, 2, 0), IF(C22 = "ORSE", VLOOKUP(D22, 'INSUMOS ORSE'!$A:$D, 2, 0), IF(C22 = "SEINFRA", VLOOKUP(D22,'INSUMOS SEINFRA'!$A:$D, 2, 0),))))) -> SERVENTE COM ENCARGOS COMPLEMENTARES | F22: =IF(B22 = "SERVIÇO", IF(C22 = "SINAPI", VLOOKUP(D22, 'SERVIÇOS SINAPI'!$A:$D, 3, 0), IF(C22 = "ORSE", VLOOKUP(D22, 'SERVIÇOS ORSE'!$A:$D, 3, 0), IF(C22 = "SEINFRA", VLOOKUP(D22, 'SERVIÇOS SEINFRA'!$A:$D, 3, 0)))), IF(B22="INSUMO", IF(C22 = "SINAPI", VLOOKUP(D22, 'INSUMOS SINAPI'!$A:$D, 3, 0), IF(C22 = "ORSE", VLOOKUP(D22, 'INSUMOS ORSE'!$A:$D, 3, 0), IF(C22 = "SEINFRA", VLOOKUP(D22,'INSUMOS SEINFRA'!$A:$D, 3, 0),))))) -> H | G22: 6 | H22: =IF(B22 = "SERVIÇO", IF(C22 = "SINAPI", VLOOKUP(D22, 'SERVIÇOS SINAPI'!$A:$D, 4, 0), IF(C22 = "ORSE", VLOOKUP(D22, 'SERVIÇOS ORSE'!$A:$D, 4, 0), IF(C22 = "SEINFRA", VLOOKUP(D22, 'SERVIÇOS SEINFRA'!$A:$D, 4, 0)))), IF(B22="INSUMO", IF(C22 = "SINAPI", VLOOKUP(D22, 'INSUMOS SINAPI'!$A:$D, 4, 0), IF(C22 = "ORSE", VLOOKUP(D22, 'INSUMOS ORSE'!$A:$D, 4, 0), IF(C22 = "SEINFRA", VLOOKUP(D22,'INSUMOS SEINFRA'!$A:$D, 4, 0),))))) -> 20.28 | I22: =H22*G22 -> 121.68 | J22: =IF(B22="INSUMO","INSUMO","") -> 
H23: SUB-TOTAL | I23: =SUM(I21:I22) -> 201.6
E24: SERVIÇOS / EQUIPAMENTOS
B25: TIPO | C25: REFER. | D25: CÓDIGO | E25: DISCRIMINAÇÃO | F25: UNID. | G25: QUANT. | H25: P.UNIT. | I25: P.TOTAL
B26: SERVIÇO | C26: SINAPI | D26: 67826 | E26: =IF(B26 = "SERVIÇO", IF(C26 = "SINAPI", VLOOKUP(D26, 'SERVIÇOS SINAPI'!$A:$D, 2, 0), IF(C26 = "ORSE", VLOOKUP(D26, 'SERVIÇOS ORSE'!$A:$D, 2, 0), IF(C26 = "SEINFRA", VLOOKUP(D26, 'SERVIÇOS SEINFRA'!$A:$D, 2, 0)))), IF(B26="INSUMO", IF(C26 = "SINAPI", VLOOKUP(D26, 'INSUMOS SINAPI'!$A:$D, 2, 0), IF(C26 = "ORSE", VLOOKUP(D26, 'INSUMOS ORSE'!$A:$D, 2, 0), IF(C26 = "SEINFRA", VLOOKUP(D26,'INSUMOS SEINFRA'!$A:$D, 2, 0),))))) -> CAMINHÃO BASCULANTE 6 M3 TOCO, PESO BRUTO TOTAL 16.000 KG, CARGA ÚTIL MÁXIMA 11.130 KG, DISTÂNCIA ENTRE EIXOS 5,36 M, POTÊNCIA 185 CV, INCLUSIVE CAÇAMBA METÁLICA - CHP DIURNO. AF_06/2014 | F26: =IF(B26 = "SERVIÇO", IF(C26 = "SINAPI", VLOOKUP(D26, 'SERVIÇOS SINAPI'!$A:$D, 3, 0), IF(C26 = "ORSE", VLOOKUP(D26, 'SERVIÇOS ORSE'!$A:$D, 3, 0), IF(C26 = "SEINFRA", VLOOKUP(D26, 'SERVIÇOS SEINFRA'!$A:$D, 3, 0)))), IF(B26="INSUMO", IF(C26 = "SINAPI", VLOOKUP(D26, 'INSUMOS SINAPI'!$A:$D, 3, 0), IF(C26 = "ORSE", VLOOKUP(D26, 'INSUMOS ORSE'!$A:$D, 3, 0), IF(C26 = "SEINFRA", VLOOKUP(D26,'INSUMOS SEINFRA'!$A:$D, 3, 0),))))) -> CHP | G26: 2 | H26: =IF(B26 = "SERVIÇO", IF(C26 = "SINAPI", VLOOKUP(D26, 'SERVIÇOS SINAPI'!$A:$D, 4, 0), IF(C26 = "ORSE", VLOOKUP(D26, 'SERVIÇOS ORSE'!$A:$D, 4, 0), IF(C26 = "SEINFRA", VLOOKUP(D26, 'SERVIÇOS SEINFRA'!$A:$D, 4, 0)))), IF(B26="INSUMO", IF(C26 = "SINAPI", VLOOKUP(D26, 'INSUMOS SINAPI'!$A:$D, 4, 0), IF(C26 = "ORSE", VLOOKUP(D26, 'INSUMOS ORSE'!$A:$D, 4, 0), IF(C26 = "SEINFRA", VLOOKUP(D26,'INSUMOS SEINFRA'!$A:$D, 4, 0),))))) -> 186.29 | I26: =H26*G26 -> 372.58
B27: SERVIÇO | C27: SINAPI | D27: 73467 | E27: =IF(B27 = "SERVIÇO", IF(C27 = "SINAPI", VLOOKUP(D27, 'SERVIÇOS SINAPI'!$A:$D, 2, 0), IF(C27 = "ORSE", VLOOKUP(D27, 'SERVIÇOS ORSE'!$A:$D, 2, 0), IF(C27 = "SEINFRA", VLOOKUP(D27, 'SERVIÇOS SEINFRA'!$A:$D, 2, 0)))), IF(B27="INSUMO", IF(C27 = "SINAPI", VLOOKUP(D27, 'INSUMOS SINAPI'!$A:$D, 2, 0), IF(C27 = "ORSE", VLOOKUP(D27, 'INSUMOS ORSE'!$A:$D, 2, 0), IF(C27 = "SEINFRA", VLOOKUP(D27,'INSUMOS SEINFRA'!$A:$D, 2, 0),))))) -> CAMINHÃO TOCO, PBT 14.300 KG, CARGA ÚTIL MÁX. 9.710 KG, DIST. ENTRE EIXOS 3,56 M, POTÊNCIA 185 CV, INCLUSIVE CARROCERIA FIXA ABERTA DE MADEIRA P/ TRANSPORTE GERAL DE CARGA SECA, DIMEN. APROX. 2,50 X 6,50 X 0,50 M - CHP DIURNO. AF_06/2014 | F27: =IF(B27 = "SERVIÇO", IF(C27 = "SINAPI", VLOOKUP(D27, 'SERVIÇOS SINAPI'!$A:$D, 3, 0), IF(C27 = "ORSE", VLOOKUP(D27, 'SERVIÇOS ORSE'!$A:$D, 3, 0), IF(C27 = "SEINFRA", VLOOKUP(D27, 'SERVIÇOS SEINFRA'!$A:$D, 3, 0)))), IF(B27="INSUMO", IF(C27 = "SINAPI", VLOOKUP(D27, 'INSUMOS SINAPI'!$A:$D, 3, 0), IF(C27 = "ORSE", VLOOKUP(D27, 'INSUMOS ORSE'!$A:$D, 3, 0), IF(C27 = "SEINFRA", VLOOKUP(D27,'INSUMOS SEINFRA'!$A:$D, 3, 0),))))) -> CHP | G27: 2 | H27: =IF(B27 = "SERVIÇO", IF(C27 = "SINAPI", VLOOKUP(D27, 'SERVIÇOS SINAPI'!$A:$D, 4, 0), IF(C27 = "ORSE", VLOOKUP(D27, 'SERVIÇOS ORSE'!$A:$D, 4, 0), IF(C27 = "SEINFRA", VLOOKUP(D27, 'SERVIÇOS SEINFRA'!$A:$D, 4, 0)))), IF(B27="INSUMO", IF(C27 = "SINAPI", VLOOKUP(D27, 'INSUMOS SINAPI'!$A:$D, 4, 0), IF(C27 = "ORSE", VLOOKUP(D27, 'INSUMOS ORSE'!$A:$D, 4, 0), IF(C27 = "SEINFRA", VLOOKUP(D27,'INSUMOS SEINFRA'!$A:$D, 4, 0),))))) -> 246.64 | I27: =H27*G27 -> 493.28
H29: SUB-TOTAL | I29: =SUM(I26:I28) -> 865.86 | J29: =IF(B29="INSUMO","INSUMO","") -> 
F30: TOTAL DO SERVIÇO - R$ | I30: =I29 + I23 -> 1067.46
B32: CODEVASF | C32: ITEM | D32: TIPO | E32: COMPOSIÇÃO DE PREÇO UNITÁRIO | F32: ='Planilha Orçamentária'!$J$4 -> MAIO DE 2024 | H32: UNIDADE: | I32: UN
B33: CPU 03 | C33: ='Planilha Orçamentária'!B15 -> 1.4 | D33: SERVIÇO / MATERIAL: | E33: ='Planilha Orçamentária'!F15 -> ADMINISTRAÇÃO LOCAL | F33: COMP. DE REFERÊNCIA: | H33: CÓDIGO:
E34: MATERIAIS / MÃO DE OBRA
B35: TIPO | C35: REFER. | D35: CÓDIGO | E35: DISCRIMINAÇÃO | F35: UNID. | G35: QUANT. | H35: P.UNIT. | I35: P.TOTAL
B36: INSUMO | C36: ORSE | D36: 10563 | E36: =IF(B36 = "SERVIÇO", IF(C36 = "SINAPI", VLOOKUP(D36, 'SERVIÇOS SINAPI'!$A:$D, 2, 0), IF(C36 = "ORSE", VLOOKUP(D36, 'SERVIÇOS ORSE'!$A:$D, 2, 0), IF(C36 = "SEINFRA", VLOOKUP(D36, 'SERVIÇOS SEINFRA'!$A:$D, 2, 0)))), IF(B36="INSUMO", IF(C36 = "SINAPI", VLOOKUP(D36, 'INSUMOS SINAPI'!$A:$D, 2, 0), IF(C36 = "ORSE", VLOOKUP(D36, 'INSUMOS ORSE'!$A:$D, 2, 0), IF(C36 = "SEINFRA", VLOOKUP(D36,'INSUMOS SEINFRA'!$A:$D, 2, 0),))))) -> MATERIAL DE LIMPEZA | F36: =IF(B36 = "SERVIÇO", IF(C36 = "SINAPI", VLOOKUP(D36, 'SERVIÇOS SINAPI'!$A:$D, 3, 0), IF(C36 = "ORSE", VLOOKUP(D36, 'SERVIÇOS ORSE'!$A:$D, 3, 0), IF(C36 = "SEINFRA", VLOOKUP(D36, 'SERVIÇOS SEINFRA'!$A:$D, 3, 0)))), IF(B36="INSUMO", IF(C36 = "SINAPI", VLOOKUP(D36, 'INSUMOS SINAPI'!$A:$D, 3, 0), IF(C36 = "ORSE", VLOOKUP(D36, 'INSUMOS ORSE'!$A:$D, 3, 0), IF(C36 = "SEINFRA", VLOOKUP(D36,'INSUMOS SEINFRA'!$A:$D, 3, 0),))))) -> MÊS | G36: 1 | H36: =IF(B36 = "SERVIÇO", IF(C36 = "SINAPI", VLOOKUP(D36, 'SERVIÇOS SINAPI'!$A:$D, 4, 0), IF(C36 = "ORSE", VLOOKUP(D36, 'SERVIÇOS ORSE'!$A:$D, 4, 0), IF(C36 = "SEINFRA", VLOOKUP(D36, 'SERVIÇOS SEINFRA'!$A:$D, 4, 0)))), IF(B36="INSUMO", IF(C36 = "SINAPI", VLOOKUP(D36, 'INSUMOS SINAPI'!$A:$D, 4, 0), IF(C36 = "ORSE", VLOOKUP(D36, 'INSUMOS ORSE'!$A:$D, 4, 0), IF(C36 = "SEINFRA", VLOOKUP(D36,'INSUMOS SEINFRA'!$A:$D, 4, 0),))))) -> 126.93 | I36: =H36*G36 -> 126.93 | J36: INSUMO
B37: SERVIÇO | C37: SINAPI | D37: 90777 | E37: =IF(B37 = "SERVIÇO", IF(C37 = "SINAPI", VLOOKUP(D37, 'SERVIÇOS SINAPI'!$A:$D, 2, 0), IF(C37 = "ORSE", VLOOKUP(D37, 'SERVIÇOS ORSE'!$A:$D, 2, 0), IF(C37 = "SEINFRA", VLOOKUP(D37, 'SERVIÇOS SEINFRA'!$A:$D, 2, 0)))), IF(B37="INSUMO", IF(C37 = "SINAPI", VLOOKUP(D37, 'INSUMOS SINAPI'!$A:$D, 2, 0), IF(C37 = "ORSE", VLOOKUP(D37, 'INSUMOS ORSE'!$A:$D, 2, 0), IF(C37 = "SEINFRA", VLOOKUP(D37,'INSUMOS SEINFRA'!$A:$D, 2, 0),))))) -> ENGENHEIRO CIVIL DE OBRA JUNIOR COM ENCARGOS COMPLEMENTARES | F37: =IF(B37 = "SERVIÇO", IF(C37 = "SINAPI", VLOOKUP(D37, 'SERVIÇOS SINAPI'!$A:$D, 3, 0), IF(C37 = "ORSE", VLOOKUP(D37, 'SERVIÇOS ORSE'!$A:$D, 3, 0), IF(C37 = "SEINFRA", VLOOKUP(D37, 'SERVIÇOS SEINFRA'!$A:$D, 3, 0)))), IF(B37="INSUMO", IF(C37 = "SINAPI", VLOOKUP(D37, 'INSUMOS SINAPI'!$A:$D, 3, 0), IF(C37 = "ORSE", VLOOKUP(D37, 'INSUMOS ORSE'!$A:$D, 3, 0), IF(C37 = "SEINFRA", VLOOKUP(D37,'INSUMOS SEINFRA'!$A:$D, 3, 0),))))) -> H | G37: 12 | H37: =IF(B37 = "SERVIÇO", IF(C37 = "SINAPI", VLOOKUP(D37, 'SERVIÇOS SINAPI'!$A:$D, 4, 0), IF(C37 = "ORSE", VLOOKUP(D37, 'SERVIÇOS ORSE'!$A:$D, 4, 0), IF(C37 = "SEINFRA", VLOOKUP(D37, 'SERVIÇOS SEINFRA'!$A:$D, 4, 0)))), IF(B37="INSUMO", IF(C37 = "SINAPI", VLOOKUP(D37, 'INSUMOS SINAPI'!$A:$D, 4, 0), IF(C37 = "ORSE", VLOOKUP(D37, 'INSUMOS ORSE'!$A:$D, 4, 0), IF(C37 = "SEINFRA", VLOOKUP(D37,'INSUMOS SEINFRA'!$A:$D, 4, 0),))))) -> 120.8 | I37: =H37*G37 -> 1449.6 | J37: =IF(B37="INSUMO","INSUMO","") -> 
B38: SERVIÇO | C38: SINAPI | D38: 100309 | E38: =IF(B38 = "SERVIÇO", IF(C38 = "SINAPI", VLOOKUP(D38, 'SERVIÇOS SINAPI'!$A:$D, 2, 0), IF(C38 = "ORSE", VLOOKUP(D38, 'SERVIÇOS ORSE'!$A:$D, 2, 0), IF(C38 = "SEINFRA", VLOOKUP(D38, 'SERVIÇOS SEINFRA'!$A:$D, 2, 0)))), IF(B38="INSUMO", IF(C38 = "SINAPI", VLOOKUP(D38, 'INSUMOS SINAPI'!$A:$D, 2, 0), IF(C38 = "ORSE", VLOOKUP(D38, 'INSUMOS ORSE'!$A:$D, 2, 0), IF(C38 = "SEINFRA", VLOOKUP(D38,'INSUMOS SEINFRA'!$A:$D, 2, 0),))))) -> TÉCNICO EM SEGURANÇA DO TRABALHO COM ENCARGOS COMPLEMENTARES | F38: =IF(B38 = "SERVIÇO", IF(C38 = "SINAPI", VLOOKUP(D38, 'SERVIÇOS SINAPI'!$A:$D, 3, 0), IF(C38 = "ORSE", VLOOKUP(D38, 'SERVIÇOS ORSE'!$A:$D, 3, 0), IF(C38 = "SEINFRA", VLOOKUP(D38, 'SERVIÇOS SEINFRA'!$A:$D, 3, 0)))), IF(B38="INSUMO", IF(C38 = "SINAPI", VLOOKUP(D38, 'INSUMOS SINAPI'!$A:$D, 3, 0), IF(C38 = "ORSE", VLOOKUP(D38, 'INSUMOS ORSE'!$A:$D, 3, 0), IF(C38 = "SEINFRA", VLOOKUP(D38,'INSUMOS SEINFRA'!$A:$D, 3, 0),))))) -> H | G38: 12 | H38: =IF(B38 = "SERVIÇO", IF(C38 = "SINAPI", VLOOKUP(D38, 'SERVIÇOS SINAPI'!$A:$D, 4, 0), IF(C38 = "ORSE", VLOOKUP(D38, 'SERVIÇOS ORSE'!$A:$D, 4, 0), IF(C38 = "SEINFRA", VLOOKUP(D38, 'SERVIÇOS SEINFRA'!$A:$D, 4, 0)))), IF(B38="INSUMO", IF(C38 = "SINAPI", VLOOKUP(D38, 'INSUMOS SINAPI'!$A:$D, 4, 0), IF(C38 = "ORSE", VLOOKUP(D38, 'INSUMOS ORSE'!$A:$D, 4, 0), IF(C38 = "SEINFRA", VLOOKUP(D38,'INSUMOS SEINFRA'!$A:$D, 4, 0),))))) -> 27.83 | I38: =H38*G38 -> 333.96 | J38: =IF(B38="INSUMO","INSUMO","") -> 
B39: SERVIÇO | C39: SINAPI | D39: 90776 | E39: =IF(B39 = "SERVIÇO", IF(C39 = "SINAPI", VLOOKUP(D39, 'SERVIÇOS SINAPI'!$A:$D, 2, 0), IF(C39 = "ORSE", VLOOKUP(D39, 'SERVIÇOS ORSE'!$A:$D, 2, 0), IF(C39 = "SEINFRA", VLOOKUP(D39, 'SERVIÇOS SEINFRA'!$A:$D, 2, 0)))), IF(B39="INSUMO", IF(C39 = "SINAPI", VLOOKUP(D39, 'INSUMOS SINAPI'!$A:$D, 2, 0), IF(C39 = "ORSE", VLOOKUP(D39, 'INSUMOS ORSE'!$A:$D, 2, 0), IF(C39 = "SEINFRA", VLOOKUP(D39,'INSUMOS SEINFRA'!$A:$D, 2, 0),))))) -> ENCARREGADO GERAL COM ENCARGOS COMPLEMENTARES | F39: =IF(B39 = "SERVIÇO", IF(C39 = "SINAPI", VLOOKUP(D39, 'SERVIÇOS SINAPI'!$A:$D, 3, 0), IF(C39 = "ORSE", VLOOKUP(D39, 'SERVIÇOS ORSE'!$A:$D, 3, 0), IF(C39 = "SEINFRA", VLOOKUP(D39, 'SERVIÇOS SEINFRA'!$A:$D, 3, 0)))), IF(B39="INSUMO", IF(C39 = "SINAPI", VLOOKUP(D39, 'INSUMOS SINAPI'!$A:$D, 3, 0), IF(C39 = "ORSE", VLOOKUP(D39, 'INSUMOS ORSE'!$A:$D, 3, 0), IF(C39 = "SEINFRA", VLOOKUP(D39,'INSUMOS SEINFRA'!$A:$D, 3, 0),))))) -> H | G39: 30 | H39: =IF(B39 = "SERVIÇO", IF(C39 = "SINAPI", VLOOKUP(D39, 'SERVIÇOS SINAPI'!$A:$D, 4, 0), IF(C39 = "ORSE", VLOOKUP(D39, 'SERVIÇOS ORSE'!$A:$D, 4, 0), IF(C39 = "SEINFRA", VLOOKUP(D39, 'SERVIÇOS SEINFRA'!$A:$D, 4, 0)))), IF(B39="INSUMO", IF(C39 = "SINAPI", VLOOKUP(D39, 'INSUMOS SINAPI'!$A:$D, 4, 0), IF(C39 = "ORSE", VLOOKUP(D39, 'INSUMOS ORSE'!$A:$D, 4, 0), IF(C39 = "SEINFRA", VLOOKUP(D39,'INSUMOS SEINFRA'!$A:$D, 4, 0),))))) -> 39.14 | I39: 1174.2
B40: SERVIÇO | C40: SINAPI | D40: 90772 | E40: =IF(B40 = "SERVIÇO", IF(C40 = "SINAPI", VLOOKUP(D40, 'SERVIÇOS SINAPI'!$A:$D, 2, 0), IF(C40 = "ORSE", VLOOKUP(D40, 'SERVIÇOS ORSE'!$A:$D, 2, 0), IF(C40 = "SEINFRA", VLOOKUP(D40, 'SERVIÇOS SEINFRA'!$A:$D, 2, 0)))), IF(B40="INSUMO", IF(C40 = "SINAPI", VLOOKUP(D40, 'INSUMOS SINAPI'!$A:$D, 2, 0), IF(C40 = "ORSE", VLOOKUP(D40, 'INSUMOS ORSE'!$A:$D, 2, 0), IF(C40 = "SEINFRA", VLOOKUP(D40,'INSUMOS SEINFRA'!$A:$D, 2, 0),))))) -> AUXILIAR DE ESCRITORIO COM ENCARGOS COMPLEMENTARES | F40: =IF(B40 = "SERVIÇO", IF(C40 = "SINAPI", VLOOKUP(D40, 'SERVIÇOS SINAPI'!$A:$D, 3, 0), IF(C40 = "ORSE", VLOOKUP(D40, 'SERVIÇOS ORSE'!$A:$D, 3, 0), IF(C40 = "SEINFRA", VLOOKUP(D40, 'SERVIÇOS SEINFRA'!$A:$D, 3, 0)))), IF(B40="INSUMO", IF(C40 = "SINAPI", VLOOKUP(D40, 'INSUMOS SINAPI'!$A:$D, 3, 0), IF(C40 = "ORSE", VLOOKUP(D40, 'INSUMOS ORSE'!$A:$D, 3, 0), IF(C40 = "SEINFRA", VLOOKUP(D40,'INSUMOS SEINFRA'!$A:$D, 3, 0),))))) -> H | G40: 50 | H40: =IF(B40 = "SERVIÇO", IF(C40 = "SINAPI", VLOOKUP(D40, 'SERVIÇOS SINAPI'!$A:$D, 4, 0), IF(C40 = "ORSE", VLOOKUP(D40, 'SERVIÇOS ORSE'!$A:$D, 4, 0), IF(C40 = "SEINFRA", VLOOKUP(D40, 'SERVIÇOS SEINFRA'!$A:$D, 4, 0)))), IF(B40="INSUMO", IF(C40 = "SINAPI", VLOOKUP(D40, 'INSUMOS SINAPI'!$A:$D, 4, 0), IF(C40 = "ORSE", VLOOKUP(D40, 'INSUMOS ORSE'!$A:$D, 4, 0), IF(C40 = "SEINFRA", VLOOKUP(D40,'INSUMOS SEINFRA'!$A:$D, 4, 0),))))) -> 18.16 | I40: 908
H42: SUB-TOTAL | I42: =SUM(I36:I41) -> 3992.69 | J42: =IF(B42="INSUMO","INSUMO","") -> 
E43: SERVIÇOS / EQUIPAMENTOS | J43: =IF(B43="INSUMO","INSUMO","") -> 
B44: TIPO | C44: REFER. | D44: CÓDIGO | E44: DISCRIMINAÇÃO | F44: UNID. | G44: QUANT. | H44: P.UNIT. | I44: P.TOTAL | J44: =IF(B44="INSUMO","INSUMO","") -> 
B45: INSUMO | C45: SINAPI | D45: 14250 | E45: =IF(B45 = "SERVIÇO", IF(C45 = "SINAPI", VLOOKUP(D45, 'SERVIÇOS SINAPI'!$A:$D, 2, 0), IF(C45 = "ORSE", VLOOKUP(D45, 'SERVIÇOS ORSE'!$A:$D, 2, 0), IF(C45 = "SEINFRA", VLOOKUP(D45, 'SERVIÇOS SEINFRA'!$A:$D, 2, 0)))), IF(B45="INSUMO", IF(C45 = "SINAPI", VLOOKUP(D45, 'INSUMOS SINAPI'!$A:$D, 2, 0), IF(C45 = "ORSE", VLOOKUP(D45, 'INSUMOS ORSE'!$A:$D, 2, 0), IF(C45 = "SEINFRA", VLOOKUP(D45,'INSUMOS SEINFRA'!$A:$D, 2, 0),))))) -> ENERGIA ELETRICA COMERCIAL, BAIXA TENSAO, RELATIVA AO CONSUMO DE ATE 100 KWH, INCLUINDO ICMS, PIS/PASEP E COFINS | F45: =IF(B45 = "SERVIÇO", IF(C45 = "SINAPI", VLOOKUP(D45, 'SERVIÇOS SINAPI'!$A:$D, 3, 0), IF(C45 = "ORSE", VLOOKUP(D45, 'SERVIÇOS ORSE'!$A:$D, 3, 0), IF(C45 = "SEINFRA", VLOOKUP(D45, 'SERVIÇOS SEINFRA'!$A:$D, 3, 0)))), IF(B45="INSUMO", IF(C45 = "SINAPI", VLOOKUP(D45, 'INSUMOS SINAPI'!$A:$D, 3, 0), IF(C45 = "ORSE", VLOOKUP(D45, 'INSUMOS ORSE'!$A:$D, 3, 0), IF(C45 = "SEINFRA", VLOOKUP(D45,'INSUMOS SEINFRA'!$A:$D, 3, 0),))))) -> KWH | G45: 300 | H45: =IF(B45 = "SERVIÇO", IF(C45 = "SINAPI", VLOOKUP(D45, 'SERVIÇOS SINAPI'!$A:$D, 4, 0), IF(C45 = "ORSE", VLOOKUP(D45, 'SERVIÇOS ORSE'!$A:$D, 4, 0), IF(C45 = "SEINFRA", VLOOKUP(D45, 'SERVIÇOS SEINFRA'!$A:$D, 4, 0)))), IF(B45="INSUMO", IF(C45 = "SINAPI", VLOOKUP(D45, 'INSUMOS SINAPI'!$A:$D, 4, 0), IF(C45 = "ORSE", VLOOKUP(D45, 'INSUMOS ORSE'!$A:$D, 4, 0), IF(C45 = "SEINFRA", VLOOKUP(D45,'INSUMOS SEINFRA'!$A:$D, 4, 0),))))) -> 1 | I45: =H45*G45 -> 300 | J45: =IF(B45="INSUMO","INSUMO","") -> INSUMO
B46: INSUMO | C46: ORSE | D46: =8978 -> 8978 | E46: =IF(B46 = "SERVIÇO", IF(C46 = "SINAPI", VLOOKUP(D46, 'SERVIÇOS SINAPI'!$A:$D, 2, 0), IF(C46 = "ORSE", VLOOKUP(D46, 'SERVIÇOS ORSE'!$A:$D, 2, 0), IF(C46 = "SEINFRA", VLOOKUP(D46, 'SERVIÇOS SEINFRA'!$A:$D, 2, 0)))), IF(B46="INSUMO", IF(C46 = "SINAPI", VLOOKUP(D46, 'INSUMOS SINAPI'!$A:$D, 2, 0), IF(C46 = "ORSE", VLOOKUP(D46, 'INSUMOS ORSE'!$A:$D, 2, 0), IF(C46 = "SEINFRA", VLOOKUP(D46,'INSUMOS SEINFRA'!$A:$D, 2, 0),))))) -> ÁGUA - CONSUMO EM VOLUME | F46: =IF(B46 = "SERVIÇO", IF(C46 = "SINAPI", VLOOKUP(D46, 'SERVIÇOS SINAPI'!$A:$D, 3, 0), IF(C46 = "ORSE", VLOOKUP(D46, 'SERVIÇOS ORSE'!$A:$D, 3, 0), IF(C46 = "SEINFRA", VLOOKUP(D46, 'SERVIÇOS SEINFRA'!$A:$D, 3, 0)))), IF(B46="INSUMO", IF(C46 = "SINAPI", VLOOKUP(D46, 'INSUMOS SINAPI'!$A:$D, 3, 0), IF(C46 = "ORSE", VLOOKUP(D46, 'INSUMOS ORSE'!$A:$D, 3, 0), IF(C46 = "SEINFRA", VLOOKUP(D46,'INSUMOS SEINFRA'!$A:$D, 3, 0),))))) -> M³ | G46: 21 | H46: =IF(B46 = "SERVIÇO", IF(C46 = "SINAPI", VLOOKUP(D46, 'SERVIÇOS SINAPI'!$A:$D, 4, 0), IF(C46 = "ORSE", VLOOKUP(D46, 'SERVIÇOS ORSE'!$A:$D, 4, 0), IF(C46 = "SEINFRA", VLOOKUP(D46, 'SERVIÇOS SEINFRA'!$A:$D, 4, 0)))), IF(B46="INSUMO", IF(C46 = "SINAPI", VLOOKUP(D46, 'INSUMOS SINAPI'!$A:$D, 4, 0), IF(C46 = "ORSE", VLOOKUP(D46, 'INSUMOS ORSE'!$A:$D, 4, 0), IF(C46 = "SEINFRA", VLOOKUP(D46,'INSUMOS SEINFRA'!$A:$D, 4, 0),))))) -> 3.77 | I46: 79.17 | J46: INSUMO
B47: INSUMO | C47: ORSE | D47: 4415 | E47: =IF(B47 = "SERVIÇO", IF(C47 = "SINAPI", VLOOKUP(D47, 'SERVIÇOS SINAPI'!$A:$D, 2, 0), IF(C47 = "ORSE", VLOOKUP(D47, 'SERVIÇOS ORSE'!$A:$D, 2, 0), IF(C47 = "SEINFRA", VLOOKUP(D47, 'SERVIÇOS SEINFRA'!$A:$D, 2, 0)))), IF(B47="INSUMO", IF(C47 = "SINAPI", VLOOKUP(D47, 'INSUMOS SINAPI'!$A:$D, 2, 0), IF(C47 = "ORSE", VLOOKUP(D47, 'INSUMOS ORSE'!$A:$D, 2, 0), IF(C47 = "SEINFRA", VLOOKUP(D47,'INSUMOS SEINFRA'!$A:$D, 2, 0),))))) -> VEÍCULO LEVE - VOLKSWAGEN:GOL OU SIMILAR | F47: =IF(B47 = "SERVIÇO", IF(C47 = "SINAPI", VLOOKUP(D47, 'SERVIÇOS SINAPI'!$A:$D, 3, 0), IF(C47 = "ORSE", VLOOKUP(D47, 'SERVIÇOS ORSE'!$A:$D, 3, 0), IF(C47 = "SEINFRA", VLOOKUP(D47, 'SERVIÇOS SEINFRA'!$A:$D, 3, 0)))), IF(B47="INSUMO", IF(C47 = "SINAPI", VLOOKUP(D47, 'INSUMOS SINAPI'!$A:$D, 3, 0), IF(C47 = "ORSE", VLOOKUP(D47, 'INSUMOS ORSE'!$A:$D, 3, 0), IF(C47 = "SEINFRA", VLOOKUP(D47,'INSUMOS SEINFRA'!$A:$D, 3, 0),))))) -> H | G47: 43.06 | H47: =IF(B47 = "SERVIÇO", IF(C47 = "SINAPI", VLOOKUP(D47, 'SERVIÇOS SINAPI'!$A:$D, 4, 0), IF(C47 = "ORSE", VLOOKUP(D47, 'SERVIÇOS ORSE'!$A:$D, 4, 0), IF(C47 = "SEINFRA", VLOOKUP(D47, 'SERVIÇOS SEINFRA'!$A:$D, 4, 0)))), IF(B47="INSUMO", IF(C47 = "SINAPI", VLOOKUP(D47, 'INSUMOS SINAPI'!$A:$D, 4, 0), IF(C47 = "ORSE", VLOOKUP(D47, 'INSUMOS ORSE'!$A:$D, 4, 0), IF(C47 = "SEINFRA", VLOOKUP(D47,'INSUMOS SEINFRA'!$A:$D, 4, 0),))))) -> 13.18 | I47: =H47*G47 -> 567.53 | J47: =IF(B47="INSUMO","INSUMO","") -> INSUMO
H48: SUB-TOTAL | I48: =SUM(I45:I47) -> 946.7 | J48: =IF(B48="INSUMO","INSUMO","") -> 
B49: TOTAL MENSAL DO SERVIÇO - R$ | I49: =I48+I42 -> 4939.39
B50: MESES | I50: 4
B51: TOTAL DO SERVIÇO - R$ | I51: =I49*I50 -> 19757.56 | J51: =IF(#REF!="INSUMO","INSUMO","") -> 
J52: =IF(B52="INSUMO","INSUMO","") -> 
B53: CODEVASF | C53: ITEM | D53: TIPO | E53: COMPOSIÇÃO DE PREÇO UNITÁRIO | F53: ='Planilha Orçamentária'!$J$4 -> MAIO DE 2024 | H53: UNIDADE: | I53: MES
B54: CPU 04 | C54: ='Planilha Orçamentária'!B16 -> 1.5 | D54: SERVIÇO / MATERIAL: | E54: ='Planilha Orçamentária'!$F$16 -> CANTEIRO DE OBRAS E ALMOXARIFADO | F54: COMP. DE REFERÊNCIA: | H54: CÓDIGO:
E55: MATERIAIS / MÃO DE OBRA
B56: TIPO | C56: REFER. | D56: CÓDIGO | E56: DISCRIMINAÇÃO | F56: UNID. | G56: QUANT. | H56: P.UNIT. | I56: P.TOTAL
H58: SUB-TOTAL | I58: =SUM(I57:I57) -> 0 | J58: =IF(B58="INSUMO","INSUMO","") -> 
E59: SERVIÇOS / EQUIPAMENTOS | J59: =IF(B59="INSUMO","INSUMO","") -> 
B60: TIPO | C60: REFER. | D60: CÓDIGO | E60: DISCRIMINAÇÃO | F60: UNID. | G60: QUANT. | H60: P.UNIT. | I60: P.TOTAL | J60: =IF(B60="INSUMO","INSUMO","") -> 
B61: INSUMO | C61: SINAPI | D61: 10776 | E61: =IF(B61 = "SERVIÇO", IF(C61 = "SINAPI", VLOOKUP(D61, 'SERVIÇOS SINAPI'!$A:$D, 2, 0), IF(C61 = "ORSE", VLOOKUP(D61, 'SERVIÇOS ORSE'!$A:$D, 2, 0), IF(C61 = "SEINFRA", VLOOKUP(D61, 'SERVIÇOS SEINFRA'!$A:$D, 2, 0)))), IF(B61="INSUMO", IF(C61 = "SINAPI", VLOOKUP(D61, 'INSUMOS SINAPI'!$A:$D, 2, 0), IF(C61 = "ORSE", VLOOKUP(D61, 'INSUMOS ORSE'!$A:$D, 2, 0), IF(C61 = "SEINFRA", VLOOKUP(D61,'INSUMOS SEINFRA'!$A:$D, 2, 0),))))) -> LOCACAO DE CONTAINER 2,30 X 6,00 M, ALT. 2,50 M, PARA ESCRITORIO, SEM DIVISORIAS INTERNAS E SEM SANITARIO (NAO INCLUI MOBILIZACAO/DESMOBILIZACAO) | F61: =IF(B61 = "SERVIÇO", IF(C61 = "SINAPI", VLOOKUP(D61, 'SERVIÇOS SINAPI'!$A:$D, 3, 0), IF(C61 = "ORSE", VLOOKUP(D61, 'SERVIÇOS ORSE'!$A:$D, 3, 0), IF(C61 = "SEINFRA", VLOOKUP(D61, 'SERVIÇOS SEINFRA'!$A:$D, 3, 0)))), IF(B61="INSUMO", IF(C61 = "SINAPI", VLOOKUP(D61, 'INSUMOS SINAPI'!$A:$D, 3, 0), IF(C61 = "ORSE", VLOOKUP(D61, 'INSUMOS ORSE'!$A:$D, 3, 0), IF(C61 = "SEINFRA", VLOOKUP(D61,'INSUMOS SEINFRA'!$A:$D, 3, 0),))))) -> MES | G61: 1 | H61: =IF(B61 = "SERVIÇO", IF(C61 = "SINAPI", VLOOKUP(D61, 'SERVIÇOS SINAPI'!$A:$D, 4, 0), IF(C61 = "ORSE", VLOOKUP(D61, 'SERVIÇOS ORSE'!$A:$D, 4, 0), IF(C61 = "SEINFRA", VLOOKUP(D61, 'SERVIÇOS SEINFRA'!$A:$D, 4, 0)))), IF(B61="INSUMO", IF(C61 = "SINAPI", VLOOKUP(D61, 'INSUMOS SINAPI'!$A:$D, 4, 0), IF(C61 = "ORSE", VLOOKUP(D61, 'INSUMOS ORSE'!$A:$D, 4, 0), IF(C61 = "SEINFRA", VLOOKUP(D61,'INSUMOS SEINFRA'!$A:$D, 4, 0),))))) -> 640.62 | I61: =H61*G61 -> 640.62 | J61: =IF(B61="INSUMO","INSUMO","") -> INSUMO
B62: INSUMO | C62: SINAPI | D62: 10775 | E62: =IF(B62 = "SERVIÇO", IF(C62 = "SINAPI", VLOOKUP(D62, 'SERVIÇOS SINAPI'!$A:$D, 2, 0), IF(C62 = "ORSE", VLOOKUP(D62, 'SERVIÇOS ORSE'!$A:$D, 2, 0), IF(C62 = "SEINFRA", VLOOKUP(D62, 'SERVIÇOS SEINFRA'!$A:$D, 2, 0)))), IF(B62="INSUMO", IF(C62 = "SINAPI", VLOOKUP(D62, 'INSUMOS SINAPI'!$A:$D, 2, 0), IF(C62 = "ORSE", VLOOKUP(D62, 'INSUMOS ORSE'!$A:$D, 2, 0), IF(C62 = "SEINFRA", VLOOKUP(D62,'INSUMOS SEINFRA'!$A:$D, 2, 0),))))) -> LOCACAO DE CONTAINER 2,30 X 6,00 M, ALT. 2,50 M, COM 1 SANITARIO, PARA ESCRITORIO, COMPLETO, SEM DIVISORIAS INTERNAS (NAO INCLUI MOBILIZACAO/DESMOBILIZACAO) | F62: =IF(B62 = "SERVIÇO", IF(C62 = "SINAPI", VLOOKUP(D62, 'SERVIÇOS SINAPI'!$A:$D, 3, 0), IF(C62 = "ORSE", VLOOKUP(D62, 'SERVIÇOS ORSE'!$A:$D, 3, 0), IF(C62 = "SEINFRA", VLOOKUP(D62, 'SERVIÇOS SEINFRA'!$A:$D, 3, 0)))), IF(B62="INSUMO", IF(C62 = "SINAPI", VLOOKUP(D62, 'INSUMOS SINAPI'!$A:$D, 3, 0), IF(C62 = "ORSE", VLOOKUP(D62, 'INSUMOS ORSE'!$A:$D, 3, 0), IF(C62 = "SEINFRA", VLOOKUP(D62,'INSUMOS SEINFRA'!$A:$D, 3, 0),))))) -> MES | G62: 1 | H62: =IF(B62 = "SERVIÇO", IF(C62 = "SINAPI", VLOOKUP(D62, 'SERVIÇOS SINAPI'!$A:$D, 4, 0), IF(C62 = "ORSE", VLOOKUP(D62, 'SERVIÇOS ORSE'!$A:$D, 4, 0), IF(C62 = "SEINFRA", VLOOKUP(D62, 'SERVIÇOS SEINFRA'!$A:$D, 4, 0)))), IF(B62="INSUMO", IF(C62 = "SINAPI", VLOOKUP(D62, 'INSUMOS SINAPI'!$A:$D, 4, 0), IF(C62 = "ORSE", VLOOKUP(D62, 'INSUMOS ORSE'!$A:$D, 4, 0), IF(C62 = "SEINFRA", VLOOKUP(D62,'INSUMOS SEINFRA'!$A:$D, 4, 0),))))) -> 820 | I62: 820 | J62: INSUMO
H63: SUB-TOTAL | I63: =SUM(I61:I62) -> 1460.62 | J63: =IF(B63="INSUMO","INSUMO","") -> 
B64: TOTAL MENSAL DO SERVIÇO - R$ | I64: =I63+I58 -> 1460.62
B65: TOTAL DO SERVIÇO - R$ | I65: =I64 -> 1460.62 | J65: =IF(#REF!="INSUMO","INSUMO","") -> 
J66: =IF(B66="INSUMO","INSUMO","") -> 
B67: CODEVASF | C67: ITEM | D67: TIPO | E67: COMPOSIÇÃO DE PREÇO UNITÁRIO | F67: ='Planilha Orçamentária'!$J$4 -> MAIO DE 2024 | H67: UNIDADE: | I67: UN
B68: CPU 05 | C68: ='Planilha Orçamentária'!B18 -> 2.1 | D68: SERVIÇO / MATERIAL: | E68: ='Planilha Orçamentária'!$F$18 -> REVISÃO E ADEQUAÇÃO DO PROJETO ESTRUTURAL | F68: COMP. DE REFERÊNCIA: | H68: CÓDIGO: | J68: =IF(B68="INSUMO","INSUMO","") -> 
E69: MATERIAIS / MÃO DE OBRA
B70: TIPO | C70: REFER. | D70: CÓDIGO | E70: DISCRIMINAÇÃO | F70: UNID. | G70: QUANT. | H70: P.UNIT. | I70: P.TOTAL
B71: SERVIÇO | C71: SINAPI | D71: 90777 | E71: =IF(B71 = "SERVIÇO", IF(C71 = "SINAPI", VLOOKUP(D71, 'SERVIÇOS SINAPI'!$A:$D, 2, 0), IF(C71 = "ORSE", VLOOKUP(D71, 'SERVIÇOS ORSE'!$A:$D, 2, 0), IF(C71 = "SEINFRA", VLOOKUP(D71, 'SERVIÇOS SEINFRA'!$A:$D, 2, 0)))), IF(B71="INSUMO", IF(C71 = "SINAPI", VLOOKUP(D71, 'INSUMOS SINAPI'!$A:$D, 2, 0), IF(C71 = "ORSE", VLOOKUP(D71, 'INSUMOS ORSE'!$A:$D, 2, 0), IF(C71 = "SEINFRA", VLOOKUP(D71,'INSUMOS SEINFRA'!$A:$D, 2, 0),))))) -> ENGENHEIRO CIVIL DE OBRA JUNIOR COM ENCARGOS COMPLEMENTARES | F71: =IF(B71 = "SERVIÇO", IF(C71 = "SINAPI", VLOOKUP(D71, 'SERVIÇOS SINAPI'!$A:$D, 3, 0), IF(C71 = "ORSE", VLOOKUP(D71, 'SERVIÇOS ORSE'!$A:$D, 3, 0), IF(C71 = "SEINFRA", VLOOKUP(D71, 'SERVIÇOS SEINFRA'!$A:$D, 3, 0)))), IF(B71="INSUMO", IF(C71 = "SINAPI", VLOOKUP(D71, 'INSUMOS SINAPI'!$A:$D, 3, 0), IF(C71 = "ORSE", VLOOKUP(D71, 'INSUMOS ORSE'!$A:$D, 3, 0), IF(C71 = "SEINFRA", VLOOKUP(D71,'INSUMOS SEINFRA'!$A:$D, 3, 0),))))) -> H | G71: 20 | H71: =IF(B71 = "SERVIÇO", IF(C71 = "SINAPI", VLOOKUP(D71, 'SERVIÇOS SINAPI'!$A:$D, 4, 0), IF(C71 = "ORSE", VLOOKUP(D71, 'SERVIÇOS ORSE'!$A:$D, 4, 0), IF(C71 = "SEINFRA", VLOOKUP(D71, 'SERVIÇOS SEINFRA'!$A:$D, 4, 0)))), IF(B71="INSUMO", IF(C71 = "SINAPI", VLOOKUP(D71, 'INSUMOS SINAPI'!$A:$D, 4, 0), IF(C71 = "ORSE", VLOOKUP(D71, 'INSUMOS ORSE'!$A:$D, 4, 0), IF(C71 = "SEINFRA", VLOOKUP(D71,'INSUMOS SEINFRA'!$A:$D, 4, 0),))))) -> 120.8 | I71: =H71*G71 -> 2416
H72: SUB-TOTAL | I72: =SUM(I71:I71) -> 2416
E73: SERVIÇOS / EQUIPAMENTOS
B74: TIPO | C74: REFER. | D74: CÓDIGO | E74: DISCRIMINAÇÃO | F74: UNID. | G74: QUANT. | H74: P.UNIT. | I74: P.TOTAL
H77: SUB-TOTAL | I77: =SUM(I75:I76) -> 0 | J77: =IF(B77="INSUMO","INSUMO","") -> 
F78: TOTAL DO SERVIÇO - R$ | I78: =I77 + I72 -> 2416
J79: =IF(B79="INSUMO","INSUMO","") -> 
B80: CODEVASF | C80: ITEM | D80: TIPO | E80: COMPOSIÇÃO DE PREÇO UNITÁRIO | F80: ='Planilha Orçamentária'!$J$4 -> MAIO DE 2024 | H80: UNIDADE: | I80: UN
B81: CPU 06 | C81: ='Planilha Orçamentária'!B19 -> 2.2 | D81: SERVIÇO / MATERIAL: | E81: ='Planilha Orçamentária'!$F$19 -> REVISÃO E ADEQUAÇÃO DO PROJETO ELÉTRICO | F81: COMP. DE REFERÊNCIA: | H81: CÓDIGO: | J81: =IF(B81="INSUMO","INSUMO","") -> 
E82: MATERIAIS / MÃO DE OBRA
B83: TIPO | C83: REFER. | D83: CÓDIGO | E83: DISCRIMINAÇÃO | F83: UNID. | G83: QUANT. | H83: P.UNIT. | I83: P.TOTAL
B84: SERVIÇO | C84: SINAPI | D84: 90777 | E84: =IF(B84 = "SERVIÇO", IF(C84 = "SINAPI", VLOOKUP(D84, 'SERVIÇOS SINAPI'!$A:$D, 2, 0), IF(C84 = "ORSE", VLOOKUP(D84, 'SERVIÇOS ORSE'!$A:$D, 2, 0), IF(C84 = "SEINFRA", VLOOKUP(D84, 'SERVIÇOS SEINFRA'!$A:$D, 2, 0)))), IF(B84="INSUMO", IF(C84 = "SINAPI", VLOOKUP(D84, 'INSUMOS SINAPI'!$A:$D, 2, 0), IF(C84 = "ORSE", VLOOKUP(D84, 'INSUMOS ORSE'!$A:$D, 2, 0), IF(C84 = "SEINFRA", VLOOKUP(D84,'INSUMOS SEINFRA'!$A:$D, 2, 0),))))) -> ENGENHEIRO CIVIL DE OBRA JUNIOR COM ENCARGOS COMPLEMENTARES | F84: =IF(B84 = "SERVIÇO", IF(C84 = "SINAPI", VLOOKUP(D84, 'SERVIÇOS SINAPI'!$A:$D, 3, 0), IF(C84 = "ORSE", VLOOKUP(D84, 'SERVIÇOS ORSE'!$A:$D, 3, 0), IF(C84 = "SEINFRA", VLOOKUP(D84, 'SERVIÇOS SEINFRA'!$A:$D, 3, 0)))), IF(B84="INSUMO", IF(C84 = "SINAPI", VLOOKUP(D84, 'INSUMOS SINAPI'!$A:$D, 3, 0), IF(C84 = "ORSE", VLOOKUP(D84, 'INSUMOS ORSE'!$A:$D, 3, 0), IF(C84 = "SEINFRA", VLOOKUP(D84,'INSUMOS SEINFRA'!$A:$D, 3, 0),))))) -> H | G84: 15 | H84: =IF(B84 = "SERVIÇO", IF(C84 = "SINAPI", VLOOKUP(D84, 'SERVIÇOS SINAPI'!$A:$D, 4, 0), IF(C84 = "ORSE", VLOOKUP(D84, 'SERVIÇOS ORSE'!$A:$D, 4, 0), IF(C84 = "SEINFRA", VLOOKUP(D84, 'SERVIÇOS SEINFRA'!$A:$D, 4, 0)))), IF(B84="INSUMO", IF(C84 = "SINAPI", VLOOKUP(D84, 'INSUMOS SINAPI'!$A:$D, 4, 0), IF(C84 = "ORSE", VLOOKUP(D84, 'INSUMOS ORSE'!$A:$D, 4, 0), IF(C84 = "SEINFRA", VLOOKUP(D84,'INSUMOS SEINFRA'!$A:$D, 4, 0),))))) -> 120.8 | I84: =H84*G84 -> 1812
H85: SUB-TOTAL | I85: =SUM(I84:I84) -> 1812
E86: SERVIÇOS / EQUIPAMENTOS
B87: TIPO | C87: REFER. | D87: CÓDIGO | E87: DISCRIMINAÇÃO | F87: UNID. | G87: QUANT. | H87: P.UNIT. | I87: P.TOTAL
H90: SUB-TOTAL | I90: =SUM(I88:I89) -> 0 | J90: =IF(B90="INSUMO","INSUMO","") -> 
F91: TOTAL DO SERVIÇO - R$ | I91: =I90 + I85 -> 1812
B93: CODEVASF | C93: ITEM | D93: TIPO | E93: COMPOSIÇÃO DE PREÇO UNITÁRIO | F93: ='Planilha Orçamentária'!$J$4 -> MAIO DE 2024 | H93: UNIDADE: | I93: UN
B94: CPU 07 | C94: ='Planilha Orçamentária'!B20 -> 2.3 | D94: SERVIÇO / MATERIAL: | E94: ='Planilha Orçamentária'!$F$20 -> REVISÃO E ADEQUAÇÃO DO PROJETO HIDROSSANITÁRIO | F94: COMP. DE REFERÊNCIA: | H94: CÓDIGO: | J94: =IF(B94="INSUMO","INSUMO","") -> 
E95: MATERIAIS / MÃO DE OBRA
B96: TIPO | C96: REFER. | D96: CÓDIGO | E96: DISCRIMINAÇÃO | F96: UNID. | G96: QUANT. | H96: P.UNIT. | I96: P.TOTAL
B97: SERVIÇO | C97: SINAPI | D97: 90777 | E97: =IF(B97 = "SERVIÇO", IF(C97 = "SINAPI", VLOOKUP(D97, 'SERVIÇOS SINAPI'!$A:$D, 2, 0), IF(C97 = "ORSE", VLOOKUP(D97, 'SERVIÇOS ORSE'!$A:$D, 2, 0), IF(C97 = "SEINFRA", VLOOKUP(D97, 'SERVIÇOS SEINFRA'!$A:$D, 2, 0)))), IF(B97="INSUMO", IF(C97 = "SINAPI", VLOOKUP(D97, 'INSUMOS SINAPI'!$A:$D, 2, 0), IF(C97 = "ORSE", VLOOKUP(D97, 'INSUMOS ORSE'!$A:$D, 2, 0), IF(C97 = "SEINFRA", VLOOKUP(D97,'INSUMOS SEINFRA'!$A:$D, 2, 0),))))) -> ENGENHEIRO CIVIL DE OBRA JUNIOR COM ENCARGOS COMPLEMENTARES | F97: =IF(B97 = "SERVIÇO", IF(C97 = "SINAPI", VLOOKUP(D97, 'SERVIÇOS SINAPI'!$A:$D, 3, 0), IF(C97 = "ORSE", VLOOKUP(D97, 'SERVIÇOS ORSE'!$A:$D, 3, 0), IF(C97 = "SEINFRA", VLOOKUP(D97, 'SERVIÇOS SEINFRA'!$A:$D, 3, 0)))), IF(B97="INSUMO", IF(C97 = "SINAPI", VLOOKUP(D97, 'INSUMOS SINAPI'!$A:$D, 3, 0), IF(C97 = "ORSE", VLOOKUP(D97, 'INSUMOS ORSE'!$A:$D, 3, 0), IF(C97 = "SEINFRA", VLOOKUP(D97,'INSUMOS SEINFRA'!$A:$D, 3, 0),))))) -> H | G97: 15 | H97: =IF(B97 = "SERVIÇO", IF(C97 = "SINAPI", VLOOKUP(D97, 'SERVIÇOS SINAPI'!$A:$D, 4, 0), IF(C97 = "ORSE", VLOOKUP(D97, 'SERVIÇOS ORSE'!$A:$D, 4, 0), IF(C97 = "SEINFRA", VLOOKUP(D97, 'SERVIÇOS SEINFRA'!$A:$D, 4, 0)))), IF(B97="INSUMO", IF(C97 = "SINAPI", VLOOKUP(D97, 'INSUMOS SINAPI'!$A:$D, 4, 0), IF(C97 = "ORSE", VLOOKUP(D97, 'INSUMOS ORSE'!$A:$D, 4, 0), IF(C97 = "SEINFRA", VLOOKUP(D97,'INSUMOS SEINFRA'!$A:$D, 4, 0),))))) -> 120.8 | I97: =H97*G97 -> 1812
H98: SUB-TOTAL | I98: =SUM(I97:I97) -> 1812
E99: SERVIÇOS / EQUIPAMENTOS
B100: TIPO | C100: REFER. | D100: CÓDIGO | E100: DISCRIMINAÇÃO | F100: UNID. | G100: QUANT. | H100: P.UNIT. | I100: P.TOTAL
H103: SUB-TOTAL | I103: =SUM(I101:I102) -> 0 | J103: =IF(B103="INSUMO","INSUMO","") -> 
F104: TOTAL DO SERVIÇO - R$ | I104: =I103 + I98 -> 1812
B106: CODEVASF | C106: ITEM | D106: TIPO | E106: COMPOSIÇÃO DE PREÇO UNITÁRIO | F106: ='Planilha Orçamentária'!$J$4 -> MAIO DE 2024 | H106: UNIDADE: | I106: KM
B107: CPU 08 | C107: ='Planilha Orçamentária'!B91 -> 7.19 | D107: SERVIÇO / MATERIAL: | E107: ='Planilha Orçamentária'!$F$126 -> REDE DE DISTRIBUIÇÃO SECUNDÁRIA,CABO DE ALUMINIO 0,6/1KV MULTIPLEXADOS 3X1X25 +25MM², TENSÃO DE 380V, COM ESTRUTURA DE ALINHAMENTO EM POSTE DE CONCRETO ARMADO DUPLO T 150/9 (CONDUTOR INCLUSO E TRANSFORMADOR NÃO INCLUSOS) | F107: COMP. DE REFERÊNCIA: | H107: CÓDIGO:
E108: MATERIAIS / MÃO DE OBRA
B109: TIPO | C109: REFER. | D109: CÓDIGO | E109: DISCRIMINAÇÃO | F109: UNID. | G109: QUANT. | H109: P.UNIT. | I109: P.TOTAL
B110: INSUMO | C110: ORSE | D110: 4622 | E110: =IF(B110 = "SERVIÇO", IF(C110 = "SINAPI", VLOOKUP(D110, 'SERVIÇOS SINAPI'!$A:$D, 2, 0), IF(C110 = "ORSE", VLOOKUP(D110, 'SERVIÇOS ORSE'!$A:$D, 2, 0), IF(C110 = "SEINFRA", VLOOKUP(D110, 'SERVIÇOS SEINFRA'!$A:$D, 2, 0)))), IF(B110="INSUMO", IF(C110 = "SINAPI", VLOOKUP(D110, 'INSUMOS SINAPI'!$A:$D, 2, 0), IF(C110 = "ORSE", VLOOKUP(D110, 'INSUMOS ORSE'!$A:$D, 2, 0), IF(C110 = "SEINFRA", VLOOKUP(D110,'INSUMOS SEINFRA'!$A:$D, 2, 0),))))) -> CABO DE ALUMINIO 0,6/1KV MULTIPLEXADOS 3X1X25 +25MM² | F110: =IF(B110 = "SERVIÇO", IF(C110 = "SINAPI", VLOOKUP(D110, 'SERVIÇOS SINAPI'!$A:$D, 3, 0), IF(C110 = "ORSE", VLOOKUP(D110, 'SERVIÇOS ORSE'!$A:$D, 3, 0), IF(C110 = "SEINFRA", VLOOKUP(D110, 'SERVIÇOS SEINFRA'!$A:$D, 3, 0)))), IF(B110="INSUMO", IF(C110 = "SINAPI", VLOOKUP(D110, 'INSUMOS SINAPI'!$A:$D, 3, 0), IF(C110 = "ORSE", VLOOKUP(D110, 'INSUMOS ORSE'!$A:$D, 3, 0), IF(C110 = "SEINFRA", VLOOKUP(D110,'INSUMOS SEINFRA'!$A:$D, 3, 0),))))) -> M | G110: 1000 | H110: =IF(B110 = "SERVIÇO", IF(C110 = "SINAPI", VLOOKUP(D110, 'SERVIÇOS SINAPI'!$A:$D, 4, 0), IF(C110 = "ORSE", VLOOKUP(D110, 'SERVIÇOS ORSE'!$A:$D, 4, 0), IF(C110 = "SEINFRA", VLOOKUP(D110, 'SERVIÇOS SEINFRA'!$A:$D, 4, 0)))), IF(B110="INSUMO", IF(C110 = "SINAPI", VLOOKUP(D110, 'INSUMOS SINAPI'!$A:$D, 4, 0), IF(C110 = "ORSE", VLOOKUP(D110, 'INSUMOS ORSE'!$A:$D, 4, 0), IF(C110 = "SEINFRA", VLOOKUP(D110,'INSUMOS SEINFRA'!$A:$D, 4, 0),))))) -> 11.99 | I110: =H110*G110 -> 11990 | J110: INSUMO
B111: INSUMO | C111: SEINFRA | D111: I2390 | E111: =IF(B111 = "SERVIÇO", IF(C111 = "SINAPI", VLOOKUP(D111, 'SERVIÇOS SINAPI'!$A:$D, 2, 0), IF(C111 = "ORSE", VLOOKUP(D111, 'SERVIÇOS ORSE'!$A:$D, 2, 0), IF(C111 = "SEINFRA", VLOOKUP(D111, 'SERVIÇOS SEINFRA'!$A:$D, 2, 0)))), IF(B111="INSUMO", IF(C111 = "SINAPI", VLOOKUP(D111, 'INSUMOS SINAPI'!$A:$D, 2, 0), IF(C111 = "ORSE", VLOOKUP(D111, 'INSUMOS ORSE'!$A:$D, 2, 0), IF(C111 = "SEINFRA", VLOOKUP(D111,'INSUMOS SEINFRA'!$A:$D, 2, 0),))))) -> PARAFUSO MAQUINA ZINCADO 5/8 x 16" C/ ARRUELAS/PORCA | F111: =IF(B111 = "SERVIÇO", IF(C111 = "SINAPI", VLOOKUP(D111, 'SERVIÇOS SINAPI'!$A:$D, 3, 0), IF(C111 = "ORSE", VLOOKUP(D111, 'SERVIÇOS ORSE'!$A:$D, 3, 0), IF(C111 = "SEINFRA", VLOOKUP(D111, 'SERVIÇOS SEINFRA'!$A:$D, 3, 0)))), IF(B111="INSUMO", IF(C111 = "SINAPI", VLOOKUP(D111, 'INSUMOS SINAPI'!$A:$D, 3, 0), IF(C111 = "ORSE", VLOOKUP(D111, 'INSUMOS ORSE'!$A:$D, 3, 0), IF(C111 = "SEINFRA", VLOOKUP(D111,'INSUMOS SEINFRA'!$A:$D, 3, 0),))))) -> UN | G111: 15 | H111: =IF(B111 = "SERVIÇO", IF(C111 = "SINAPI", VLOOKUP(D111, 'SERVIÇOS SINAPI'!$A:$D, 4, 0), IF(C111 = "ORSE", VLOOKUP(D111, 'SERVIÇOS ORSE'!$A:$D, 4, 0), IF(C111 = "SEINFRA", VLOOKUP(D111, 'SERVIÇOS SEINFRA'!$A:$D, 4, 0)))), IF(B111="INSUMO", IF(C111 = "SINAPI", VLOOKUP(D111, 'INSUMOS SINAPI'!$A:$D, 4, 0), IF(C111 = "ORSE", VLOOKUP(D111, 'INSUMOS ORSE'!$A:$D, 4, 0), IF(C111 = "SEINFRA", VLOOKUP(D111,'INSUMOS SEINFRA'!$A:$D, 4, 0),))))) -> 18.26 | I111: =H111*G111 -> 273.9 | J111: INSUMO
B112: INSUMO | C112: SEINFRA | D112: I0125 | E112: =IF(B112 = "SERVIÇO", IF(C112 = "SINAPI", VLOOKUP(D112, 'SERVIÇOS SINAPI'!$A:$D, 2, 0), IF(C112 = "ORSE", VLOOKUP(D112, 'SERVIÇOS ORSE'!$A:$D, 2, 0), IF(C112 = "SEINFRA", VLOOKUP(D112, 'SERVIÇOS SEINFRA'!$A:$D, 2, 0)))), IF(B112="INSUMO", IF(C112 = "SINAPI", VLOOKUP(D112, 'INSUMOS SINAPI'!$A:$D, 2, 0), IF(C112 = "ORSE", VLOOKUP(D112, 'INSUMOS ORSE'!$A:$D, 2, 0), IF(C112 = "SEINFRA", VLOOKUP(D112,'INSUMOS SEINFRA'!$A:$D, 2, 0),))))) -> ARMAÇÃO REX TRIFASICA COM ROLDANA | F112: =IF(B112 = "SERVIÇO", IF(C112 = "SINAPI", VLOOKUP(D112, 'SERVIÇOS SINAPI'!$A:$D, 3, 0), IF(C112 = "ORSE", VLOOKUP(D112, 'SERVIÇOS ORSE'!$A:$D, 3, 0), IF(C112 = "SEINFRA", VLOOKUP(D112, 'SERVIÇOS SEINFRA'!$A:$D, 3, 0)))), IF(B112="INSUMO", IF(C112 = "SINAPI", VLOOKUP(D112, 'INSUMOS SINAPI'!$A:$D, 3, 0), IF(C112 = "ORSE", VLOOKUP(D112, 'INSUMOS ORSE'!$A:$D, 3, 0), IF(C112 = "SEINFRA", VLOOKUP(D112,'INSUMOS SEINFRA'!$A:$D, 3, 0),))))) -> UN | G112: 7.5 | H112: =IF(B112 = "SERVIÇO", IF(C112 = "SINAPI", VLOOKUP(D112, 'SERVIÇOS SINAPI'!$A:$D, 4, 0), IF(C112 = "ORSE", VLOOKUP(D112, 'SERVIÇOS ORSE'!$A:$D, 4, 0), IF(C112 = "SEINFRA", VLOOKUP(D112, 'SERVIÇOS SEINFRA'!$A:$D, 4, 0)))), IF(B112="INSUMO", IF(C112 = "SINAPI", VLOOKUP(D112, 'INSUMOS SINAPI'!$A:$D, 4, 0), IF(C112 = "ORSE", VLOOKUP(D112, 'INSUMOS ORSE'!$A:$D, 4, 0), IF(C112 = "SEINFRA", VLOOKUP(D112,'INSUMOS SEINFRA'!$A:$D, 4, 0),))))) -> 81.86 | I112: 613.95 | J112: INSUMO
B113: INSUMO | C113: SEINFRA | D113: I2405 | E113: =IF(B113 = "SERVIÇO", IF(C113 = "SINAPI", VLOOKUP(D113, 'SERVIÇOS SINAPI'!$A:$D, 2, 0), IF(C113 = "ORSE", VLOOKUP(D113, 'SERVIÇOS ORSE'!$A:$D, 2, 0), IF(C113 = "SEINFRA", VLOOKUP(D113, 'SERVIÇOS SEINFRA'!$A:$D, 2, 0)))), IF(B113="INSUMO", IF(C113 = "SINAPI", VLOOKUP(D113, 'INSUMOS SINAPI'!$A:$D, 2, 0), IF(C113 = "ORSE", VLOOKUP(D113, 'INSUMOS ORSE'!$A:$D, 2, 0), IF(C113 = "SEINFRA", VLOOKUP(D113,'INSUMOS SEINFRA'!$A:$D, 2, 0),))))) -> POSTE DE CONCRETO DUPLO T (150/9), RESISTÊNCIA NOMINAL 150KG, H=9,00M, PESO APROXIMADO 470KG | F113: =IF(B113 = "SERVIÇO", IF(C113 = "SINAPI", VLOOKUP(D113, 'SERVIÇOS SINAPI'!$A:$D, 3, 0), IF(C113 = "ORSE", VLOOKUP(D113, 'SERVIÇOS ORSE'!$A:$D, 3, 0), IF(C113 = "SEINFRA", VLOOKUP(D113, 'SERVIÇOS SEINFRA'!$A:$D, 3, 0)))), IF(B113="INSUMO", IF(C113 = "SINAPI", VLOOKUP(D113, 'INSUMOS SINAPI'!$A:$D, 3, 0), IF(C113 = "ORSE", VLOOKUP(D113, 'INSUMOS ORSE'!$A:$D, 3, 0), IF(C113 = "SEINFRA", VLOOKUP(D113,'INSUMOS SEINFRA'!$A:$D, 3, 0),))))) -> UN | G113: 22.5 | H113: =IF(B113 = "SERVIÇO", IF(C113 = "SINAPI", VLOOKUP(D113, 'SERVIÇOS SINAPI'!$A:$D, 4, 0), IF(C113 = "ORSE", VLOOKUP(D113, 'SERVIÇOS ORSE'!$A:$D, 4, 0), IF(C113 = "SEINFRA", VLOOKUP(D113, 'SERVIÇOS SEINFRA'!$A:$D, 4, 0)))), IF(B113="INSUMO", IF(C113 = "SINAPI", VLOOKUP(D113, 'INSUMOS SINAPI'!$A:$D, 4, 0), IF(C113 = "ORSE", VLOOKUP(D113, 'INSUMOS ORSE'!$A:$D, 4, 0), IF(C113 = "SEINFRA", VLOOKUP(D113,'INSUMOS SEINFRA'!$A:$D, 4, 0),))))) -> 601.7 | I113: =H113*G113 -> 13538.25 | J113: =IF(B113="INSUMO","INSUMO","") -> INSUMO
B114: INSUMO | C114: SEINFRA | D114: I0141 | E114: =IF(B114 = "SERVIÇO", IF(C114 = "SINAPI", VLOOKUP(D114, 'SERVIÇOS SINAPI'!$A:$D, 2, 0), IF(C114 = "ORSE", VLOOKUP(D114, 'SERVIÇOS ORSE'!$A:$D, 2, 0), IF(C114 = "SEINFRA", VLOOKUP(D114, 'SERVIÇOS SEINFRA'!$A:$D, 2, 0)))), IF(B114="INSUMO", IF(C114 = "SINAPI", VLOOKUP(D114, 'INSUMOS SINAPI'!$A:$D, 2, 0), IF(C114 = "ORSE", VLOOKUP(D114, 'INSUMOS ORSE'!$A:$D, 2, 0), IF(C114 = "SEINFRA", VLOOKUP(D114,'INSUMOS SEINFRA'!$A:$D, 2, 0),))))) -> ARRUELA QUADRADA DE 58MM C/FURO DE 18MM | F114: =IF(B114 = "SERVIÇO", IF(C114 = "SINAPI", VLOOKUP(D114, 'SERVIÇOS SINAPI'!$A:$D, 3, 0), IF(C114 = "ORSE", VLOOKUP(D114, 'SERVIÇOS ORSE'!$A:$D, 3, 0), IF(C114 = "SEINFRA", VLOOKUP(D114, 'SERVIÇOS SEINFRA'!$A:$D, 3, 0)))), IF(B114="INSUMO", IF(C114 = "SINAPI", VLOOKUP(D114, 'INSUMOS SINAPI'!$A:$D, 3, 0), IF(C114 = "ORSE", VLOOKUP(D114, 'INSUMOS ORSE'!$A:$D, 3, 0), IF(C114 = "SEINFRA", VLOOKUP(D114,'INSUMOS SEINFRA'!$A:$D, 3, 0),))))) -> UN | G114: 30 | H114: =IF(B114 = "SERVIÇO", IF(C114 = "SINAPI", VLOOKUP(D114, 'SERVIÇOS SINAPI'!$A:$D, 4, 0), IF(C114 = "ORSE", VLOOKUP(D114, 'SERVIÇOS ORSE'!$A:$D, 4, 0), IF(C114 = "SEINFRA", VLOOKUP(D114, 'SERVIÇOS SEINFRA'!$A:$D, 4, 0)))), IF(B114="INSUMO", IF(C114 = "SINAPI", VLOOKUP(D114, 'INSUMOS SINAPI'!$A:$D, 4, 0), IF(C114 = "ORSE", VLOOKUP(D114, 'INSUMOS ORSE'!$A:$D, 4, 0), IF(C114 = "SEINFRA", VLOOKUP(D114,'INSUMOS SEINFRA'!$A:$D, 4, 0),))))) -> 3.24 | I114: 97.2 | J114: INSUMO
B115: SERVIÇO | C115: SINAPI | D115: 88266 | E115: =IF(B115 = "SERVIÇO", IF(C115 = "SINAPI", VLOOKUP(D115, 'SERVIÇOS SINAPI'!$A:$D, 2, 0), IF(C115 = "ORSE", VLOOKUP(D115, 'SERVIÇOS ORSE'!$A:$D, 2, 0), IF(C115 = "SEINFRA", VLOOKUP(D115, 'SERVIÇOS SEINFRA'!$A:$D, 2, 0)))), IF(B115="INSUMO", IF(C115 = "SINAPI", VLOOKUP(D115, 'INSUMOS SINAPI'!$A:$D, 2, 0), IF(C115 = "ORSE", VLOOKUP(D115, 'INSUMOS ORSE'!$A:$D, 2, 0), IF(C115 = "SEINFRA", VLOOKUP(D115,'INSUMOS SEINFRA'!$A:$D, 2, 0),))))) -> ELETROTÉCNICO COM ENCARGOS COMPLEMENTARES | F115: =IF(B115 = "SERVIÇO", IF(C115 = "SINAPI", VLOOKUP(D115, 'SERVIÇOS SINAPI'!$A:$D, 3, 0), IF(C115 = "ORSE", VLOOKUP(D115, 'SERVIÇOS ORSE'!$A:$D, 3, 0), IF(C115 = "SEINFRA", VLOOKUP(D115, 'SERVIÇOS SEINFRA'!$A:$D, 3, 0)))), IF(B115="INSUMO", IF(C115 = "SINAPI", VLOOKUP(D115, 'INSUMOS SINAPI'!$A:$D, 3, 0), IF(C115 = "ORSE", VLOOKUP(D115, 'INSUMOS ORSE'!$A:$D, 3, 0), IF(C115 = "SEINFRA", VLOOKUP(D115,'INSUMOS SEINFRA'!$A:$D, 3, 0),))))) -> H | G115: 150 | H115: =IF(B115 = "SERVIÇO", IF(C115 = "SINAPI", VLOOKUP(D115, 'SERVIÇOS SINAPI'!$A:$D, 4, 0), IF(C115 = "ORSE", VLOOKUP(D115, 'SERVIÇOS ORSE'!$A:$D, 4, 0), IF(C115 = "SEINFRA", VLOOKUP(D115, 'SERVIÇOS SEINFRA'!$A:$D, 4, 0)))), IF(B115="INSUMO", IF(C115 = "SINAPI", VLOOKUP(D115, 'INSUMOS SINAPI'!$A:$D, 4, 0), IF(C115 = "ORSE", VLOOKUP(D115, 'INSUMOS ORSE'!$A:$D, 4, 0), IF(C115 = "SEINFRA", VLOOKUP(D115,'INSUMOS SEINFRA'!$A:$D, 4, 0),))))) -> 26.94 | I115: 4041
B116: SERVIÇO | C116: SINAPI | D116: 88247 | E116: =IF(B116 = "SERVIÇO", IF(C116 = "SINAPI", VLOOKUP(D116, 'SERVIÇOS SINAPI'!$A:$D, 2, 0), IF(C116 = "ORSE", VLOOKUP(D116, 'SERVIÇOS ORSE'!$A:$D, 2, 0), IF(C116 = "SEINFRA", VLOOKUP(D116, 'SERVIÇOS SEINFRA'!$A:$D, 2, 0)))), IF(B116="INSUMO", IF(C116 = "SINAPI", VLOOKUP(D116, 'INSUMOS SINAPI'!$A:$D, 2, 0), IF(C116 = "ORSE", VLOOKUP(D116, 'INSUMOS ORSE'!$A:$D, 2, 0), IF(C116 = "SEINFRA", VLOOKUP(D116,'INSUMOS SEINFRA'!$A:$D, 2, 0),))))) -> AUXILIAR DE ELETRICISTA COM ENCARGOS COMPLEMENTARES | F116: =IF(B116 = "SERVIÇO", IF(C116 = "SINAPI", VLOOKUP(D116, 'SERVIÇOS SINAPI'!$A:$D, 3, 0), IF(C116 = "ORSE", VLOOKUP(D116, 'SERVIÇOS ORSE'!$A:$D, 3, 0), IF(C116 = "SEINFRA", VLOOKUP(D116, 'SERVIÇOS SEINFRA'!$A:$D, 3, 0)))), IF(B116="INSUMO", IF(C116 = "SINAPI", VLOOKUP(D116, 'INSUMOS SINAPI'!$A:$D, 3, 0), IF(C116 = "ORSE", VLOOKUP(D116, 'INSUMOS ORSE'!$A:$D, 3, 0), IF(C116 = "SEINFRA", VLOOKUP(D116,'INSUMOS SEINFRA'!$A:$D, 3, 0),))))) -> H | G116: 150 | H116: =IF(B116 = "SERVIÇO", IF(C116 = "SINAPI", VLOOKUP(D116, 'SERVIÇOS SINAPI'!$A:$D, 4, 0), IF(C116 = "ORSE", VLOOKUP(D116, 'SERVIÇOS ORSE'!$A:$D, 4, 0), IF(C116 = "SEINFRA", VLOOKUP(D116, 'SERVIÇOS SEINFRA'!$A:$D, 4, 0)))), IF(B116="INSUMO", IF(C116 = "SINAPI", VLOOKUP(D116, 'INSUMOS SINAPI'!$A:$D, 4, 0), IF(C116 = "ORSE", VLOOKUP(D116, 'INSUMOS ORSE'!$A:$D, 4, 0), IF(C116 = "SEINFRA", VLOOKUP(D116,'INSUMOS SEINFRA'!$A:$D, 4, 0),))))) -> 21.63 | I116: 3244.5
B117: SERVIÇO | C117: SINAPI | D117: 88264 | E117: =IF(B117 = "SERVIÇO", IF(C117 = "SINAPI", VLOOKUP(D117, 'SERVIÇOS SINAPI'!$A:$D, 2, 0), IF(C117 = "ORSE", VLOOKUP(D117, 'SERVIÇOS ORSE'!$A:$D, 2, 0), IF(C117 = "SEINFRA", VLOOKUP(D117, 'SERVIÇOS SEINFRA'!$A:$D, 2, 0)))), IF(B117="INSUMO", IF(C117 = "SINAPI", VLOOKUP(D117, 'INSUMOS SINAPI'!$A:$D, 2, 0), IF(C117 = "ORSE", VLOOKUP(D117, 'INSUMOS ORSE'!$A:$D, 2, 0), IF(C117 = "SEINFRA", VLOOKUP(D117,'INSUMOS SEINFRA'!$A:$D, 2, 0),))))) -> ELETRICISTA COM ENCARGOS COMPLEMENTARES | F117: =IF(B117 = "SERVIÇO", IF(C117 = "SINAPI", VLOOKUP(D117, 'SERVIÇOS SINAPI'!$A:$D, 3, 0), IF(C117 = "ORSE", VLOOKUP(D117, 'SERVIÇOS ORSE'!$A:$D, 3, 0), IF(C117 = "SEINFRA", VLOOKUP(D117, 'SERVIÇOS SEINFRA'!$A:$D, 3, 0)))), IF(B117="INSUMO", IF(C117 = "SINAPI", VLOOKUP(D117, 'INSUMOS SINAPI'!$A:$D, 3, 0), IF(C117 = "ORSE", VLOOKUP(D117, 'INSUMOS ORSE'!$A:$D, 3, 0), IF(C117 = "SEINFRA", VLOOKUP(D117,'INSUMOS SEINFRA'!$A:$D, 3, 0),))))) -> H | G117: 150 | H117: =IF(B117 = "SERVIÇO", IF(C117 = "SINAPI", VLOOKUP(D117, 'SERVIÇOS SINAPI'!$A:$D, 4, 0), IF(C117 = "ORSE", VLOOKUP(D117, 'SERVIÇOS ORSE'!$A:$D, 4, 0), IF(C117 = "SEINFRA", VLOOKUP(D117, 'SERVIÇOS SEINFRA'!$A:$D, 4, 0)))), IF(B117="INSUMO", IF(C117 = "SINAPI", VLOOKUP(D117, 'INSUMOS SINAPI'!$A:$D, 4, 0), IF(C117 = "ORSE", VLOOKUP(D117, 'INSUMOS ORSE'!$A:$D, 4, 0), IF(C117 = "SEINFRA", VLOOKUP(D117,'INSUMOS SEINFRA'!$A:$D, 4, 0),))))) -> 25.82 | I117: 3873
H118: SUB-TOTAL | I118: =SUM(I110:I117) -> 37671.8 | J118: =IF(B118="INSUMO","INSUMO","") -> 
E119: SERVIÇOS / EQUIPAMENTOS | J119: =IF(B119="INSUMO","INSUMO","") -> 
B120: TIPO | C120: REFER. | D120: CÓDIGO | E120: DISCRIMINAÇÃO | F120: UNID. | G120: QUANT. | H120: P.UNIT. | I120: P.TOTAL | J120: =IF(B120="INSUMO","INSUMO","") -> 
B121: SERVIÇO | C121: SINAPI | D121: 93283 | E121: =IF(B121 = "SERVIÇO", IF(C121 = "SINAPI", VLOOKUP(D121, 'SERVIÇOS SINAPI'!$A:$D, 2, 0), IF(C121 = "ORSE", VLOOKUP(D121, 'SERVIÇOS ORSE'!$A:$D, 2, 0), IF(C121 = "SEINFRA", VLOOKUP(D121, 'SERVIÇOS SEINFRA'!$A:$D, 2, 0)))), IF(B121="INSUMO", IF(C121 = "SINAPI", VLOOKUP(D121, 'INSUMOS SINAPI'!$A:$D, 2, 0), IF(C121 = "ORSE", VLOOKUP(D121, 'INSUMOS ORSE'!$A:$D, 2, 0), IF(C121 = "SEINFRA", VLOOKUP(D121,'INSUMOS SEINFRA'!$A:$D, 2, 0),))))) -> GUINDASTE HIDRÁULICO AUTOPROPELIDO, COM LANÇA TELESCÓPICA 40 M, CAPACIDADE MÁXIMA 60 T, POTÊNCIA 260 KW - DEPRECIAÇÃO. AF_03/2016 | F121: =IF(B121 = "SERVIÇO", IF(C121 = "SINAPI", VLOOKUP(D121, 'SERVIÇOS SINAPI'!$A:$D, 3, 0), IF(C121 = "ORSE", VLOOKUP(D121, 'SERVIÇOS ORSE'!$A:$D, 3, 0), IF(C121 = "SEINFRA", VLOOKUP(D121, 'SERVIÇOS SEINFRA'!$A:$D, 3, 0)))), IF(B121="INSUMO", IF(C121 = "SINAPI", VLOOKUP(D121, 'INSUMOS SINAPI'!$A:$D, 3, 0), IF(C121 = "ORSE", VLOOKUP(D121, 'INSUMOS ORSE'!$A:$D, 3, 0), IF(C121 = "SEINFRA", VLOOKUP(D121,'INSUMOS SEINFRA'!$A:$D, 3, 0),))))) -> H | G121: 18.75 | H121: =IF(B121 = "SERVIÇO", IF(C121 = "SINAPI", VLOOKUP(D121, 'SERVIÇOS SINAPI'!$A:$D, 4, 0), IF(C121 = "ORSE", VLOOKUP(D121, 'SERVIÇOS ORSE'!$A:$D, 4, 0), IF(C121 = "SEINFRA", VLOOKUP(D121, 'SERVIÇOS SEINFRA'!$A:$D, 4, 0)))), IF(B121="INSUMO", IF(C121 = "SINAPI", VLOOKUP(D121, 'INSUMOS SINAPI'!$A:$D, 4, 0), IF(C121 = "ORSE", VLOOKUP(D121, 'INSUMOS ORSE'!$A:$D, 4, 0), IF(C121 = "SEINFRA", VLOOKUP(D121,'INSUMOS SEINFRA'!$A:$D, 4, 0),))))) -> 96.78 | I121: =H121*G121 -> 1814.63 | J121: =IF(B121="INSUMO","INSUMO","") -> 
H122: SUB-TOTAL | I122: =SUM(I121:I121) -> 1814.63 | J122: =IF(B122="INSUMO","INSUMO","") -> 
B123: TOTAL DO SERVIÇO - R$ | I123: =I118+I122 -> 39486.43 | J123: =IF(#REF!="INSUMO","INSUMO","") -> 

Sheet Memória de Cálculo
C1: ='Planilha Orçamentária'!$F$2 -> MINISTÉRIO DA INTEGRAÇÃO E DO DESENVOLVIMENTO REGIONAL - MIDR COMPANHIA DE DESENVOLVIMENTO DOS VALES DO SÃO FRANCISCO E DO PARNAÍBA 3ª Superintendência Regional
B2: ='Planilha Orçamentária'!$B$3 -> SERVIÇOS NECESSÁRIOS A CONSTRUÇÃO DE CASA DE MEL, EM DIVERSOS MUNICÍPIOS DO ESTADO DE PERNAMBUCO, INSERIDOS NA ÁREA DE ATUAÇÃO DA 3ª SUPERINTENDÊNCIA REGIONAL DA CODEVASF, ATRAVÉS DE SISTEMA DE REGISTRO DE PREÇOS - SRP
C3: ='Planilha Orçamentária'!$B$4 -> PETROLINA/PE | E3: ='Planilha Orçamentária'!$J$4 -> MAIO DE 2024
B4: MEMÓRIA DE CÁLCULO DOS QUANTITATIVOS
B5: ='Planilha Orçamentária'!B11 -> 1 | C5: ='Planilha Orçamentária'!C11 -> IMPLANTAÇÃO E ADMINISTRAÇÃO DA OBRA
B6: ='Planilha Orçamentária'!$B$12 -> 1.1 | C6: ='Planilha Orçamentária'!$F$12 -> PLACAS PADRÃO DE OBRA | D6: ='Planilha Orçamentária'!$G$12 -> M² | E6: LARG. (M) | F6: COMP. (M) | G6: ALTURA (M) | H6: QUANT. (UN) | J6: ÁREA (M²) | K6: VOLUME (M³) | L6: TOTAL
C7: Placa com dimnsões 2,40 x 1,20 m | E7: 1.2 | F7: 2.4 | H7: 1 | J7: =E7*F7*H7 -> 2.88 | L7: =J7 -> 2.88
L8: =SUM(L7:L7) -> 2.88
B9: ='Planilha Orçamentária'!B17 -> 2 | C9: ='Planilha Orçamentária'!C17 -> SERVIÇOS PRELIMINARES
B10: ='Planilha Orçamentária'!$B$18 -> 2.1 | C10: ='Planilha Orçamentária'!F18 -> REVISÃO E ADEQUAÇÃO DO PROJETO ESTRUTURAL | D10: ='Planilha Orçamentária'!G18 -> UN | E10: LARG. (M) | F10: COMP. (M) | G10: ALTURA (M) | H10: QUANT. (UN) | I10: POR UN | J10: ÁREA (M²) | K10: VOLUME (M³) | L10: TOTAL
C11: Dimensões do terreno | H11: 9 | I11: =1/H11 -> 0.11 | L11: =I11 -> 0.11
L12: =SUM(L11:L11) -> 0.11
B13: ='Planilha Orçamentária'!$B$19 -> 2.2 | C13: ='Planilha Orçamentária'!F19 -> REVISÃO E ADEQUAÇÃO DO PROJETO ELÉTRICO | D13: ='Planilha Orçamentária'!G19 -> UN | E13: LARG. (M) | F13: COMP. (M) | G13: ALTURA (M) | H13: QUANT. (UN) | I13: POR UN | J13: ÁREA (M²) | K13: VOLUME (M³) | L13: TOTAL
C14: Dimensões do terreno | H14: 9 | I14: =1/H14 -> 0.11 | L14: =I14 -> 0.11
L15: =SUM(L14:L14) -> 0.11
B16: ='Planilha Orçamentária'!$B$20 -> 2.3 | C16: ='Planilha Orçamentária'!F20 -> REVISÃO E ADEQUAÇÃO DO PROJETO HIDROSSANITÁRIO | D16: ='Planilha Orçamentária'!G20 -> UN | E16: LARG. (M) | F16: COMP. (M) | G16: ALTURA (M) | H16: QUANT. (UN) | I16: POR UN | J16: ÁREA (M²) | K16: VOLUME (M³) | L16: TOTAL
C17: Dimensões do terreno | H17: 9 | I17: =1/H17 -> 0.11 | L17: =I17 -> 0.11
L18: =SUM(L17:L17) -> 0.11
B19: ='Planilha Orçamentária'!$B$21 -> 2.4 | C19: ='Planilha Orçamentária'!F21 -> LIMPEZA MECANIZADA DE CAMADA VEGETAL, VEGETAÇÃO E PEQUENAS ÁRVORES (DIÂMETRO DE TRONCO MENOR QUE 0,20 M), COM TRATOR DE ESTEIRAS. AF_03/2024 | D19: ='Planilha Orçamentária'!G18 -> UN | E19: LARG. (M) | F19: COMP. (M) | G19: ALTURA (M) | H19: QUANT. (UN) | J19: ÁREA (M²) | K19: VOLUME (M³) | L19: TOTAL
C20: Dimensões do terreno | E20: 30 | F20: 40 | J20: =E20*F20 -> 1200 | L20: =J20 -> 1200
L21: =SUM(L20:L20) -> 1200
B22: ='Planilha Orçamentária'!$B$22 -> 2.5 | C22: ='Planilha Orçamentária'!F22 -> LOCAÇÃO DA OBRA - EXECUÇÃO DE GABARITO | D22: ='Planilha Orçamentária'!G22 -> M² | E22: LARG. (M) | F22: COMP. (M) | G22: ALTURA (M) | H22: QUANT. (UN) | J22: ÁREA (M²) | K22: VOLUME (M³) | L22: TOTAL
C23: Casa de Mel | E23: 11.15 | F23: 15.3 | J23: =E23*F23 -> 170.6 | L23: =J23 -> 170.6
C24: Casa de comando | E24: 2.3 | F24: 2.3 | J24: =E24*F24 -> 5.29 | L24: =J24 -> 5.29
L25: =SUM(L23:L24) -> 175.89
B26: ='Planilha Orçamentária'!B23 -> 3 | C26: ='Planilha Orçamentária'!C23 -> INFRAESTRUTURA E SUPERESTRUTURA
B27: ='Planilha Orçamentária'!$B$24 -> 3.1 | C27: ='Planilha Orçamentária'!F24 -> ESCAVAÇÃO MANUAL DE VALA COM PROFUNDIDADE MENOR OU IGUAL A 1,30 M. AF_02/2021 | D27: ='Planilha Orçamentária'!G24 -> M³ | E27: LARG. (M) | F27: COMP. (M) | G27: ALTURA (M) | H27: QUANT. (UN) | J27: ÁREA (M²) | K27: VOLUME (M³) | L27: TOTAL
C28: CASA DE MEL
C29: Perímetro as paredes externas (medido de eixo a eixo no CAD) | E29: 0.4 | F29: 45.9 | G29: 0.4 | K29: =E29*F29*G29 -> 7.34 | L29: =K29 -> 7.34
C30: Perímetro as paredes internas (medido de eixo a eixo no CAD) | E30: 0.4 | F30: 71.61 | G30: 0.4 | K30: =E30*F30*G30 -> 11.46 | L30: =K30 -> 11.46
C31: Perímetro da fundação do alpende (medido de eixo a eixo no CAD) | E31: 0.4 | F31: 21.49 | G31: 0.4 | K31: =E31*F31*G31 -> 3.44 | L31: =K31 -> 3.44
C32: Escavação para fundação dos pilares | E32: 0.8 | F32: 0.8 | G32: 0.8 | H32: 24 | K32: =E32*F32*G32*H32 -> 12.29 | L32: =K32 -> 12.29
C33: CASA DE COMANDO
C34: Perímetro as paredes externas | E34: 0.4 | F34: =2.3*2+2*2 -> 8.6 | G34: 0.4 | K34: =E34*F34*G34 -> 1.38 | L34: =K34 -> 1.38
C35: Escavação para fundação dos pilares | E35: 0.8 | F35: 0.8 | G35: 0.8 | H35: 4 | K35: =E35*F35*G35*H35 -> 2.05 | L35: =K35 -> 2.05
L36: =SUM(L28:L35) -> 37.96
B37: ='Planilha Orçamentária'!$B$25 -> 3.2 | C37: ='Planilha Orçamentária'!F25 -> REATERRO MANUAL DE VALAS, COM PLACA VIBRATÓRIA. AF_08/2023 | D37: ='Planilha Orçamentária'!G25 -> M³ | E37: LARG. (M) | F37: COMP. (M) | G37: ALTURA (M) | H37: QUANT. (UN) | J37: ÁREA (M²) | K37: VOLUME (M³) | L37: TOTAL
C38: Reaterro do mateiral escavado | L38: =L36 -> 37.96
L39: =SUM(L38:L38) -> 37.96
B40: ='Planilha Orçamentária'!$B$26 -> 3.3 | C40: ='Planilha Orçamentária'!F26 -> ATERRO MANUAL DE VALAS COM SOLO ARGILO-ARENOSO. AF_08/2023 | D40: ='Planilha Orçamentária'!G26 -> M³ | E40: LARG. (M) | F40: COMP. (M) | G40: ALTURA (M) | H40: QUANT. (UN) | J40: ÁREA (M²) | K40: VOLUME (M³) | L40: TOTAL
C41: Aterro de 20 cm acima da alvenaria de embasamento (altura do radier: 20 cm - casa de mel) | E41: 11.15 | F41: 15.3 | G41: 0.2 | K41: =E41*F41*G41 -> 34.12 | L41: =K41 -> 34.12
C42: Aterro de 20 cm acima da alvenaria de embasamento (altura do radier: 20 cm - casa de comando) | E42: 2.3 | F42: 2.3 | G42: 0.2 | K42: =E42*F42*G42 -> 1.06 | L42: =K42 -> 1.06
C43: REATERRO DA ESCAVAÇÃO DAS VALAS E PILARES
C44: Perímetro as paredes externas (medido de eixo a eixo no CAD) | E44: 0.2 | F44: =F29 -> 45.9 | G44: 0.4 | K44: =E44*F44*G44 -> 3.67
C45: Perímetro as paredes internas (medido de eixo a eixo no CAD) | E45: 0.2 | F45: =F30 -> 71.61 | G45: 0.4 | K45: =E45*F45*G45 -> 5.73
C46: Perímetro da fundação do alpende (medido de eixo a eixo no CAD) | E46: 0.2 | F46: 21.49 | G46: 0.4 | K46: =E46*F46*G46 -> 1.72
C47: Escavação para fundação dos pilares (Casa de Mel) | H47: 24 | K47: =(0.8*0.8*0.8-0.6*0.6*0.3-0.2*0.2*0.4)*H47 -> 9.31
C48: Perímetro as paredes externas (Casa de Comando) | E48: 0.2 | F48: =2.3*2+2*2 -> 8.6 | G48: 0.4 | K48: =E48*F48*G48 -> 0.69
C49: Escavação para fundação dos pilares (Casa de Comando) | H49: 4 | K49: =(0.8*0.8*0.8-0.6*0.6*0.3-0.2*0.2*0.4)*H49 -> 1.55
C50: Total | K50: =SUM(K44:K49) -> 22.67
C51: TOTAL DE MATERIAL ESCAVADO | K51: =L36 -> 37.96
C52: SALDO DE MATERIAL | K52: =K51-K50 -> 15.29
C53: Desconto do reaterro do material escavado | K53: =-K52 -> -15.29 | L53: =K53 -> -15.29
L54: =SUM(L41:L53) -> 19.89
B55: ='Planilha Orçamentária'!$B$27 -> 3.4 | C55: ='Planilha Orçamentária'!F27 -> ALVENARIA DE EMBASAMENTO COM BLOCO ESTRUTURAL DE CERÂMICA, DE 14X19X29CM E ARGAMASSA DE ASSENTAMENTO COM PREPARO EM BETONEIRA. AF_05/2020 | D55: ='Planilha Orçamentária'!G27 -> M³ | E55: LARG. (M) | F55: COMP. (M) | G55: ALTURA (M) | H55: QUANT. (UN) | J55: ÁREA (M²) | K55: VOLUME (M³) | L55: TOTAL
C56: Perímetro total das paredes + alpende ( Casa de Mel + Casa de Comando) | E56: 0.28 | F56: =F29+F30+F34 -> 126.11 | G56: 0.4 | K56: =E56*F56*G56 -> 14.12 | L56: =K56 -> 14.12
L57: =SUM(L56:L56) -> 14.12
B58: ='Planilha Orçamentária'!$B$28 -> 3.5 | C58: ='Planilha Orçamentária'!F28 -> CONCRETO ARMADO FCK=30,0MPA, USINADO, BOMBEADO, ADENSADO E LANÇADO, PARA USO GERAL, COM FORMAS PLANAS EM COMPENSADO RESINADO 12MM (05 USOS) | D58: ='Planilha Orçamentária'!G28 -> M³ | E58: LARG. (M) | F58: COMP. (M) | G58: ALTURA (M) | H58: QUANT. (UN) | J58: ÁREA (M²) | K58: VOLUME (M³) | L58: TOTAL
C59: Viga baldrame: perímetro total das paredes + alpende ( Casa de Mel + Casa de Comando) | E59: 0.2 | F59: =F56 -> 126.11 | G59: 0.2 | K59: =E59*F59*G59 -> 5.04 | L59: =K59 -> 5.04
C60: Sapatas dos pilares ( Casa de Mel + Casa de Comando) | E60: 0.6 | F60: 0.6 | G60: 0.3 | H60: 24 | K60: =E60*F60*G60*H60 -> 2.59 | L60: 2.59
C61: Pilares Casa de Mel: até a laje | E61: 0.2 | F61: 3.9 | G61: 0.2 | H61: 18 | K61: 2.81 | L61: 2.81
C62: Pilares Casa de Mel: alpende | E62: 0.2 | F62: 3.8 | G62: 0.2 | H62: 6 | K62: 0.91 | L62: 0.91
C63: Pilares Casa de Mel: acima da laje | E63: 0.2 | F63: 1.15 | G63: 0.2 | H63: 14 | K63: 0.64 | L63: 0.64
C64: Pilares Casa de Comando: h = 3,60 m | E64: 0.2 | F64: 3.6 | G64: 0.2 | H64: 2 | K64: 0.29 | L64: 0.29
C65: Pilares Casa de Comando: h = 3,00 m | E65: 0.2 | F65: 3 | G65: 0.2 | H65: 2 | K65: 0.24 | L65: 0.24
C66: Vigas V1+ V6+V8++V10+V11+V12+V14+V15 | E66: 0.15 | F66: =15.3*2+7.95*6 -> 78.3 | G66: 0.3 | K66: =E66*F66*G66 -> 3.52 | L66: 3.52
C67: Vigas V2+V3+V4+V5 | E67: 0.15 | F67: =2.5*3+12.35 -> 19.85 | G67: 0.3 | K67: =E67*F67*G67 -> 0.89 | L67: 0.89
C68: Vigas V9+V13 | E68: 0.15 | F68: =3+4.45 -> 7.45 | G68: 0.3 | K68: =E68*F68*G68 -> 0.34 | L68: 0.34
C69: Vigas Casa de comando | E69: 0.15 | F69: =2*4 -> 8 | G69: 0.3 | K69: =E69*F69*G69 -> 0.36 | L69: 0.36
L70: =SUM(L59:L69) -> 17.63
B71: ='Planilha Orçamentária'!$B$29 -> 3.6 | C71: ='Planilha Orçamentária'!F29 -> IMPERMEABILIZAÇÃO DE ALICERCE E VIGA BALDRAME COM 2 DEMÃOS DE TINTA ASFÁLTICA TIPO NEUTROL DA VEDACIT OU SIMILAR, EXCETO ARGAMASSA IMPERMEABILIZAÇÃO | D71: ='Planilha Orçamentária'!G29 -> M² | E71: LARG. (M) | F71: COMP. (M) | G71: ALTURA (M) | H71: QUANT. (UN) | J71: ÁREA (M²) | K71: VOLUME (M³) | L71: TOTAL
C72: Comprimento da viga baldrame da Casa de mel + Casa de Comando | E72: 0.2 | F72: =F56 -> 126.11 | J72: =E72*F72 -> 25.22 | L72: =J72 -> 25.22
L73: =SUM(L72:L72) -> 25.22
B74: ='Planilha Orçamentária'!$B$30 -> 3.7 | C74: ='Planilha Orçamentária'!F30 -> LASTRO DE CONCRETO MAGRO, APLICADO EM PISOS, LAJES SOBRE SOLO OU RADIERS, ESPESSURA DE 5 CM. AF_01/2024 | D74: ='Planilha Orçamentária'!G30 -> M² | E74: LARG. (M) | F74: COMP. (M) | G74: ALTURA (M) | H74: QUANT. (UN) | J74: ÁREA (M²) | K74: VOLUME (M³) | L74: TOTAL
C75: Casa de mel | E75: 7.95 | F75: 15.3 | J75: =E75*F75 -> 121.64 | L75: =J75 -> 121.64
C76: Alvenaria de embasamento | E76: 0.4 | F76: =F56 -> 126.11 | J76: =E76*F76 -> 50.44 | L76: =J76 -> 50.44
C77: Casa de comando | E77: 2.3 | F77: 2.3 | J77: =E77*F77 -> 5.29 | L77: =J77 -> 5.29
L78: =SUM(L75:L77) -> 177.37
B79: ='Planilha Orçamentária'!$B$31 -> 3.8 | C79: ='Planilha Orçamentária'!F31 -> CONTRAPISO EM ARGAMASSA TRAÇO 1:4 (CIMENTO E AREIA), PREPARO MECÂNICO COM BETONEIRA 400 L, APLICADO EM ÁREAS SECAS SOBRE LAJE, ADERIDO, ACABAMENTO NÃO REFORÇADO, ESPESSURA 3CM. AF_07/2021 | D79: ='Planilha Orçamentária'!G31 -> M² | E79: LARG. (M) | F79: COMP. (M) | G79: ALTURA (M) | H79: QUANT. (UN) | J79: ÁREA (M²) | K79: VOLUME (M³) | L79: TOTAL
C80: Casa de mel | E80: 7.95 | F80: 15.3 | J80: =E80*F80 -> 121.64 | L80: =J80 -> 121.64
C81: Casa de comando | E81: 2.3 | F81: 2.3 | J81: =E81*F81 -> 5.29 | L81: =J81 -> 5.29
L82: =SUM(L80:L81) -> 126.93
B83: ='Planilha Orçamentária'!$B$33 -> 3.10 | C83: ='Planilha Orçamentária'!F33 -> RODAPÉ EM MARMORITE, ALTURA 10CM. AF_09/2020 | D83: ='Planilha Orçamentária'!G33 -> M | E83: LARG. (M) | F83: COMP. (M) | G83: ALTURA (M) | H83: QUANT. (UN) | J83: ÁREA (M²) | K83: VOLUME (M³) | L83: TOTAL
C84: Perímetro das paredes internas - Casa de Mel (medido no CAD) | F84: 168.74 | L84: =F84 -> 168.74
C85: Perímetro das paredes internas - Casa de Comando | F85: =2*4 -> 8 | L85: =F85 -> 8
L86: =SUM(L84:L85) -> 176.74
B87: ='Planilha Orçamentária'!$B$34 -> 3.11 | C87: ='Planilha Orçamentária'!F34 -> EXECUÇÃO DE LAJE SOBRE SOLO, ESPESSURA DE 10 CM, FCK = 30 MPA, COM USO DE FORMAS EM MADEIRA SERRADA. AF_09/2021 | D87: ='Planilha Orçamentária'!G34 -> M² | E87: LARG. (M) | F87: COMP. (M) | G87: ALTURA (M) | H87: QUANT. (UN) | J87: ÁREA (M²) | K87: VOLUME (M³) | L87: TOTAL
C88: Área do alpende + calçada - Casa de Mel | E88: 3.7 | F88: =15.3+1+1 -> 17.3 | J88: =E88*F88 -> 64.01 | L88: =J88 -> 64.01
L89: =SUM(L88:L88) -> 64.01
B90: ='Planilha Orçamentária'!$B$36 -> 3.13 | C90: ='Planilha Orçamentária'!F36 -> EXECUÇÃO DE PASSEIO (CALÇADA) OU PISO DE CONCRETO COM CONCRETO MOLDADO IN LOCO, FEITO EM OBRA, ACABAMENTO CONVENCIONAL, NÃO ARMADO. AF_08/2022 | D90: ='Planilha Orçamentária'!G36 -> M³ | E90: LARG. (M) | F90: COMP. (M) | G90: ALTURA (M) | H90: QUANT. (UN) | J90: ÁREA (M²) | K90: VOLUME (M³) | L90: TOTAL
C91: Área de passeio - Casa de Mel | E91: 1 | F91: =(15.3+2)*1+7.95*2 -> 33.2 | G91: 0.1 | K91: =E91*F91*G91 -> 3.32 | L91: =K91 -> 3.32
C92: Área de passeio - Casa de comando | E92: 0.5 | F92: =(2.3+1)*2+2.3*2 -> 11.2 | G92: 0.1 | K92: =E92*F92*G92 -> 0.56 | L92: =K92 -> 0.56
L93: =SUM(L91:L92) -> 3.88
B94: ='Planilha Orçamentária'!$B$37 -> 3.14 | C94: ='Planilha Orçamentária'!F37 -> LAJE PRÉ-FABRICADA COMUM PARA PISO OU COBERTURA, INCLUSIVE ESCORAMENTO EM MAD EIRA E CAPEAMENTO 4CM | D94: ='Planilha Orçamentária'!G37 -> M² | E94: LARG. (M) | F94: COMP. (M) | G94: ALTURA (M) | H94: QUANT. (UN) | J94: ÁREA (M²) | K94: VOLUME (M³) | L94: TOTAL
C95: Área de laje - Casa de Mel | E95: 7.95 | F95: 15.3 | J95: =E95*F95 -> 121.64 | L95: =J95 -> 121.64
C96: Área de laje - Casa de Comando | E96: 3.3 | F96: 4.43 | J96: =E96*F96 -> 14.62 | L96: =J96 -> 14.62
L97: =SUM(L95:L96) -> 136.26
B98: ='Planilha Orçamentária'!$B$38 -> 3.15 | C98: ='Planilha Orçamentária'!F38 -> CINTA DE AMARRAÇÃO DE ALVENARIA MOLDADA IN LOCO COM UTILIZAÇÃO DE BLOCOS CANALETA, ESPESSURA DE *10* CM. AF_03/2024 | D98: ='Planilha Orçamentária'!G38 -> M | E98: LARG. (M) | F98: COMP. (M) | G98: ALTURA (M) | H98: QUANT. (UN) | J98: ÁREA (M²) | K98: VOLUME (M³) | L98: TOTAL
C99: Cinta de amarração das platibandas | F99: =7.95*3+15.3*2 -> 54.45 | L99: =F99 -> 54.45
L100: =SUM(L99:L99) -> 54.45
B101: ='Planilha Orçamentária'!$B$39 -> 3.16 | C101: ='Planilha Orçamentária'!F39 -> VERGA PRÉ-MOLDADA COM ATÉ 1,5 M DE VÃO, ESPESSURA DE *15* CM. AF_03/2024 | D101: ='Planilha Orçamentária'!G39 -> M | E101: LARG. (M) | F101: COMP. (M) | G101: ALTURA (M) | H101: QUANT. (UN) | J101: ÁREA (M²) | K101: VOLUME (M³) | L101: TOTAL
C102: Janelas 1,20 m | F102: =1.2+0.4 -> 1.6 | H102: 9 | L102: =F102*H102 -> 14.4
C103: Janelas 0,50 m | F103: =0.5+0.4 -> 0.9 | H103: 6 | L103: =F103*H103 -> 5.4
C104: Óculos 0,70 m | F104: =0.7+0.4 -> 1.1 | H104: 5 | L104: =F104*H104 -> 5.5
C105: Porta 1,40 m | F105: 1.8 | H105: 1 | L105: =F105*H105 -> 1.8
C106: Porta 1,00 m | F106: =1+0.4 -> 1.4 | H106: 6 | L106: =F106*H106 -> 8.4
C107: Porta 0,60 m | F107: =0.6+0.4 -> 1 | H107: 5 | L107: 5
C108: Porta 0,80 m | F108: =0.8+0.4 -> 1.2 | H108: 5 | L108: =F108*H108 -> 6
L109: =SUM(L102:L108) -> 46.5
B110: ='Planilha Orçamentária'!$B$40 -> 3.17 | C110: ='Planilha Orçamentária'!F40 -> CONTRAVERGA PRÉ-MOLDADA, ESPESSURA DE *15* CM. AF_03/2024 | D110: ='Planilha Orçamentária'!G40 -> M | E110: LARG. (M) | F110: COMP. (M) | G110: ALTURA (M) | H110: QUANT. (UN) | J110: ÁREA (M²) | K110: VOLUME (M³) | L110: TOTAL
C111: Janelas 1,20 m | F111: =1.2+0.4 -> 1.6 | H111: 9 | L111: =F111*H111 -> 14.4
C112: Janelas 0,50 m | F112: =0.5+0.4 -> 0.9 | H112: 6 | L112: =F112*H112 -> 5.4
C113: Óculos 0,70 m | F113: =0.7+0.4 -> 1.1 | H113: 5 | L113: =F113*H113 -> 5.5
L114: =SUM(L111:L113) -> 25.3
B115: ='Planilha Orçamentária'!B41 -> 4 | C115: ='Planilha Orçamentária'!C41 -> ALVENARIAS, REVESTIMENTOS E PINTURAS
B116: ='Planilha Orçamentária'!$B$42 -> 4.1 | C116: ='Planilha Orçamentária'!F42 -> ALVENARIA DE VEDAÇÃO DE BLOCOS CERÂMICOS FURADOS NA VERTICAL DE 9X19X39 CM (ESPESSURA 9 CM) E ARGAMASSA DE ASSENTAMENTO COM PREPARO EM BETONEIRA. AF_12/2021 | D116: ='Planilha Orçamentária'!G42 -> M² | E116: LARG. (M) | F116: COMP. (M) | G116: ALTURA (M) | H116: QUANT. (UN) | J116: ÁREA (M²) | K116: VOLUME (M³) | L116: TOTAL
C117: CASA DE MEL
C118: Perímetro das alvenarias abaixo da laje - Casa de Mel (medido de eixo a eixo no CAD) | F118: 114.79 | G118: 3.1 | J118: =F118*G118 -> 355.85 | L118: =J118 -> 355.85
C119: Perímetro das alvenarias acima da laje - Casa de Mel (medido de eixo a eixo no CAD) | F119: =7.95*3+15.3*2 -> 54.45 | G119: 1.15 | J119: =F119*G119 -> 62.62 | L119: =J119 -> 62.62
C120: CASA DE COMANDO
C121: Parede retangular menor | F121: 2.5 | G121: 2.3 | J121: =F121*G121 -> 5.75 | L121: =J121 -> 5.75
C122: Parede retangular maior | F122: 2.5 | G122: 3.08 | J122: =F122*G122 -> 7.7 | L122: =J122 -> 7.7
C123: Paredes trapezoidais | F123: 2 | G123: =(G121+G122)/2 -> 2.69 | H123: 2 | J123: =F123*G123*H123 -> 10.76 | L123: =J123 -> 10.76
L124: =SUM(L117:L123) -> 442.68
B126: ='Planilha Orçamentária'!$B$43 -> 4.2 | C126: ='Planilha Orçamentária'!F43 -> CHAPISCO APLICADO EM ALVENARIAS E ESTRUTURAS DE CONCRETO INTERNAS, COM COLHER DE PEDREIRO. ARGAMASSA TRAÇO 1:3 COM PREPARO EM BETONEIRA 400L. AF_10/2022 | D126: ='Planilha Orçamentária'!G43 -> M² | E126: LARG. (M) | F126: COMP. (M) | G126: ALTURA (M) | H126: QUANT. (UN) | J126: ÁREA (M²) | K126: VOLUME (M³) | L126: TOTAL
C127: CASA DE MEL
C128: Perímetro interno das alvenarias abaixo da laje - Casa de Mel (medido no CAD) | F128: 168.74 | G128: 3.1 | J128: =F128*G128 -> 523.09 | L128: =J128 -> 523.09
C129: Perímetro externo das alvenarias abaixo da laje - Casa de Mel (medido no CAD) | F129: 42.93 | G129: 3.1 | J129: =F129*G129 -> 133.08 | L129: =J129 -> 133.08
C130: Perímetro das alvenarias acima da laje - Casa de Mel | F130: =7.95*2+15.3*2 -> 46.5 | G130: 1.15 | J130: =F130*G130 -> 53.48 | L130: =J130 -> 53.48
C131: CASA DE COMANDO
C132: Parede retangular menor | F132: 2.5 | G132: 2.3 | H132: 2 | J132: =F132*G132*H132 -> 11.5 | L132: =J132 -> 11.5
C133: Parede retangular maior | F133: 2.5 | G133: 3.08 | H133: 2 | J133: =F133*G133*H133 -> 15.4 | L133: =J133 -> 15.4
C134: Paredes trapezoidais | F134: 2 | G134: =(G132+G133)/2 -> 2.69 | H134: 4 | J134: =F134*G134*H134 -> 21.52 | L134: =J134 -> 21.52
L135: =SUM(L127:L134) -> 758.07
B136: ='Planilha Orçamentária'!$B$44 -> 4.3 | C136: ='Planilha Orçamentária'!F44 -> CHAPISCO APLICADO NO TETO OU EM ALVENARIA E ESTRUTURA, COM ROLO PARA TEXTURA ACRÍLICA. ARGAMASSA TRAÇO 1:4 E EMULSÃO POLIMÉRICA (ADESIVO) COM PREPARO MANUAL. AF_10/2022 | D136: ='Planilha Orçamentária'!G44 -> M² | E136: LARG. (M) | F136: COMP. (M) | G136: ALTURA (M) | H136: QUANT. (UN) | J136: ÁREA (M²) | K136: VOLUME (M³) | L136: TOTAL
C137: Laje Casa de Mel | E137: 7.95 | F137: 15.3 | J137: =E137*F137 -> 121.64 | L137: =J137 -> 121.64
C138: Laje Casa de Comando | E138: 3.3 | F138: 3.43 | J138: =E138*F138 -> 11.32 | L138: =J138 -> 11.32
L139: =SUM(L137:L138) -> 132.96
B140: ='Planilha Orçamentária'!$B$45 -> 4.4 | C140: ='Planilha Orçamentária'!F45 -> MASSA ÚNICA, EM ARGAMASSA TRAÇO 1:2:8, PREPARO MECÂNICO, APLICADA MANUALMENTE EM PAREDES INTERNAS DE AMBIENTES COM ÁREA ENTRE 5M² E 10M², E = 17,5MM, COM TALISCAS. AF_03/2024 | D140: ='Planilha Orçamentária'!G45 -> M² | E140: LARG. (M) | F140: COMP. (M) | G140: ALTURA (M) | H140: QUANT. (UN) | J140: ÁREA (M²) | K140: VOLUME (M³) | L140: TOTAL
C141: CASA DE MEL
C142: Perímetro interno das alvenarias abaixo da laje que receberão pintura - Casa de Mel (medido no CAD) | F142: 32.05 | G142: 3.1 | J142: =F142*G142 -> 99.36 | L142: =J142 -> 99.36
C143: Perímetro externo das alvenarias abaixo da laje que recebrão pintura - Casa de Mel (medido no CAD) | F143: 42.93 | G143: 3.1 | J143: =F143*G143 -> 133.08 | L143: =J143 -> 133.08
C144: Perímetro das alvenarias acima da laje que receberão pintura - Casa de Mel | F144: =7.95*2+15.3*2 -> 46.5 | G144: 1.15 | J144: =F144*G144 -> 53.48 | L144: =J144 -> 53.48
C145: CASA DE COMANDO
C146: Parede retangular menor que receberá pintira | F146: 2.5 | G146: 2.3 | H146: 2 | J146: =F146*G146*H146 -> 11.5 | L146: =J146 -> 11.5
C147: Parede retangular maior que receberá pintira | F147: 2.5 | G147: 3.08 | H147: 2 | J147: =F147*G147*H147 -> 15.4 | L147: =J147 -> 15.4
C148: Paredes trapezoidais que receberá pintira | F148: 2 | G148: =(G146+G147)/2 -> 2.69 | H148: 4 | J148: =F148*G148*H148 -> 21.52 | L148: =J148 -> 21.52
L149: =SUM(L141:L148) -> 334.34
B150: ='Planilha Orçamentária'!$B$46 -> 4.5 | C150: ='Planilha Orçamentária'!F46 -> MASSA ÚNICA, EM ARGAMASSA TRAÇO 1:2:8, PREPARO MECÂNICO, APLICADA MANUALMENTE EM TETO, E = 17,5MM, COM TALISCAS. AF_03/2024 | D150: ='Planilha Orçamentária'!G46 -> M² | E150: LARG. (M) | F150: COMP. (M) | G150: ALTURA (M) | H150: QUANT. (UN) | J150: ÁREA (M²) | K150: VOLUME (M³) | L150: TOTAL
C151: Laje Casa de Mel | E151: 7.95 | F151: 15.3 | J151: =E151*F151 -> 121.64 | L151: =J151 -> 121.64
C152: Laje Casa de Comando | E152: 3.3 | F152: 3.43 | J152: =E152*F152 -> 11.32 | L152: =J152 -> 11.32
L153: =SUM(L151:L152) -> 132.96
B154: ='Planilha Orçamentária'!$B$49 -> 4.8 | C154: ='Planilha Orçamentária'!F49 -> EMBOÇO, EM ARGAMASSA TRAÇO 1:2:8, PREPARO MECÂNICO, APLICADO MANUALMENTE EM PAREDES INTERNAS DE AMBIENTES COM ÁREA ENTRE 5M² E 10M², E = 17,5MM, COM TALISCAS. AF_03/2024 | D154: ='Planilha Orçamentária'!G49 -> M² | E154: LARG. (M) | F154: COMP. (M) | G154: ALTURA (M) | H154: QUANT. (UN) | J154: ÁREA (M²) | K154: VOLUME (M³) | L154: TOTAL
C155: Perímetro interno das alvenarias abaixo da laje que receberão revestimento cerâmico - Casa de Mel (medido no CAD) | F155: 136.69 | G155: 3.1 | J155: =F155*G155 -> 423.74 | L155: =J155 -> 423.74
L156: =SUM(L155:L155) -> 423.74
B157: ='Planilha Orçamentária'!$B$50 -> 4.9 | C157: ='Planilha Orçamentária'!F50 -> REVESTIMENTO CERÂMICO PARA PISO OU PAREDE, 37 X 59 CM, ARIELLE, LINHA RIVIERA , COR BRANCA OU SIMILAR, PEI-3, APLICADO COM ARGAMASSA INDUSTRIALIZADA AC-II, REJUNTADO, EXCLUSIVE REGULARIZAÇÃO DE BASE OU EMBOÇO | D157: ='Planilha Orçamentária'!G50 -> M² | E157: LARG. (M) | F157: COMP. (M) | G157: ALTURA (M) | H157: QUANT. (UN) | J157: ÁREA (M²) | K157: VOLUME (M³) | L157: TOTAL
C158: Perímetro interno das alvenarias abaixo da laje que receberão revestimento cerâmico , descontado o rodapé - Casa de Mel (medido no CAD) | F158: 136.69 | G158: 3 | J158: =F158*G158 -> 410.07 | L158: =J158 -> 410.07
L159: =SUM(L158:L158) -> 410.07
B160: ='Planilha Orçamentária'!B55 -> 5 | C160: ='Planilha Orçamentária'!C55 -> COBERTURA E IMPERMEABILIZAÇÃO
B161: ='Planilha Orçamentária'!$B$56 -> 5.1 | C161: ='Planilha Orçamentária'!F56 -> TRAMA DE MADEIRA COMPOSTA POR TERÇAS PARA TELHADOS DE ATÉ 2 ÁGUAS PARA TELHA ESTRUTURAL DE FIBROCIMENTO, INCLUSO TRANSPORTE VERTICAL. AF_07/2019 | D161: ='Planilha Orçamentária'!G56 -> M² | E161: LARG. (M) | F161: COMP. (M) | G161: ALTURA (M) | H161: QUANT. (UN) | J161: ÁREA (M²) | K161: VOLUME (M³) | L161: TOTAL
C162: Área coberta da Casa de Mel | E162: 7.65 | F162: =3.8*4 -> 15.2 | J162: =E162*F162 -> 116.28 | L162: =J162 -> 116.28
L163: =SUM(L162:L162) -> 116.28
B164: ='Planilha Orçamentária'!$B$57 -> 5.2 | C164: ='Planilha Orçamentária'!F57 -> TRAMA DE MADEIRA COMPOSTA POR RIPAS, CAIBROS E TERÇAS PARA TELHADOS DE ATÉ 2 ÁGUAS PARA TELHA CERÂMICA CAPA-CANAL, INCLUSO TRANSPORTE VERTICAL. AF_07/2019 | D164: ='Planilha Orçamentária'!G57 -> M² | E164: LARG. (M) | F164: COMP. (M) | G164: ALTURA (M) | H164: QUANT. (UN) | J164: ÁREA (M²) | K164: VOLUME (M³) | L164: TOTAL
C165: Área coberta do alpende da Casa de Mel | E165: 3.7 | F165: 15.3 | J165: =E165*F165 -> 56.61 | L165: =J165 -> 56.61
L166: =SUM(L165:L165) -> 56.61
B167: ='Planilha Orçamentária'!$B$58 -> 5.3 | C167: ='Planilha Orçamentária'!F58 -> PINTURA IMUNIZANTE PARA MADEIRA, 1 DEMÃO. AF_01/2021 | D167: ='Planilha Orçamentária'!G58 -> M² | E167: LARG. (M) | F167: COMP. (M) | G167: ALTURA (M) | H167: QUANT. (UN) | J167: ÁREA (M²) | K167: VOLUME (M³) | L167: TOTAL
C168: Área coberta da Casa de Mel, CONSIDERANDO 10% | E168: 7.65 | F168: =3.8*4 -> 15.2 | H168: 0.1 | J168: =E168*F168*H168 -> 11.63 | L168: =J168 -> 11.63
C169: Área coberta do alpende da Casa de Mel | E169: 3.7 | F169: 15.3 | J169: =E169*F169 -> 56.61 | L169: =J169 -> 56.61
L170: =SUM(L168:L169) -> 68.24
B171: ='Planilha Orçamentária'!$B$62 -> 5.7 | C171: ='Planilha Orçamentária'!F62 -> RUFO EXTERNO/INTERNO EM CHAPA DE AÇO GALVANIZADO NÚMERO 26, CORTE DE 33 CM, INCLUSO IÇAMENTO. AF_07/2019 | D171: ='Planilha Orçamentária'!G62 -> M | E171: LARG. (M) | F171: COMP. (M) | G171: ALTURA (M) | H171: QUANT. (UN) | J171: ÁREA (M²) | K171: VOLUME (M³) | L171: TOTAL
C172: Extensão de rufos - Casa de Mel | F172: =15*2+7.65*2 -> 45.3 | L172: =F172 -> 45.3
C173: Extensão de rufos - Alpende da Casa de Mel | F173: 15.3 | L173: =F173 -> 15.3
L174: =SUM(L172:L173) -> 60.6
B175: ='Planilha Orçamentária'!$B$63 -> 5.8 | C175: ='Planilha Orçamentária'!F63 -> CALHA EM CHAPA DE AÇO GALVANIZADO NÚMERO 24, DESENVOLVIMENTO DE 100 CM, INCLUSO TRANSPORTE VERTICAL. AF_07/2019 | D175: ='Planilha Orçamentária'!G63 -> M | E175: LARG. (M) | F175: COMP. (M) | G175: ALTURA (M) | H175: QUANT. (UN) | J175: ÁREA (M²) | K175: VOLUME (M³) | L175: TOTAL
C176: Extensão de rufos - Casa de Mel | F176: 7.65 | H176: 2 | L176: =F176*H176 -> 15.3
L177: =SUM(L176:L176) -> 15.3
B178: ='Planilha Orçamentária'!$B$64 -> 5.9 | C178: ='Planilha Orçamentária'!F64 -> IMPERMEABILIZAÇÃO DE SUPERFÍCIE COM EMULSÃO ASFÁLTICA, 2 DEMÃOS. AF_09/2023 | D178: ='Planilha Orçamentária'!G64 -> M² | E178: LARG. (M) | F178: COMP. (M) | G178: ALTURA (M) | H178: QUANT. (UN) | J178: ÁREA (M²) | K178: VOLUME (M³) | L178: TOTAL
C179: Impermeabilização da superfície superior da laje da Casa de Comando | E179: 3.3 | F179: 3.43 | J179: =E179*F179 -> 11.32 | L179: =J179 -> 11.32
L180: =SUM(L179:L179) -> 11.32
B181: ='Planilha Orçamentária'!B65 -> 6 | C181: ='Planilha Orçamentária'!C65 -> ESQUADRIAS
B182: ='Planilha Orçamentária'!$B$66 -> 6.1 | C182: ='Planilha Orçamentária'!F66 -> PORTA EM ALUMÍNIO DE ABRIR TIPO VENEZIANA COM GUARNIÇÃO, FIXAÇÃO COM PARAFUSOS - FORNECIMENTO E INSTALAÇÃO. AF_12/2019 | D182: ='Planilha Orçamentária'!G66 -> M² | E182: LARG. (M) | F182: COMP. (M) | G182: ALTURA (M) | H182: QUANT. (UN) | J182: ÁREA (M²) | K182: VOLUME (M³) | L182: TOTAL
C183: Porta 1,00 m | E183: 1 | G183: 2.1 | H183: 6 | J183: =E183*G183*H183 -> 12.6 | L183: =J183 -> 12.6
C184: Porta 0,60 m | E184: 0.6 | G184: 2.1 | H184: 5 | J184: =E184*G184*H184 -> 6.3 | L184: =J184 -> 6.3
C185: Porta 0,80 m | E185: 0.8 | G185: 2.1 | H185: 5 | J185: 8.4 | L185: 8.4
L186: =SUM(L183:L185) -> 27.3
B187: ='Planilha Orçamentária'!$B$67 -> 6.2 | C187: ='Planilha Orçamentária'!F67 -> JANELA DE ALUMÍNIO DE CORRER COM 2 FOLHAS PARA VIDROS, COM VIDROS, BATENTE, ACABAMENTO COM ACETATO OU BRILHANTE E FERRAGENS. EXCLUSIVE ALIZAR E CONTRAMARCO. FORNECIMENTO E INSTALAÇÃO. AF_12/2019 | D187: ='Planilha Orçamentária'!G67 -> M² | E187: LARG. (M) | F187: COMP. (M) | G187: ALTURA (M) | H187: QUANT. (UN) | J187: ÁREA (M²) | K187: VOLUME (M³) | L187: TOTAL
C188: Janelas 1,20 m | E188: 1.2 | G188: 1 | H188: 9 | J188: =E188*G188*H188 -> 10.8 | L188: =J188 -> 10.8
C189: Janelas 0,50 m | E189: 0.5 | G189: 0.5 | H189: 6 | J189: =E189*G189*H189 -> 1.5 | L189: =J189 -> 1.5
L190: =SUM(L188:L189) -> 12.3
B192: ='Planilha Orçamentária'!$B$68 -> 6.3 | C192: ='Planilha Orçamentária'!F68 -> PORTA DE FERRO, DE ABRIR, TIPO GRADE COM CHAPA, COM GUARNIÇÕES. AF_12/2019 | D192: ='Planilha Orçamentária'!G68 -> M² | E192: LARG. (M) | F192: COMP. (M) | G192: ALTURA (M) | H192: QUANT. (UN) | J192: ÁREA (M²) | K192: VOLUME (M³) | L192: TOTAL
C193: Porta de Ferro 140 x 2,10 m | E193: 1.4 | G193: 2.1 | J193: =E193*G193 -> 2.94 | L193: =J193 -> 2.94
L194: =SUM(L193:L193) -> 2.94
B195: ='Planilha Orçamentária'!$B$69 -> 6.4 | C195: ='Planilha Orçamentária'!F69 -> PINTURA COM TINTA ALQUÍDICA DE FUNDO (TIPO ZARCÃO) PULVERIZADA SOBRE SUPERFÍCIES METÁLICAS (EXCETO PERFIL) EXECUTADO EM OBRA (POR DEMÃO). AF_01/2020_PE | D195: ='Planilha Orçamentária'!G69 -> M² | E195: LARG. (M) | F195: COMP. (M) | G195: ALTURA (M) | H195: QUANT. (UN) | J195: ÁREA (M²) | K195: VOLUME (M³) | L195: TOTAL
C196: Porta de Ferro 140 x 2,10 m - dois lados | E196: 1.4 | G196: 2.1 | H196: 2 | J196: =E196*G196*H196 -> 5.88 | L196: =J196 -> 5.88
L197: =SUM(L196:L196) -> 5.88
B198: ='Planilha Orçamentária'!$B$70 -> 6.5 | C198: ='Planilha Orçamentária'!F70 -> PINTURA COM TINTA ALQUÍDICA DE ACABAMENTO (ESMALTE SINTÉTICO ACETINADO) PULVERIZADA SOBRE SUPERFÍCIES METÁLICAS (EXCETO PERFIL) EXECUTADO EM OBRA (POR DEMÃO). AF_01/2020_PE | D198: ='Planilha Orçamentária'!G70 -> M² | E198: LARG. (M) | F198: COMP. (M) | G198: ALTURA (M) | H198: QUANT. (UN) | J198: ÁREA (M²) | K198: VOLUME (M³) | L198: TOTAL
C199: Janelas da área de produção | E199: 1.2 | G199: 1 | H199: 7 | J199: =E199*G199*H199 -> 8.4 | L199: =J199 -> 8.4
L200: =SUM(L199:L199) -> 8.4
B201: ='Planilha Orçamentária'!B72 -> 7 | C201: ='Planilha Orçamentária'!C72 -> INSTALAÇÕES HIDROSSANITÁRIAS
B202: ='Planilha Orçamentária'!$B$84 -> 7.12 | C202: ='Planilha Orçamentária'!F84 -> VIDRO TEMPERADO 10MM, FUMÊ, TIPO PIVOTANTE, COM FERRAGENS - REV 01_10/2021 | D202: ='Planilha Orçamentária'!G53 -> M² | E202: LARG. (M) | F202: COMP. (M) | G202: ALTURA (M) | H202: QUANT. (UN) | J202: ÁREA (M²) | K202: VOLUME (M³) | L202: TOTAL
... 47 more rows

Sheet Cronograma
B1: ='Planilha Orçamentária'!$F$2 -> MINISTÉRIO DA INTEGRAÇÃO E DO DESENVOLVIMENTO REGIONAL - MIDR COMPANHIA DE DESENVOLVIMENTO DOS VALES DO SÃO FRANCISCO E DO PARNAÍBA 3ª Superintendência Regional
B2: ='Planilha Orçamentária'!B3 -> SERVIÇOS NECESSÁRIOS A CONSTRUÇÃO DE CASA DE MEL, EM DIVERSOS MUNICÍPIOS DO ESTADO DE PERNAMBUCO, INSERIDOS NA ÁREA DE ATUAÇÃO DA 3ª SUPERINTENDÊNCIA REGIONAL DA CODEVASF, ATRAVÉS DE SISTEMA DE REGISTRO DE PREÇOS - SRP
A4: CRONOGRAMA FÍSICO-FINANCEIRO
A5: ITEM | B5: DESCRIÇÃO | C5: Valor (R$) | D5: M E S E S | J5: TOTAL
D6: 1º | E6: 2º | F6: 3º | G6: 4º | H6: 5º | I6: 6º
A7: ='Planilha Orçamentária'!B11 -> 1 | B7: ='Planilha Orçamentária'!C11 -> IMPLANTAÇÃO E ADMINISTRAÇÃO DA OBRA | C7: ='Planilha Orçamentária'!$K$11 -> 29506.24 | D7: =$C$7*D8 -> 7376.56 | E7: =$C$7*E8 -> 4425.94 | F7: 4425.94 | G7: 4425.94 | H7: 4425.94 | I7: 4425.94 | J7: =SUM(D7:I7) -> 29506.26
D8: 0.25 | E8: 0.15 | F8: 0.15 | G8: 0.15 | H8: 0.15 | I8: 0.15 | J8: =SUM(D8:I8) -> 1
N9: =C7*0.15 -> 4425.936
A10: ='Planilha Orçamentária'!B17 -> 2 | B10: ='Planilha Orçamentária'!C17 -> SERVIÇOS PRELIMINARES | C10: ='Planilha Orçamentária'!$K$17 -> 3426.04 | D10: =$C$10*D11 -> 3426.04 | E10: =$C$10*E11 -> 0 | F10: 0 | G10: 0 | H10: 0 | I10: 0 | J10: =SUM(D10:I10) -> 3426.04
D11: 1 | J11: =SUM(D11:I11) -> 1
A13: ='Planilha Orçamentária'!B23 -> 3 | B13: ='Planilha Orçamentária'!C23 -> INFRAESTRUTURA E SUPERESTRUTURA | C13: ='Planilha Orçamentária'!$K$23 -> 147399.96 | D13: =$C$13*D14 -> 29479.99 | E13: =$C$13*E14 -> 58959.98 | F13: 58959.98 | G13: 0 | H13: 0 | I13: 0 | J13: =SUM(D13:I13) -> 147399.95
D14: 0.2 | E14: 0.4 | F14: 0.4 | J14: 1
J15: 0
A16: ='Planilha Orçamentária'!B41 -> 4 | B16: ='Planilha Orçamentária'!C41 -> ALVENARIAS, REVESTIMENTOS E PINTURAS | C16: ='Planilha Orçamentária'!$K$41 -> 118545.83 | D16: =$C$16*D17 -> 0 | E16: =$C$16*E17 -> 35563.75 | F16: 11854.58 | G16: 11854.58 | H16: 23709.17 | I16: 35563.75 | J16: 118545.83
E17: 0.3 | F17: 0.1 | G17: 0.1 | H17: 0.2 | I17: 0.3 | J17: 1
J18: 0
A19: ='Planilha Orçamentária'!B55 -> 5 | B19: ='Planilha Orçamentária'!C55 -> COBERTURA E IMPERMEABILIZAÇÃO | C19: ='Planilha Orçamentária'!$K$55 -> 29714.27 | D19: =$C$19*D20 -> 0 | E19: =$C$19*E20 -> 0 | F19: 0 | G19: 29714.27 | H19: 0 | I19: 0 | J19: 29714.27
G20: 1 | J20: 1
J21: 0
A22: ='Planilha Orçamentária'!B65 -> 6 | B22: ='Planilha Orçamentária'!C65 -> ESQUADRIAS | C22: ='Planilha Orçamentária'!$K$65 -> 23513.89 | D22: =$C$22*D23 -> 0 | E22: =$C$22*E23 -> 0 | F22: 0 | G22: 0 | H22: 23513.89 | I22: 0 | J22: 23513.89
H23: 1 | J23: 1
J24: 0
A25: ='Planilha Orçamentária'!B72 -> 7 | B25: ='Planilha Orçamentária'!C72 -> INSTALAÇÕES HIDROSSANITÁRIAS | C25: ='Planilha Orçamentária'!$K$72 -> 55575.81 | D25: =$C$25*D26 -> 0 | E25: =$C$25*E26 -> 0 | F25: 25009.11 | G25: 30566.7 | H25: 0 | I25: 0 | J25: 55575.81
F26: 0.45 | G26: 0.55 | J26: 1
J27: 0
A28: ='Planilha Orçamentária'!B106 -> 8 | B28: ='Planilha Orçamentária'!C106 -> INSTALAÇÕES ELÉTRICAS | C28: ='Planilha Orçamentária'!$K$106 -> 48666.81 | D28: =$C$28*D29 -> 0 | E28: =$C$28*E29 -> 0 | F28: 0 | G28: 19466.72 | H28: 29200.09 | I28: 0 | J28: 48666.81
G29: 0.4 | H29: 0.6 | J29: 1
J30: 0
A31: ='Planilha Orçamentária'!B132 -> 9 | B31: ='Planilha Orçamentária'!C132 -> URBANIZAÇÃO | C31: ='Planilha Orçamentária'!$K$132 -> 26532.35 | D31: =$C$31*D32 -> 0 | E31: =$C$31*E32 -> 0 | F31: 0 | G31: 0 | H31: 0 | I31: 26532.35 | J31: 26532.35
I32: 1 | J32: 1
J33: 0
A34: ='Planilha Orçamentária'!B140 -> 10 | B34: ='Planilha Orçamentária'!C140 -> ADUÇÃO, TRATAMENTO E RESERVAÇÃO | C34: ='Planilha Orçamentária'!$K$140 -> 38089.98 | D34: =$C$34*D35 -> 0 | E34: =$C$34*E35 -> 0 | F34: 0 | G34: 0 | H34: 15235.99 | I34: 22853.99 | J34: 38089.98
H35: 0.4 | I35: 0.6 | J35: 1
J36: 0
A37: ='Planilha Orçamentária'!B156 -> 11 | B37: ='Planilha Orçamentária'!C156 -> LIMPEZA E ENTREGA | C37: ='Planilha Orçamentária'!$K$156 -> 622.3 | D37: =$C$37*D38 -> 0 | E37: =$C$37*E38 -> 0 | F37: 0 | G37: 0 | H37: 0 | I37: 622.3 | J37: 622.3
I38: 1 | J38: 1
J39: 0
C40: =SUM(C7:C39) -> 521593.48
